Workbook

Sheet front
A1: 使用方法
B3: 1 | C3: データの入力
C4: 1.1 | D4: D2 | E4: パスワード | G4: 毎月新たなパスワードになります。新パスワードを直接購入するか、取り扱いアドバイザーから得てください
C6: 1.2 | D6: C7:D14 | E6: 燃料消費 | G6: 燃料の種類はリストから選択し、単位に合わせた対象期間の消費量を入れます
C8: 1.3 | D8: C19:D23 | E8: 使用電力 | G8: 契約電力をリストから選択し、対象期間の消費量を入れます(契約事業者とメニューは令和5年報告版です)
C10: 1.4 | D10: D30 | E10: 売上高 | G10: 対象期間の売上高を百万円単位で入力します
D11: D27 | E11: (製品売上)/(全売り上げ) | G11: 売上の中での資本財・消費財・中間部品・素材部分の割合を%で入れます。(カテゴリー11で使用段階が特定できないときに用います)
D12: D28 | E12: 通年従業員 | G12: 年間を通して雇用している人数です。(通勤、出張のデータが特定できないときに用います)
D13: D29 | E13: 年間事業日数 | G13: 事業所の稼働日数です(通勤のデータが特定できないときに用います)
D14: D35 | E14: 立地 | G14: 立地場所と事業所タイプを選択してください。(通勤のデータが特定できないときに用います)
C16: 1.5 | D16: C40:E89 | E16: サプライチェーン購入・契約・支払い | G16: スコープ3のために、対象期間の外部との取引を入力します
G17: 品目名は任意です。消耗物品だけでなく、役務や資本財の購入も入ります。経理での品目名管理を活用してもかまいません
G18: 量ではなく、取引金額を百万円単位で入れていきます
G19: 範疇は、当該取引がスコープ3のドのカテゴリーに属するものかを示します。リストから選んでください
C21: 1.6 | D21: G40:J89 | E21: 産業連関関係付 | G21: 品目に産業連関の項目のどれに当たるかを結びつけます
G22: わからないときは、当面空白にしておいて、後でAI推定を行うことも可能です。
G23: まず、大分類からリストを選んでいきます。
G24: 大分類が決まると、中分類には大分類で絞られたリストが示されるようになり、そこから中分類を選びます
G25: これを順次、中分類から小分類、小分類から細分目類へと進めていきます
G26: コードが示されれは、それによって産業連関計算が可能になりサプライチェーンのCO2が計算できるようになったことを意味します
C28: 1.7 | D28: C93:E103 | E28: 発生廃棄物 | G28: SCOPE3カテゴリー5(事業から出る廃棄物)に関わるCO2を算定するためのものです
G29: 発生廃棄物名(任意)を入れて、
G30: 処理料はtonに換算して入力します
G31: 発生廃棄物の種別をリストのいずれかに当てはめます。これも、当面空白にしてAI推定を行わせることが可能になります
C33: 1.8 | D33: G93 | E33: 産出物種類 | G33: カテゴリー10(産出物の加工)、11(産出物の使用)、12(産出物の廃棄)の計算のために素材や部品などの「中間財」か「最終製品」か物品の販売を伴わない「サービス」かを区別します
C35: 1.9 | D35: H96:H99 | E35: 使用条件 | G35: 「最終製品」や「サービス」の場合、カテゴリー11の計算のために使用条件を入れます
G36: GHGプロトコルでは、当該期間に販売した製品の全ライフサイクル期間が対象となります
G37: 電力および燃料の消費は、販売製品が5万円の場合は、100万円売上あたりになるように製品の20倍の数値を入れます。
H38: 例：紙タオルのような使い捨ての物は、寿命はゼロ、稼働率は100%でしょうか？電力も燃料もゼロ。
H39: 例：200万円の自動車を製造販売している場合、寿命＝10年、稼働率？、電力ゼロ、燃料（ガソリン）は10年（87,600h）で10万㎞を燃費20km/Lとすると、5,000L/87,600h＝0.05707762557L/h⇒100万円当たり1/2で0.02853881278L/h
H40: 例：200万円の電気自動車で、寿命＝10年、稼働率？、電力は電費＝10km/kWhとして、10万kmで総消費電力10,000kWh、10年＝87,600hなので、記入するkWhは、10,000/87,600＝0.11415525114⇒100万円当たり1/2で、0.05707762557kW
C42: 1.10 | D42: J92,J94:J108 | E42: 素材構成 | G42: カテゴリー10(産出物の加工)、12(産出物の廃棄)の計算のために素材構成重量比を入れます
G43: J92には製品の100万円あたりの総重量を入れます
C45: 1.11 | D45: D37 | E45: 入力範疇チェック | G45: scope3のカテゴリーをすべて記載できているかチェックします
G46: 「購入」「設備」「輸送」関係は記載がなければ、ないことを指摘するので、項目を加えて入れてください。
G47: 「出張」「通勤」は記載がなければ、事業所データから算定します。(算定された場合は品目に「tCO2eq」が記載されますが、これは変更しないでください)
G48: 「リース(上流)」に関連記載がない場合、および「リース(下流)」、「フランチャイズ」、「投資」に対して、新しい列が追加され、該当する事業がある場合は、その事業での直接排出量を、ない場合は0を量のところに記載してください。
G49: 全カテゴリーがカバーできたら、「GHGプロトコルのカテゴリー記載は満たしています」のメッセージが出ますので、それまで何度も繰り返してください。
G50: チェックが完了したら、「準拠チェック」のシートの選択部分のソフト処理の部分の該当項目に⦿がつけられます
C52: ここまでがGHGプロトコルのスコープ3に基づく、企業活動によるサプライチェーンCO2の把握です。
C53: 以降は、カーボンニュートラルに向けた、リサイクルによる貢献をレポートするためのものです。
C55: 1.12 | D55: C170:D189 | E55: リサイクル産出
E56: リサイクル産出品名と、その量(燃料用は単位に合わせた重量、再生用は百万円単位の売上額)を入れます
E57: 名称は任意です
C58: 1.13 | D58: F170:F189 | E58: リサイクル物種別
E59: リサイクル産出物の名称をリストから種別に割付けます。当面は空白にしておいてAIの支援を受けることも可能です
C60: 1.14 | D60: C193:D196 | E60: リユース品
E61: リユース産出物の名称と、その対象期間での売上額(百万円)を入れます
E62: 名称は任意です
C63: 1.15 | D63: G192:J196 | E63: リユース品の産業関連表項目との関連付け
E64: リユース品をバージン生産の産業と漢検付けます。
E65: 基本的に1.6と同じ作業をします。
B68: 2 | C68: AI支援 | D68: 名称は企業によって異なるので、それを産業連関表の項目や廃棄物名、再生品名など、CO2排出データのある項目に結びつける作業をAIが支援します
D69: B40:B196 | E69: 以下のように指定します
E70: A | F70: 種別や小項目を一旦空白にしておいたもので、AI支援でAIが適当と判断した種別などを書き出させのす
E71: M | F71: マニュアルで、ヒトがリストから選んで入力したものを経じします
D72: B39 | E72: ピンクのB29のセルをクリックすると、Aにした項目に対してAIが案を提示していきます
E73: はっきりいって、割といいかげんな関連付けです。ただ、まずAIで品目とデータベースの関連付けの案を作らせて修正するのが楽です。
E74: そのうえ遅いです。ただ、一度AIにやらせて修正したら、そのあとMにして保存しておくとそのあと楽になります。
B76: 3 | C76: 産業分類参照
D77: AIで満足できないときに、自分で分類項目を見つけるために、産業連関表の項目を一覧できる表が出てきます
D78: G38 | E78: 黄色のG38をクリクします
B80: 4 | C80: 計算
D81: 出来上がったエクセル表を、ファイルのまま、https://lca.sdgoods.net/code/SCATgo.htmlにドラッグ&ドロップかファイルわ見込みで落とします。
D82: 計算結果がエクセル図表として出力されます。

Sheet 準拠チェック
B1: 査読者 | C1: 実施者確認 | D1: 自動チェック
B3: □ | C3: □ | D3: ⦿ | E3: 1. | F3: 目的: | G3: 本算定はWorld Resource Instituteが発行した「GHGプロコトル 企業の算定・報告基準の補遣: 企業のバリューチェーン(スコープ3)算定と報告の標準」(以下、「標準」とする)の1.2の目的に沿い、企業その他の組織がGHG排出量インベントリーを作成し公的に報告するためのものである。
B4: □ | C4: □ | D4: ⦿ | G4: 本算定は「標準」1.2および1.4に言う、企業がそのバリューチェーンからの排出量の全インパクトを理解するのに役立たせ、企業の努力を最大のGHG削減の好機に焦点を当てるものである。
B5: □ | C5: □ | D5: ⦿ | G5: 本算定は、「標準」1.7に述べられているように、「GHGプロトコル製品基準」とは異なり、個々の製品に対するインベントリーを与えるためのものではなく、企業活動の中で顕著な排出量を持つ製品を識別し、削減の好機を見出すためのものである。
B7: □ | C7: □ | D7: ⦿ | E7: 2 | F7: 対象: | G7: 本算定は、基準1.5に述べられた6項目の温室効果ガスを対象としている。具体的には環境省「サプライチェーンを通じた組織の温室効果ガス排出量算定のための排出源単位データベースv.3.2」(以降原単位DB)の中の「産業連関データ」のGHGガスCO2換算値を用いている。
B9: □ | C9: □ | D9: ⦿ | E9: 3. | F9: 手法: | G9: 本算定は、WRIおよびWBCSDが企業のバリューチェーン(スコープ3)の算定・報告の補足として公表した「スコープ3排出量の算定技術ガイダンス」(以下、「ガイダンス」)に基づいて算定されている・
C10: □ | D10: ⦿ | G10: カテゴリー | I10: 「標準」表5.4に挙げられる15のカテゴリーを対象として検討し、企業活動に含まれる部分はすべて算定対象とした
C11: □ | D11: ⦿ | G11: データタイプ | I11: 「ガイダンス」序文、データタイプの概要にあるようにも「活動量」と「排出係数」積の組み合わせの総和をとることにより目的機関のGHG排出を計算した
C12: □ | D12: ⦿ | G12: 活動量 | I12: 「標準」7.1データ収集作業の優先順位の手引を参考に、企業の総支出の95%以上を参考に購入された物品及びサービスを列挙してそれぞれの活動量を得た。
C13: □ | D13: ⦿ | G13: 排出係数 | I13: 「ガイダンス」序文18頁(訳文)に記載されている「環境拡散型産業連関(EEIO)データ」を採用し、具体的には、環境省「原単位DB」の中の「産業連関データ」を用いている。
C14: □ | D14: ⦿ | G14: システム境界1 | I14: 「産業連関」データを用いたことで、遡及限界を定める必要なく、全産業構造ヘの波及効果を算定することができている。
C15: □ | D15: ⦿ | G15: システム境界2 | I15: 環境省「原単位DB」にある環境拡散型産業連関データはGlobal link input-output (GLIO) モデルを持つため、原材料や部品等として使用される輸入品に付随する環境負荷量を推計できている。
B17: □ | C17: □ | D17: ⦿ | E17: 4. | F17: 直接排出 | G17: 本算定は、温室効果ガス排出量 算定・報告・公表制度の算定・報告・公表制度における算定方法・排出係数一覧の燃焼及び工業関係のデータに基づいて算定されている(access2023/6/15)
C18: □ | D18: ⦿ | G18: CH4,N2O | I18: 上記の「算定方法・排出係数一覧」のなかでCH4,N2OによるGHG係数がCO2に対して1%以上影響を与える炉・燃焼装置がある場合はそれを抽出しCH4,N2O寄与を加算した係数を用いている
C19: □ | D19: ⦿ | G19: SF6,NF3、フロン類 | I19: 上記の「算定方法・排出係数一覧」にあるSF6,NF3,フロン類を発生させる工程を事業の中に有する場合は、発生量をその表に基づき計算し加算するようにしている。
B21: □ | C21: □ | D21: ⦿ | E21: 5. | F21: 間接排出
C22: □ | D22: ⦿ | G22: 本算定は、上記の「算定方法・排出係数一覧」にある「電気事業者別排出係数一覧」の令和５年提出用にある電気事業者メニューごとの排出係数に、電力使用量を乗じて加算したものであり、現時点で最新の電力利用による間接排出量を算定するものである。
B24: □ | C24: □ | D24: ⦿ | E24: 6. | F24: 購入した物品と役務(カテゴリー1)
C25: □ | D25: ⦿ | G25: 活動量 | I25: リストアップした購入部品もしくは役務は当企業の総支出の90%を構成するものをすべて含んでいる
C26: □ | D26: ⦿ | I26: リストアップした購入部品もしくは役務は当企業の総支出の95%を構成するものをすべて含んでいる
C27: □ | D27: ⦿ | I27: リストアップした購入部品などには、素材、中間製品、最終製品も含まれている。
C28: □ | D28: ⦿ | I28: 資本財は別途計上(カテゴリー2 )しダブルカウントしていない。
C29: □ | D29: ⦿ | I29: 購入物提供場所からの輸送はカテゴリー4に計上しダブルカウントしていないが、それ以前の工程での輸送にともなうGHG排出は産業連関の一部として考慮されている
C30: □ | D30: ⦿ | G30: 遡及 | I30: 産業連関計算を用いることで、購入製品もしくは役務のフットプリントは全産業の連関を網羅している
C31: □ | D31: ⦿ | G31: 排出係数 | I31: 環境省「原単位DB」の中の「産業連関データ」を用いており、信頼に裏付けられた排出係数である。
B33: □ | C33: □ | D33: ⦿ | E33: 7. | F33: 資本財(カテゴリー2 )
C34: □ | D34: ⦿ | G34: 活動量 | I34: 固定資産または有形固定資産としてあげられる機器、機械、建物、設備及び車両の購入もしくは入手をリストアップしています。
C35: ◯ × | I35: (選択)これら資本財の対象期間における購入・入手を計上しています
C36: ◯ × | I36: (選択)これまでに購入した資本財の減価償却分を対象期間の資本財に関わる活動として取り上げています
C37: □ | D37: ⦿ | G37: 排出係数 | I37: 環境省「原単位DB」の中の「産業連関データ」を用いており、信頼に裏付けられた排出係数である。
B39: □ | C39: □ | D39: ⦿ | E39: 8. | F39: 燃料とエネルギーに関連する活動(カテゴリー3)
C40: □ | D40: ⦿ | G40: 活動量 | I40: 直接排出で購入した燃料を対象とし、そのカーボンフットプリントを積算しています
C41: □ | D41: ⦿ | I41: 間接排出で購入した電力には、電力製造時のGHGガスが含まれるとして二重カウントを避けています
C42: □ | D42: ⦿ | G42: 排出係数 | I42: 環境省「原単位DB」の中の「産業連関データ」のそれぞれの燃料販売に相当する部分をを用いており、信頼に裏付けられた排出係数である。
B44: □ | C44: □ | D44: ⦿ | E44: 9. | F44: 上流側輸送と配給(カテゴリー4)
C45: □ | D45: ⦿ | G45: 活動量 | I45: 企業支出の中で原材料、部品、製品などの購入に伴う輸送・配送に関わる企業活動をリストアップしいます
C46: □ | D46: ⦿ | G46: 排出係数 | I46: 環境省「原単位DB」の中の「産業連関データ」のそれぞれの該当する輸送サービスに相当する部分をを用いており、信頼に裏付けられた排出係数である。
B48: □ | C48: □ | D48: ⦿ | E48: 10. | F48: 操業により発生する廃棄物(カテゴリー5)
C49: □ | D49: ⦿ | G49: 活動量 | I49: 環境省「原単位DB」の9廃棄物【種類別】に示される廃棄物の発生量を活動量としている
C50: □ | D50: ⦿ | G50: 排出係数 | I50: 同表の、廃棄物輸送段階を含むGHG排出係数を用いている
C51: □ | D51: ⦿ | G51: 控除について | I51: 「標準」のボックス5.6に従い、リサイクルに付随するマイナスの排出物は、このカテゴーリに含めていない。
B53: □ | C53: □ | D53: ⦿ | E53: 11. | F53: 出張(カテゴリー6)
C54: ◯ × | D54: ⦿ | G54: 算定法(選択) | I54: 出張に伴う実支出を計上し、産業連関表の該当項目と関連付けて積算した
C55: ◯ × | G55: 算定法(選択) | I55: 環境省「原単位DB」の13従業員、従業員一人当たりの年間排出源単位0.13tCO2/人・年を用いて算定した
B57: □ | C57: □ | D57: ⦿ | E57: 12. | F57: 従業員の通勤(カテゴリー7)
C58: ◯ × | D58: ⦿ | G58: 算定法(選択) | I58: 出勤に伴う実支出を計上し、産業連関表の該当項目と関連付けて積算した
C59: ◯ × | G59: 算定法(選択) | I59: 環境省「原単位DB」の14従業員【勤務日数】の、表15. 勤務形態別都市区分別従業員数・勤務日数当たり排出原単位を用いて算定した
B61: □ | C61: □ | D61: ⦿ | E61: 13. | F61: 上流側の賃貸資産(カテゴリー8)
C62: ◯ × | D62: ⦿ | G62: 該当・非該当(選択) | I62: 当事業において賃貸を受けるなどの該当はありません
C63: ◯ × | G63: 該当(選択) | I63: 該当する賃貸サービスへの出費を元に、環境省「原単位DB」の中の「産業連関データ」のそれそれの賃貸サービスに相当する部分をを用いて
C64: ◯ × | G64: 該当(選択) | I64: 直接算定して計上している
B66: □ | C66: □ | D66: ⦿ | E66: 14 | F66: 下流側の輸送と配給(カテゴリー9)
C67: □ | D67: ⦿ | G67: 活動量 | I67: 企業支出の中で製造品の販売に伴う輸送・配送に関わる企業活動をリストアップしいます
C68: □ | D68: ⦿ | G68: 排出係数 | I68: 環境省「原単位DB」の中の「産業連関データ」のそれぞれの該当する輸送サービスに相当する部分をを用いており、信頼に裏付けられた排出係数である。
B70: □ | C70: □ | D70: ⦿ | E70: 15. | F70: 販売された製品の加工(カテゴリー10 )
C71: ◯ × | G71: 非該当(選択) | I71: 当社の製品・サービスはすべて完成品であり加工工程は不必要で該当しません
C72: □ | D72: ⦿ | G72: 活動量 | I72: 製品(素材・部品)の素材構成を明らかにし、加工にかけられる対象量と仮定しました
C73: □ | D73: ⦿ | G73: 排出係数 | I73: 環境省「原単位DB」の中の「産業連関データ」に付随するGlobal link input-output (GLIO) モデルの中の関連最終製品に記載される最終製品部門の直接排出を排出係数として用いました
B75: □ | C75: □ | D75: ⦿ | E75: 16. | F75: 販売された製品の使用(カテゴリー11)
C76: ◯ × | D76: ⦿ | G76: 該当(選択) | I76: 対象期間中に販売された製品の末端仕様における、期待寿命およびエネルギー、電力消費を元にGHG排出を計算しました
C77: ◯ × | G77: 該当(選択) | I77: 製品が素材や部品であり直接の末端使用の想定が困難なので、世界の平均的な製品製造が関与する製品金額あたりの使用段階のGHG排出平均を用い、対象期間の売上中の製品割合を活動量として算定しました。
B79: □ | C79: □ | D79: ⦿ | E79: 17 | F79: 販売された製品の寿命終端処理(カテコリー12)
C80: ◯ × | G80: 非該当(選択) | I80: 当社の売上はサービスのみで物品を含んでいないことから、販売された製品はありません。
C81: □ | D81: ⦿ | G81: 活動量 | I81: 製品(素材・部品)の素材構成を明らかにし、寿命終端処理にかけられる対象量と仮定しました
C82: □ | D82: ⦿ | G82: 排出係数 | I82: 素材構成を、環境省「原単位DB」の9廃棄物【種類別】に示される廃棄物に当てはめ、その排出係数を用いました。
C83: □ | D83: ⦿ | G83: 控除について | I83: 「標準」のボックス5.6に従い、リサイクルに付随するマイナスの排出物は、このカテゴーリに含めていない。
B85: □ | C85: □ | D85: ⦿ | E85: 18. | F85: 下流側の賃貸資産(カテゴリー13)
C86: ◯ × | D86: ⦿ | G86: 該当・非該当(選択) | I86: 当事業から発生する「標準5.5」に述べられたような賃貸行為はありません
C87: ◯ × | G87: 該当(選択) | I87: 賃貸行為を含むため、その賃貸行為により発生するGHGを直接計上する
B89: □ | C89: □ | D89: ⦿ | E89: 19 | F89: フランチャイズ店(カテゴリー14)
C90: ◯ × | D90: ⦿ | G90: 該当・非該当(選択) | I90: 本事業から「標準5.5」に述べられたようなフランチャイズの運営は発生しません
C91: ◯ × | G91: 該当(選択) | I91: 本事業はフランチャイズの運営を含むため、その運営により発生するGHGを直接計算し計上しています
B93: □ | C93: □ | D93: ⦿ | E93: 20. | F93: 投資(カテゴリー15)
C94: ◯ × | G94: 該当・非該当(選択) | I94: 本事業から「標準5.5」に述べられたような投資の運営は発生しません
C95: ◯ × | D95: ⦿ | G95: 該当(選択) | I95: 本事業は投資の運営を含むため、その運営により発生するGHGを直接計算し計上しています
E97: 21 | F97: 追加報告
C98: □ | D98: ⦿ | G98: 「標準」ボックス5.6に基づき、リサイクルによるマイナスの排出は、カテゴリー5およびカテゴリー12に含めていない。そのために、GHG排出削減への当事業の貢献を馬手角にするために、GHGプロトコルスコープ3ととともに、別途リサイクル・リユースによるGHG削減貢献を報告するものである。
C100: 事業実施者
D101: 本報告は、 | F101: 年 | H101: 月から | J101: 年 | L101: 月の期間の | O101: における | R101: の事業の | S101: バリューチェーン(スコープ3)をGHGプロトコル 「企業の算定・報告基準の補遣」に基づいて行ってものであり、その記載に間違いはない。
E103: 日付
E105: 実施者名
B109: レビューアー
D110: 本報告は、world Resource InstituteとWBCSDが公表した、GHGプロトコルの「企業のバリューチェーン(スコープ3) 算定と報告の標準」に基づいたものであることを認める。
E112: 日付
E114: レビューアー

Sheet select
C1: CO2計算シートSimple CO2 AccounT(SCAT1.2.3)plus | H1: SCAT123P | I1: ver 23b
C2: パスワード注2) | D2: s4klArBUBW4r
A5: scope1
B6: 燃料 | C6: 種類注3) | D6: 量注4) | E6: 単位 | F6: 排出tCO2
A7: F1 | B7: 1 | C7: B・C重油 | D7: 20 | E7: =listM!AN1 -> kL | F7: =calc!J3 -> 60 | I7: scope1 | J7: =jsonwk!B133 -> 98.10662 | K7: ton
A8: F2 | B8: 2 | C8: ガソリン | D8: 20 | E8: =listM!AN2 -> kL | F8: =calc!J4 -> 46.4
A9: F3 | B9: 3 | C9: 天然ガス(LNG以外) | D9: 0.021 | E9: =listM!AN3 -> kNm3 | F9: =calc!J5 -> 0.04662
A10: F4 | B10: 4 | C10: プロパン | D10: 0.01 | E10: =listM!AN4 -> kNm3 | F10: =calc!J6 -> 0.06
A11: F5 | B11: 5 | C11: SF6_NF3_HFC_PFC | D11: 0 | E11: =listM!AN5 -> tCO2eq | F11: =calc!J7 -> 0
A12: F6 | B12: 6 | C12: 触媒再生塔コークス | D12: 1 | E12: =listM!AN6 -> t | F12: =calc!J8 -> 0
A13: F7 | B13: 7 | E13: =listM!AN7 ->  | F13: =calc!J9 -> 0
A14: F8 | B14: 8 | E14: =listM!AN8 ->  | F14: =calc!J10 -> 0
A17: scope2
B18: 電力 | D18: 量 | E18: 単位 | F18: 間接tCO2
A19: E1 | B19: 1 | C19: A00003東京電力パワーグリッド(株)0.434 | D19: 200 | E19: kwh | F19: =calc!J18 -> 0
A20: E2 | B20: 2 | C20: A0067C(株)イーネットワークシステムズメニューC0 | D20: 400 | E20: kwh | F20: =calc!J19 -> 0
A21: E3 | B21: 3 | C21: A00000日本平均0.434 | E21: kwh | F21: =calc!J20 -> 0
A22: E4 | B22: 4 | E22: kwh | F22: =calc!J21 -> 0
A23: E5 | B23: 5 | E23: kwh | F23: =calc!J22 -> 0 | I23: scope1+2 | J23: =jsonwk!B133+jsonwk!B134 -> 98.45632 | K23: ton
A25: 計 | F25: =SUM(F19:F23) -> 0
C27: (製品売上)/(全売り上げ) | D27: 60 | E27: %
C28: 通年従業員 | D28: 100 | E28: 人
C29: 年間事業日数 | D29: 200 | E29: 日
C30: 売上高 | D30: 200 | E30: 百万円
C32: 百万円当たりの直接CO2排出 | D32: =jsonwk!D133 -> 0.4905331 | E32: ton/百万円
C33: 百万円当たりの直間接CO2排出 | D33: =jsonwk!E134 -> 98.45632 | E33: ton/百万円
C35: 立地 | D35: 15万以上都市オフィス
A36: scope3 | I36: scope1+2+3 | J36: =jsonwk!E135 -> 333.5825421 | K36: tonCO2eq
D37: 入力チェック
G38: 産業分類参照
B39: AI予想 | C39: 品目名 | D39: 取引額(百万円) | E39: 範疇 | F39: コード | G39: 大分類 | H39: 中分類 | I39: 小分類 | J39: 細目
A40: S1 | B40: A | C40: 嫌気性デラスシスな | D40: 0 | E40: 購入 | F40: =IFERROR(VLOOKUP(I40,listM!K$64:L$453,2,FALSE),"") -> 691100 | G40: 分類不明 | H40: 分類不明 | I40: 分類不明
A41: S2 | B41: M | C41: 碍子 | D41: 0 | E41: 購入 | F41: =IFERROR(VLOOKUP(I41,listM!K$64:L$453,2,FALSE),"") -> 481101 | G41: 廃棄物処理 | H41: 廃棄物処理 | I41: 廃棄物処理（公営）★★
A42: S3 | B42: M | C42: 鉄板 | D42: 0 | E42: 購入 | F42: =IFERROR(VLOOKUP(I42,listM!K$64:L$453,2,FALSE),"") -> 263101 | G42: 鉄鋼 | H42: 鋳鍛造品（鉄） | I42: 鋳鍛鋼
A43: S4 | B43: M | C43: 電子部品 | D43: 0 | E43: 購入 | F43: =IFERROR(VLOOKUP(I43,listM!K$64:L$453,2,FALSE),"") -> 329902 | G43: 電子部品 | H43: その他の電子部品 | I43: 電子回路 | J43: その他の電子回路基板
A44: S5 | B44: M | C44: ダスト処理 | D44: 0 | E44: 役務 | F44: =IFERROR(VLOOKUP(I44,listM!K$64:L$453,2,FALSE),"") -> 481102 | G44: 廃棄物処理 | H44: 廃棄物処理 | I44: 廃棄物処理（産業） | J44: 廃棄物処理（産業）
A45: S6 | B45: M | C45: 工場設備 | D45: 0 | E45: 設備 | F45: =IFERROR(VLOOKUP(I45,listM!K$64:L$453,2,FALSE),"") -> 411202 | G45: 建設 | H45: 建築 | I45: 非住宅建築（非木造） | J45: 工場・倉庫
A46: S7 | B46: M | C46: 入荷輸送費 | D46: 0 | E46: 入荷輸送 | F46: =IFERROR(VLOOKUP(I46,listM!K$64:L$453,2,FALSE),"") -> 574201 | G46: 運輸・郵便 | H46: 水運 | I46: 沿海・内水面輸送 | J46: 大型鋼船
A47: S8 | B47: M | C47: 配送費 | D47: 0 | E47: 出荷輸送 | F47: =IFERROR(VLOOKUP(I47,listM!K$64:L$453,2,FALSE),"") -> 576101 | G47: 運輸・郵便 | H47: 貨物利用運送 | I47: 貨物利用運送 | J47: 利用運送
A48: S9 | B48: M | C48: 出張旅費 | D48: 0 | E48: 出張費 | F48: =IFERROR(VLOOKUP(I48,listM!K$64:L$453,2,FALSE),"") -> 573101 | G48: 運輸・郵便 | H48: 自家輸送 | I48: 自家輸送（旅客自動車） | J48: 普通・小型乗用車
A49: S10 | B49: M | C49: 通勤手当 | D49: 0 | E49: 通勤費 | F49: =IFERROR(VLOOKUP(I49,listM!K$64:L$453,2,FALSE),"") -> 572101 | G49: 運輸・郵便 | H49: 道路輸送（自家輸送を除く。） | I49: バス | J49: 乗合バス
A50: S11 | B50: M | C50: 投資 | D50: 0 | E50: 投資 | F50: =IFERROR(VLOOKUP(I50,listM!K$64:L$453,2,FALSE),"") -> 011101 | G50: 農林漁業 | H50: 穀類 | I50: 米
A51: S12 | B51: M | C51: 備品 | D51: 0 | E51: 購入 | F51: =IFERROR(VLOOKUP(I51,listM!K$64:L$453,2,FALSE),"") -> 291201 | G51: はん用機械 | H51: はん用機械 | I51: ポンプ・圧縮機 | J51: その他のポンプ
A52: S13 | B52: M | C52: tCO2eq | D52: 0 | E52: リース(上流) | F52: =IFERROR(VLOOKUP(I52,listM!K$64:L$453,2,FALSE),"") -> 
A53: S14 | B53: M | C53: tCO2eq | D53: 0 | E53: リース(下流) | F53: =IFERROR(VLOOKUP(I53,listM!K$64:L$453,2,FALSE),"") -> 
A54: S15 | B54: M | C54: tCO2eq | D54: 0 | E54: フランチャイズ | F54: =IFERROR(VLOOKUP(I54,listM!K$64:L$453,2,FALSE),"") -> 
A55: S16 | B55: M | F55: =IFERROR(VLOOKUP(I55,listM!K$64:L$453,2,FALSE),"") -> 
A56: S17 | B56: M | F56: =IFERROR(VLOOKUP(I56,listM!K$64:L$453,2,FALSE),"") -> 
A57: S18 | B57: M | F57: =IFERROR(VLOOKUP(I57,listM!K$64:L$453,2,FALSE),"") -> 
A58: S19 | B58: M | F58: =IFERROR(VLOOKUP(I58,listM!K$64:L$453,2,FALSE),"") -> 
A59: S20 | B59: M | F59: =IFERROR(VLOOKUP(I59,listM!K$64:L$453,2,FALSE),"") -> 
A60: S21 | B60: M | F60: =IFERROR(VLOOKUP(I60,listM!K$64:L$453,2,FALSE),"") -> 
A61: S22 | B61: M | F61: =IFERROR(VLOOKUP(I61,listM!K$64:L$453,2,FALSE),"") -> 
A62: S23 | B62: M | F62: =IFERROR(VLOOKUP(I62,listM!K$64:L$453,2,FALSE),"") ->  | U62: ・プリンター ・パソコン ・電子レンジ | V62: 3. 滅亡
A63: S24 | B63: M | F63: =IFERROR(VLOOKUP(I63,listM!K$64:L$453,2,FALSE),"") -> 
A64: S25 | B64: M | F64: =IFERROR(VLOOKUP(I64,listM!K$64:L$453,2,FALSE),"") -> 
A65: S26 | B65: M | F65: =IFERROR(VLOOKUP(I65,listM!K$64:L$453,2,FALSE),"") -> 
A66: S27 | B66: M | F66: =IFERROR(VLOOKUP(I66,listM!K$64:L$453,2,FALSE),"") -> 
A67: S28 | B67: M | F67: =IFERROR(VLOOKUP(I67,listM!K$64:L$453,2,FALSE),"") -> 
A68: S29 | B68: M | F68: =IFERROR(VLOOKUP(I68,listM!K$64:L$453,2,FALSE),"") -> 
A69: S30 | B69: M | F69: =IFERROR(VLOOKUP(I69,listM!K$64:L$453,2,FALSE),"") -> 
A70: S31 | B70: M | F70: =IFERROR(VLOOKUP(I70,listM!K$64:L$453,2,FALSE),"") -> 
A71: S32 | B71: M | F71: =IFERROR(VLOOKUP(I71,listM!K$64:L$453,2,FALSE),"") -> 
A72: S33 | B72: M | F72: =IFERROR(VLOOKUP(I72,listM!K$64:L$453,2,FALSE),"") -> 
A73: S34 | B73: M | F73: =IFERROR(VLOOKUP(I73,listM!K$64:L$453,2,FALSE),"") -> 
A74: S35 | B74: M | F74: =IFERROR(VLOOKUP(I74,listM!K$64:L$453,2,FALSE),"") -> 
A75: S36 | B75: M | F75: =IFERROR(VLOOKUP(I75,listM!K$64:L$453,2,FALSE),"") -> 
A76: S37 | B76: M | F76: =IFERROR(VLOOKUP(I76,listM!K$64:L$453,2,FALSE),"") -> 
A77: S38 | B77: M | F77: =IFERROR(VLOOKUP(I77,listM!K$64:L$453,2,FALSE),"") -> 
A78: S39 | B78: M | F78: =IFERROR(VLOOKUP(I78,listM!K$64:L$453,2,FALSE),"") -> 
A79: S40 | B79: M | F79: =IFERROR(VLOOKUP(I79,listM!K$64:L$453,2,FALSE),"") -> 
A80: S41 | B80: M | F80: =IFERROR(VLOOKUP(I80,listM!K$64:L$453,2,FALSE),"") -> 
A81: S42 | B81: M | F81: =IFERROR(VLOOKUP(I81,listM!K$64:L$453,2,FALSE),"") -> 
A82: S43 | B82: M | F82: =IFERROR(VLOOKUP(I82,listM!K$64:L$453,2,FALSE),"") -> 
A83: S44 | B83: M | F83: =IFERROR(VLOOKUP(I83,listM!K$64:L$453,2,FALSE),"") -> 
A84: S45 | B84: M | F84: =IFERROR(VLOOKUP(I84,listM!K$64:L$453,2,FALSE),"") -> 
A85: S46 | B85: M | F85: =IFERROR(VLOOKUP(I85,listM!K$64:L$453,2,FALSE),"") -> 
A86: S47 | B86: M | F86: =IFERROR(VLOOKUP(I86,listM!K$64:L$453,2,FALSE),"") -> 
A87: S48 | B87: M | F87: =IFERROR(VLOOKUP(I87,listM!K$64:L$453,2,FALSE),"") -> 
A88: S49 | B88: M | F88: =IFERROR(VLOOKUP(I88,listM!K$64:L$453,2,FALSE),"") -> 
A89: S50 | B89: M | F89: =IFERROR(VLOOKUP(I89,listM!K$64:L$453,2,FALSE),"") -> 
C92: 発生廃棄物 | D92: 処理量t | E92: 種別 | G92: 産出物種類 | I92: 製品100万円あたり重量 | J92: 0 | K92: t
A93: W1 | B93: M | C93: 水酸化ナトリウム廃液 | D93: 0 | E93: 廃アルカリ | G93: サービス | I93: 構成
A94: W2 | B94: M | C94: プラスチック | D94: 0 | E94: 廃プラスチック類 | I94: 繊維 | K94: %
A95: W3 | B95: M | C95: 木くず | D95: 0 | E95: 木くず | H95: 代表製品100万円換算 | I95: 木材 | K95: %
A96: W4 | B96: M | G96: 寿命(年) | H96: 0 | I96: パルプ・紙 | J96: 0 | K96: %
A97: W5 | B97: M | G97: 稼働率(%) | H97: 0 | I97: 化学製品 | K97: %
A98: W6 | B98: M | G98: 稼働電力kw | H98: 0 | I98: プラスチック | J98: 0 | K98: %
A99: W7 | B99: M | G99: 燃料消費(L/h) | H99: 0 | I99: ゴム | K99: %
A100: W8 | B100: M | I100: 革 | K100: %
A101: W9 | B101: M | I101: ガラス | J101: 0 | K101: %
A102: W10 | B102: M | I102: セメント | K102: %
A103: W11 | B103: M | I103: 窯業・土石 | K103: %
I104: 鋼 | J104: 0 | K104: %
C105: フランチャイズ | D105: リース | E105: 上流 | F105: 下流 | G105: 投資 | H105: フランチャイズ | I105: 銅 | K105: %
C106: 0 | D106: tCO2 | I106: アルミ | J106: 0 | K106: %
B107: 該当せず | C107: 一括計上 | I107: 非鉄金属 | K107: %
I108: その他 | K108: %
A112: 結果
C143: カテゴリー | E143: 活動量 | I143: 原単位 | L143: CO2 | N143: CO2t/百万円
A144: CS1 | C144: scope1 | D144: 燃料消費量 | H144: 経産省「エネルギー起源二酸化炭素排出量等計算ツール」シート02排出計算表 | L144: =jsonwk!B133 -> 98.10662 | N144: =L144/$D$30 -> 0.4905331
A145: CS2 | C145: scope2 | D145: 電力消費量 | H145: 環境省電気事業者別排出係数一覧 | L145: =jsonwk!B134 -> 0.3497 | N145: 0.0017485
A146: C1 | C146: カテゴリー1「購入した製品・サービス」 | D146: 購入物、役務の購入・契約価格 | H146: サプライチェーンを通じた組織の温室効果ガス排出量の算定のための排出原単位DB | L146: =jsonwk!B137 -> 73.83233556 | N146: 0.3691616778
A147: C2 | C147: カテゴリー2「資本財」 | D147: 設備減価償却 | H147: サプライチェーンを通じた組織の温室効果ガス排出量の算定のための排出原単位DB | L147: =jsonwk!B138 -> 31.30499746 | N147: 0.1565249873
A148: C3 | C148: カテゴリー3「scope1,2に含まれない燃料・エネルギー活動」 | D148: エネルギー使用量 | H148: サプライチェーンを通じた組織の温室効果ガス排出量の算定のための排出原単位DB | L148: =jsonwk!B139 -> 40.99007732 | N148: 0.2049503866
A149: C4 | C149: カテゴリー4「輸送・配送(上流)」 | D149: 購入時輸送費(製品派生分はカテゴリー1) | H149: サプライチェーンを通じた組織の温室効果ガス排出量の算定のための排出原単位DB | L149: =jsonwk!B140 -> 7.787723662 | N149: 0.03893861831
A150: C5 | C150: カテゴリー5「事業から出る廃棄物」 | D150: 種別廃棄物処理量 | H150: サプライチェーンを通じた組織の温室効果ガス排出量の算定のための排出原単位DB | L150: =jsonwk!B141 -> 16.453765 | N150: 0.082268825
A151: C6 | C151: カテゴリー6「出張」 | D151: 出張費 | H151: サプライチェーンを通じた組織の温室効果ガス排出量の算定のための排出原単位DB | L151: =jsonwk!B142 -> 9.490019341 | N151: 0.04745009671
A152: C7 | C152: カテゴリー7「雇用者の通勤」 | D152: 通勤費 | H152: サプライチェーンを通じた組織の温室効果ガス排出量の算定のための排出原単位DB | L152: =jsonwk!B143 -> 5.009808635 | N152: 0.02504904317
A153: C8 | C153: カテゴリー8「リース資産(上流)」 | D153: 事業範囲にリース契約なし | H153: 直接計上(ゼロ以外の場合は別紙補足) | L153: =jsonwk!B144 -> 0 | N153: 0
A154: C9 | C154: カテゴリー9「輸送・配送(下流)」 | D154: 売上時配送費 | H154: サプライチェーンを通じた組織の温室効果ガス排出量の算定のための排出原単位DB | L154: =jsonwk!B145 -> 16.72742657 | N154: 0.08363713285
A155: C10 | C155: カテゴリー10「販売した製品の加工」 | D155: 販売品素材構成から予測 | H155: グローバルIOデータベースを用い算定 | L155: =jsonwk!B146 -> 7.99556851 | N155: 0.03997784255
A156: C11 | C156: カテゴリー11「販売した製品の使用」 | D156: 末端使用の寿命と運転時のエネルギー・電力 | H156: scope1,scope2で用いたデータベース | L156: =jsonwk!B147 -> 0 | N156: 0
A157: C12 | C157: カテゴリー12「販売した製品の廃棄」 | D157: 販売品素材構成から予測 | H157: サプライチェーンを通じた組織の温室効果ガス排出量の算定のための排出原単位DB | L157: =jsonwk!B148 -> 25.5345 | N157: 0.1276725
A158: C13 | C158: カテゴリー13「リース資産(下流)」 | D158: 事業範囲に賃貸ビジネスなし | H158: 直接計上(ゼロ以外の場合は別紙補足) | L158: =jsonwk!B149 -> 0 | N158: 0
A159: C14 | C159: カテゴリー14「フランチャイズ」 | D159: 事業範囲にフランチャイズ運営なし | H159: 直接計上(ゼロ以外の場合は別紙補足) | L159: =jsonwk!B150 -> 0 | N159: 0
A160: C15 | C160: カテゴリー15「投資」 | D160: 投資行為の波及環境負荷 | H160: 直接計上(ゼロ以外の場合は別紙補足) | L160: =jsonwk!B151 -> 0 | N160: 0
A161: Co | C161: その他 | D161: リサイクルによる削減貢献 | H161: グローバルIOデータベースを用い算定 | L161: =-jsonwk!H156-jsonwk!H157 -> -765.2452893 | N161: -3.826226447
A162: Cc | C162: CO2排出計 | L162: =SUM(L144:L160) -> 333.5825421 | N162: 1.66791271
A163: Cb | C163: バランス | L163: =L161+L162 -> -431.6627473 | N163: -2.158313736
C169: 再生原材料の産出 | D169: 数値 | F169: 種別
A170: R1 | B170: M | C170: 鉄スクラップ | D170: 70 | E170: =IFERROR(VLOOKUP(F170,listM!AP$1:AR$36,3,0),"") -> 百万円 | F170: 再生用:鋼板用鉄スクラップ
A171: R2 | B171: M | C171: ニッケル | D171: 10 | E171: =IFERROR(VLOOKUP(F171,listM!AP$1:AR$36,3,0),"") -> 百万円 | F171: 再生用:ステンレス
A172: R3 | B172: A | C172: プラどう金いたシート | D172: 12 | E172: =IFERROR(VLOOKUP(F172,listM!AP$1:AR$36,3,0),"") -> 百万円 | F172: 再生用:金
A173: R4 | B173: M | C173: 電子基板 | D173: 20 | E173: =IFERROR(VLOOKUP(F173,listM!AP$1:AR$36,3,0),"") -> 百万円 | F173: 再生用:鋳物用アルミスクラップ
A174: R5 | B174: M | C174: アルミ屑 | D174: 3.2 | E174: =IFERROR(VLOOKUP(F174,listM!AP$1:AR$36,3,0),"") -> 百万円 | F174: 再生用:展伸材用アルミスクラップ
A175: R6 | B175: M | C175: 廃プラ | D175: 8 | E175: =IFERROR(VLOOKUP(F175,listM!AP$1:AR$36,3,0),"") -> t | F175: 燃料用:廃プラスチック
A176: R7 | B176: M | E176: =IFERROR(VLOOKUP(F176,listM!AP$1:AR$36,3,0),"") -> 
A177: R8 | B177: M | E177: =IFERROR(VLOOKUP(F177,listM!AP$1:AR$36,3,0),"") -> 
A178: R9 | B178: M | E178: =IFERROR(VLOOKUP(F178,listM!AP$1:AR$36,3,0),"") -> 
A179: R10 | B179: M | E179: =IFERROR(VLOOKUP(F179,listM!AP$1:AR$36,3,0),"") -> 
A180: R11 | B180: M | E180: =IFERROR(VLOOKUP(F180,listM!AP$1:AR$36,3,0),"") -> 
A181: R12 | B181: M | E181: =IFERROR(VLOOKUP(F181,listM!AP$1:AR$36,3,0),"") -> 
A182: R13 | B182: M | E182: =IFERROR(VLOOKUP(F182,listM!AP$1:AR$36,3,0),"") -> 
A183: R14 | B183: M | E183: =IFERROR(VLOOKUP(F183,listM!AP$1:AR$36,3,0),"") -> 
A184: R15 | B184: M | E184: =IFERROR(VLOOKUP(F184,listM!AP$1:AR$36,3,0),"") -> 
A185: R16 | B185: M | E185: =IFERROR(VLOOKUP(F185,listM!AP$1:AR$36,3,0),"") -> 
A186: R17 | B186: M | E186: =IFERROR(VLOOKUP(F186,listM!AP$1:AR$36,3,0),"") -> 
A187: R18 | B187: M | E187: =IFERROR(VLOOKUP(F187,listM!AP$1:AR$36,3,0),"") -> 
A188: R19 | B188: M | E188: =IFERROR(VLOOKUP(F188,listM!AP$1:AR$36,3,0),"") -> 
A189: R20 | B189: M | E189: =IFERROR(VLOOKUP(F189,listM!AP$1:AR$36,3,0),"") -> 
C191: 再生品 | D191: 取引額(百万円) | F191: コード | G191: 大分類 | H191: 中分類 | I191: 小分類 | J191: 細目
A192: U1 | B192: M | C192: 瓶 | D192: 10 | F192: =IFERROR(VLOOKUP(I192,listM!K$64:L$453,2,FALSE),"") -> 251109 | G192: 窯業・土石製品 | H192: ガラス・ガラス製品 | I192: その他のガラス製品 | J192: 酒類用びん
A193: U2 | B193: M | C193: プラスチック果物トレイ | D193: 30 | F193: =IFERROR(VLOOKUP(I193,listM!K$64:L$453,2,FALSE),"") -> 152909 | G193: 繊維製品 | H193: その他の繊維既製品 | I193: その他の繊維既製品
A194: U3 | B194: M | C194: チェック | F194: =IFERROR(VLOOKUP(I194,listM!K$64:L$453,2,FALSE),"") -> 231201 | G194: 革製品 | H194: なめし革・革製品・毛皮 | I194: なめし革・革製品・毛皮（革製履物を除く。）
A195: U4 | B195: M | C195: xnn | D195: 10 | F195: =IFERROR(VLOOKUP(I195,listM!K$64:L$453,2,FALSE),"") -> 061101 | G195: 鉱業 | H195: 石炭・原油・天然ガス | I195: 石炭・原油・天然ガス
A196: U5 | B196: M | C196: cvvsvs | D196: 5 | F196: =IFERROR(VLOOKUP(I196,listM!K$64:L$453,2,FALSE),"") -> 164109 | G196: パルプ・紙・木製品 | H196: 紙加工品 | I196: その他の紙製容器
A197: U6 | B197: M | C197: dd | D197: 1 | F197: =IFERROR(VLOOKUP(I197,listM!K$64:L$453,2,FALSE),"") -> 152102 | G197: 繊維製品 | H197: 衣服・その他の繊維既製品 | I197: ニット製衣服 | J197: スポーツ上衣
A198: U7 | B198: M | F198: =IFERROR(VLOOKUP(I198,listM!K$64:L$453,2,FALSE),"") ->  | G198: '
A199: U8 | B199: M | F199: =IFERROR(VLOOKUP(I199,listM!K$64:L$453,2,FALSE),"") ->  | G199: '
A200: U9 | B200: M | F200: =IFERROR(VLOOKUP(I200,listM!K$64:L$453,2,FALSE),"") ->  | G200: '
A201: U10 | B201: M | F201: =IFERROR(VLOOKUP(I201,listM!K$64:L$453,2,FALSE),"") ->  | G201: '
B204: コメント

Sheet listM (hidden)
B1: 39 | F1: 3301 | AH1: A00000日本平均0.434 | AI1: 0.000434 | AK1: 原料炭 | AL1: 2.61 | AM1: t | AN1: =IFERROR(VLOOKUP(select!C7,AK$1:AM$33,3,FALSE),"") -> kL | AO1: 燃料用-廃材 | AP1: 燃料用:廃材 | AQ1: 1.365421288 | AR1: t | AS1: =IFERROR(VLOOKUP(select!C170,AP$1:AR$36,3,FALSE),"") ->  | AU1: 燃えがら | AV1: 購入 | AX1: 政令指定都市・東京区部オフィス | AY1: 0.000985 | BA1: 投資行為の波及環境負荷
A2: =(ROW()+58)/60 -> 1 | B2: =INDIRECT("select!E"&TEXT($B$1+A2,"#")) -> 購入 | C2: =VLOOKUP(B2,$A$64:$D$73,4) -> 41 | D2: =VLOOKUP(B2,$A$64:$D$73,3) -> 23 | E2: 1 | F2: =IF(E2<=#REF!,INDIRECT("E"&TEXT($F$1+#REF!+E2-1,"#")),"") ->  | G2: =INDIRECT("select!G"&TEXT($B$1+A2,"#")) -> 分類不明 | H2: =VLOOKUP(G2,E$64:G$102,3,0) -> 107 | I2: =VLOOKUP(G2,E$64:G$102,2,0) -> 1 | J2: =IF(E2<=INDIRECT("I$"&TEXT(ROW()-E2+1,"#")),INDIRECT("H$"&TEXT($F$1+INDIRECT("H$"&TEXT(ROW()-E2+1,"#"))+E2-1,"#")),"") -> 0 | K2: =INDIRECT("select!H"&TEXT($B$1+A2,"#")) -> 分類不明 | L2: =VLOOKUP(K2,H$64:J$170,3,0) -> 390 | M2: =VLOOKUP(K2,H$64:J$170,2,0) -> 1 | N2: =IF(E2<=INDIRECT("M$"&TEXT(ROW()-E2+1,"#")),INDIRECT("K$"&TEXT($F$1+INDIRECT("L$"&TEXT(ROW()-E2+1,"#"))+E2-1,"#")),"") -> 0 | O2: =INDIRECT("select!I"&TEXT($B$1+A2,"#")) -> 分類不明 | Q2: =VLOOKUP(O2,K$64:O$453,5,0) -> 3247 | R2: =VLOOKUP(O2,K$64:O$453,4,0) -> 1 | S2: =IF(E2<=INDIRECT("R$"&TEXT(ROW()-E2+1,"#")),INDIRECT("P$"&TEXT($F$1+INDIRECT("Q$"&TEXT(ROW()-E2+1,"#"))+E2-1,"#")),"") -> 0 | T2: =IFERROR(VLOOKUP(O2,K$64:O$453,2,0),"") -> 691100 | U2: =IFERROR(VLOOKUP(O2,K$64:O$453,3,0),0) -> 2.002555506 | W2: 1 | X2: =select!D40 -> 0 | Y2: =B2 -> 購入 | Z2: =T2 -> 691100 | AA2: =U2 -> 2.002555506 | AB2: =AA2*X2 -> 0 | AC2: 1購入 | AD2: =AE2+AF2 -> 0 | AE2: =SUMIF(Y:Y,"購入",AB:AB) -> 0 | AF2: =SUMIF(Y2:Y51,"役務",AB2:AB51) -> 0 | AH2: A00001北海道電力ネットワーク(株)0.434 | AI2: 0.000434 | AK2: 一般炭 | AL2: 2.33 | AM2: t | AN2: =IFERROR(VLOOKUP(select!C8,AK$1:AM$33,3,FALSE),"") -> kL | AO2: 燃料用-黒液 | AP2: 燃料用:黒液 | AQ2: 1.089295646 | AR2: t | AS2: =IFERROR(VLOOKUP(select!C171,AP$1:AR$36,3,FALSE),"") ->  | AU2: 汚泥 | AV2: 役務 | AX2: 政令指定都市・東京区部工場 | AY2: 0.00122 | BA2: 事業範囲に投資行為なし
A3: =A2 -> 1 | E3: 2 | F3: =IF(E3<=#REF!,INDIRECT("E"&TEXT($F$1+#REF!+E3-1,"#")),"") ->  | W3: 2 | X3: =select!D41 -> 0 | Y3: =#REF! ->  | Z3: =#REF! ->  | AA3: =#REF! ->  | AC3: 2資本 | AD3: =SUMIF(Y2:Y51,"設備",AB2:AB51) -> 0 | AH3: A00002東北電力ネットワーク(株)0.434 | AI3: 0.000434 | AK3: 無煙炭 | AL3: 2.52 | AM3: t | AN3: =IFERROR(VLOOKUP(select!C9,AK$1:AM$33,3,FALSE),"") -> kNm3 | AO3: 燃料用-木材 | AP3: 燃料用:木材 | AQ3: 1.057281079 | AR3: t | AS3: =IFERROR(VLOOKUP(select!C172,AP$1:AR$36,3,FALSE),"") ->  | AU3: 廃油 | AV3: 設備 | AX3: 15万以上都市オフィス | AY3: 0.00154
A4: 1 | E4: 3 | F4: =IF(E4<=#REF!,INDIRECT("E"&TEXT($F$1+#REF!+E4-1,"#")),"") ->  | W4: 3 | X4: =select!D42 -> 0 | Y4: =#REF! ->  | Z4: =#REF! ->  | AA4: =#REF! ->  | AC4: 3エネルギー波及 | AD4: =AE4+AF4 -> 0 | AE4: =SUMIF(Z2:Z51,"21*101",AB2:AB51) -> 0 | AF4: =SUMIF(Z2:Z51,"46****",AB2:AB51) -> 0 | AH4: A00003東京電力パワーグリッド(株)0.434 | AI4: 0.000434 | AK4: コークス | AL4: 3.17 | AM4: t | AN4: =IFERROR(VLOOKUP(select!C10,AK$1:AM$33,3,FALSE),"") -> kNm3 | AO4: 燃料用-バイオエタノール | AP4: 燃料用:バイオエタノール | AQ4: 1.874452905 | AR4: kL | AS4: =IFERROR(VLOOKUP(select!C173,AP$1:AR$36,3,FALSE),"") ->  | AU4: 廃酸 | AV4: 入荷輸送 | AX4: 15万以上都市工場 | AY4: 0.00189 | BA4: 傘下フランチャイズの環境負荷
A5: 1 | E5: 4 | F5: =IF(E5<=#REF!,INDIRECT("E"&TEXT($F$1+#REF!+E5-1,"#")),"") ->  | W5: 4 | X5: =select!D43 -> 0 | Y5: =#REF! ->  | Z5: =#REF! ->  | AA5: =#REF! ->  | AC5: 4上流配送 | AD5: =SUMIF(Y2:Y51,"入荷輸送",AB2:AB51) -> 0 | AH5: A00004中部電力パワーグリッド(株)0.434 | AI5: 0.000434 | AK5: 石油コークス | AL5: 2.78 | AM5: t | AN5: =IFERROR(VLOOKUP(select!C11,AK$1:AM$33,3,FALSE),"") -> tCO2eq | AO5: 燃料用-バイオジーゼル | AP5: 燃料用:バイオジーゼル | AQ5: 1.874452905 | AR5: kL | AS5: =IFERROR(VLOOKUP(select!C174,AP$1:AR$36,3,FALSE),"") ->  | AU5: 廃アルカリ | AV5: 出荷輸送 | AX5: 5-15万市オフィス | AY5: 0.00184 | BA5: 事業範囲にフランチャイズなし
A6: 1 | E6: 5 | F6: =IF(E6<=#REF!,INDIRECT("E"&TEXT($F$1+#REF!+E6-1,"#")),"") ->  | W6: 5 | X6: =select!D44 -> 0 | Y6: =#REF! ->  | Z6: =#REF! ->  | AA6: =#REF! ->  | AC6: 5事業廃棄物 | AH6: A00005北陸電力送配電(株)0.434 | AI6: 0.000434 | AK6: コールタール | AL6: 2.86 | AM6: t | AN6: =IFERROR(VLOOKUP(select!C12,AK$1:AM$33,3,FALSE),"") -> t | AO6: 燃料用-バイオガス | AP6: 燃料用:バイオガス | AQ6: 1.693570601 | AR6: km3 | AS6: =IFERROR(VLOOKUP(select!C175,AP$1:AR$36,3,FALSE),"") ->  | AU6: 廃プラスチック類 | AV6: 出張費 | AX6: 5-15万市工場 | AY6: 0.00192
A7: 1 | E7: 6 | F7: =IF(E7<=#REF!,INDIRECT("E"&TEXT($F$1+#REF!+E7-1,"#")),"") ->  | W7: 6 | X7: =select!D45 -> 0 | Y7: =#REF! ->  | Z7: =#REF! ->  | AA7: =#REF! ->  | AC7: 6出張 | AD7: =SUMIF(Y2:Y51,"出張費",AB2:AB51) -> 0 | AH7: A00006関西電力送配電(株)0.434 | AI7: 0.000434 | AK7: 石油アスファルト | AL7: 3.12 | AM7: t | AN7: =IFERROR(VLOOKUP(select!C13,AK$1:AM$33,3,FALSE),"") ->  | AO7: 燃料用-廃タイヤ | AP7: 燃料用:廃タイヤ | AQ7: 0.907209071 | AR7: t | AS7: =IFERROR(VLOOKUP(select!C176,AP$1:AR$36,3,FALSE),"") ->  | AU7: 紙くず | AV7: 通勤費 | AX7: 5万以下の市オフィス | AY7: 0.00159 | BA7: リース事業による環境負荷
A8: 1 | E8: 7 | F8: =IF(E8<=#REF!,INDIRECT("E"&TEXT($F$1+#REF!+E8-1,"#")),"") ->  | W8: 7 | X8: =select!D46 -> 0 | Y8: =#REF! ->  | Z8: =#REF! ->  | AA8: =#REF! ->  | AC8: 7通勤 | AD8: =SUMIF(Y2:Y51,"通勤費",AB2:AB51) -> 0 | AH8: A00007中国電力ネットワーク(株)0.434 | AI8: 0.000434 | AK8: コンデンセート(NGL) | AL8: 2.38 | AM8: kL | AN8: =IFERROR(VLOOKUP(select!C14,AK$1:AM$33,3,FALSE),"") ->  | AO8: 燃料用-廃プラスチック | AP8: 燃料用:廃プラスチック | AQ8: -0.424932958 | AR8: t | AS8: =IFERROR(VLOOKUP(select!C177,AP$1:AR$36,3,FALSE),"") ->  | AU8: 木くず | AV8: リース(上流) | AX8: 5万以下の市工場 | AY8: 0.00181 | BA8: 事業範囲にリース事業なし
A9: 1 | E9: 8 | F9: =IF(E9<=#REF!,INDIRECT("E"&TEXT($F$1+#REF!+E9-1,"#")),"") ->  | W9: 8 | X9: =select!D47 -> 0 | Y9: =#REF! ->  | Z9: =#REF! ->  | AA9: =#REF! ->  | AC9: 8上流リース | AD9: =SUMIF(Y2:Y51,"リース(上流)",AB2:AB51) -> 0 | AH9: A00008四国電力送配電(株)0.434 | AI9: 0.000434 | AK9: 原油 | AL9: 2.62 | AM9: kL | AN9: =IFERROR(VLOOKUP(select!C15,AK$1:AM$33,3,FALSE),"") ->  | AO9: 燃料用-RDF | AP9: 燃料用:RDF | AQ9: 0.665655521 | AR9: t | AS9: =IFERROR(VLOOKUP(select!C178,AP$1:AR$36,3,FALSE),"") ->  | AU9: 繊維くず | AV9: リース(下流) | AX9: 町村オフィス | AY9: 0.00157
A10: 1 | E10: 9 | F10: =IF(E10<=#REF!,INDIRECT("E"&TEXT($F$1+#REF!+E10-1,"#")),"") ->  | W10: 9 | X10: =select!D48 -> 0 | Y10: =#REF! ->  | Z10: =#REF! ->  | AA10: =#REF! ->  | AC10: 9下流配送 | AD10: =SUMIF(Y2:Y51,"出荷輸送",AB2:AB51) -> 0 | AH10: A00009九州電力送配電(株)0.434 | AI10: 0.000434 | AK10: ガソリン | AL10: 2.32 | AM10: kL | AN10: =IFERROR(VLOOKUP(select!C16,AK$1:AM$33,3,FALSE),"") ->  | AO10: 燃料用-RPF | AP10: 燃料用:RPF | AQ10: 0.581378911 | AR10: t | AS10: =IFERROR(VLOOKUP(select!C179,AP$1:AR$36,3,FALSE),"") ->  | AU10: 動植物性残渣 | AV10: 投資 | AX10: 町村工場 | AY10: 0.00184 | BA10: 借地・借用契約 | BB10: サプライチェーンを通じた組織の温室効果ガス排出量の算定のための排出原単位DB
A11: 1 | E11: 10 | F11: =IF(E11<=#REF!,INDIRECT("E"&TEXT($F$1+#REF!+E11-1,"#")),"") ->  | W11: 10 | X11: =select!D49 -> 0 | Y11: =#REF! ->  | Z11: =#REF! ->  | AA11: =#REF! ->  | AC11: 9販売後加工 | AH11: A00010沖縄電力(株)0.693 | AI11: 0.000693 | AK11: ナフサ | AL11: 2.24 | AM11: kL | AN11: =IFERROR(VLOOKUP(select!C17,AK$1:AM$33,3,FALSE),"") ->  | AO11: 再生用-鋼板用鉄スクラップ | AP11: 再生用:鋼板用鉄スクラップ | AQ11: 12.89926621 | AR11: 百万円 | AS11: =IFERROR(VLOOKUP(select!C180,AP$1:AR$36,3,FALSE),"") ->  | AU11: 動物系固形不要物 | AV11: フランチャイズなし | BA11: リース契約による波及環境負荷 | BB11: 直接計上(別紙補足)
A12: 1 | E12: 11 | F12: =IF(E12<=#REF!,INDIRECT("E"&TEXT($F$1+#REF!+E12-1,"#")),"") ->  | W12: 11 | X12: =select!D50 -> 0 | Y12: =#REF! ->  | Z12: =#REF! ->  | AA12: =#REF! ->  | AC12: 11使用 | AH12: A0712_アークエルテクノロジーズ(株)0 | AI12: 0 | AK12: ジェット燃料油 | AL12: 2.46 | AM12: kL | AN12: =IFERROR(VLOOKUP(select!C18,AK$1:AM$33,3,FALSE),"") ->  | AO12: 再生用-棒鋼用鉄スクラップ | AP12: 再生用:棒鋼用鉄スクラップ | AQ12: 5.951378291 | AR12: 百万円 | AS12: =IFERROR(VLOOKUP(select!C181,AP$1:AR$36,3,FALSE),"") ->  | AU12: ゴムくず | AX12: 出張 | AY12: 0.13 | BA12: 事業範囲にリース契約なし
A13: 1 | E13: 12 | F13: =IF(E13<=#REF!,INDIRECT("E"&TEXT($F$1+#REF!+E13-1,"#")),"") ->  | W13: 12 | X13: =select!D51 -> 0 | Y13: =#REF! ->  | Z13: =#REF! ->  | AA13: =#REF! ->  | AC13: 12使用後廃棄 | AH13: A0281_(株)アースインフィニティ0.551 | AI13: 0.000551 | AK13: 灯油 | AL13: 2.49 | AM13: kL | AN13: =IFERROR(VLOOKUP(select!C19,AK$1:AM$33,3,FALSE),"") ->  | AO13: 再生用-鋳物用鉄スクラップ | AP13: 再生用:鋳物用鉄スクラップ | AQ13: 2.855015589 | AR13: 百万円 | AS13: =IFERROR(VLOOKUP(select!C182,AP$1:AR$36,3,FALSE),"") ->  | AU13: 金属くず
A14: 1 | E14: 13 | F14: =IF(E14<=#REF!,INDIRECT("E"&TEXT($F$1+#REF!+E14-1,"#")),"") ->  | W14: 13 | X14: =select!D52 -> 0 | Y14: =#REF! ->  | Z14: =#REF! ->  | AA14: =#REF! ->  | AC14: 13下流リース | AD14: =SUMIF(Y2:Y51,"リース(下流)",AB2:AB51) -> 0 | AH14: A0122Aアーバンエナジー(株)メニューA0 | AI14: 0 | AK14: 軽油 | AL14: 2.58 | AM14: kL | AN14: =IFERROR(VLOOKUP(select!C20,AK$1:AM$33,3,FALSE),"") ->  | AO14: 再生用-ステンレス | AP14: 再生用:ステンレス | AQ14: 11.84992652 | AR14: 百万円 | AS14: =IFERROR(VLOOKUP(select!C183,AP$1:AR$36,3,FALSE),"") ->  | AU14: ガラス陶磁器くず | AX14: 使用 | AY14: 2.96 | BA14: 加工を要さないサービス・製品のため該当せず
A15: 1 | E15: 14 | F15: =IF(E15<=#REF!,INDIRECT("E"&TEXT($F$1+#REF!+E15-1,"#")),"") ->  | W15: 14 | X15: =select!D53 -> 0 | Y15: =#REF! ->  | Z15: =#REF! ->  | AA15: =#REF! ->  | AC15: 14フランチャイズ | AD15: =select!C106 -> 0 | AH15: A0122Bアーバンエナジー(株)メニューB0.292 | AI15: 0.000292 | AK15: A重油 | AL15: 2.71 | AM15: kL | AN15: =IFERROR(VLOOKUP(select!C21,AK$1:AM$33,3,FALSE),"") ->  | AO15: 再生用-展伸材用アルミスクラップ | AP15: 再生用:展伸材用アルミスクラップ | AQ15: 22.07215215 | AR15: 百万円 | AS15: =IFERROR(VLOOKUP(select!C184,AP$1:AR$36,3,FALSE),"") ->  | AU15: 鉱さい | BA15: 構成素材量をもとに算定
A16: 1 | E16: 15 | F16: =IF(E16<=#REF!,INDIRECT("E"&TEXT($F$1+#REF!+E16-1,"#")),"") ->  | W16: 15 | X16: =select!D54 -> 0 | Y16: =#REF! ->  | Z16: =#REF! ->  | AA16: =#REF! ->  | AC16: 15投資 | AD16: =SUMIF(Y2:Y51,"投資",AB2:AB51) -> 0 | AH16: A0122Cアーバンエナジー(株)メニューC0.353 | AI16: 0.000353 | AK16: B・C重油 | AL16: 3 | AM16: kL | AN16: =IFERROR(VLOOKUP(select!C22,AK$1:AM$33,3,FALSE),"") ->  | AO16: 再生用-鋳物用アルミスクラップ | AP16: 再生用:鋳物用アルミスクラップ | AQ16: 26.17383589 | AR16: 百万円 | AS16: =IFERROR(VLOOKUP(select!C185,AP$1:AR$36,3,FALSE),"") ->  | AU16: がれき類
A17: 1 | E17: 16 | F17: =IF(E17<=#REF!,INDIRECT("E"&TEXT($F$1+#REF!+E17-1,"#")),"") ->  | W17: 16 | X17: =select!D55 -> 0 | Y17: =#REF! ->  | Z17: =#REF! ->  | AA17: =#REF! ->  | AH17: A0122Dアーバンエナジー(株)メニューD0.25 | AI17: 0.00025 | AK17: 液化石油ガス(LPG) | AL17: 3 | AM17: t | AN17: =IFERROR(VLOOKUP(select!C23,AK$1:AM$33,3,FALSE),"") ->  | AO17: 再生用-再溶解用銅 | AP17: 再生用:再溶解用銅 | AQ17: 5.984075512 | AR17: 百万円 | AS17: =IFERROR(VLOOKUP(select!C186,AP$1:AR$36,3,FALSE),"") ->  | AU17: 動物のふん尿
A18: 1 | E18: 17 | F18: =IF(E18<=#REF!,INDIRECT("E"&TEXT($F$1+#REF!+E18-1,"#")),"") ->  | W18: 17 | X18: =select!D56 -> 0 | Y18: =#REF! ->  | Z18: =#REF! ->  | AA18: =#REF! ->  | AH18: A0122Eアーバンエナジー(株)メニューE0.377 | AI18: 0.000377 | AK18: 液化石油ガス(LPG)体積 | AL18: 6.6 | AM18: kNm3 | AN18: =IFERROR(VLOOKUP(select!C24,AK$1:AM$33,3,FALSE),"") ->  | AO18: 再生用-製錬用銅 | AP18: 再生用:製錬用銅 | AQ18: 5.596193388 | AR18: 百万円 | AS18: =IFERROR(VLOOKUP(select!C187,AP$1:AR$36,3,FALSE),"") ->  | AU18: 動物の死体
A19: 1 | E19: 18 | F19: =IF(E19<=#REF!,INDIRECT("E"&TEXT($F$1+#REF!+E19-1,"#")),"") ->  | W19: 18 | X19: =select!D57 -> 0 | Y19: =#REF! ->  | Z19: =#REF! ->  | AA19: =#REF! ->  | AC19: 産品 | AD19: =select!G93 -> サービス | AH19: A0122Fアーバンエナジー(株)メニューF0 | AI19: 0 | AK19: プロパン | AL19: 6 | AM19: kNm3 | AN19: =IFERROR(VLOOKUP(select!C25,AK$1:AM$33,3,FALSE),"") ->  | AO19: 再生用-銅含有金属 | AP19: 再生用:MIX銅 | AQ19: 5.596193388 | AR19: 百万円 | AS19: =IFERROR(VLOOKUP(select!C188,AP$1:AR$36,3,FALSE),"") ->  | AU19: ばいじん | AV19: フランチャイズなし
A20: 1 | E20: 19 | F20: =IF(E20<=#REF!,INDIRECT("E"&TEXT($F$1+#REF!+E20-1,"#")),"") ->  | W20: 19 | X20: =select!D58 -> 0 | Y20: =#REF! ->  | Z20: =#REF! ->  | AA20: =#REF! ->  | AC20: 加工 | AD20: =IF(AD19="素材",1,0) -> 0 | AH20: A0122Gアーバンエナジー(株)メニューG0 | AI20: 0 | AK20: ブタン | AL20: 8.5 | AM20: kNm3 | AN20: =IFERROR(VLOOKUP(select!C26,AK$1:AM$33,3,FALSE),"") ->  | AO20: 再生用-金 | AP20: 再生用:金 | AQ20: 1.903891554 | AR20: 百万円 | AS20: =IFERROR(VLOOKUP(select!C189,AP$1:AR$36,3,FALSE),"") ->  | AV20: 一括計上
A21: 1 | E21: 20 | F21: =IF(E21<=#REF!,INDIRECT("E"&TEXT($F$1+#REF!+E21-1,"#")),"") ->  | W21: 20 | X21: =select!D59 -> 0 | Y21: =#REF! ->  | Z21: =#REF! ->  | AA21: =#REF! ->  | AC21: 使用 | AD21: =IF((AD19="製品")*OR(AD19="サービス"),1,0) -> 0 | AH21: A0122Hアーバンエナジー(株)メニューH0 | AI21: 0 | AK21: 石油系炭化水素ガス | AL21: 2.34 | AM21: kNm3 | AN21: =IFERROR(VLOOKUP(select!C27,AK$1:AM$33,3,FALSE),"") ->  | AO21: 再生用-金含有物 | AP21: 再生用:MIX金 | AQ21: 1.903891554 | AR21: 百万円 | AV21: 典型記載
A22: 1 | E22: 21 | F22: =IF(E22<=#REF!,INDIRECT("E"&TEXT($F$1+#REF!+E22-1,"#")),"") ->  | W22: 21 | X22: =select!D60 -> 0 | Y22: =#REF! ->  | Z22: =#REF! ->  | AA22: =#REF! ->  | AH22: A0122Iアーバンエナジー(株)メニューI(残差)0.59 | AI22: 0.00059 | AK22: 液化天然ガス(LNG) | AL22: 2.7 | AM22: kNm3 | AN22: =IFERROR(VLOOKUP(select!C28,AK$1:AM$33,3,FALSE),"") ->  | AO22: 再生用-銀 | AP22: 再生用:銀 | AQ22: 2.344721983 | AR22: 百万円
A23: 1 | E23: 22 | F23: =IF(E23<=#REF!,INDIRECT("E"&TEXT($F$1+#REF!+E23-1,"#")),"") ->  | W23: 22 | X23: =select!D61 -> 0 | Y23: =#REF! ->  | Z23: =#REF! ->  | AA23: =#REF! ->  | AH23: A0611AＲＥ１００電力(株)メニューA0 | AI23: 0 | AK23: 天然ガス(LNG以外) | AL23: 2.22 | AM23: kNm3 | AN23: =IFERROR(VLOOKUP(select!C29,AK$1:AM$33,3,FALSE),"") ->  | AO23: 再生用-白金 | AP23: 再生用:Pt | AQ23: 3203.707074 | AR23: 百万円
A24: 1 | E24: 23 | F24: =IF(E24<=#REF!,INDIRECT("E"&TEXT($F$1+#REF!+E24-1,"#")),"") ->  | W24: 23 | X24: =select!D62 -> 0 | Y24: =#REF! ->  | Z24: =#REF! ->  | AA24: =#REF! ->  | AH24: A0611BＲＥ１００電力(株)メニューB(残差)0.871 | AI24: 0.000871 | AK24: コークス炉ガス | AL24: 0.85 | AM24: kNm3 | AN24: =IFERROR(VLOOKUP(select!C30,AK$1:AM$33,3,FALSE),"") ->  | AO24: 再生用-パラジウム | AP24: 再生用:Pd | AQ24: 458.906446 | AR24: 百万円
A25: 1 | E25: 24 | W25: 24 | X25: =select!D63 -> 0 | Y25: =#REF! ->  | Z25: =#REF! ->  | AA25: =#REF! ->  | AH25: A0060A(株)アイ・グリッド・ソリューションズメニューA0 | AI25: 0 | AK25: 高炉がス | AL25: 0.33 | AM25: kNm3 | AN25: =IFERROR(VLOOKUP(select!C31,AK$1:AM$33,3,FALSE),"") ->  | AO25: 再生用-レアアース | AP25: 再生用:Nd | AQ25: 1.307893581 | AR25: 百万円
A26: 1 | E26: 25 | W26: 25 | X26: =select!D64 -> 0 | Y26: =#REF! ->  | Z26: =#REF! ->  | AA26: =#REF! ->  | AH26: A0060B(株)アイ・グリッド・ソリューションズメニューB(残差)0.508 | AI26: 0.000508 | AK26: 転炉ガス | AL26: 1.18 | AM26: kNm3 | AN26: =IFERROR(VLOOKUP(select!C32,AK$1:AM$33,3,FALSE),"") ->  | AO26: 再生用-コバルト | AP26: 再生用:Co | AQ26: 1.464000243 | AR26: 百万円 | AV26: 素材
A27: 1 | E27: 26 | W27: 26 | X27: =select!D65 -> 0 | Y27: =#REF! ->  | Z27: =#REF! ->  | AA27: =#REF! ->  | AH27: A0734_(株)Ｉ＆Ｉ0.476 | AI27: 0.000476 | AK27: 都市ガス | AL27: 2.23 | AM27: kNm3 | AN27: =IFERROR(VLOOKUP(select!C33,AK$1:AM$33,3,FALSE),"") ->  | AO27: 再生用-ニッケル | AP27: 再生用:Ni | AQ27: 3.17474423 | AR27: 百万円 | AV27: 部品
A28: 1 | E28: 27 | W28: 27 | X28: =select!D66 -> 0 | Y28: =#REF! ->  | Z28: =#REF! ->  | AA28: =#REF! ->  | AH28: A0622_アイエスジー(株)0.515 | AI28: 0.000515 | AK28: SF6_NF3_HFC_PFC | AL28: 1 | AM28: tCO2eq | AN28: =IFERROR(VLOOKUP(select!C34,AK$1:AM$33,3,FALSE),"") ->  | AO28: 再生用-リチュウム | AP28: 再生用:Li | AQ28: 3.68890894 | AR28: 百万円 | AV28: 製品
A29: 1 | E29: 28 | W29: 28 | X29: =select!D67 -> 0 | Y29: =#REF! ->  | Z29: =#REF! ->  | AA29: =#REF! ->  | AH29: A0663_(株)アイキューブ・マーケティング0.317 | AI29: 0.000317 | AK29: 常圧流動床ボイラ用石炭 | AL29: =AL2*1.18 -> 2.7494 | AM29: t | AN29: =IFERROR(VLOOKUP(select!C35,AK$1:AM$33,3,FALSE),"") ->  | AO29: 再生用-水平利用プラスチック | AP29: 再生用:水平プラスチック | AQ29: 3.697001565 | AR29: 百万円 | AV29: サービス
A30: 1 | E30: 29 | W30: 29 | X30: =select!D68 -> 0 | Y30: =#REF! ->  | Z30: =#REF! ->  | AA30: =#REF! ->  | AH30: A0680_会津エナジー(株)0.505 | AI30: 0.000505 | AK30: 金属焼結炉コークス | AL30: =1.01*AL4 -> 3.2017 | AM30: =AM4 -> t | AN30: =IFERROR(VLOOKUP(select!C36,AK$1:AM$33,3,FALSE),"") ->  | AO30: 再生用-再生プラスチック | AP30: 再生用:再生プラスチック | AQ30: 0.760226349 | AR30: 百万円
A31: 1 | E31: 30 | W31: 30 | X31: =select!D69 -> 0 | Y31: =#REF! ->  | Z31: =#REF! ->  | AA31: =#REF! ->  | AH31: A0380_青森県民エナジー(株)0.5 | AI31: 0.0005 | AK31: 触媒再生塔コークス | AL31: =1.02*AL4 -> 3.2334 | AM31: =AM4 -> t | AN31: =IFERROR(VLOOKUP(select!C37,AK$1:AM$33,3,FALSE),"") ->  | AO31: 再生用-MIXプラスチック | AP31: 再生用:MIXプラスチック | AQ31: 0.20519895 | AR31: 百万円
A32: 1 | E32: 31 | W32: 31 | X32: =select!D70 -> 0 | Y32: =#REF! ->  | Z32: =#REF! ->  | AA32: =#REF! ->  | AH32: A0526_朝日ガスエナジー(株)0.308 | AI32: 0.000308 | AK32: 非輸送機関ガソリン | AL32: =1.028*AL10 -> 2.38496 | AM32: =AM10 -> kL | AN32: =IFERROR(VLOOKUP(select!C38,AK$1:AM$33,3,FALSE),"") ->  | AO32: 再生用-ゴム原料 | AP32: 再生用:ゴム原料 | AQ32: 8.151941361 | AR32: 百万円
A33: 1 | E33: 32 | W33: 32 | X33: =select!D71 -> 0 | Y33: =#REF! ->  | Z33: =#REF! ->  | AA33: =#REF! ->  | AH33: A0692A旭化成(株)メニューA0.315 | AI33: 0.000315 | AK33: コンロ・ストーブ石炭 | AL33: =1.08*AL2 -> 2.5164 | AM33: =AM2 -> t | AN33: =IFERROR(VLOOKUP(select!C39,AK$1:AM$33,3,FALSE),"") ->  | AO33: 再生用-ガラス原料 | AP33: 再生用:ガラス原料 | AQ33: 5.861427155 | AR33: 百万円
A34: 1 | E34: 33 | W34: 33 | X34: =select!D72 -> 0 | Y34: =#REF! ->  | Z34: =#REF! ->  | AA34: =#REF! ->  | AH34: A0692B旭化成(株)メニューB0.405 | AI34: 0.000405 | AO34: 再生用-ガラス繊維原料 | AP34: 再生用:ガラス繊維原料 | AQ34: 6.60483871 | AR34: 百万円
A35: 1 | E35: 34 | W35: 34 | X35: =select!D73 -> 0 | Y35: =#REF! ->  | Z35: =#REF! ->  | AA35: =#REF! ->  | AH35: A0692C旭化成(株)メニューC0.411 | AI35: 0.000411 | AO35: 再生用-セメント原料 | AP35: 再生用:セメント原料 | AQ35: 52.07286501 | AR35: 百万円
A36: 1 | E36: 35 | W36: 35 | X36: =select!D74 -> 0 | Y36: =#REF! ->  | Z36: =#REF! ->  | AA36: =#REF! ->  | AH36: A0692D旭化成(株)メニューD0.346 | AI36: 0.000346 | AO36: 再生用-木材チップ | AP36: 再生用:木材チップ | AQ36: 2.014114223 | AR36: 百万円
A37: 1 | E37: 36 | W37: 36 | X37: =select!D75 -> 0 | Y37: =#REF! ->  | Z37: =#REF! ->  | AA37: =#REF! ->  | AH37: A0692E旭化成(株)メニューE0.353 | AI37: 0.000353
A38: 1 | E38: 37 | W38: 37 | X38: =select!D76 -> 0 | Y38: =#REF! ->  | Z38: =#REF! ->  | AA38: =#REF! ->  | AH38: A0692F旭化成(株)メニューF0 | AI38: 0
A39: 1 | E39: 38 | W39: 38 | X39: =select!D77 -> 0 | Y39: =#REF! ->  | Z39: =#REF! ->  | AA39: =#REF! ->  | AH39: A0702_旭マルヰガス(株)0.561 | AI39: 0.000561
A40: 1 | E40: 39 | W40: 39 | X40: =select!D78 -> 0 | Y40: =#REF! ->  | Z40: =#REF! ->  | AA40: =#REF! ->  | AH40: A0283_足利ガス(株)0.308 | AI40: 0.000308
A41: 1 | E41: 40 | W41: 40 | X41: =select!D79 -> 0 | Y41: =#REF! ->  | Z41: =#REF! ->  | AA41: =#REF! ->  | AH41: A0173_(株)アシストワンエナジー0.54 | AI41: 0.00054
A42: 1 | E42: 41 | W42: 41 | X42: =select!D80 -> 0 | Y42: =#REF! ->  | Z42: =#REF! ->  | AA42: =#REF! ->  | AH42: A0678Aアスエネ(株)メニューA0 | AI42: 0
A43: 1 | E43: 42 | W43: 42 | X43: =select!D81 -> 0 | Y43: =#REF! ->  | Z43: =#REF! ->  | AA43: =#REF! ->  | AH43: A0678Bアスエネ(株)メニューB0.189 | AI43: 0.000189
A44: 1 | E44: 43 | W44: 43 | X44: =select!D82 -> 0 | Y44: =#REF! ->  | Z44: =#REF! ->  | AA44: =#REF! ->  | AH44: A0678Cアスエネ(株)メニューC0.302 | AI44: 0.000302
A45: 1 | E45: 44 | W45: 44 | X45: =select!D83 -> 0 | Y45: =#REF! ->  | Z45: =#REF! ->  | AA45: =#REF! ->  | AH45: A0678Dアスエネ(株)メニューD0.339 | AI45: 0.000339
A46: 1 | E46: 45 | W46: 45 | X46: =select!D84 -> 0 | Y46: =#REF! ->  | Z46: =#REF! ->  | AA46: =#REF! ->  | AH46: A0678Eアスエネ(株)メニューE0.367 | AI46: 0.000367
A47: 1 | E47: 46 | W47: 46 | X47: =select!D85 -> 0 | Y47: =#REF! ->  | Z47: =#REF! ->  | AA47: =#REF! ->  | AH47: A0230_アストマックス(株)0.453 | AI47: 0.000453
A48: 1 | E48: 47 | W48: 47 | X48: =select!D86 -> 0 | Y48: =#REF! ->  | Z48: =#REF! ->  | AA48: =#REF! ->  | AH48: A0405_アストマックス・エネルギー合同会社0.458 | AI48: 0.000458
A49: 1 | E49: 48 | W49: 48 | X49: =select!D87 -> 0 | Y49: =#REF! ->  | Z49: =#REF! ->  | AA49: =#REF! ->  | AH49: A0137_アストモスエネルギー(株)0.574 | AI49: 0.000574
A50: 1 | E50: 49 | W50: 49 | X50: =select!D88 -> 0 | Y50: =#REF! ->  | Z50: =#REF! ->  | AA50: =#REF! ->  | AH50: A0499A厚木瓦斯(株)メニューA0 | AI50: 0
A51: 1 | E51: 50 | W51: 50 | X51: =select!D89 -> 0 | Y51: =#REF! ->  | Z51: =#REF! ->  | AA51: =#REF! ->  | AH51: A0499B厚木瓦斯(株)メニューB(残差)0.307 | AI51: 0.000307
A52: 1 | E52: 51 | AH52: A0055A(株)ＵＰＤＡＴＥＲメニューA0 | AI52: 0
A53: 1 | E53: 52 | AH53: A0055B(株)ＵＰＤＡＴＥＲメニューB0.199 | AI53: 0.000199
AH54: A0055C(株)ＵＰＤＡＴＥＲメニューC(残差)0.365 | AI54: 0.000365
AH55: A0197A(株)アドバンテックメニューA0 | AI55: 0
AH56: A0197B(株)アドバンテックメニューB0 | AI56: 0
AH57: A0197C(株)アドバンテックメニューC0 | AI57: 0
AH58: A0197D(株)アドバンテックメニューD0.884 | AI58: 0.000884
AH59: A0197E(株)アドバンテックメニューE(残差)0.042 | AI59: 4.2e-05
AH60: A0398_Ａｐａｍａｎ Ｅｎｅｒｇｙ(株)0.562 | AI60: 0.000562
R61: 農業 | AH61: A0720A(株)ａｆｔｅｒＦＩＴメニューA0 | AI61: 0
A62: 範疇 | B62: 番号 | C62: =MAX(C64:C73) -> 23 | E62: 大分類 | F62: =MAX(F64:F148) -> 9 | H62: 中分類 | I62: =MAX(I64:I128) -> 23 | K62: 小分類 | N62: =MAX(N64:N453) -> 52 | U62: アルカリ性廃液 | AH62: A0288_(株)アメニティ電力0.526 | AI62: 0.000526
A63: 1 | C63: ) | D63: はじめ | E63: 大項目 | F63: 中の数 | G63: 中はじめ | H63: 中項目 | I63: 小の数 | J63: 小はじめ | K63: 小項目 | L63: コード | M63: co2 | N63: 細の数 | O63: 細はじめ | Q63: 1 | S63: =select!C40 -> 嫌気性デラスシスな | Y63: 1 | AH63: A0495_有明エナジー(株)0.293 | AI63: 0.000293
A64: 購入 | B64: 1 | C64: 23 | D64: 41 | E64: 農林漁業 | F64: 5 | G64: 1 | H64: 耕種農業 | I64: 14 | J64: 1 | K64: 米 | L64: 011101 | M64: 13.21150252 | N64: 4 | O64: 1 | P64: 玄米（種子を含む食用） | S64: =select!C41 -> 碍子 | X64: 01 | Y64: 農林漁業 | Z64: 0111 | AA64: 穀類 | AH64: A0467_(株)アルファライズ0.528 | AI64: 0.000528
A65: 役務 | B65: 2 | C65: 16 | D65: 71 | E65: 鉱業 | F65: 2 | G65: 6 | H65: 畜産 | I65: 6 | J65: 15 | K65: 麦類 | L65: 011102 | M65: 19.43643435 | N65: 4 | O65: 5 | P65: 玄米（種子を除く非食用） | S65: =select!C42 -> 鉄板 | X65: 06 | Y65: 鉱業 | Z65: 0112 | AA65: いも・豆類 | AH65: A0401_アンビット・エナジー・ジャパン合同会社0.073 | AI65: 7.3e-05
A66: 設備 | B66: 3 | C66: 3 | D66: 91 | E66: 飲食料品 | F66: 4 | G66: 8 | H66: 農業サービス | I66: 2 | J66: 21 | K66: いも類 | L66: 011201 | M66: 4.199222201 | N66: 2 | O66: 9 | P66: くず米 | S66: =select!C43 -> 電子部品 | X66: 11 | Y66: 飲食料品 | Z66: 0113 | AA66: 野菜 | AH66: A0166_(株)イーエムアイ0.526 | AI66: 0.000526
A67: 入荷輸送 | B67: 4 | C67: 1 | D67: 100 | E67: 繊維製品 | F67: 2 | G67: 12 | H67: 林業 | I67: 3 | J67: 23 | K67: 豆類 | L67: 011202 | M67: 7.82510168 | N67: 5 | O67: 11 | P67: 稲わら | S67: =select!C44 -> ダスト処理 | X67: 15 | Y67: 繊維製品 | Z67: 0114 | AA67: 果実 | AH67: A0008_(株)イーセル0.482 | AI67: 0.000482
A68: 出荷輸送 | B68: 5 | C68: 1 | D68: 100 | E68: パルプ・紙・木製品 | F68: 4 | G68: 14 | H68: 漁業 | I68: 4 | J68: 26 | K68: 野菜(露地) | L68: 011301 | M68: 3.9387854 | N68: 41 | O68: 16 | P68: 小麦 | S68: =select!C45 -> 工場設備 | X68: 16 | Y68: パルプ・紙・木製品 | Z68: 0115 | AA68: その他の食用作物 | AH68: A0551A飯田まちづくり電力(株)メニューA0.342 | AI68: 0.000342
A69: 出張費 | B69: 6 | C69: 1 | D69: 105 | E69: 印刷・製版 | F69: 1 | G69: 18 | H69: 石炭・原油・天然ガス | I69: 1 | J69: 30 | K69: 野菜(施設) | L69: 011302 | M69: 3.9387854 | N69: 25 | O69: 57 | P69: 六条大麦 | S69: =select!C46 -> 入荷輸送費 | X69: 20 | Y69: 化学製品 | Z69: 0116 | AA69: 非食用作物 | AH69: A0551B飯田まちづくり電力(株)メニューB(残差)0.464 | AI69: 0.000464
A70: 通勤費 | B70: 7 | C70: 1 | D70: 105 | E70: 化学製品 | F70: 8 | G70: 19 | H70: その他の鉱業 | I70: 3 | J70: 31 | K70: 果実 | L70: 011401 | M70: 4.041707307 | N70: 19 | O70: 82 | P70: 二条大麦（ビール麦） | S70: =select!C47 -> 配送費 | X70: 21 | Y70: 石油・石炭製品 | Z70: 0121 | AA70: 畜産 | AH70: A0615_(株)イーネットワーク0.395 | AI70: 0.000395
A71: リース(上流) | B71: 8 | C71: 1 | D71: 110 | E71: 石油・石炭製品 | F71: 2 | G71: 27 | H71: 食料品 | I71: 23 | J71: 34 | K71: 砂糖原料作物 | L71: 011501 | M71: 8.738213107 | N71: 2 | O71: 101 | P71: 裸麦 | S71: =select!C48 -> 出張旅費 | X71: 22 | Y71: プラスチック・ゴム製品 | Z71: 0131 | AA71: 農業サービス | AH71: A0067A(株)イーネットワークシステムズメニューA0 | AI71: 0
A72: リース(下流) | B72: 9 | C72: 1 | D72: 110 | E72: プラスチック・ゴム製品 | F72: 2 | G72: 29 | H72: 飲料 | I72: 7 | J72: 57 | K72: 飲料用作物 | L72: 011502 | M72: 12.70755646 | N72: 4 | O72: 103 | P72: かんしょ | S72: =select!C49 -> 通勤手当 | X72: 25 | Y72: 窯業・土石製品 | Z72: 0151 | AA72: 育林 | AH72: A0067B(株)イーネットワークシステムズメニューB0 | AI72: 0
A73: 投資 | B73: 10 | C73: 1 | D73: 120 | E73: 革製品 | F73: 1 | G73: 31 | H73: 飼料・有機質肥料（別掲を除く。） | I73: 2 | J73: 64 | K73: その他の食用耕種作物 | L73: 011509 | M73: 8.591537461 | N73: 5 | O73: 107 | P73: ばれいしょ | S73: =select!C50 -> 投資 | X73: 26 | Y73: 鉄鋼 | Z73: 0152 | AA73: 素材 | AH73: A0067C(株)イーネットワークシステムズメニューC0 | AI73: 0
B74: 11 | E74: 窯業・土石製品 | F74: 4 | G74: 32 | H74: たばこ | I74: 1 | J74: 66 | K74: 飼料作物 | L74: 011601 | M74: 12.03083605 | N74: 4 | O74: 112 | P74: 大豆 | S74: =select!C51 -> 備品 | X74: 27 | Y74: 非鉄金属 | Z74: 0153 | AA74: 特用林産物 | AH74: A0067D(株)イーネットワークシステムズメニューD0 | AI74: 0
B75: 12 | E75: 鉄鋼 | F75: 4 | G75: 36 | H75: 繊維工業製品 | I75: 7 | J75: 67 | K75: 種苗 | L75: 011602 | M75: 1.439741169 | N75: 3 | O75: 116 | P75: いんげん豆 | S75: =select!C52 -> tCO2eq | X75: 28 | Y75: 金属製品 | Z75: 0171 | AA75: 海面漁業 | AH75: A0067E(株)イーネットワークシステムズメニューE(残差)0.323 | AI75: 0.000323
B76: 13 | E76: 非鉄金属 | F76: 2 | G76: 40 | H76: 衣服・その他の繊維既製品 | I76: 6 | J76: 74 | K76: 花き・花木類 | L76: 011603 | M76: 7.288971335 | N76: 5 | O76: 119 | P76: 小豆 | S76: =select!C53 -> tCO2eq | X76: 29 | Y76: はん用機械 | Z76: 0172 | AA76: 内水面漁業 | AH76: A0002_イーレックス(株)0.453 | AI76: 0.000453
B77: 14 | E77: 金属製品 | F77: 2 | G77: 42 | H77: 木材・木製品 | I77: 4 | J77: 80 | K77: その他の非食用耕種作物 | L77: 011609 | M77: 3.196402941 | N77: 5 | O77: 124 | P77: らっかせい | S77: =select!C54 -> tCO2eq | X77: 30 | Y77: 生産用機械 | Z77: 0611 | AA77: 石炭・原油・天然ガス | AH77: A0298_イオンディライト(株)0.408 | AI77: 0.000408
B78: 15 | E78: はん用機械 | F78: 1 | G78: 44 | H78: 家具・装備品 | I78: 4 | J78: 84 | K78: 酪農 | L78: 012101 | M78: 9.458718393 | N78: 6 | O78: 129 | P78: その他の豆類 | S78: =select!C55 -> 0 | X78: 31 | Y78: 業務用機械 | Z78: 0621 | AA78: 砂利・砕石 | AH78: A0435_いこま市民パワー(株)0.394 | AI78: 0.000394
B79: 16 | E79: 生産用機械 | F79: 1 | G79: 45 | H79: パルプ・紙・板紙・加工紙 | I79: 5 | J79: 88 | K79: 肉用牛 | L79: 012102 | M79: 9.935852338 | N79: 3 | O79: 135 | P79: かぼちゃ（露地） | S79: =select!C56 -> 0 | X79: 32 | Y79: 電子部品 | Z79: 0629 | AA79: その他の鉱物 | AH79: A0248_(株)池見石油店0.571 | AI79: 0.000571
B80: 17 | E80: 業務用機械 | F80: 1 | G80: 46 | H80: 紙加工品 | I80: 4 | J80: 93 | K80: 豚 | L80: 012103 | M80: 5.032625839 | N80: 2 | O80: 138 | P80: ピーマン（露地） | S80: =select!C57 -> 0 | X80: 33 | Y80: 電気機械 | Z80: 1111 | AA80: 畜産食料品 | AH80: A0572_(株)イシオ0.572 | AI80: 0.000572
B81: 18 | E81: 電子部品 | F81: 2 | G81: 47 | H81: 印刷・製版・製本 | I81: 1 | J81: 97 | K81: 鶏卵 | L81: 012104 | M81: 3.093196243 | N81: 4 | O81: 140 | P81: きゅうり（露地） | S81: =select!C58 -> 0 | X81: 34 | Y81: 情報通信機器 | Z81: 1112 | AA81: 水産食料品 | AH81: A0410_石川電力(株)0.938 | AI81: 0.000938
B82: 19 | E82: 電気機械 | F82: 4 | G82: 49 | H82: 化学肥料 | I82: 1 | J82: 98 | K82: 肉鶏 | L82: 012105 | M82: 3.774779451 | N82: 2 | O82: 144 | P82: メロン（露地） | S82: =select!C59 -> 0 | X82: 35 | Y82: 輸送機械 | Z82: 1113 | AA82: 精穀・製粉 | AH82: A0806_いずも縁結び電力(株)0.281 | AI82: 0.000281
A83: フランチャイズなし | B83: 20 | E83: 情報通信機器 | F83: 2 | G83: 53 | H83: 無機化学工業製品 | I83: 5 | J83: 99 | K83: その他の畜産 | L83: 012109 | M83: 4.016570319 | N83: 10 | O83: 146 | P83: すいか（露地） | S83: =select!C60 -> 0 | X83: 39 | Y83: その他の製造工業製品 | Z83: 1114 | AA83: めん・パン・菓子類 | AH83: A0293_出雲ガス(株)0.429 | AI83: 0.000429
A84: 一括計上 | B84: 21 | E84: 輸送機械 | F84: 5 | G84: 55 | H84: 石油化学系基礎製品 | I84: 2 | J84: 104 | K84: 獣医業 | L84: 013101 | M84: 0.7658839316 | N84: 1 | O84: 156 | P84: なす（露地） | S84: =select!C61 -> 0 | X84: 41 | Y84: 建設 | Z84: 1115 | AA84: 農産保存食料品 | AH84: A0803_出雲ケーブルビジョン(株)0.465 | AI84: 0.000465
A85: 典型記載 | B85: 22 | E85: その他の製造工業製品 | F85: 2 | G85: 60 | H85: 有機化学工業製品（石油化学系基礎製品・合成樹脂を除く。） | I85: 6 | J85: 106 | K85: 農業サービス（獣医業を除く。） | L85: 013102 | M85: 3.802527119 | N85: 8 | O85: 157 | P85: トマト（露地） | S85: =select!C62 -> 0 | X85: 46 | Y85: 電力・ガス・熱供給 | Z85: 1116 | AA85: 砂糖・油脂・調味料類 | AH85: A0163_伊勢崎ガス(株)0.308 | AI85: 0.000308
B86: 23 | E86: 建設 | F86: 4 | G86: 62 | H86: 合成樹脂 | I86: 4 | J86: 112 | K86: 育林 | L86: 015101 | M86: 0.3378728837 | N86: 3 | O86: 165 | P86: いちご（露地） | S86: =select!C63 -> 0 | X86: 47 | Y86: 水道 | Z86: 1119 | AA86: その他の食料品 | AH86: A0487_伊勢志摩電力(株)0.483 | AI86: 0.000483
B87: 24 | E87: 電力・熱 | F87: 2 | G87: 66 | H87: 化学繊維 | I87: 1 | J87: 116 | K87: 素材 | L87: 015201 | M87: 2.408422839 | N87: 8 | O87: 168 | P87: さやえんどう（露地） | S87: =select!C64 -> 0 | X87: 48 | Y87: 廃棄物処理 | Z87: 1121 | AA87: 酒類 | AH87: A0342_(株)いちき串木野電力0.534 | AI87: 0.000534
B88: 25 | E88: 水道 | F88: 1 | G88: 68 | H88: 医薬品 | I88: 1 | J88: 117 | K88: 特用林産物（狩猟業を含む。） | L88: 015301 | M88: 3.708979276 | N88: 15 | O88: 176 | P88: スイートコーン | S88: =select!C65 -> 0 | X88: 51 | Y88: 商業 | Z88: 1129 | AA88: その他の飲料 | AH88: A0094A(株)いちたかガスワンメニューA0 | AI88: 0
B89: 26 | E89: 廃棄物処理 | F89: 1 | G89: 69 | H89: 化学最終製品（医薬品を除く。） | I89: 8 | J89: 118 | K89: 海面漁業 | L89: 017101 | M89: 4.929939654 | N89: 51 | O89: 191 | P89: えだまめ | S89: =select!C66 -> 0 | X89: 53 | Y89: 金融・保険 | Z89: 1131 | AA89: 飼料・有機質肥料（別掲を除く。） | AH89: A0094B(株)いちたかガスワンメニューB(残差)0.355 | AI89: 0.000355
A90: 素材 | B90: 27 | E90: 商業 | F90: 1 | G90: 70 | H90: 石油製品 | I90: 1 | J90: 126 | K90: 海面養殖業 | L90: 017102 | M90: 2.660653018 | N90: 31 | O90: 242 | P90: さやいんげん（露地） | S90: =select!C67 -> 0 | X90: 55 | Y90: 不動産 | Z90: 1141 | AA90: たばこ | AH90: A0028A出光グリーンパワー(株)メニューA0 | AI90: 0
A91: 部品 | B91: 28 | E91: 金融・保険 | F91: 1 | G91: 71 | H91: 石炭製品 | I91: 2 | J91: 127 | K91: 内水面漁業 | L91: 017201 | M91: 4.692458035 | N91: 15 | O91: 273 | P91: その他の果菜類（露地） | S91: =select!C68 -> 0 | X91: 57 | Y91: 運輸・郵便 | Z91: 1511 | AA91: 紡績糸 | AH91: A0028B出光グリーンパワー(株)メニューB0 | AI91: 0
A92: 製品 | B92: 29 | E92: 不動産 | F92: 3 | G92: 72 | H92: プラスチック製品 | I92: 1 | J92: 129 | K92: 内水面養殖業 | L92: 017201 | M92: 4.692458035 | N92: 7 | O92: 288 | P92: キャベツ | S92: =select!C69 -> 0 | X92: 59 | Y92: 情報通信 | Z92: 1512 | AA92: 織物 | AH92: A0028C出光グリーンパワー(株)メニューC0.2 | AI92: 0.0002
A93: サービス | B93: 30 | E93: 運輸・郵便 | F93: 9 | G93: 75 | H93: ゴム製品 | I93: 2 | J93: 130 | K93: 石炭・原油・天然ガス | L93: 061101 | M93: 8.840367912 | N93: 5 | O93: 295 | P93: はくさい | S93: =select!C70 -> 0 | X93: 61 | Y93: 公務 | Z93: 1513 | AA93: ニット生地 | AH93: A0028D出光グリーンパワー(株)メニューD(残差)0.451 | AI93: 0.000451
B94: 31 | E94: 情報通信 | F94: 5 | G94: 84 | H94: なめし革・革製品・毛皮 | I94: 2 | J94: 132 | K94: 砂利・採石 | L94: 062101 | M94: 4.996837509 | N94: 8 | O94: 300 | P94: ほうれんそう（露地） | S94: =select!C71 -> 0 | X94: 63 | Y94: 教育・研究 | Z94: 1514 | AA94: 染色整理 | AH94: A0012A出光興産(株)メニューA0 | AI94: 0
B95: 32 | E95: 公務 | F95: 1 | G95: 89 | H95: ガラス・ガラス製品 | I95: 3 | J95: 134 | K95: 砕石 | L95: 062102 | M95: 5.807668385 | N95: 3 | O95: 308 | P95: ねぎ（露地） | S95: =select!C72 -> 0 | X95: 64 | Y95: 医療・福祉 | Z95: 1519 | AA95: その他の繊維工業製品 | AH95: A0012B出光興産(株)メニューB0.2 | AI95: 0.0002
B96: 33 | E96: 教育・研究 | F96: 2 | G96: 90 | H96: セメント・セメント製品 | I96: 3 | J96: 137 | K96: その他の鉱物 | L96: 062909 | M96: 9.494915308 | N96: 23 | O96: 311 | P96: たまねぎ | S96: =select!C73 -> 0 | X96: 65 | Y96: 他に分類されない会員制団体 | Z96: 1521 | AA96: 織物製・ニット製衣服 | AH96: A0012C出光興産(株)メニューC(残差)0.521 | AI96: 0.000521
B97: 34 | E97: 医療・福祉 | F97: 4 | G97: 92 | H97: 陶磁器 | I97: 1 | J97: 140 | K97: 食肉 | L97: 111101 | M97: 5.569485609 | N97: 26 | O97: 334 | P97: にら（露地） | S97: =select!C74 -> 0 | X97: 66 | Y97: 対事業所サービス | Z97: 1522 | AA97: その他の衣服・身の回り品 | AH97: A0223_伊藤忠エネクスホームライフ西日本(株)0.413 | AI97: 0.000413
B98: 35 | E98: 他に分類されない会員制団体 | F98: 1 | G98: 96 | H98: その他の窯業・土石製品 | I98: 5 | J98: 141 | K98: 酪農品 | L98: 111102 | M98: 4.843808862 | N98: 17 | O98: 360 | P98: みつば（露地） | S98: =select!C75 -> 0 | X98: 67 | Y98: 対個人サービス | Z98: 1529 | AA98: その他の繊維既製品 | AH98: A0043A伊藤忠エネクス(株)メニューA0.397 | AI98: 0.000397
B99: 36 | E99: 対事業所サービス | F99: 4 | G99: 97 | H99: 銑鉄・粗鋼 | I99: 4 | J99: 146 | K99: その他の畜産食料品 | L99: 111109 | M99: 2.497542216 | N99: 5 | O99: 377 | P99: しゅんぎく（露地） | S99: =select!C76 -> 0 | X99: 68 | Y99: 事務用品 | Z99: 1611 | AA99: 木材 | AH99: A0043B伊藤忠エネクス(株)メニューB0.35 | AI99: 0.00035
B100: 37 | E100: 対個人サービス | F100: 5 | G100: 101 | H100: 鋼材 | I100: 4 | J100: 150 | K100: 冷凍魚介類 | L100: 111201 | M100: 3.139582729 | N100: 3 | O100: 382 | P100: にんにく | S100: =select!C77 -> 0 | X100: 69 | Y100: 分類不明 | Z100: 1619 | AA100: その他の木製品 | AH100: A0043C伊藤忠エネクス(株)メニューC(残差)0.364 | AI100: 0.000364
B101: 38 | E101: 事務用品 | F101: 1 | G101: 106 | H101: 鋳鍛造品（鉄） | I101: 3 | J101: 154 | K101: 塩・干・くん製品 | L101: 111202 | M101: 2.301867874 | N101: 5 | O101: 385 | P101: レタス（露地） | S101: =select!C78 -> 0 | X101: 70 | Y101: 内生部門計 | Z101: 1621 | AA101: 家具・装備品 | AH101: A0071A伊藤忠商事(株)メニューA0 | AI101: 0
B102: 39 | E102: 分類不明 | F102: 1 | G102: 107 | H102: その他の鉄鋼製品 | I102: 2 | J102: 157 | K102: 水産びん・かん詰 | L102: 111203 | M102: 2.434137796 | N102: 3 | O102: 390 | P102: セルリー（露地） | S102: =select!C79 -> 0 | Z102: 1631 | AA102: パルプ | AH102: A0071B伊藤忠商事(株)メニューB(残差)0.453 | AI102: 0.000453
B103: 40 | H103: 非鉄金属製錬・精製 | I103: 4 | J103: 159 | K103: ねり製品 | L103: 111204 | M103: 1.854614155 | N103: 3 | O103: 393 | P103: カリフラワー | S103: =select!C80 -> 0 | Z103: 1632 | AA103: 紙・板紙 | AH103: A0317_伊藤忠プランテック(株)0.592 | AI103: 0.000592
A104: 燃えがら | B104: 41 | E104: 農林漁業 | F104: 5 | G104: 1 | H104: 非鉄金属加工製品 | I104: 7 | J104: 163 | K104: その他の水産食料品 | L104: 111209 | M104: 1.981050194 | N104: 4 | O104: 396 | P104: ブロッコリー | S104: =select!C81 -> 0 | Z104: 1633 | AA104: 加工紙 | AH104: A0510_いばらきコープ生活協同組合0.316 | AI104: 0.000316
A105: 汚泥 | B105: 42 | E105: 鉱業 | F105: 2 | G105: 6 | H105: 建設用・建築用金属製品 | I105: 2 | J105: 170 | K105: 精穀 | L105: 111301 | M105: 10.15940684 | N105: 3 | O105: 400 | P105: こまつな（露地） | S105: =select!C82 -> 0 | Z105: 1641 | AA105: 紙製容器 | AH105: A0073_入間ガス(株)0.308 | AI105: 0.000308
A106: 廃油 | B106: 43 | E106: 飲食料品 | F106: 4 | G106: 8 | H106: その他の金属製品 | I106: 5 | J106: 172 | K106: 製粉 | L106: 111302 | M106: 2.325505109 | N106: 2 | O106: 403 | P106: アスパラガス（露地） | S106: =select!C83 -> 0 | Z106: 1649 | AA106: その他の紙加工品 | AH106: A0752_イワタニセントラル北海道(株)1.043 | AI106: 0.001043
A107: 廃酸 | B107: 44 | E107: 繊維製品 | F107: 2 | G107: 12 | H107: はん用機械 | I107: 8 | J107: 177 | K107: めん類 | L107: 111401 | M107: 2.099408998 | N107: 3 | O107: 405 | P107: ふき（露地） | S107: =select!C84 -> 0 | Z107: 1911 | AA107: 印刷・製版・製本 | AH107: A0079_イワタニ関東(株)0.713 | AI107: 0.000713
A108: 廃アルカリ | B108: 45 | E108: パルプ・紙・木製品 | F108: 4 | G108: 14 | H108: 生産用機械 | I108: 14 | J108: 185 | K108: パン類 | L108: 111402 | M108: 1.991744058 | N108: 6 | O108: 408 | P108: たけのこ | S108: =select!C85 -> 0 | Z108: 2011 | AA108: 化学肥料 | AH108: A0501_イワタニ三重(株)0.308 | AI108: 0.000308
A109: 廃プラスチック類 | B109: 46 | E109: 印刷・製版 | F109: 1 | G109: 18 | H109: 業務用機械 | I109: 7 | J109: 199 | K109: 菓子類 | L109: 111403 | M109: 1.987445595 | N109: 21 | O109: 414 | P109: ちんげんさい（露地） | S109: =select!C86 -> 0 | Z109: 2021 | AA109: ソーダ工業製品 | AH109: A0080_イワタニ首都圏(株)0.514 | AI109: 0.000514
A110: 紙くず | B110: 47 | E110: 化学製品 | F110: 8 | G110: 19 | H110: 電子デバイス | I110: 4 | J110: 206 | K110: 農産保存食料品 | L110: 111501 | M110: 1.981796649 | N110: 9 | O110: 435 | P110: その他の葉茎菜類（露地） | S110: =select!C87 -> 0 | Z110: 2029 | AA110: その他の無機化学工業製品 | AH110: A0552_イワタニ長野(株)0.308 | AI110: 0.000308
A111: 木くず | B111: 48 | E111: 石油・石炭製品 | F111: 2 | G111: 27 | H111: その他の電子部品 | I111: 3 | J111: 210 | K111: 砂糖 | L111: 111601 | M111: 3.930193092 | N111: 7 | O111: 444 | P111: だいこん | S111: =select!C88 -> 0 | Z111: 2031 | AA111: 石油化学系基礎製品 | AH111: A0520_イワタニ東海(株)0.308 | AI111: 0.000308
A112: 繊維くず | B112: 49 | E112: プラスチック・ゴム製品 | F112: 2 | G112: 29 | H112: 産業用電気機器 | I112: 6 | J112: 213 | K112: でん粉 | L112: 111602 | M112: 2.812217923 | N112: 3 | O112: 451 | P112: かぶ | S112: =select!C89 -> 0 | Z112: 2041 | AA112: 脂肪族中間物・環式中間物・合成染料・有機顔料 | AH112: A0216_(株)岩手ウッドパワー0.451 | AI112: 0.000451
A113: 動植物性残渣 | B113: 50 | E113: 革製品 | F113: 1 | G113: 31 | H113: 民生用電気機器 | I113: 2 | J113: 219 | K113: ぶどう糖・水あめ・異性化糖 | L113: 111603 | M113: 3.626404576 | N113: 4 | O113: 454 | P113: にんじん | S113: =select!C192 -> 瓶 | Z113: 2042 | AA113: 合成ゴム | AH113: A0445_岩手電力(株)0.508 | AI113: 0.000508
A114: 動物系固形不要物 | B114: 51 | E114: 窯業・土石製品 | F114: 4 | G114: 32 | H114: 電子応用装置・電気計測器 | I114: 2 | J114: 221 | K114: 動植物油脂 | L114: 111604 | M114: 2.010726766 | N114: 23 | O114: 458 | P114: ごぼう | S114: =select!C193 -> プラスチック果物トレイ | Z114: 2049 | AA114: その他の有機化学工業製品 | AH114: A0600_(株)インフォシステム0.477 | AI114: 0.000477
A115: ゴムくず | B115: 52 | E115: 鉄鋼 | F115: 4 | G115: 36 | H115: その他の電気機械 | I115: 4 | J115: 223 | K115: 調味料 | L115: 111605 | M115: 1.810320483 | N115: 11 | O115: 481 | P115: さといも | S115: =select!C194 -> チェック | Z115: 2051 | AA115: 合成樹脂 | AH115: A0494_ヴィジョナリーパワー(株)0.323 | AI115: 0.000323
A116: 金属くず | B116: 53 | E116: 非鉄金属 | F116: 2 | G116: 40 | H116: 通信・映像・音響機器 | I116: 7 | J116: 227 | K116: 冷凍調理食品 | L116: 111901 | M116: 2.450045169 | N116: 2 | O116: 492 | P116: やまのいも | S116: =select!C195 -> xnn | Z116: 2061 | AA116: 化学繊維 | AH116: A0037A(株)ウエスト電力メニューA0 | AI116: 0
A117: ガラス陶磁器くず | B117: 54 | E117: 金属製品 | F117: 2 | G117: 42 | H117: 電子計算機・同附属装置 | I117: 3 | J117: 234 | K117: レトルト食品 | L117: 111902 | M117: 2.080816725 | N117: 2 | O117: 494 | P117: れんこん | S117: =select!C201 -> 0 | Z117: 2071 | AA117: 医薬品 | AH117: A0037B(株)ウエスト電力メニューB(残差)0.308 | AI117: 0.000308
A118: 鉱さい | B118: 55 | E118: はん用機械 | F118: 1 | G118: 44 | H118: 乗用車 | I118: 1 | J118: 237 | K118: そう菜・すし・弁当 | L118: 111903 | M118: 2.600889167 | N118: 5 | O118: 496 | P118: しょうが | S118: =select!C93 -> 水酸化ナトリウム廃液 | Z118: 2081 | AA118: 油脂加工製品・界面活性剤 | AH118: A0439_上田ガス(株)0.308 | AI118: 0.000308
A119: がれき類 | B119: 56 | E119: 業務用機械 | F119: 1 | G119: 46 | H119: その他の自動車 | I119: 2 | J119: 238 | K119: その他の食料品 | L119: 111909 | M119: 2.749158464 | N119: 14 | O119: 501 | P119: その他の根菜類 | S119: =select!C94 -> プラスチック | Z119: 2082 | AA119: 化粧品・歯磨 | AH119: A0389_うすきエネルギー(株)0.386 | AI119: 0.000386
A120: 動物のふん尿 | B120: 57 | E120: 電子部品 | F120: 2 | G120: 47 | H120: 自動車部品・同附属品 | I120: 2 | J120: 240 | K120: 清酒 | L120: 112101 | M120: 2.261761443 | N120: 5 | O120: 515 | P120: かぼちゃ（施設） | S120: =select!C95 -> 木くず | Z120: 2083 | AA120: 塗料・印刷インキ | AH120: A0263_(株)ウッドエナジー0.404 | AI120: 0.000404
A121: 動物の死体 | B121: 58 | E121: 電気機械 | F121: 4 | G121: 49 | H121: 船舶・同修理 | I121: 4 | J121: 242 | K121: ビール類 | L121: 112102 | M121: 0.9548002867 | N121: 4 | O121: 520 | P121: ピーマン（施設） | S121: =select!C96 -> 0 | Z121: 2084 | AA121: 農薬 | AH121: A0808_宇都宮ライトパワー(株)0.417 | AI121: 0.000417
A122: ばいじん | B122: 59 | E122: 情報通信機器 | F122: 2 | G122: 53 | H122: その他の輸送機械・同修理 | I122: 6 | J122: 246 | K122: ウイスキー類 | L122: 112103 | M122: 1.093181037 | N122: 3 | O122: 524 | P122: きゅうり（施設） | S122: =select!C97 -> 0 | Z122: 2089 | AA122: その他の化学最終製品 | AH122: A0681_うべ未来エネルギー(株)0.491 | AI122: 0.000491
B123: 60 | E123: 輸送機械 | F123: 5 | G123: 55 | H123: その他の製造工業製品 | I123: 9 | J123: 252 | K123: その他の酒類 | L123: 112109 | M123: 1.0865156 | N123: 8 | O123: 527 | P123: メロン（施設） | S123: =select!C98 -> 0 | Z123: 2111 | AA123: 石油製品 | AH123: A0568_エア・ウォーター(株)0.408 | AI123: 0.000408
B124: 61 | E124: その他の製造工業製品 | F124: 2 | G124: 60 | H124: 再生資源回収・加工処理 | I124: 1 | J124: 261 | K124: 茶・コーヒー | L124: 112901 | M124: 2.123772479 | N124: 5 | O124: 535 | P124: すいか（施設） | S124: =select!C99 -> 0 | Z124: 2121 | AA124: 石炭製品 | AH124: A0708_エア・ウォーター・ライフソリューション(株)(旧：エア・ウォーター北海道(株))0.547 | AI124: 0.000547
B125: 62 | E125: 事務用品 | F125: 1 | G125: 106 | H125: 建築 | I125: 4 | J125: 262 | K125: 清涼飲料 | L125: 112902 | M125: 2.309019176 | N125: 13 | O125: 540 | P125: なす（施設） | S125: =select!C100 -> 0 | Z125: 2211 | AA125: プラスチック製品 | AH125: A0604_(株)エイチティーピー0.252 | AI125: 0.000252
B126: 63 | E126: 分類不明 | F126: 1 | G126: 107 | H126: 建設補修 | I126: 1 | J126: 266 | K126: 製氷 | L126: 112903 | M126: 4.118945228 | N126: 1 | O126: 553 | P126: トマト（施設） | S126: =select!C101 -> 0 | Z126: 2221 | AA126: タイヤ・チューブ | AH126: A0172AＨＴＢエナジー(株)メニューA0 | AI126: 0
B127: 64 | H127: 公共事業 | I127: 3 | J127: 267 | K127: 飼料 | L127: 113101 | M127: 1.836811232 | N127: 4 | O127: 554 | P127: いちご（施設） | S127: =select!C102 -> 0 | Z127: 2229 | AA127: その他のゴム製品 | AH127: A0172BＨＴＢエナジー(株)メニューB0 | AI127: 0
B128: 65 | H128: その他の土木建設 | I128: 4 | J128: 270 | K128: 有機質肥料（別掲を除く。） | L128: 113102 | M128: 2.740602731 | N128: 2 | O128: 558 | P128: さやえんどう（施設） | S128: =select!C170 -> 鉄スクラップ | Z128: 2311 | AA128: 革製履物 | AH128: A0172CＨＴＢエナジー(株)メニューC(残差)0.2 | AI128: 0.0002
B129: 66 | K129: たばこ | L129: 114101 | M129: 0.3665527954 | N129: 2 | O129: 560 | P129: さやいんげん（施設） | S129: =select!C171 -> ニッケル | Z129: 2312 | AA129: なめし革・革製品・毛皮（革製履物を除く。） | AH129: A0077Aａｕエネルギー＆ライフ(株)(旧：ＫＤＤＩ(株))メニューA0 | AI129: 0
B130: 67 | I130: 2 | J130: 274 | K130: 紡績糸 | L130: 151101 | M130: 3.784871676 | N130: 22 | O130: 562 | P130: その他の果菜類（施設） | S130: =select!C172 -> プラどう金いたシート | Z130: 2511 | AA130: ガラス・ガラス製品 | AH130: A0077Bａｕエネルギー＆ライフ(株)(旧：ＫＤＤＩ(株))メニューB(残差)0.468 | AI130: 0.000468
B131: 68 | H131: 水道 | I131: 3 | J131: 278 | K131: 綿・スフ織物（合繊短繊維織物を含む。） | L131: 151201 | M131: 4.01042119 | N131: 16 | O131: 584 | P131: ほうれんそう（施設） | S131: =select!C173 -> 電子基板 | Z131: 2521 | AA131: セメント・セメント製品 | AH131: A0256_(株)エーコープサービス0.396 | AI131: 0.000396
B132: 69 | H132: 廃棄物処理 | I132: 2 | J132: 281 | K132: 絹・人絹織物（合繊長繊維織物を含む。） | L132: 151202 | M132: 5.371762969 | N132: 16 | O132: 600 | P132: ねぎ（施設） | S132: =select!C174 -> アルミ屑 | Z132: 2531 | AA132: 陶磁器 | AH132: A0340_(株)エージーピー0.327 | AI132: 0.000327
B133: 70 | H133: 商業 | I133: 2 | J133: 283 | K133: その他の織物 | L133: 151209 | M133: 3.510903714 | N133: 13 | O133: 616 | P133: にら（施設） | S133: =select!C175 -> 廃プラ | Z133: 2591 | AA133: 建設用土石製品 | AH133: A0083_(株)エコア0.449 | AI133: 0.000449
B134: 71 | E134: 建設 | F134: 4 | G134: 62 | H134: 金融・保険 | I134: 3 | J134: 285 | K134: ニット生地 | L134: 151301 | M134: 2.958751926 | N134: 6 | O134: 629 | P134: みつば（施設） | S134: =select!C176 -> 0 | Z134: 2599 | AA134: その他の窯業・土石製品 | AH134: A0072A(株)エコスタイルメニューA0 | AI134: 0
B135: 72 | E135: 電力・熱 | F135: 2 | G135: 66 | H135: 不動産仲介及び賃貸 | I135: 2 | J135: 288 | K135: 染色整理 | L135: 151401 | M135: 4.760297308 | N135: 29 | O135: 635 | P135: しゅんぎく（施設） | S135: =select!C177 -> 0 | Z135: 2611 | AA135: 銑鉄・粗鋼 | AH135: A0072B(株)エコスタイルメニューB0 | AI135: 0
B136: 73 | E136: 水道 | F136: 1 | G136: 68 | H136: 住宅賃貸料 | I136: 1 | J136: 290 | K136: その他の繊維工業製品 | L136: 151909 | M136: 3.839575013 | N136: 20 | O136: 664 | P136: レタス（施設） | S136: =select!C178 -> 0 | Z136: 2612 | AA136: 鉄屑 | AH136: A0072C(株)エコスタイルメニューC(残差)0.595 | AI136: 0.000595
B137: 74 | E137: 廃棄物処理 | F137: 1 | G137: 69 | H137: 住宅賃貸料（帰属家賃） | I137: 1 | J137: 291 | K137: 織物製衣服 | L137: 152101 | M137: 2.095835874 | N137: 28 | O137: 684 | P137: セルリー（施設） | S137: =select!C179 -> 0 | Z137: 2621 | AA137: 熱間圧延鋼材 | AH137: A0550_(株)エコログ0.545 | AI137: 0.000545
B138: 75 | E138: 商業 | F138: 1 | G138: 70 | H138: 鉄道輸送 | I138: 2 | J138: 292 | K138: ニット製衣服 | L138: 152102 | M138: 2.64084767 | N138: 17 | O138: 712 | P138: こまつな（施設） | S138: =select!C180 -> 0 | Z138: 2622 | AA138: 鋼管 | AH138: A0007_(株)ＳＥウイングズ0.401 | AI138: 0.000401
B139: 76 | E139: 金融・保険 | F139: 1 | G139: 71 | H139: 道路輸送（自家輸送を除く。） | I139: 3 | J139: 294 | K139: その他の衣服・身の回り品 | L139: 152209 | M139: 2.582232645 | N139: 18 | O139: 729 | P139: アスパラガス（施設） | S139: =select!C181 -> 0 | Z139: 2623 | AA139: 冷延・めっき鋼材 | AH139: A0529_(株)エスエナジー0.522 | AI139: 0.000522
B140: 77 | E140: 不動産 | F140: 3 | G140: 72 | H140: 自家輸送 | I140: 2 | J140: 297 | K140: 寝具 | L140: 152901 | M140: 1.414782588 | N140: 5 | O140: 747 | P140: ふき（施設） | S140: =select!C182 -> 0 | Z140: 2631 | AA140: 鋳鍛造品（鉄） | AH140: A0396_(株)エスケーエナジー0.451 | AI140: 0.000451
B141: 78 | E141: 運輸・郵便 | F141: 9 | G141: 75 | H141: 水運 | I141: 3 | J141: 299 | K141: じゅうたん・床敷物 | L141: 152902 | M141: 3.58675657 | N141: 4 | O141: 752 | P141: ちんげんさい（施設） | S141: =select!C183 -> 0 | Z141: 2699 | AA141: その他の鉄鋼製品 | AH141: A0186AＳＢパワー(株)メニューA0 | AI141: 0
B142: 79 | E142: 情報通信 | F142: 5 | G142: 84 | H142: 航空輸送 | I142: 1 | J142: 302 | K142: その他の繊維既製品 | L142: 152909 | M142: 1.927678232 | N142: 12 | O142: 756 | P142: もやし | S142: =select!C184 -> 0 | Z142: 2711 | AA142: 非鉄金属製錬・精製 | AH142: A0186BＳＢパワー(株)メニューB0.19 | AI142: 0.00019
B143: 80 | E143: 公務 | F143: 1 | G143: 89 | H143: 貨物利用運送 | I143: 1 | J143: 303 | K143: 製材 | L143: 161101 | M143: 1.617856445 | N143: 5 | O143: 768 | P143: その他の葉茎菜類（施設） | S143: =select!C185 -> 0 | Z143: 2712 | AA143: 非鉄金属屑 | AH143: A0186CＳＢパワー(株)メニューC(残差)0.485 | AI143: 0.000485
B144: 81 | E144: 教育・研究 | F144: 2 | G144: 90 | H144: 倉庫 | I144: 1 | J144: 304 | K144: 合板・集成材 | L144: 161102 | M144: 1.675953473 | N144: 5 | O144: 773 | P144: 根菜類（施設） | S144: =select!C186 -> 0 | Z144: 2721 | AA144: 電線・ケーブル | AH144: A0556A越後天然ガス(株)メニューA0 | AI144: 0
B145: 82 | E145: 医療・福祉 | F145: 4 | G145: 92 | H145: 運輸附帯サービス | I145: 9 | J145: 305 | K145: 木材チップ | L145: 161103 | M145: 2.46626862 | N145: 2 | O145: 778 | P145: みかん | S145: =select!C187 -> 0 | Z145: 2729 | AA145: その他の非鉄金属製品 | AH145: A0556B越後天然ガス(株)メニューB(残差)0.599 | AI145: 0.000599
B146: 83 | E146: 他に分類されない会員制団体 | F146: 1 | G146: 96 | H146: 郵便・信書便 | I146: 1 | J146: 314 | K146: その他の木製品 | L146: 161909 | M146: 1.780764677 | N146: 29 | O146: 780 | P146: その他のかんきつ | S146: =select!C188 -> 0 | Z146: 2811 | AA146: 建設用金属製品 | AH146: A0338_エッセンシャルエナジー(株)0.437 | AI146: 0.000437
B147: 84 | E147: 対事業所サービス | F147: 4 | G147: 97 | H147: 通信 | I147: 3 | J147: 315 | K147: 木製家具 | L147: 162101 | M147: 1.547071025 | N147: 8 | O147: 809 | P147: かんきつ類の植物成長 | S147: =select!C189 -> 0 | Z147: 2812 | AA147: 建築用金属製品 | AH147: A0580_(株)エナネス0.441 | AI147: 0.000441
B148: 85 | E148: 対個人サービス | F148: 5 | G148: 101 | H148: 放送 | I148: 3 | J148: 318 | K148: 金属製家具 | L148: 162102 | M148: 3.23634563 | N148: 9 | O148: 817 | P148: りんご | Z148: 2891 | AA148: ガス・石油機器・暖房・調理装置 | AH148: A0153A(株)エナリス・パワー・マーケティングメニューA0 | AI148: 0
B149: 86 | H149: 情報サービス | I149: 1 | J149: 321 | K149: 木製建具 | L149: 162103 | M149: 1.624188482 | N149: 2 | O149: 826 | P149: りんごの植物成長 | Z149: 2899 | AA149: その他の金属製品 | AH149: A0153B(株)エナリス・パワー・マーケティングメニューB0.377 | AI149: 0.000377
B150: 87 | H150: インターネット附随サービス | I150: 1 | J150: 322 | K150: その他の家具・装備品 | L150: 162109 | M150: 2.508187779 | N150: 8 | O150: 828 | P150: ぶどう | Z150: 2911 | AA150: ボイラ・原動機 | AH150: A0153C(株)エナリス・パワー・マーケティングメニューC0 | AI150: 0
B151: 88 | H151: 映像・音声・文字情報制作 | I151: 3 | J151: 323 | K151: パルプ | L151: 163101 | M151: 9.009376936 | N151: 8 | O151: 836 | P151: 日本なし | Z151: 2912 | AA151: ポンプ・圧縮機 | AH151: A0153D(株)エナリス・パワー・マーケティングメニューD0 | AI151: 0
B152: 89 | H152: 公務 | I152: 2 | J152: 326 | K152: 洋紙・和紙 | L152: 163201 | M152: 8.840156274 | N152: 35 | O152: 844 | P152: 西洋なし | Z152: 2913 | AA152: 運搬機械 | AH152: A0153E(株)エナリス・パワー・マーケティングメニューE0 | AI152: 0
B153: 90 | H153: 教育 | I153: 8 | J153: 328 | K153: 板紙 | L153: 163202 | M153: 9.032501668 | N153: 11 | O153: 879 | P153: もも | Z153: 2914 | AA153: 冷凍機・温湿調整装置 | AH153: A0153F(株)エナリス・パワー・マーケティングメニューF0 | AI153: 0
B154: 91 | E154: 生産用機械 | F154: 1 | G154: 45 | H154: 研究 | I154: 7 | J154: 336 | K154: 段ボール | L154: 163301 | M154: 5.691194877 | N154: 4 | O154: 890 | P154: すもも | Z154: 2919 | AA154: その他のはん用機械 | AH154: A0153G(株)エナリス・パワー・マーケティングメニューG0 | AI154: 0
B155: 92 | E155: 輸送機械 | F155: 5 | G155: 110 | H155: 医療 | I155: 5 | J155: 343 | K155: 塗工紙・建設用加工紙 | L155: 163302 | M155: 4.014617118 | N155: 8 | O155: 894 | P155: おうとう | Z155: 3011 | AA155: 農業用機械 | AH155: A0153H(株)エナリス・パワー・マーケティングメニューH0.1 | AI155: 0.0001
B156: 93 | E156: 建設 | F156: 4 | H156: 保健衛生 | I156: 2 | J156: 348 | K156: 段ボール箱 | L156: 164101 | M156: 2.781129679 | N156: 2 | O156: 902 | P156: うめ | Z156: 3012 | AA156: 建設・鉱山機械 | AH156: A0153I(株)エナリス・パワー・マーケティングメニューI0.3 | AI156: 0.0003
B157: 94 | H157: 社会保険・社会福祉 | I157: 5 | J157: 350 | K157: その他の紙製容器 | L157: 164109 | M157: 3.077355129 | N157: 7 | O157: 904 | P157: びわ | Z157: 3013 | AA157: 繊維機械 | AH157: A0153J(株)エナリス・パワー・マーケティングメニューJ0.4 | AI157: 0.0004
B158: 95 | H158: 介護 | I158: 2 | J158: 355 | K158: 紙製衛生材料・用品 | L158: 164901 | M158: 3.738398455 | N158: 5 | O158: 911 | P158: かき | Z158: 3014 | AA158: 生活関連産業用機械 | AH158: A0153K(株)エナリス・パワー・マーケティングメニューK0.4 | AI158: 0.0004
B159: 96 | H159: 他に分類されない会員制団体 | I159: 2 | J159: 357 | K159: その他のパルプ・紙・紙加工品 | L159: 164909 | M159: 3.112036608 | N159: 13 | O159: 916 | P159: くり | Z159: 3015 | AA159: 基礎素材産業用機械 | AH159: A0153L(株)エナリス・パワー・マーケティングメニューL(残差)0.58 | AI159: 0.00058
B160: 97 | H160: 物品賃貸サービス | I160: 2 | J160: 359 | K160: 印刷・製版・製本 | L160: 191101 | M160: 2.62286446 | N160: 14 | O160: 929 | P160: キウイフルーツ | Z160: 3016 | AA160: 金属加工機械 | AH160: A0187AＮＦパワーサービス(株)メニューA0 | AI160: 0
B161: 98 | H161: 広告 | I161: 1 | J161: 361 | K161: 化学肥料 | L161: 201101 | M161: 16.07221238 | N161: 13 | O161: 943 | P161: パインアップル | Z161: 3017 | AA161: 半導体製造装置 | AH161: A0187BＮＦパワーサービス(株)メニューB(残差)0.396 | AI161: 0.000396
B162: 99 | H162: 自動車整備・機械修理 | I162: 2 | J162: 362 | K162: ソーダ工業製品 | L162: 202101 | M162: 14.30475816 | N162: 13 | O162: 956 | P162: その他の果実 | Z162: 3019 | AA162: その他の生産用機械 | AH162: A0653AＮＴＴアノードエナジー(株)メニューA0 | AI162: 0
B163: 100 | E163: 運輸・郵便 | F163: 7 | G163: 75 | H163: その他の対事業所サービス | I163: 6 | J163: 364 | K163: 無機顔料 | L163: 202901 | M163: 9.540004185 | N163: 10 | O163: 969 | P163: その他の果実の植物成長 | Z163: 3111 | AA163: 事務用機械 | AH163: A0653BＮＴＴアノードエナジー(株)メニューB(残差)0.465 | AI163: 0.000465
B164: 101 | H164: 宿泊業 | I164: 1 | J164: 370 | K164: 圧縮ガス・液化ガス | L164: 202902 | M164: 11.58233857 | N164: 10 | O164: 979 | P164: さとうきび | Z164: 3112 | AA164: サービス用・娯楽用機器 | AH164: A0500_(株)エネ・ビジョン0.236 | AI164: 0.000236
B165: 102 | H165: 飲食サービス | I165: 2 | J165: 371 | K165: 塩 | L165: 202903 | M165: 6.767293121 | N165: 3 | O165: 989 | P165: てんさい | Z165: 3113 | AA165: 計測機器 | AH165: A0241_(株)エネアーク関西0.442 | AI165: 0.000442
B166: 103 | H166: 洗濯・理容・美容・浴場業 | I166: 5 | J166: 373 | K166: その他の無機化学工業製品 | L166: 202909 | M166: 4.916810406 | N166: 20 | O166: 992 | P166: コーヒー豆・カカオ豆（輸入） | Z166: 3114 | AA166: 医療用機械器具 | AH166: A0068_(株)エネアーク関東0.402 | AI166: 0.000402
B167: 104 | H167: 娯楽サービス | I167: 6 | J167: 378 | K167: 石油化学基礎製品 | L167: 203101 | M167: 9.630695888 | N167: 9 | O167: 1012 | P167: 茶 | Z167: 3115 | AA167: 光学機械・レンズ | AH167: A0221A(株)エネウィル(旧：ＪＡＧ国際エナジー(株))メニューA0 | AI167: 0
B168: 105 | E168: 運輸・郵便 | F168: 6 | G168: 120 | H168: その他の対個人サービス | I168: 5 | J168: 384 | K168: 石油化学系芳香族製品 | L168: 203102 | M168: 6.903650911 | N168: 10 | O168: 1021 | P168: ホップ | Z168: 3116 | AA168: 武器 | AH168: A0221B(株)エネウィル(旧：ＪＡＧ国際エナジー(株))メニューB(残差)0.506 | AI168: 0.000506
B169: 106 | H169: 事務用品 | I169: 1 | J169: 389 | K169: 脂肪族中間物 | L169: 204101 | M169: 9.290460596 | N169: 32 | O169: 1031 | P169: 茶の植物成長 | Z169: 3211 | AA169: 電子デバイス | AH169: A0050AＥＮＥＯＳ(株)メニューA0 | AI169: 0
B170: 107 | H170: 分類不明 | I170: 1 | J170: 390 | K170: 環式中間物・合成染料・有機顔料 | L170: 204102 | M170: 8.550619462 | N170: 19 | O170: 1063 | P170: そば | Z170: 3299 | AA170: その他の電子部品 | AH170: A0050BＥＮＥＯＳ(株)メニューB0 | AI170: 0
B171: 108 | K171: 合成ゴム | L171: 204201 | M171: 12.05797502 | N171: 9 | O171: 1082 | P171: その他の雑穀 | Z171: 3311 | AA171: 産業用電気機器 | AH171: A0050CＥＮＥＯＳ(株)メニューC0 | AI171: 0
B172: 109 | K172: メタン誘導品 | L172: 204901 | M172: 5.275701007 | N172: 6 | O172: 1091 | P172: なたね | Z172: 3321 | AA172: 民生用電気機器 | AH172: A0050DＥＮＥＯＳ(株)メニューD(残差)0.452 | AI172: 0.000452
B173: 110 | E173: 対事業所サービス | F173: 1 | G173: 97 | H173: 乗用車 | I173: 1 | J173: 237 | K173: 可塑剤 | L173: 204902 | M173: 4.91916017 | N173: 5 | O173: 1097 | P173: その他の油糧作物 | Z173: 3331 | AA173: 電子応用装置 | AH173: A0366_(株)エネクスライフサービス0.411 | AI173: 0.000411
B174: 111 | H174: その他の自動車 | I174: 2 | J174: 238 | K174: その他の有機化学工業製品 | L174: 204909 | M174: 7.620643751 | N174: 10 | O174: 1102 | P174: 他に分類されない食用耕種作物 | Z174: 3332 | AA174: 電気計測器 | AH174: A0624_(株)エネクル(旧：堀川産業(株))0.308 | AI174: 0.000308
B175: 112 | H175: 自動車部品・同附属品 | I175: 2 | J175: 240 | K175: 熱硬化性樹脂 | L175: 205101 | M175: 3.873848498 | N175: 15 | O175: 1112 | P175: 牧草 | Z175: 3399 | AA175: その他の電気機械 | AH175: A0014Aエネサーブ(株)メニューA0 | AI175: 0
B176: 113 | H176: 船舶・同修理 | I176: 4 | J176: 242 | K176: 熱可塑性樹脂 | L176: 205102 | M176: 5.840808811 | N176: 16 | O176: 1127 | P176: 青刈りとうもろこし | Z176: 3411 | AA176: 通信機器 | AH176: A0014Bエネサーブ(株)メニューB(残差)0.554 | AI176: 0.000554
B177: 114 | H177: その他の輸送機械・同修理 | I177: 5 | J177: 393 | K177: 高機能性樹脂 | L177: 205103 | M177: 3.627580682 | N177: 8 | O177: 1143 | P177: ソルゴー | Z177: 3412 | AA177: 映像・音響機器 | AH177: A0054_(株)エネサンス関東0.463 | AI177: 0.000463
B178: 115 | K178: その他の合成樹脂 | L178: 205109 | M178: 4.491324908 | N178: 9 | O178: 1151 | P178: その他の飼料作物 | Z178: 3421 | AA178: 電子計算機・同附属装置 | AH178: A0200Aエネックス(株)メニューA0 | AI178: 0
B179: 116 | K179: 化学繊維 | L179: 206101 | M179: 11.57772922 | N179: 12 | O179: 1160 | P179: 種子・苗 | Z179: 3511 | AA179: 乗用車 | AH179: A0200Bエネックス(株)メニューB(残差)0.212 | AI179: 0.000212
B180: 117 | K180: 医薬品 | L180: 207101 | M180: 1.702194531 | N180: 4 | O180: 1172 | P180: 球根類 | Z180: 3521 | AA180: トラック・バス・その他の自動車 | AH180: A0009A(株)エネットメニューA0 | AI180: 0
B181: 118 | K181: 油脂加工製品・界面活性剤 | L181: 208101 | M181: 2.94119321 | N181: 31 | O181: 1176 | P181: 苗木類（花木） | Z181: 3522 | AA181: 二輪自動車 | AH181: A0009B(株)エネットメニューB0 | AI181: 0
B182: 119 | K182: 化粧品・歯磨 | L182: 208201 | M182: 1.955521979 | N182: 35 | O182: 1207 | P182: 切り花類 | Z182: 3531 | AA182: 自動車部品・同附属品 | AH182: A0009C(株)エネットメニューC0.2 | AI182: 0.0002
B183: 120 | E183: 金融・保険 | F183: 1 | G183: 130 | H183: 鉄道輸送 | I183: 1 | J183: 292 | K183: 塗料 | L183: 208301 | M183: 4.386914624 | N183: 9 | O183: 1242 | P183: 鉢もの類 | Z183: 3541 | AA183: 船舶・同修理 | AH183: A0009D(株)エネットメニューD0.22 | AI183: 0.00022
B184: 121 | H184: 道路輸送（自家輸送を除く。） | I184: 2 | J184: 294 | K184: 印刷インキ | L184: 208302 | M184: 2.848901449 | N184: 9 | O184: 1251 | P184: 花木（成木） | Z184: 3591 | AA184: 鉄道車両・同修理 | AH184: A0009E(株)エネットメニューE0.3 | AI184: 0.0003
B185: 122 | H185: 自家輸送 | I185: 1 | J185: 297 | K185: 農薬 | L185: 208401 | M185: 2.634925586 | N185: 9 | O185: 1260 | P185: 花き苗類 | Z185: 3592 | AA185: 航空機・同修理 | AH185: A0009F(株)エネットメニューF0.349 | AI185: 0.000349
B186: 123 | H186: 水運 | I186: 2 | J186: 299 | K186: ゼラチン・接着剤 | L186: 208901 | M186: 2.584577718 | N186: 4 | O186: 1269 | P186: その他の花き・花木類 | Z186: 3599 | AA186: その他の輸送機械 | AH186: A0009G(株)エネットメニューG0.37 | AI186: 0.00037
B187: 124 | H187: 航空輸送 | I187: 1 | J187: 302 | K187: 写真感光材料 | L187: 208902 | M187: 2.674370057 | N187: 5 | O187: 1273 | P187: 葉たばこ | Z187: 3911 | AA187: がん具・運動用品 | AH187: A0009H(株)エネットメニューH(残差)0.408 | AI187: 0.000408
B188: 125 | H188: 運輸附帯サービス | I188: 2 | J188: 312 | K188: その他の化学最終製品 | L188: 208909 | M188: 3.255503926 | N188: 31 | O188: 1278 | P188: 生ゴム（輸入） | Z188: 3919 | AA188: その他の製造工業製品 | AH188: A0425_エネトレード(株)0.453 | AI188: 0.000453
B189: 126 | K189: 石油製品 | L189: 211101 | M189: 2.660687443 | N189: 32 | O189: 1309 | P189: 綿花（輸入） | Z189: 3921 | AA189: 再生資源回収・加工処理 | AH189: A0528A(株)エネファントメニューA0 | AI189: 0
B190: 127 | K190: 石炭製品 | L190: 212101 | M190: 20.44604242 | N190: 7 | O190: 1341 | P190: い | Z190: 4111 | AA190: 住宅建築 | AH190: A0528B(株)エネファントメニューB0 | AI190: 0
B191: 128 | K191: 舗装材料 | L191: 212102 | M191: 4.77900673 | N191: 2 | O191: 1348 | P191: 他に分類されない非食用耕種作物 | Z191: 4112 | AA191: 非住宅建築 | AH191: A0528C(株)エネファントメニューC(残差)0.461 | AI191: 0.000461
B192: 129 | K192: プラスチック製品 | L192: 221101 | M192: 2.950177159 | N192: 52 | O192: 1350 | P192: 生乳 | Z192: 4121 | AA192: 建設補修 | AH192: A0415Aエネラボ(株)メニューA0 | AI192: 0
B193: 130 | H193: 金融・保険 | I193: 1 | J193: 285 | K193: タイヤ・チューブ | L193: 222101 | M193: 3.691032481 | N193: 9 | O193: 1402 | P193: 乳子牛（と畜向け） | Z193: 4131 | AA193: 公共事業 | AH193: A0415Bエネラボ(株)メニューB(残差)0.483 | AI193: 0.000483
B194: 131 | K194: その他のゴム製品 | L194: 222909 | M194: 2.476536484 | N194: 33 | O194: 1411 | P194: 乳子牛（肉用肥育向け） | Z194: 4191 | AA194: その他の土木建設 | AH194: A0063A(株)エネルギア・ソリューション・アンド・サービスメニューA0 | AI194: 0
B195: 132 | K195: 革製履物 | L195: 231101 | M195: 1.165514927 | N195: 8 | O195: 1444 | P195: 乳廃牛 | Z195: 4611 | AA195: 電力 | AH195: A0063B(株)エネルギア・ソリューション・アンド・サービスメニューB(残差)0.44 | AI195: 0.00044
B196: 133 | K196: なめし革・革製品・毛皮（革製履物を除く。） | L196: 231201 | M196: 1.508197772 | N196: 28 | O196: 1452 | P196: 乳子牛（搾乳向け）の成長増加（成牛換算） | Z196: 4621 | AA196: 都市ガス | AH196: A0371Aエネルギーパワー(株)メニューA0 | AI196: 0
B197: 134 | K197: 板ガラス・安全ガラス | L197: 251101 | M197: 3.991834096 | N197: 10 | O197: 1480 | P197: きゅう肥 | Z197: 4622 | AA197: 熱供給業 | AH197: A0371Bエネルギーパワー(株)メニューB0 | AI197: 0
B198: 135 | K198: ガラス繊維・同製品 | L198: 251102 | M198: 6.352944239 | N198: 11 | O198: 1490 | P198: と畜向け肉用牛（成牛換算飼養頭数の増減を含む。） | Z198: 4711 | AA198: 水道 | AH198: A0371Cエネルギーパワー(株)メニューC0 | AI198: 0
B199: 136 | K199: その他のガラス製品 | L199: 251109 | M199: 3.776603371 | N199: 21 | O199: 1501 | P199: 肥育向け子畜 | Z199: 4811 | AA199: 廃棄物処理 | AH199: A0371Dエネルギーパワー(株)メニューD0 | AI199: 0
B200: 137 | K200: セメント | L200: 252101 | M200: 108.4861998 | N200: 7 | O200: 1522 | P200: きゅう肥 | Z200: 5111 | AA200: 卸売 | AH200: A0371Eエネルギーパワー(株)メニューE(残差)0.531 | AI200: 0.000531
... 3110 more rows

Sheet xbumon15 (hidden)
A1: 第８章 部 門 分 類 表
A4: １ 内生部門
A5: 基本分類 （行509部門×列391部門） | F5: 統合小分類 （187部門） | H5: 統合中分類 （107部門） | J5: 統合大分類 （37部門）
A6: 分類コード | E6: 部 門 名 | F6: 分類 コード | G6: 部 門 名 | H6: 分類 コード | I6: 部 門 名 | J6: 分類 コード | K6: 部 門 名
A7: 列部門 | C7: 行部門 | AE7: 小の数 | AF7: 小はじめ | AI7: 中の数 | AJ7: 中はじめ
A8: 0111 | B8: 01 | E8: 米 | F8: 0111 | G8: 穀類 | H8: 011 | I8: 耕種農業 | J8: 01 | K8: 農林漁業 | M8: 011101 | N8: 0111 | O8: 01 | R8: 米 | T8: 1 | U8: 011101 | V8: 米 | W8: =LEFT(U8,4) -> 0111 | Y8: 0111 | Z8: 穀類 | AA8: =COUNTIF(W$8:W$399,Y8) -> 2 | AB8: 1 | AC8: 011 | AD8: 耕種農業 | AE8: 14 | AF8: 1 | AG8: 01 | AH8: 農林漁業 | AI8: 5 | AJ8: 1 | AM8: 5c2nm
C9: 0111 | D9: 011 | E9: 米 | P9: 0111 | Q9: 011 | R9: 米 | T9: 2 | U9: 011102 | V9: 麦類 | W9: =LEFT(U9,4) -> 0111 | Y9: 0112 | Z9: いも・豆類 | AA9: =COUNTIF(W$8:W$399,Y9) -> 2 | AB9: =AB8+AA8 -> 3 | AC9: 012 | AD9: 畜産 | AE9: 6 | AF9: 15 | AG9: 06 | AH9: 鉱業 | AI9: 2 | AJ9: 6 | AM9: 4c2nm | AN9: 3c2nm | AO9: 2ctonm
C10: 0111 | D10: 012 | E10: 稲わら | P10: 0111 | Q10: 012 | R10: 稲わら | T10: 3 | U10: 011201 | V10: いも類 | W10: 0112 | Y10: 0113 | Z10: 野菜 | AA10: 2 | AB10: =AB9+AA9 -> 5 | AC10: 013 | AD10: 農業サービス | AE10: 2 | AF10: 21 | AG10: 11 | AH10: 飲食料品 | AI10: 4 | AJ10: 8
A11: 0111 | B11: 02 | E11: 麦類 | M11: 011102 | N11: 0111 | O11: 02 | R11: 麦類 | T11: 4 | U11: 011202 | V11: 豆類 | W11: 0112 | Y11: 0114 | Z11: 果実 | AA11: 1 | AB11: 7 | AC11: 015 | AD11: 林業 | AE11: 3 | AF11: 23 | AG11: 15 | AH11: 繊維製品 | AI11: 2 | AJ11: 12
C12: 0111 | D12: 021 | E12: 小麦 | P12: 0111 | Q12: 021 | R12: 小麦 | T12: 5 | U12: 011301 | V12: 野菜（露地） | W12: 0113 | Y12: 0115 | Z12: その他の食用作物 | AA12: 3 | AB12: 8 | AC12: 017 | AD12: 漁業 | AE12: 4 | AF12: 26 | AG12: 16 | AH12: パルプ・紙・木製品 | AI12: 4 | AJ12: 14
C13: 0111 | D13: 022 | E13: 大麦 | P13: 0111 | Q13: 022 | R13: 大麦 | T13: 6 | U13: 011302 | V13: 野菜（施設） | W13: 0113 | Y13: 0116 | Z13: 非食用作物 | AA13: 4 | AB13: 11 | AC13: 061 | AD13: 石炭・原油・天然ガス | AE13: 1 | AF13: 30 | AG13: 20 | AH13: 化学製品 | AI13: 1 | AJ13: 18
A14: 0112 | B14: 01 | E14: いも類 | F14: 0112 | G14: いも・豆類 | M14: 011201 | N14: 0112 | O14: 01 | R14: いも類 | T14: 7 | U14: 011401 | V14: 果実 | W14: 0114 | Y14: 0121 | Z14: 畜産 | AA14: 6 | AB14: 15 | AC14: 062 | AD14: その他の鉱業 | AE14: 3 | AF14: 31 | AG14: 21 | AH14: 石油・石炭製品 | AI14: 8 | AJ14: 19
C15: 0112 | D15: 011 | E15: かんしょ | P15: 0112 | Q15: 011 | R15: かんしょ | T15: 8 | U15: 011501 | V15: 砂糖原料作物 | W15: 0115 | Y15: 0131 | Z15: 農業サービス | AA15: 2 | AB15: 21 | AC15: 111 | AD15: 食料品 | AE15: 23 | AF15: 34 | AG15: 22 | AH15: プラスチック・ゴム製品 | AI15: 2 | AJ15: 27
C16: 0112 | D16: 012 | E16: ばれいしょ | P16: 0112 | Q16: 012 | R16: ばれいしょ | T16: 9 | U16: 011502 | V16: 飲料用作物 | W16: 0115 | Y16: 0151 | Z16: 育林 | AA16: 1 | AB16: 23 | AC16: 111 | AD16: （続き）食料品 | AE16: 7 | AF16: 57 | AG16: 25 | AH16: 窯業・土石製品 | AI16: 2 | AJ16: 29
A17: 0112 | B17: 02 | E17: 豆類 | M17: 011202 | N17: 0112 | O17: 02 | R17: 豆類 | T17: 10 | U17: 011509 | V17: その他の食用耕種作物 | W17: 0115 | Y17: 0152 | Z17: 素材 | AA17: 1 | AB17: 24 | AC17: 112 | AD17: 飲料 | AE17: 2 | AF17: 64 | AG17: 26 | AH17: 鉄鋼 | AI17: 1 | AJ17: 31
C18: 0112 | D18: 021 | E18: 大豆 | P18: 0112 | Q18: 021 | R18: 大豆 | T18: 11 | U18: 011601 | V18: 飼料作物 | W18: 0116 | Y18: 0153 | Z18: 特用林産物 | AA18: 1 | AB18: 25 | AC18: 113 | AD18: 飼料・有機質肥料（別掲を除く。） | AE18: 1 | AF18: 66 | AG18: 27 | AH18: 非鉄金属 | AI18: 4 | AJ18: 32
C19: 0112 | D19: 029 | E19: その他の豆類 | P19: 0112 | Q19: 029 | R19: その他の豆類 | T19: 12 | U19: 011602 | V19: 種苗 | W19: 0116 | Y19: 0171 | Z19: 海面漁業 | AA19: 2 | AB19: 26 | AC19: 114 | AD19: たばこ | AE19: 7 | AF19: 67 | AG19: 28 | AH19: 金属製品 | AI19: 4 | AJ19: 36
C20: 0113 | D20: 001 | E20: 野菜 | F20: 0113 | G20: 野菜 | P20: 0113 | Q20: 001 | R20: 野菜 | T20: 13 | U20: 011603 | V20: 花き・花木類 | W20: 0116 | Y20: 0172 | Z20: 内水面漁業 | AA20: 2 | AB20: 28 | AC20: 151 | AD20: 繊維工業製品 | AE20: 6 | AF20: 74 | AG20: 29 | AH20: はん用機械 | AI20: 2 | AJ20: 40
A21: 0113 | B21: 01 | E21: 野菜（露地） | M21: 011301 | N21: 0113 | O21: 01 | R21: 野菜（露地） | T21: 14 | U21: 011609 | V21: その他の非食用耕種作物 | W21: 0116 | Y21: 0611 | Z21: 石炭・原油・天然ガス | AA21: 1 | AB21: 30 | AC21: 152 | AD21: 衣服・その他の繊維既製品 | AE21: 4 | AF21: 80 | AG21: 30 | AH21: 生産用機械 | AI21: 2 | AJ21: 42
A22: 0113 | B22: 02 | E22: 野菜（施設） | M22: 011302 | N22: 0113 | O22: 02 | R22: 野菜（施設） | T22: 15 | U22: 012101 | V22: 酪農 | W22: 0121 | Y22: 0621 | Z22: 砂利・砕石 | AA22: 2 | AB22: 31 | AC22: 161 | AD22: 木材・木製品 | AE22: 4 | AF22: 84 | AG22: 31 | AH22: 業務用機械 | AI22: 1 | AJ22: 44
A23: 0114 | B23: 01 | C23: 0114 | D23: 011 | E23: 果実 | F23: 0114 | G23: 果実 | M23: 011401 | N23: 0114 | O23: 01 | P23: 0114 | Q23: 011 | R23: 果実 | T23: 16 | U23: 012102 | V23: 肉用牛 | W23: 0121 | Y23: 0629 | Z23: その他の鉱物 | AA23: 1 | AB23: 33 | AC23: 162 | AD23: 家具・装備品 | AE23: 5 | AF23: 88 | AG23: 32 | AH23: 電子部品 | AI23: 1 | AJ23: 45
A24: 0115 | B24: 01 | C24: 0115 | D24: 011 | E24: 砂糖原料作物 | F24: 0115 | G24: その他の食用作物 | M24: 011501 | N24: 0115 | O24: 01 | P24: 0115 | Q24: 011 | R24: 砂糖原料作物 | T24: 17 | U24: 012103 | V24: 豚 | W24: 0121 | Y24: 1111 | Z24: 畜産食料品 | AA24: 3 | AB24: 34 | AC24: 163 | AD24: パルプ・紙・板紙・加工紙 | AE24: 4 | AF24: 93 | AG24: 33 | AH24: 電気機械 | AI24: 1 | AJ24: 46
A25: 0115 | B25: 02 | E25: 飲料用作物 | M25: 011502 | N25: 0115 | O25: 02 | R25: 飲料用作物 | T25: 18 | U25: 012104 | V25: 鶏卵 | W25: 0121 | Y25: 1112 | Z25: 水産食料品 | AA25: 5 | AB25: 37 | AC25: 164 | AD25: 紙加工品 | AE25: 1 | AF25: 97 | AG25: 34 | AH25: 情報通信機器 | AI25: 2 | AJ25: 47
C26: 0115 | D26: 021 | E26: コーヒー豆・カカオ豆（輸入） | P26: 0115 | Q26: 021 | R26: コーヒー豆・カカオ豆（輸入） | T26: 19 | U26: 012105 | V26: 肉鶏 | W26: 0121 | Y26: 1113 | Z26: 精穀・製粉 | AA26: 2 | AB26: 42 | AC26: 191 | AD26: 印刷・製版・製本 | AE26: 1 | AF26: 98 | AG26: 35 | AH26: 輸送機械 | AI26: 4 | AJ26: 49
C27: 0115 | D27: 029 | E27: その他の飲料用作物 | P27: 0115 | Q27: 029 | R27: その他の飲料用作物 | T27: 20 | U27: 012109 | V27: その他の畜産 | W27: 0121 | Y27: 1114 | Z27: めん・パン・菓子類 | AA27: 3 | AB27: 44 | AC27: 201 | AD27: 化学肥料 | AE27: 5 | AF27: 99 | AG27: 39 | AH27: その他の製造工業製品 | AI27: 2 | AJ27: 53
A28: 0115 | B28: 09 | E28: その他の食用耕種作物 | M28: 011509 | N28: 0115 | O28: 09 | R28: その他の食用耕種作物 | T28: 21 | U28: 013101 | V28: 獣医業 | W28: 0131 | Y28: 1115 | Z28: 農産保存食料品 | AA28: 1 | AB28: 47 | AC28: 202 | AD28: 無機化学工業製品 | AE28: 2 | AF28: 104 | AG28: 41 | AH28: 建設 | AI28: 5 | AJ28: 55
C29: 0115 | D29: 091 | E29: 雑穀 | P29: 0115 | Q29: 091 | R29: 雑穀 | T29: 22 | U29: 013102 | V29: 農業サービス（獣医業を除く。） | W29: 0131 | Y29: 1116 | Z29: 砂糖・油脂・調味料類 | AA29: 5 | AB29: 48 | AC29: 202 | AD29: （続き）無機化学工業製品 | AE29: 6 | AF29: 106 | AG29: 46 | AH29: 電力・ガス・熱供給 | AI29: 2 | AJ29: 60
C30: 0115 | D30: 099 | E30: 他に分類されない食用耕種作物 | P30: 0115 | Q30: 099 | R30: 他に分類されない食用耕種作物 | T30: 23 | U30: 015101 | V30: 育林 | W30: 0151 | Y30: 1119 | Z30: その他の食料品 | AA30: 4 | AB30: 53 | AC30: 203 | AD30: 石油化学系基礎製品 | AE30: 4 | AF30: 112 | AG30: 47 | AH30: 水道 | AI30: 4 | AJ30: 62
A31: 0116 | B31: 01 | C31: 0116 | D31: 011 | E31: 飼料作物 | F31: 0116 | G31: 非食用作物 | M31: 011601 | N31: 0116 | O31: 01 | P31: 0116 | Q31: 011 | R31: 飼料作物 | T31: 24 | U31: 015201 | V31: 素材 | W31: 0152 | Y31: 1121 | Z31: 酒類 | AA31: 4 | AB31: 57 | AC31: 204 | AD31: 有機化学工業製品（石油化学系基礎製品・合成樹脂を除く。） | AE31: 1 | AF31: 116 | AG31: 48 | AH31: 廃棄物処理 | AI31: 2 | AJ31: 66
A32: 0116 | B32: 02 | C32: 0116 | D32: 021 | E32: 種苗 | M32: 011602 | N32: 0116 | O32: 02 | P32: 0116 | Q32: 021 | R32: 種苗 | T32: 25 | U32: 015301 | V32: 特用林産物（狩猟業を含む。） | W32: 0153 | Y32: 1129 | Z32: その他の飲料 | AA32: 3 | AB32: 61 | AC32: 205 | AD32: 合成樹脂 | AE32: 1 | AF32: 117 | AG32: 51 | AH32: 商業 | AI32: 1 | AJ32: 68
A33: 0116 | B33: 03 | C33: 0116 | D33: 031 | E33: 花き・花木類 | M33: 011603 | N33: 0116 | O33: 03 | P33: 0116 | Q33: 031 | R33: 花き・花木類 | T33: 26 | U33: 017101 | V33: 海面漁業 | W33: 0171 | Y33: 1131 | Z33: 飼料・有機質肥料（別掲を除く。） | AA33: 2 | AB33: 64 | AC33: 206 | AD33: 化学繊維 | AE33: 8 | AF33: 118 | AG33: 53 | AH33: 金融・保険 | AI33: 1 | AJ33: 69
A34: 0116 | B34: 09 | E34: その他の非食用耕種作物 | M34: 011609 | N34: 0116 | O34: 09 | R34: その他の非食用耕種作物 | T34: 27 | U34: 017102 | V34: 海面養殖業 | W34: 0171 | Y34: 1141 | Z34: たばこ | AA34: 1 | AB34: 66 | AC34: 207 | AD34: 医薬品 | AE34: 1 | AF34: 126 | AG34: 55 | AH34: 不動産 | AI34: 1 | AJ34: 70
C35: 0116 | D35: 091 | E35: 葉たばこ | P35: 0116 | Q35: 091 | R35: 葉たばこ | T35: 28 | U35: 017201 | V35: 内水面漁業 | W35: 0172 | Y35: 1511 | Z35: 紡績糸 | AA35: 1 | AB35: 67 | AC35: 208 | AD35: 化学最終製品（医薬品を除く。） | AE35: 2 | AF35: 127 | AG35: 57 | AH35: 運輸・郵便 | AI35: 1 | AJ35: 71
C36: 0116 | D36: 092 | E36: 生ゴム（輸入） | P36: 0116 | Q36: 092 | R36: 生ゴム（輸入） | T36: 29 | U36: 017202 | V36: 内水面養殖業 | W36: 0172 | Y36: 1512 | Z36: 織物 | AA36: 3 | AB36: 68 | AC36: 211 | AD36: 石油製品 | AE36: 1 | AF36: 129 | AG36: 59 | AH36: 情報通信 | AI36: 3 | AJ36: 72
C37: 0116 | D37: 093 | E37: 綿花（輸入） | P37: 0116 | Q37: 093 | R37: 綿花（輸入） | T37: 30 | U37: 061101 | V37: 石炭・原油・天然ガス | W37: 0611 | Y37: 1513 | Z37: ニット生地 | AA37: 1 | AB37: 71 | AC37: 212 | AD37: 石炭製品 | AE37: 2 | AF37: 130 | AG37: 61 | AH37: 公務 | AI37: 9 | AJ37: 75
C38: 0116 | D38: 099 | E38: 他に分類されない非食用耕種作物 | P38: 0116 | Q38: 099 | R38: 他に分類されない非食用耕種作物 | T38: 31 | U38: 062101 | V38: 砂利・採石 | W38: 0621 | Y38: 1514 | Z38: 染色整理 | AA38: 1 | AB38: 72 | AC38: 221 | AD38: プラスチック製品 | AE38: 2 | AF38: 132 | AG38: 63 | AH38: 教育・研究 | AI38: 5 | AJ38: 84
A39: 0121 | B39: 01 | E39: 酪農 | F39: 0121 | G39: 畜産 | H39: 012 | I39: 畜産 | M39: 012101 | N39: 0121 | O39: 01 | R39: 酪農 | T39: 32 | U39: 062102 | V39: 砕石 | W39: 0621 | Y39: 1519 | Z39: その他の繊維工業製品 | AA39: 1 | AB39: 73 | AC39: 222 | AD39: ゴム製品 | AE39: 3 | AF39: 134 | AG39: 64 | AH39: 医療・福祉 | AI39: 1 | AJ39: 89
C40: 0121 | D40: 011 | E40: 生乳 | P40: 0121 | Q40: 011 | R40: 生乳 | T40: 33 | U40: 062909 | V40: その他の鉱物 | W40: 0629 | Y40: 1521 | Z40: 織物製・ニット製衣服 | AA40: 2 | AB40: 74 | AC40: 231 | AD40: なめし革・革製品・毛皮 | AE40: 3 | AF40: 137 | AG40: 65 | AH40: 他に分類されない会員制団体 | AI40: 2 | AJ40: 90
C41: 0121 | D41: 019 | E41: その他の酪農生産物 | P41: 0121 | Q41: 019 | R41: その他の酪農生産物 | T41: 34 | U41: 111101 | V41: 食肉 | W41: 1111 | Y41: 1522 | Z41: その他の衣服・身の回り品 | AA41: 1 | AB41: 76 | AC41: 251 | AD41: ガラス・ガラス製品 | AE41: 1 | AF41: 140 | AG41: 66 | AH41: 対事業所サービス | AI41: 4 | AJ41: 92
A42: 0121 | B42: 02 | C42: 0121 | D42: 021 | E42: 肉用牛 | M42: 012102 | N42: 0121 | O42: 02 | P42: 0121 | Q42: 021 | R42: 肉用牛 | T42: 35 | U42: 111102 | V42: 酪農品 | W42: 1111 | Y42: 1529 | Z42: その他の繊維既製品 | AA42: 3 | AB42: 77 | AC42: 252 | AD42: セメント・セメント製品 | AE42: 5 | AF42: 141 | AG42: 67 | AH42: 対個人サービス | AI42: 1 | AJ42: 96
A43: 0121 | B43: 03 | C43: 0121 | D43: 031 | E43: 豚 | M43: 012103 | N43: 0121 | O43: 03 | P43: 0121 | Q43: 031 | R43: 豚 | T43: 36 | U43: 111109 | V43: その他の畜産食料品 | W43: 1111 | Y43: 1611 | Z43: 木材 | AA43: 3 | AB43: 80 | AC43: 253 | AD43: 陶磁器 | AE43: 4 | AF43: 146 | AG43: 68 | AH43: 事務用品 | AI43: 4 | AJ43: 97
A44: 0121 | B44: 04 | C44: 0121 | D44: 041 | E44: 鶏卵 | M44: 012104 | N44: 0121 | O44: 04 | P44: 0121 | Q44: 041 | R44: 鶏卵 | T44: 37 | U44: 111201 | V44: 冷凍魚介類 | W44: 1112 | Y44: 1619 | Z44: その他の木製品 | AA44: 1 | AB44: 83 | AC44: 259 | AD44: その他の窯業・土石製品 | AE44: 4 | AF44: 150 | AG44: 69 | AH44: 分類不明 | AI44: 5 | AJ44: 101
A45: 0121 | B45: 05 | C45: 0121 | D45: 051 | E45: 肉鶏 | M45: 012105 | N45: 0121 | O45: 05 | P45: 0121 | Q45: 051 | R45: 肉鶏 | T45: 38 | U45: 111202 | V45: 塩・干・くん製品 | W45: 1112 | Y45: 1621 | Z45: 家具・装備品 | AA45: 4 | AB45: 84 | AC45: 261 | AD45: 銑鉄・粗鋼 | AE45: 3 | AF45: 154 | AG45: 70 | AH45: 内生部門計 | AI45: 1 | AJ45: 106
A46: 0121 | B46: 09 | C46: 0121 | D46: 099 | E46: その他の畜産 | M46: 012109 | N46: 0121 | O46: 09 | P46: 0121 | Q46: 099 | R46: その他の畜産 | T46: 39 | U46: 111203 | V46: 水産びん・かん詰 | W46: 1112 | Y46: 1631 | Z46: パルプ | AA46: 1 | AB46: 88 | AC46: 262 | AD46: 鋼材 | AE46: 2 | AF46: 157 | AI46: 1 | AJ46: 107
A47: 0131 | B47: 01 | C47: 0131 | D47: 011 | E47: 獣医業 | F47: 0131 | G47: 農業サービス | H47: 013 | I47: 農業サービス | M47: 013101 | N47: 0131 | O47: 01 | P47: 0131 | Q47: 011 | R47: 獣医業 | T47: 40 | U47: 111204 | V47: ねり製品 | W47: 1112 | Y47: 1632 | Z47: 紙・板紙 | AA47: 2 | AB47: 89 | AC47: 263 | AD47: 鋳鍛造品（鉄） | AE47: 4 | AF47: 159
A48: 0131 | B48: 02 | C48: 0131 | D48: 021 | E48: 農業サービス（獣医業を除く。） | M48: 013102 | N48: 0131 | O48: 02 | P48: 0131 | Q48: 021 | R48: 農業サービス（獣医業を除く。） | T48: 41 | U48: 111209 | V48: その他の水産食料品 | W48: 1112 | Y48: 1633 | Z48: 加工紙 | AA48: 2 | AB48: 91 | AC48: 269 | AD48: その他の鉄鋼製品 | AE48: 7 | AF48: 163 | AI48: 5 | AJ48: 1
A49: 0151 | B49: 01 | C49: 0151 | D49: 011 | E49: 育林 | F49: 0151 | G49: 育林 | H49: 015 | I49: 林業 | M49: 015101 | N49: 0151 | O49: 01 | P49: 0151 | Q49: 011 | R49: 育林 | T49: 42 | U49: 111301 | V49: 精穀 | W49: 1113 | Y49: 1641 | Z49: 紙製容器 | AA49: 2 | AB49: 93 | AC49: 271 | AD49: 非鉄金属製錬・精製 | AE49: 2 | AF49: 170 | AI49: 2 | AJ49: 6
A50: 0152 | B50: 01 | C50: 0152 | D50: 011 | E50: 素材 | F50: 0152 | G50: 素材 | M50: 015201 | N50: 0152 | O50: 01 | P50: 0152 | Q50: 011 | R50: 素材 | T50: 43 | U50: 111302 | V50: 製粉 | W50: 1113 | Y50: 1649 | Z50: その他の紙加工品 | AA50: 2 | AB50: 95 | AC50: 272 | AD50: 非鉄金属加工製品 | AE50: 5 | AF50: 172 | AI50: 4 | AJ50: 8
A51: 0153 | B51: 01 | C51: 0153 | D51: 011 | E51: 特用林産物（狩猟業を含む。） | F51: 0153 | G51: 特用林産物 | M51: 015301 | N51: 0153 | O51: 01 | P51: 0153 | Q51: 011 | R51: 特用林産物（狩猟業を含む。） | T51: 44 | U51: 111401 | V51: めん類 | W51: 1114 | Y51: 1911 | Z51: 印刷・製版・製本 | AA51: 1 | AB51: 97 | AC51: 281 | AD51: 建設用・建築用金属製品 | AE51: 8 | AF51: 177 | AI51: 2 | AJ51: 12
A52: 0171 | B52: 01 | C52: 0171 | D52: 011 | E52: 海面漁業 | F52: 0171 | G52: 海面漁業 | H52: 017 | I52: 漁業 | M52: 017101 | N52: 0171 | O52: 01 | P52: 0171 | Q52: 011 | R52: 海面漁業 | T52: 45 | U52: 111402 | V52: パン類 | W52: 1114 | Y52: 2011 | Z52: 化学肥料 | AA52: 1 | AB52: 98 | AC52: 289 | AD52: その他の金属製品 | AE52: 14 | AF52: 185 | AI52: 4 | AJ52: 14
A53: 0171 | B53: 02 | C53: 0171 | D53: 021 | E53: 海面養殖業 | M53: 017102 | N53: 0171 | O53: 02 | P53: 0171 | Q53: 021 | R53: 海面養殖業 | T53: 46 | U53: 111403 | V53: 菓子類 | W53: 1114 | Y53: 2021 | Z53: ソーダ工業製品 | AA53: 1 | AB53: 99 | AC53: 291 | AD53: はん用機械 | AE53: 7 | AF53: 199 | AI53: 1 | AJ53: 18
C54: 0172 | D54: 001 | E54: 内水面漁業・養殖業 | F54: 0172 | G54: 内水面漁業 | P54: 0172 | Q54: 001 | R54: 内水面漁業・養殖業 | T54: 47 | U54: 111501 | V54: 農産保存食料品 | W54: 1115 | Y54: 2029 | Z54: その他の無機化学工業製品 | AA54: 4 | AB54: 100 | AC54: 301 | AD54: 生産用機械 | AE54: 4 | AF54: 206 | AI54: 8 | AJ54: 19
A55: 0172 | B55: 01 | E55: 内水面漁業 | M55: 017201 | N55: 0172 | O55: 01 | R55: 内水面漁業 | T55: 48 | U55: 111601 | V55: 砂糖 | W55: 1116 | Y55: 2031 | Z55: 石油化学系基礎製品 | AA55: 2 | AB55: 104 | AC55: 311 | AD55: 業務用機械 | AE55: 3 | AF55: 210 | AI55: 2 | AJ55: 27
A56: 0172 | B56: 02 | E56: 内水面養殖業 | M56: 017202 | N56: 0172 | O56: 02 | R56: 内水面養殖業 | T56: 49 | U56: 111602 | V56: でん粉 | W56: 1116 | Y56: 2041 | Z56: 脂肪族中間物・環式中間物・合成染料・有機顔料 | AA56: 2 | AB56: 106 | AC56: 321 | AD56: 電子デバイス | AE56: 6 | AF56: 213 | AI56: 2 | AJ56: 29
A57: 0611 | B57: 01 | E57: 石炭・原油・天然ガス | F57: 0611 | G57: 石炭・原油・天然ガス | H57: 061 | I57: 石炭・原油・天然ガス | J57: 06 | K57: 鉱業 | M57: 061101 | N57: 0611 | O57: 01 | R57: 石炭・原油・天然ガス | T57: 50 | U57: 111603 | V57: ぶどう糖・水あめ・異性化糖 | W57: 1116 | Y57: 2042 | Z57: 合成ゴム | AA57: 1 | AB57: 108 | AC57: 329 | AD57: その他の電子部品 | AE57: 2 | AF57: 219 | AI57: 1 | AJ57: 31
C58: 0611 | D58: 011 | E58: 石炭 | P58: 0611 | Q58: 011 | R58: 石炭 | T58: 51 | U58: 111604 | V58: 動植物油脂 | W58: 1116 | Y58: 2049 | Z58: その他の有機化学工業製品 | AA58: 3 | AB58: 109 | AC58: 331 | AD58: 産業用電気機器 | AE58: 2 | AF58: 221 | AI58: 4 | AJ58: 32
C59: 0611 | D59: 012 | E59: 原油 | P59: 0611 | Q59: 012 | R59: 原油 | T59: 52 | U59: 111605 | V59: 調味料 | W59: 1116 | Y59: 2051 | Z59: 合成樹脂 | AA59: 4 | AB59: 112 | AC59: 332 | AD59: 民生用電気機器 | AE59: 4 | AF59: 223 | AI59: 4 | AJ59: 36
C60: 0611 | D60: 013 | E60: 天然ガス | P60: 0611 | Q60: 013 | R60: 天然ガス | T60: 53 | U60: 111901 | V60: 冷凍調理食品 | W60: 1119 | Y60: 2061 | Z60: 化学繊維 | AA60: 1 | AB60: 116 | AC60: 333 | AD60: 電子応用装置・電気計測器 | AE60: 7 | AF60: 227 | AI60: 2 | AJ60: 40
A61: 0621 | B61: 01 | C61: 0621 | D61: 011 | E61: 砂利・採石 | F61: 0621 | G61: 砂利・砕石 | H61: 062 | I61: その他の鉱業 | M61: 062101 | N61: 0621 | O61: 01 | P61: 0621 | Q61: 011 | R61: 砂利・採石 | T61: 54 | U61: 111902 | V61: レトルト食品 | W61: 1119 | Y61: 2071 | Z61: 医薬品 | AA61: 1 | AB61: 117 | AC61: 339 | AD61: その他の電気機械 | AE61: 3 | AF61: 234 | AI61: 2 | AJ61: 42
A62: 0621 | B62: 02 | C62: 0621 | D62: 021 | E62: 砕石 | M62: 062102 | N62: 0621 | O62: 02 | P62: 0621 | Q62: 021 | R62: 砕石 | T62: 55 | U62: 111903 | V62: そう菜・すし・弁当 | W62: 1119 | Y62: 2081 | Z62: 油脂加工製品・界面活性剤 | AA62: 1 | AB62: 118 | AC62: 341 | AD62: 通信・映像・音響機器 | AE62: 1 | AF62: 237 | AI62: 1 | AJ62: 44
A63: 0629 | B63: 09 | E63: その他の鉱物 | F63: 0629 | G63: その他の鉱物 | M63: 062909 | N63: 0629 | O63: 09 | R63: その他の鉱物 | T63: 56 | U63: 111909 | V63: その他の食料品 | W63: 1119 | Y63: 2082 | Z63: 化粧品・歯磨 | AA63: 1 | AB63: 119 | AC63: 342 | AD63: 電子計算機・同附属装置 | AE63: 2 | AF63: 238 | AI63: 1 | AJ63: 46
C64: 0629 | D64: 091 | E64: 鉄鉱石 | P64: 0629 | Q64: 091 | R64: 鉄鉱石 | T64: 57 | U64: 112101 | V64: 清酒 | W64: 1121 | Y64: 2083 | Z64: 塗料・印刷インキ | AA64: 2 | AB64: 120 | AC64: 351 | AD64: 乗用車 | AE64: 2 | AF64: 240 | AI64: 2 | AJ64: 47
C65: 0629 | D65: 092 | E65: 非鉄金属鉱物 | P65: 0629 | Q65: 092 | R65: 非鉄金属鉱物 | T65: 58 | U65: 112102 | V65: ビール類 | W65: 1121 | Y65: 2084 | Z65: 農薬 | AA65: 1 | AB65: 122 | AC65: 352 | AD65: その他の自動車 | AE65: 4 | AF65: 242 | AI65: 4 | AJ65: 49
C66: 0629 | D66: 093 | E66: 石灰石 | P66: 0629 | Q66: 093 | R66: 石灰石 | T66: 59 | U66: 112103 | V66: ウイスキー類 | W66: 1121 | Y66: 2089 | Z66: その他の化学最終製品 | AA66: 3 | AB66: 123 | AC66: 353 | AD66: 自動車部品・同附属品 | AE66: 6 | AF66: 246 | AI66: 2 | AJ66: 53
C67: 0629 | D67: 094 | E67: 窯業原料鉱物（石灰石を除く。） | P67: 0629 | Q67: 094 | R67: 窯業原料鉱物（石灰石を除く。） | T67: 60 | U67: 112109 | V67: その他の酒類 | W67: 1121 | Y67: 2111 | Z67: 石油製品 | AA67: 1 | AB67: 126 | AC67: 354 | AD67: 船舶・同修理 | AE67: 9 | AF67: 252 | AI67: 5 | AJ67: 55
C68: 0629 | D68: 099 | E68: 他に分類されない鉱物 | P68: 0629 | Q68: 099 | R68: 他に分類されない鉱物 | T68: 61 | U68: 112901 | V68: 茶・コーヒー | W68: 1129 | Y68: 2121 | Z68: 石炭製品 | AA68: 2 | AB68: 127 | AC68: 359 | AD68: その他の輸送機械・同修理 | AE68: 1 | AF68: 261 | AI68: 2 | AJ68: 60
A69: 1111 | B69: 01 | E69: 食肉 | F69: 1111 | G69: 畜産食料品 | H69: 111 | I69: 食料品 | J69: 11 | K69: 飲食料品 | M69: 111101 | N69: 1111 | O69: 01 | R69: 食肉 | T69: 62 | U69: 112902 | V69: 清涼飲料 | W69: 1129 | Y69: 2211 | Z69: プラスチック製品 | AA69: 1 | AB69: 129 | AC69: 391 | AD69: その他の製造工業製品 | AE69: 4 | AF69: 262 | AI69: 1 | AJ69: 106
C70: 1111 | D70: 011 | E70: 牛肉 | P70: 1111 | Q70: 011 | R70: 牛肉 | T70: 63 | U70: 112903 | V70: 製氷 | W70: 1129 | Y70: 2221 | Z70: タイヤ・チューブ | AA70: 1 | AB70: 130 | AC70: 392 | AD70: 再生資源回収・加工処理 | AE70: 1 | AF70: 266 | AI70: 1 | AJ70: 107
C71: 1111 | D71: 012 | E71: 豚肉 | P71: 1111 | Q71: 012 | R71: 豚肉 | T71: 64 | U71: 113101 | V71: 飼料 | W71: 1131 | Y71: 2229 | Z71: その他のゴム製品 | AA71: 1 | AB71: 131 | AC71: 411 | AD71: 建築 | AE71: 3 | AF71: 267
C72: 1111 | D72: 013 | E72: 鶏肉 | P72: 1111 | Q72: 013 | R72: 鶏肉 | T72: 65 | U72: 113102 | V72: 有機質肥料（別掲を除く。） | W72: 1131 | Y72: 2311 | Z72: 革製履物 | AA72: 1 | AB72: 132 | AC72: 412 | AD72: 建設補修 | AE72: 4 | AF72: 270
C73: 1111 | D73: 014 | E73: その他の食肉 | P73: 1111 | Q73: 014 | R73: その他の食肉 | T73: 66 | U73: 114101 | V73: たばこ | W73: =LEFT(U73,4) -> 1141 | Y73: 2312 | Z73: なめし革・革製品・毛皮（革製履物を除く。） | AA73: =COUNTIF(W$8:W$399,Y73) -> 1 | AB73: 133 | AC73: 413 | AD73: 公共事業
C74: 1111 | D74: 015 | E74: と畜副産物（肉鶏処理副産物を含む。） | P74: 1111 | Q74: 015 | R74: と畜副産物（肉鶏処理副産物を含む。） | T74: 67 | U74: 151101 | V74: 紡績糸 | W74: 1511 | Y74: 2511 | Z74: ガラス・ガラス製品 | AA74: 3 | AB74: =AB73+AA73 -> 134 | AC74: 419 | AD74: その他の土木建設 | AE74: 2 | AF74: 274
A75: 1111 | B75: 02 | E75: 酪農品 | M75: 111102 | N75: 1111 | O75: 02 | R75: 酪農品 | T75: 68 | U75: 151201 | V75: 綿・スフ織物（合繊短繊維織物を含む。） | W75: 1512 | Y75: 2521 | Z75: セメント・セメント製品 | AA75: 3 | AB75: 137 | AC75: 461 | AD75: 電力 | AE75: 3 | AF75: 278
C76: 1111 | D76: 021 | E76: 飲用牛乳 | P76: 1111 | Q76: 021 | R76: 飲用牛乳 | T76: 69 | U76: 151202 | V76: 絹・人絹織物（合繊長繊維織物を含む。） | W76: 1512 | Y76: 2531 | Z76: 陶磁器 | AA76: 1 | AB76: 140 | AC76: 462 | AD76: ガス・熱供給 | AE76: 2 | AF76: 281
C77: 1111 | D77: 022 | E77: 乳製品 | P77: 1111 | Q77: 022 | R77: 乳製品 | T77: 70 | U77: 151209 | V77: その他の織物 | W77: 1512 | Y77: 2591 | Z77: 建設用土石製品 | AA77: 2 | AB77: 141 | AC77: 471 | AD77: 水道 | AE77: 2 | AF77: 283
A78: 1111 | B78: 09 | C78: 1111 | D78: 099 | E78: その他の畜産食料品 | M78: 111109 | N78: 1111 | O78: 09 | P78: 1111 | Q78: 099 | R78: その他の畜産食料品 | T78: 71 | U78: 151301 | V78: ニット生地 | W78: 1513 | Y78: 2599 | Z78: その他の窯業・土石製品 | AA78: 3 | AB78: 143 | AC78: 481 | AD78: 廃棄物処理 | AE78: 3 | AF78: 285
A79: 1112 | B79: 01 | C79: 1112 | D79: 011 | E79: 冷凍魚介類 | F79: 1112 | G79: 水産食料品 | M79: 111201 | N79: 1112 | O79: 01 | P79: 1112 | Q79: 011 | R79: 冷凍魚介類 | T79: 72 | U79: 151401 | V79: 染色整理 | W79: 1514 | Y79: 2611 | Z79: 銑鉄・粗鋼 | AA79: 4 | AB79: 146 | AC79: 511 | AD79: 商業 | AE79: 2 | AF79: 288
A80: 1112 | B80: 02 | C80: 1112 | D80: 021 | E80: 塩・干・くん製品 | M80: 111202 | N80: 1112 | O80: 02 | P80: 1112 | Q80: 021 | R80: 塩・干・くん製品 | T80: 73 | U80: 151909 | V80: その他の繊維工業製品 | W80: 1519 | Y80: 2612 | Z80: 鉄屑 | AA80: 0 | AB80: 150 | AC80: 531 | AD80: 金融・保険 | AE80: 1 | AF80: 290
A81: 1112 | B81: 03 | C81: 1112 | D81: 031 | E81: 水産びん・かん詰 | M81: 111203 | N81: 1112 | O81: 03 | P81: 1112 | Q81: 031 | R81: 水産びん・かん詰 | T81: 74 | U81: 152101 | V81: 織物製衣服 | W81: 1521 | Y81: 2621 | Z81: 熱間圧延鋼材 | AA81: 1 | AB81: 150 | AC81: 551 | AD81: 不動産仲介及び賃貸 | AE81: 1 | AF81: 291
A82: 1112 | B82: 04 | C82: 1112 | D82: 041 | E82: ねり製品 | M82: 111204 | N82: 1112 | O82: 04 | P82: 1112 | Q82: 041 | R82: ねり製品 | T82: 75 | U82: 152102 | V82: ニット製衣服 | W82: 1521 | Y82: 2622 | Z82: 鋼管 | AA82: 1 | AB82: 151 | AC82: 552 | AD82: 住宅賃貸料 | AE82: 2 | AF82: 292
A83: 1112 | B83: 09 | C83: 1112 | D83: 099 | E83: その他の水産食料品 | M83: 111209 | N83: 1112 | O83: 09 | P83: 1112 | Q83: 099 | R83: その他の水産食料品 | T83: 76 | U83: 152209 | V83: その他の衣服・身の回り品 | W83: 1522 | Y83: 2623 | Z83: 冷延・めっき鋼材 | AA83: 2 | AB83: 152 | AC83: 553 | AD83: 住宅賃貸料（帰属家賃） | AE83: 3 | AF83: 294
A84: 1113 | B84: 01 | E84: 精穀 | F84: 1113 | G84: 精穀・製粉 | H84: 111 | I84: （続き）食料品 | J84: 11 | K84: （続き）飲食料品 | M84: 111301 | N84: 1113 | O84: 01 | R84: 精穀 | T84: 77 | U84: 152901 | V84: 寝具 | W84: 1529 | Y84: 2631 | Z84: 鋳鍛造品（鉄） | AA84: 3 | AB84: 154 | AC84: 571 | AD84: 鉄道輸送 | AE84: 2 | AF84: 297
C85: 1113 | D85: 011 | E85: 精米 | P85: 1113 | Q85: 011 | R85: 精米 | T85: 78 | U85: 152902 | V85: じゅうたん・床敷物 | W85: 1529 | Y85: 2699 | Z85: その他の鉄鋼製品 | AA85: 2 | AB85: 157 | AC85: 572 | AD85: 道路輸送（自家輸送を除く。） | AE85: 3 | AF85: 299
C86: 1113 | D86: 019 | E86: その他の精穀 | P86: 1113 | Q86: 019 | R86: その他の精穀 | T86: 79 | U86: 152909 | V86: その他の繊維既製品 | W86: 1529 | Y86: 2711 | Z86: 非鉄金属製錬・精製 | AA86: 4 | AB86: 159 | AC86: 573 | AD86: 自家輸送 | AE86: 1 | AF86: 302
A87: 1113 | B87: 02 | E87: 製粉 | M87: 111302 | N87: 1113 | O87: 02 | R87: 製粉 | T87: 80 | U87: 161101 | V87: 製材 | W87: 1611 | Y87: 2712 | Z87: 非鉄金属屑 | AA87: 0 | AB87: 163 | AC87: 574 | AD87: 水運 | AE87: 1 | AF87: 303
C88: 1113 | D88: 021 | E88: 小麦粉 | P88: 1113 | Q88: 021 | R88: 小麦粉 | T88: 81 | U88: 161102 | V88: 合板・集成材 | W88: 1611 | Y88: 2721 | Z88: 電線・ケーブル | AA88: 2 | AB88: 163 | AC88: 575 | AD88: 航空輸送 | AE88: 1 | AF88: 304
C89: 1113 | D89: 029 | E89: その他の製粉 | P89: 1113 | Q89: 029 | R89: その他の製粉 | T89: 82 | U89: 161103 | V89: 木材チップ | W89: 1611 | Y89: 2729 | Z89: その他の非鉄金属製品 | AA89: 5 | AB89: 165 | AC89: 576 | AD89: 貨物利用運送 | AE89: 9 | AF89: 305
A90: 1114 | B90: 01 | C90: 1114 | D90: 011 | E90: めん類 | F90: 1114 | G90: めん・パン・菓子類 | M90: 111401 | N90: 1114 | O90: 01 | P90: 1114 | Q90: 011 | R90: めん類 | T90: 83 | U90: 161909 | V90: その他の木製品 | W90: 1619 | Y90: 2811 | Z90: 建設用金属製品 | AA90: 1 | AB90: 170 | AC90: 577 | AD90: 倉庫 | AE90: 1 | AF90: 314
A91: 1114 | B91: 02 | C91: 1114 | D91: 021 | E91: パン類 | M91: 111402 | N91: 1114 | O91: 02 | P91: 1114 | Q91: 021 | R91: パン類 | T91: 84 | U91: 162101 | V91: 木製家具 | W91: 1621 | Y91: 2812 | Z91: 建築用金属製品 | AA91: 1 | AB91: 171 | AC91: 578 | AD91: 運輸附帯サービス | AE91: 3 | AF91: 315
A92: 1114 | B92: 03 | C92: 1114 | D92: 031 | E92: 菓子類 | M92: 111403 | N92: 1114 | O92: 03 | P92: 1114 | Q92: 031 | R92: 菓子類 | T92: 85 | U92: 162102 | V92: 金属製家具 | W92: 1621 | Y92: 2891 | Z92: ガス・石油機器・暖房・調理装置 | AA92: 1 | AB92: 172 | AC92: 579 | AD92: 郵便・信書便 | AE92: 3 | AF92: 318
A93: 1115 | B93: 01 | C93: 1115 | D93: 011 | E93: 農産保存食料品 | F93: 1115 | G93: 農産保存食料品 | M93: 111501 | N93: 1115 | O93: 01 | P93: 1115 | Q93: 011 | R93: 農産保存食料品 | T93: 86 | U93: 162103 | V93: 木製建具 | W93: 1621 | Y93: 2899 | Z93: その他の金属製品 | AA93: 4 | AB93: 173 | AC93: 591 | AD93: 通信 | AE93: 1 | AF93: 321
A94: 1116 | B94: 01 | E94: 砂糖 | F94: 1116 | G94: 砂糖・油脂・調味料類 | M94: 111601 | N94: 1116 | O94: 01 | R94: 砂糖 | T94: 87 | U94: 162109 | V94: その他の家具・装備品 | W94: 1621 | Y94: 2911 | Z94: ボイラ・原動機 | AA94: 3 | AB94: 177 | AC94: 592 | AD94: 放送 | AE94: 1 | AF94: 322
C95: 1116 | D95: 011 | E95: 精製糖 | P95: 1116 | Q95: 011 | R95: 精製糖 | T95: 88 | U95: 163101 | V95: パルプ | W95: 1631 | Y95: 2912 | Z95: ポンプ・圧縮機 | AA95: 1 | AB95: 180 | AC95: 593 | AD95: 情報サービス | AE95: 3 | AF95: 323
C96: 1116 | D96: 019 | E96: その他の砂糖・副産物 | P96: 1116 | Q96: 019 | R96: その他の砂糖・副産物 | T96: 89 | U96: 163201 | V96: 洋紙・和紙 | W96: 1632 | Y96: 2913 | Z96: 運搬機械 | AA96: 1 | AB96: 181 | AC96: 594 | AD96: インターネット附随サービス | AE96: 2 | AF96: 326
A97: 1116 | B97: 02 | C97: 1116 | D97: 021 | E97: でん粉 | M97: 111602 | N97: 1116 | O97: 02 | P97: 1116 | Q97: 021 | R97: でん粉 | T97: 90 | U97: 163202 | V97: 板紙 | W97: 1632 | Y97: 2914 | Z97: 冷凍機・温湿調整装置 | AA97: 1 | AB97: 182 | AC97: 595 | AD97: 映像・音声・文字情報制作 | AE97: 8 | AF97: 328
A98: 1116 | B98: 03 | C98: 1116 | D98: 031 | E98: ぶどう糖・水あめ・異性化糖 | M98: 111603 | N98: 1116 | O98: 03 | P98: 1116 | Q98: 031 | R98: ぶどう糖・水あめ・異性化糖 | T98: 91 | U98: 163301 | V98: 段ボール | W98: 1633 | Y98: 2919 | Z98: その他のはん用機械 | AA98: 2 | AB98: 183 | AC98: 611 | AD98: 公務 | AE98: 7 | AF98: 336
A99: 1116 | B99: 04 | E99: 動植物油脂 | M99: 111604 | N99: 1116 | O99: 04 | R99: 動植物油脂 | T99: 92 | U99: 163302 | V99: 塗工紙・建設用加工紙 | W99: 1633 | Y99: 3011 | Z99: 農業用機械 | AA99: 1 | AB99: 185 | AC99: 631 | AD99: 教育 | AE99: 5 | AF99: 343
C100: 1116 | D100: 041 | E100: 植物油脂 | P100: 1116 | Q100: 041 | R100: 植物油脂 | T100: 93 | U100: 164101 | V100: 段ボール箱 | W100: 1641 | Y100: 3012 | Z100: 建設・鉱山機械 | AA100: 1 | AB100: 186 | AC100: 632 | AD100: 研究 | AE100: 2 | AF100: 348
C101: 1116 | D101: 042 | E101: 動物油脂 | P101: 1116 | Q101: 042 | R101: 動物油脂 | T101: 94 | U101: 164109 | V101: その他の紙製容器 | W101: 1641 | Y101: 3013 | Z101: 繊維機械 | AA101: 1 | AB101: 187 | AC101: 641 | AD101: 医療 | AE101: 5 | AF101: 350
C102: 1116 | D102: 043 | E102: 加工油脂 | P102: 1116 | Q102: 043 | R102: 加工油脂 | T102: 95 | U102: 164901 | V102: 紙製衛生材料・用品 | W102: 1649 | Y102: 3014 | Z102: 生活関連産業用機械 | AA102: 1 | AB102: 188 | AC102: 642 | AD102: 保健衛生 | AE102: 2 | AF102: 355
C103: 1116 | D103: 044 | E103: 植物原油かす | P103: 1116 | Q103: 044 | R103: 植物原油かす | T103: 96 | U103: 164909 | V103: その他のパルプ・紙・紙加工品 | W103: 1649 | Y103: 3015 | Z103: 基礎素材産業用機械 | AA103: 2 | AB103: 189 | AC103: 643 | AD103: 社会保険・社会福祉 | AE103: 2 | AF103: 357
A104: 1116 | B104: 05 | C104: 1116 | D104: 051 | E104: 調味料 | M104: 111605 | N104: 1116 | O104: 05 | P104: 1116 | Q104: 051 | R104: 調味料 | T104: 97 | U104: 191101 | V104: 印刷・製版・製本 | W104: 1911 | Y104: 3016 | Z104: 金属加工機械 | AA104: 3 | AB104: 191 | AC104: 644 | AD104: 介護 | AE104: 2 | AF104: 359
A105: 1119 | B105: 01 | C105: 1119 | D105: 011 | E105: 冷凍調理食品 | F105: 1119 | G105: その他の食料品 | M105: 111901 | N105: 1119 | O105: 01 | P105: 1119 | Q105: 011 | R105: 冷凍調理食品 | T105: 98 | U105: 201101 | V105: 化学肥料 | W105: 2011 | Y105: 3017 | Z105: 半導体製造装置 | AA105: 1 | AB105: 194 | AC105: 659 | AD105: 他に分類されない会員制団体 | AE105: 1 | AF105: 361
A106: 1119 | B106: 02 | C106: 1119 | D106: 021 | E106: レトルト食品 | M106: 111902 | N106: 1119 | O106: 02 | P106: 1119 | Q106: 021 | R106: レトルト食品 | T106: 99 | U106: 202101 | V106: ソーダ工業製品 | W106: 2021 | Y106: 3019 | Z106: その他の生産用機械 | AA106: 4 | AB106: 195 | AC106: 661 | AD106: 物品賃貸サービス | AE106: 2 | AF106: 362
A107: 1119 | B107: 03 | C107: 1119 | D107: 031 | E107: そう菜・すし・弁当 | M107: 111903 | N107: 1119 | O107: 03 | P107: 1119 | Q107: 031 | R107: そう菜・すし・弁当 | T107: 100 | U107: 202901 | V107: 無機顔料 | W107: 2029 | Y107: 3111 | Z107: 事務用機械 | AA107: 2 | AB107: 199 | AC107: 662 | AD107: 広告 | AE107: 6 | AF107: 364
A108: 1119 | B108: 09 | C108: 1119 | D108: 099 | E108: その他の食料品 | M108: 111909 | N108: 1119 | O108: 09 | P108: 1119 | Q108: 099 | R108: その他の食料品 | T108: 101 | U108: 202902 | V108: 圧縮ガス・液化ガス | W108: 2029 | Y108: 3112 | Z108: サービス用・娯楽用機器 | AA108: 1 | AB108: 201 | AC108: 663 | AD108: 自動車整備・機械修理 | AE108: 1 | AF108: 370
A109: 1121 | B109: 01 | C109: 1121 | D109: 011 | E109: 清酒 | F109: 1121 | G109: 酒類 | H109: 112 | I109: 飲料 | M109: 112101 | N109: 1121 | O109: 01 | P109: 1121 | Q109: 011 | R109: 清酒 | T109: 102 | U109: 202903 | V109: 塩 | W109: 2029 | Y109: 3113 | Z109: 計測機器 | AA109: 1 | AB109: 202 | AC109: 669 | AD109: その他の対事業所サービス | AE109: 2 | AF109: 371
A110: 1121 | B110: 02 | C110: 1121 | D110: 021 | E110: ビール類 | M110: 112102 | N110: 1121 | O110: 02 | P110: 1121 | Q110: 021 | R110: ビール類 | T110: 103 | U110: 202909 | V110: その他の無機化学工業製品 | W110: 2029 | Y110: 3114 | Z110: 医療用機械器具 | AA110: 1 | AB110: 203 | AC110: 671 | AD110: 宿泊業 | AE110: 5 | AF110: 373
A111: 1121 | B111: 03 | C111: 1121 | D111: 031 | E111: ウイスキー類 | M111: 112103 | N111: 1121 | O111: 03 | P111: 1121 | Q111: 031 | R111: ウイスキー類 | T111: 104 | U111: 203101 | V111: 石油化学基礎製品 | W111: 2031 | Y111: 3115 | Z111: 光学機械・レンズ | AA111: 1 | AB111: 204 | AC111: 672 | AD111: 飲食サービス | AE111: 6 | AF111: 378
A112: 1121 | B112: 09 | C112: 1121 | D112: 099 | E112: その他の酒類 | M112: 112109 | N112: 1121 | O112: 09 | P112: 1121 | Q112: 099 | R112: その他の酒類 | T112: 105 | U112: 203102 | V112: 石油化学系芳香族製品 | W112: 2031 | Y112: 3116 | Z112: 武器 | AA112: 1 | AB112: 205 | AC112: 673 | AD112: 洗濯・理容・美容・浴場業 | AE112: 5 | AF112: 384
A113: 1129 | B113: 01 | C113: 1129 | D113: 011 | E113: 茶・コーヒー | F113: 1129 | G113: その他の飲料 | M113: 112901 | N113: 1129 | O113: 01 | P113: 1129 | Q113: 011 | R113: 茶・コーヒー | T113: 106 | U113: 204101 | V113: 脂肪族中間物 | W113: 2041 | Y113: 3211 | Z113: 電子デバイス | AA113: 4 | AB113: 206 | AC113: 674 | AD113: 娯楽サービス | AE113: 1 | AF113: 389
A114: 1129 | B114: 02 | C114: 1129 | D114: 021 | E114: 清涼飲料 | M114: 112902 | N114: 1129 | O114: 02 | P114: 1129 | Q114: 021 | R114: 清涼飲料 | T114: 107 | U114: 204102 | V114: 環式中間物・合成染料・有機顔料 | W114: 2041 | Y114: 3299 | Z114: その他の電子部品 | AA114: 3 | AB114: 210 | AC114: 679 | AD114: その他の対個人サービス | AE114: 1 | AF114: 390
A115: 1129 | B115: 03 | C115: 1129 | D115: 031 | E115: 製氷 | M115: 112903 | N115: 1129 | O115: 03 | P115: 1129 | Q115: 031 | R115: 製氷 | T115: 108 | U115: 204201 | V115: 合成ゴム | W115: 2042 | Y115: 3311 | Z115: 産業用電気機器 | AA115: 6 | AB115: 213 | AC115: 681 | AD115: 事務用品
A116: 1131 | B116: 01 | C116: 1131 | D116: 011 | E116: 飼料 | F116: 1131 | G116: 飼料・有機質肥料（別掲を除く。） | H116: 113 | I116: 飼料・有機質肥料（別掲を除く。） | M116: 113101 | N116: 1131 | O116: 01 | P116: 1131 | Q116: 011 | R116: 飼料 | T116: 109 | U116: 204901 | V116: メタン誘導品 | W116: 2049 | Y116: 3321 | Z116: 民生用電気機器 | AA116: 2 | AB116: 219 | AC116: 691 | AD116: 分類不明
A117: 1131 | B117: 02 | C117: 1131 | D117: 021 | E117: 有機質肥料（別掲を除く。） | M117: 113102 | N117: 1131 | O117: 02 | P117: 1131 | Q117: 021 | R117: 有機質肥料（別掲を除く。） | T117: 110 | U117: 204902 | V117: 可塑剤 | W117: 2049 | Y117: 3331 | Z117: 電子応用装置 | AA117: 1 | AB117: 221 | AC117: 700 | AD117: 内生部門計
A118: 1141 | B118: 01 | C118: 1141 | D118: 011 | E118: たばこ | F118: 1141 | G118: たばこ | H118: 114 | I118: たばこ | M118: 114101 | N118: 1141 | O118: 01 | P118: 1141 | Q118: 011 | R118: たばこ | T118: 111 | U118: 204909 | V118: その他の有機化学工業製品 | W118: 2049 | Y118: 3332 | Z118: 電気計測器 | AA118: 1 | AB118: 222
A119: 1511 | B119: 01 | C119: 1511 | D119: 011 | E119: 紡績糸 | F119: 1511 | G119: 紡績糸 | H119: 151 | I119: 繊維工業製品 | J119: 15 | K119: 繊維製品 | M119: 151101 | N119: 1511 | O119: 01 | P119: 1511 | Q119: 011 | R119: 紡績糸 | T119: 112 | U119: 205101 | V119: 熱硬化性樹脂 | W119: 2051 | Y119: 3399 | Z119: その他の電気機械 | AA119: 4 | AB119: 223
A120: 1512 | B120: 01 | C120: 1512 | D120: 011 | E120: 綿・スフ織物（合繊短繊維織物を含む。） | F120: 1512 | G120: 織物 | M120: 151201 | N120: 1512 | O120: 01 | P120: 1512 | Q120: 011 | R120: 綿・スフ織物（合繊短繊維織物を含む。） | T120: 113 | U120: 205102 | V120: 熱可塑性樹脂 | W120: 2051 | Y120: 3411 | Z120: 通信機器 | AA120: 5 | AB120: 227
A121: 1512 | B121: 02 | C121: 1512 | D121: 021 | E121: 絹・人絹織物（合繊長繊維織物を含む。） | M121: 151202 | N121: 1512 | O121: 02 | P121: 1512 | Q121: 021 | R121: 絹・人絹織物（合繊長繊維織物を含む。） | T121: 114 | U121: 205103 | V121: 高機能性樹脂 | W121: 2051 | Y121: 3412 | Z121: 映像・音響機器 | AA121: 2 | AB121: 232
A122: 1512 | B122: 09 | C122: 1512 | D122: 099 | E122: その他の織物 | M122: 151209 | N122: 1512 | O122: 09 | P122: 1512 | Q122: 099 | R122: その他の織物 | T122: 115 | U122: 205109 | V122: その他の合成樹脂 | W122: 2051 | Y122: 3421 | Z122: 電子計算機・同附属装置 | AA122: 3 | AB122: 234
A123: 1513 | B123: 01 | C123: 1513 | D123: 011 | E123: ニット生地 | F123: 1513 | G123: ニット生地 | M123: 151301 | N123: 1513 | O123: 01 | P123: 1513 | Q123: 011 | R123: ニット生地 | T123: 116 | U123: 206101 | V123: 化学繊維 | W123: 2061 | Y123: 3511 | Z123: 乗用車 | AA123: 1 | AB123: 237
A124: 1514 | B124: 01 | C124: 1514 | D124: 011 | E124: 染色整理 | F124: 1514 | G124: 染色整理 | M124: 151401 | N124: 1514 | O124: 01 | P124: 1514 | Q124: 011 | R124: 染色整理 | T124: 117 | U124: 207101 | V124: 医薬品 | W124: 2071 | Y124: 3521 | Z124: トラック・バス・その他の自動車 | AA124: 1 | AB124: 238
A125: 1519 | B125: 09 | E125: その他の繊維工業製品 | F125: 1519 | G125: その他の繊維工業製品 | M125: 151909 | N125: 1519 | O125: 09 | R125: その他の繊維工業製品 | T125: 118 | U125: 208101 | V125: 油脂加工製品・界面活性剤 | W125: 2081 | Y125: 3522 | Z125: 二輪自動車 | AA125: 1 | AB125: 239
C126: 1519 | D126: 091 | E126: 綱・網 | P126: 1519 | Q126: 091 | R126: 綱・網 | T126: 119 | U126: 208201 | V126: 化粧品・歯磨 | W126: 2082 | Y126: 3531 | Z126: 自動車部品・同附属品 | AA126: 2 | AB126: 240
C127: 1519 | D127: 099 | E127: 他に分類されない繊維工業製品 | P127: 1519 | Q127: 099 | R127: 他に分類されない繊維工業製品 | T127: 120 | U127: 208301 | V127: 塗料 | W127: 2083 | Y127: 3541 | Z127: 船舶・同修理 | AA127: 4 | AB127: 242
A128: 1521 | B128: 01 | C128: 1521 | D128: 011 | E128: 織物製衣服 | F128: 1521 | G128: 織物製・ニット製衣服 | H128: 152 | I128: 衣服・その他の繊維既製品 | M128: 152101 | N128: 1521 | O128: 01 | P128: 1521 | Q128: 011 | R128: 織物製衣服 | T128: 121 | U128: 208302 | V128: 印刷インキ | W128: 2083 | Y128: 3591 | Z128: 鉄道車両・同修理 | AA128: 2 | AB128: 246
A129: 1521 | B129: 02 | C129: 1521 | D129: 021 | E129: ニット製衣服 | M129: 152102 | N129: 1521 | O129: 02 | P129: 1521 | Q129: 021 | R129: ニット製衣服 | T129: 122 | U129: 208401 | V129: 農薬 | W129: 2084 | Y129: 3592 | Z129: 航空機・同修理 | AA129: 2 | AB129: 248
A130: 1522 | B130: 09 | C130: 1522 | D130: 099 | E130: その他の衣服・身の回り品 | F130: 1522 | G130: その他の衣服・身の回り品 | M130: 152209 | N130: 1522 | O130: 09 | P130: 1522 | Q130: 099 | R130: その他の衣服・身の回り品 | T130: 123 | U130: 208901 | V130: ゼラチン・接着剤 | W130: 2089 | Y130: 3599 | Z130: その他の輸送機械 | AA130: 2 | AB130: 250
A131: 1529 | B131: 01 | C131: 1529 | D131: 011 | E131: 寝具 | F131: 1529 | G131: その他の繊維既製品 | M131: 152901 | N131: 1529 | O131: 01 | P131: 1529 | Q131: 011 | R131: 寝具 | T131: 124 | U131: 208902 | V131: 写真感光材料 | W131: 2089 | Y131: 3911 | Z131: がん具・運動用品 | AA131: 2 | AB131: 252
A132: 1529 | B132: 02 | C132: 1529 | D132: 021 | E132: じゅうたん・床敷物 | M132: 152902 | N132: 1529 | O132: 02 | P132: 1529 | Q132: 021 | R132: じゅうたん・床敷物 | T132: 125 | U132: 208909 | V132: その他の化学最終製品 | W132: 2089 | Y132: 3919 | Z132: その他の製造工業製品 | AA132: 7 | AB132: 254
A133: 1529 | B133: 09 | E133: その他の繊維既製品 | M133: 152909 | N133: 1529 | O133: 09 | R133: その他の繊維既製品 | T133: 126 | U133: 211101 | V133: 石油製品 | W133: 2111 | Y133: 3921 | Z133: 再生資源回収・加工処理 | AA133: 1 | AB133: 261
C134: 1529 | D134: 091 | E134: 繊維製衛生材料 | P134: 1529 | Q134: 091 | R134: 繊維製衛生材料 | T134: 127 | U134: 212101 | V134: 石炭製品 | W134: 2121 | Y134: 4111 | Z134: 住宅建築 | AA134: 2 | AB134: 262
C135: 1529 | D135: 099 | E135: 他に分類されない繊維既製品 | P135: 1529 | Q135: 099 | R135: 他に分類されない繊維既製品 | T135: 128 | U135: 212102 | V135: 舗装材料 | W135: 2121 | Y135: 4112 | Z135: 非住宅建築 | AA135: 2 | AB135: 264
A136: 1611 | B136: 01 | C136: 1611 | D136: 011 | E136: 製材 | F136: 1611 | G136: 木材 | H136: 161 | I136: 木材・木製品 | J136: 16 | K136: パルプ・紙・木製品 | M136: 161101 | N136: 1611 | O136: 01 | P136: 1611 | Q136: 011 | R136: 製材 | T136: 129 | U136: 221101 | V136: プラスチック製品 | W136: 2211 | Y136: 4121 | Z136: 建設補修 | AA136: 1 | AB136: 266
A137: 1611 | B137: 02 | C137: 1611 | D137: 021 | E137: 合板・集成材 | M137: 161102 | N137: 1611 | O137: 02 | P137: 1611 | Q137: 021 | R137: 合板・集成材 | T137: 130 | U137: 222101 | V137: タイヤ・チューブ | W137: =LEFT(U137,4) -> 2221 | Y137: 4131 | Z137: 公共事業 | AA137: =COUNTIF(W$8:W$399,Y137) -> 3 | AB137: 267
A138: 1611 | B138: 03 | C138: 1611 | D138: 031 | E138: 木材チップ | M138: 161103 | N138: 1611 | O138: 03 | P138: 1611 | Q138: 031 | R138: 木材チップ | T138: 131 | U138: 222909 | V138: その他のゴム製品 | W138: 2229 | Y138: 4191 | Z138: その他の土木建設 | AA138: 4 | AB138: =AB137+AA137 -> 270
A139: 1619 | B139: 09 | E139: その他の木製品 | F139: 1619 | G139: その他の木製品 | M139: 161909 | N139: 1619 | O139: 09 | R139: その他の木製品 | T139: 132 | U139: 231101 | V139: 革製履物 | W139: 2311 | Y139: 4611 | Z139: 電力 | AA139: 3 | AB139: 274
C140: 1619 | D140: 091 | E140: 建設用木製品 | P140: 1619 | Q140: 091 | R140: 建設用木製品 | T140: 133 | U140: 231201 | V140: なめし革・革製品・毛皮（革製履物を除く。） | W140: 2312 | Y140: 4621 | Z140: 都市ガス | AA140: 1 | AB140: 277
C141: 1619 | D141: 099 | E141: 他に分類されない木製品 | P141: 1619 | Q141: 099 | R141: 他に分類されない木製品 | T141: 134 | U141: 251101 | V141: 板ガラス・安全ガラス | W141: 2511 | Y141: 4622 | Z141: 熱供給業 | AA141: 1 | AB141: 278
A142: 1621 | B142: 01 | C142: 1621 | D142: 011 | E142: 木製家具 | F142: 1621 | G142: 家具・装備品 | H142: 162 | I142: 家具・装備品 | M142: 162101 | N142: 1621 | O142: 01 | P142: 1621 | Q142: 011 | R142: 木製家具 | T142: 135 | U142: 251102 | V142: ガラス繊維・同製品 | W142: 2511 | Y142: 4711 | Z142: 水道 | AA142: 3 | AB142: 279
A143: 1621 | B143: 02 | C143: 1621 | D143: 021 | E143: 金属製家具 | M143: 162102 | N143: 1621 | O143: 02 | P143: 1621 | Q143: 021 | R143: 金属製家具 | T143: 136 | U143: 251109 | V143: その他のガラス製品 | W143: 2511 | Y143: 4811 | Z143: 廃棄物処理 | AA143: 2 | AB143: 282
A144: 1621 | B144: 03 | C144: 1621 | D144: 031 | E144: 木製建具 | M144: 162103 | N144: 1621 | O144: 03 | P144: 1621 | Q144: 031 | R144: 木製建具 | T144: 137 | U144: 252101 | V144: セメント | W144: 2521 | Y144: 5111 | Z144: 卸売 | AA144: 1 | AB144: 284
A145: 1621 | B145: 09 | C145: 1621 | D145: 099 | E145: その他の家具・装備品 | M145: 162109 | N145: 1621 | O145: 09 | P145: 1621 | Q145: 099 | R145: その他の家具・装備品 | T145: 138 | U145: 252102 | V145: 生コンクリート | W145: 2521 | Y145: 5112 | Z145: 小売 | AA145: 1 | AB145: 285
A146: 1631 | B146: 01 | C146: 1631 | D146: 011 | E146: パルプ | F146: 1631 | G146: パルプ | H146: 163 | I146: パルプ・紙・板紙・加工紙 | M146: 163101 | N146: 1631 | O146: 01 | P146: 1631 | Q146: 011 | R146: パルプ | T146: 139 | U146: 252103 | V146: セメント製品 | W146: 2521 | Y146: 5311 | Z146: 金融 | AA146: 1 | AB146: 286
C147: 1631 | D147: 021P | E147: 古紙 | P147: 1631 | Q147: 021P | R147: 古紙 | T147: 140 | U147: 253101 | V147: 陶磁器 | W147: 2531 | Y147: 5312 | Z147: 保険 | AA147: 2 | AB147: 287
A148: 1632 | B148: 01 | C148: 1632 | D148: 011 | E148: 洋紙・和紙 | F148: 1632 | G148: 紙・板紙 | M148: 163201 | N148: 1632 | O148: 01 | P148: 1632 | Q148: 011 | R148: 洋紙・和紙 | T148: 141 | U148: 259101 | V148: 耐火物 | W148: 2591 | Y148: 5511 | Z148: 不動産仲介及び賃貸 | AA148: 2 | AB148: 289
A149: 1632 | B149: 02 | C149: 1632 | D149: 021 | E149: 板紙 | M149: 163202 | N149: 1632 | O149: 02 | P149: 1632 | Q149: 021 | R149: 板紙 | T149: 142 | U149: 259109 | V149: その他の建設用土石製品 | W149: 2591 | Y149: 5521 | Z149: 住宅賃貸料 | AA149: 1 | AB149: 291
A150: 1633 | B150: 01 | C150: 1633 | D150: 011 | E150: 段ボール | F150: 1633 | G150: 加工紙 | M150: 163301 | N150: 1633 | O150: 01 | P150: 1633 | Q150: 011 | R150: 段ボール | T150: 143 | U150: 259901 | V150: 炭素・黒鉛製品 | W150: 2599 | Y150: 5531 | Z150: 住宅賃貸料（帰属家賃） | AA150: 1 | AB150: 292
A151: 1633 | B151: 02 | C151: 1633 | D151: 021 | E151: 塗工紙・建設用加工紙 | M151: 163302 | N151: 1633 | O151: 02 | P151: 1633 | Q151: 021 | R151: 塗工紙・建設用加工紙 | T151: 144 | U151: 259902 | V151: 研磨材 | W151: 2599 | Y151: 5711 | Z151: 鉄道旅客輸送 | AA151: 1 | AB151: 293
A152: 1641 | B152: 01 | C152: 1641 | D152: 011 | E152: 段ボール箱 | F152: 1641 | G152: 紙製容器 | H152: 164 | I152: 紙加工品 | M152: 164101 | N152: 1641 | O152: 01 | P152: 1641 | Q152: 011 | R152: 段ボール箱 | T152: 145 | U152: 259909 | V152: その他の窯業・土石製品 | W152: 2599 | Y152: 5712 | Z152: 鉄道貨物輸送 | AA152: 1 | AB152: 294
A153: 1641 | B153: 09 | C153: 1641 | D153: 099 | E153: その他の紙製容器 | M153: 164109 | N153: 1641 | O153: 09 | P153: 1641 | Q153: 099 | R153: その他の紙製容器 | T153: 146 | U153: 261101 | V153: 銑鉄 | W153: 2611 | Y153: 5721 | Z153: 道路旅客輸送 | AA153: 2 | AB153: 295
A154: 1649 | B154: 01 | C154: 1649 | D154: 011 | E154: 紙製衛生材料・用品 | F154: 1649 | G154: その他の紙加工品 | M154: 164901 | N154: 1649 | O154: 01 | P154: 1649 | Q154: 011 | R154: 紙製衛生材料・用品 | T154: 147 | U154: 261102 | V154: フェロアロイ | W154: 2611 | Y154: 5722 | Z154: 道路貨物輸送（自家輸送を除く。） | AA154: 1 | AB154: 297
A155: 1649 | B155: 09 | C155: 1649 | D155: 099 | E155: その他のパルプ・紙・紙加工品 | M155: 164909 | N155: 1649 | O155: 09 | P155: 1649 | Q155: 099 | R155: その他のパルプ・紙・紙加工品 | T155: 148 | U155: 261103 | V155: 粗鋼（転炉） | W155: 2611 | Y155: 5731 | Z155: 自家輸送（旅客自動車） | AA155: 1 | AB155: 298
A156: 1911 | B156: 01 | C156: 1911 | D156: 011 | E156: 印刷・製版・製本 | F156: 1911 | G156: 印刷・製版・製本 | H156: 191 | I156: 印刷・製版・製本 | J156: 39 | K156: その他の製造工業製品（１／３） | M156: 191101 | N156: 1911 | O156: 01 | P156: 1911 | Q156: 011 | R156: 印刷・製版・製本 | T156: 149 | U156: 261104 | V156: 粗鋼（電気炉） | W156: 2611 | Y156: 5732 | Z156: 自家輸送（貨物自動車） | AA156: 1 | AB156: 299
A157: 2011 | B157: 01 | C157: 2011 | D157: 011 | E157: 化学肥料 | F157: 2011 | G157: 化学肥料 | H157: 201 | I157: 化学肥料 | J157: 20 | K157: 化学製品 | M157: 201101 | N157: 2011 | O157: 01 | P157: 2011 | Q157: 011 | R157: 化学肥料 | T157: 150 | U157: 262101 | V157: 熱間圧延鋼材 | W157: 2621 | Y157: 5741 | Z157: 外洋輸送 | AA157: 1 | AB157: 300
A158: 2021 | B158: 01 | E158: ソーダ工業製品 | F158: 2021 | G158: ソーダ工業製品 | H158: 202 | I158: 無機化学工業製品 | M158: 202101 | N158: 2021 | O158: 01 | R158: ソーダ工業製品 | T158: 151 | U158: 262201 | V158: 鋼管 | W158: 2622 | Y158: 5742 | Z158: 沿海・内水面輸送 | AA158: 1 | AB158: 301
C159: 2021 | D159: 011 | E159: ソーダ灰 | P159: 2021 | Q159: 011 | R159: ソーダ灰 | T159: 152 | U159: 262301 | V159: 冷間仕上鋼材 | W159: 2623 | Y159: 5743 | Z159: 港湾運送 | AA159: 1 | AB159: 302
C160: 2021 | D160: 012 | E160: か性ソーダ | P160: 2021 | Q160: 012 | R160: か性ソーダ | T160: 153 | U160: 262302 | V160: めっき鋼材 | W160: 2623 | Y160: 5751 | Z160: 航空輸送 | AA160: 1 | AB160: 303
C161: 2021 | D161: 013 | E161: 液体塩素 | P161: 2021 | Q161: 013 | R161: 液体塩素 | T161: 154 | U161: 263101 | V161: 鋳鍛鋼 | W161: 2631 | Y161: 5761 | Z161: 貨物利用運送 | AA161: 1 | AB161: 304
C162: 2021 | D162: 019 | E162: その他のソーダ工業製品 | P162: 2021 | Q162: 019 | R162: その他のソーダ工業製品 | T162: 155 | U162: 263102 | V162: 鋳鉄管 | W162: 2631 | Y162: 5771 | Z162: 倉庫 | AA162: 1 | AB162: 305
A163: 2029 | B163: 01 | E163: 無機顔料 | F163: 2029 | G163: その他の無機化学工業製品 | H163: 202 | I163: （続き）無機化学工業製品 | J163: 20 | K163: （続き）化学製品 | M163: 202901 | N163: 2029 | O163: 01 | R163: 無機顔料 | T163: 156 | U163: 263103 | V163: 鋳鉄品・鍛工品（鉄） | W163: 2631 | Y163: 5781 | Z163: こん包 | AA163: 1 | AB163: 306
C164: 2029 | D164: 011 | E164: 酸化チタン | P164: 2029 | Q164: 011 | R164: 酸化チタン | T164: 157 | U164: 269901 | V164: 鉄鋼シャースリット業 | W164: 2699 | Y164: 5789 | Z164: その他の運輸附帯サービス | AA164: 8 | AB164: 307
C165: 2029 | D165: 012 | E165: カーボンブラック | P165: 2029 | Q165: 012 | R165: カーボンブラック | T165: 158 | U165: 269909 | V165: その他の鉄鋼製品 | W165: 2699 | Y165: 5791 | Z165: 郵便・信書便 | AA165: 1 | AB165: 315
C166: 2029 | D166: 019 | E166: その他の無機顔料 | P166: 2029 | Q166: 019 | R166: その他の無機顔料 | T166: 159 | U166: 271101 | V166: 銅 | W166: 2711 | Y166: 5911 | Z166: 通信 | AA166: 3 | AB166: 316
A167: 2029 | B167: 02 | C167: 2029 | D167: 021 | E167: 圧縮ガス・液化ガス | M167: 202902 | N167: 2029 | O167: 02 | P167: 2029 | Q167: 021 | R167: 圧縮ガス・液化ガス | T167: 160 | U167: 271102 | V167: 鉛・亜鉛（再生を含む。） | W167: 2711 | Y167: 5921 | Z167: 放送 | AA167: 3 | AB167: 319
A168: 2029 | B168: 03 | E168: 塩 | M168: 202903 | N168: 2029 | O168: 03 | R168: 塩 | T168: 161 | U168: 271103 | V168: アルミニウム（再生を含む。） | W168: 2711 | Y168: 5931 | Z168: 情報サービス | AA168: 1 | AB168: 322
C169: 2029 | D169: 031 | E169: 原塩 | P169: 2029 | Q169: 031 | R169: 原塩 | T169: 162 | U169: 271109 | V169: その他の非鉄金属地金 | W169: 2711 | Y169: 5941 | Z169: インターネット附随サービス | AA169: 1 | AB169: 323
C170: 2029 | D170: 032 | E170: 塩 | P170: 2029 | Q170: 032 | R170: 塩 | T170: 163 | U170: 272101 | V170: 電線・ケーブル | W170: 2721 | Y170: 5951 | Z170: 映像・音声・文字情報制作 | AA170: 3 | AB170: 324
A171: 2029 | B171: 09 | C171: 2029 | D171: 099 | E171: その他の無機化学工業製品 | M171: 202909 | N171: 2029 | O171: 09 | P171: 2029 | Q171: 099 | R171: その他の無機化学工業製品 | T171: 164 | U171: 272102 | V171: 光ファイバケーブル | W171: 2721 | Y171: 6111 | Z171: 公務（中央） | AA171: 1 | AB171: 327
A172: 2031 | B172: 01 | E172: 石油化学基礎製品 | F172: 2031 | G172: 石油化学系基礎製品 | H172: 203 | I172: 石油化学系基礎製品 | M172: 203101 | N172: 2031 | O172: 01 | R172: 石油化学基礎製品 | T172: 165 | U172: 272901 | V172: 伸銅品 | W172: 2729 | Y172: 6112 | Z172: 公務（地方） | AA172: 1 | AB172: 328
C173: 2031 | D173: 011 | E173: エチレン | P173: 2031 | Q173: 011 | R173: エチレン | T173: 166 | U173: 272902 | V173: アルミ圧延製品 | W173: 2729 | Y173: 6311 | Z173: 学校教育 | AA173: 4 | AB173: 329
C174: 2031 | D174: 012 | E174: プロピレン | P174: 2031 | Q174: 012 | R174: プロピレン | T174: 167 | U174: 272903 | V174: 非鉄金属素形材 | W174: 2729 | Y174: 6312 | Z174: 社会教育・その他の教育 | AA174: 4 | AB174: 333
C175: 2031 | D175: 019 | E175: その他の石油化学基礎製品 | P175: 2031 | Q175: 019 | R175: その他の石油化学基礎製品 | T175: 168 | U175: 272904 | V175: 核燃料 | W175: 2729 | Y175: 6321 | Z175: 学術研究機関 | AA175: 6 | AB175: 337
A176: 2031 | B176: 02 | E176: 石油化学系芳香族製品 | M176: 203102 | N176: 2031 | O176: 02 | R176: 石油化学系芳香族製品 | T176: 169 | U176: 272909 | V176: その他の非鉄金属製品 | W176: 2729 | Y176: 6322 | Z176: 企業内研究開発 | AA176: 1 | AB176: 343
C177: 2031 | D177: 021 | E177: 純ベンゼン | P177: 2031 | Q177: 021 | R177: 純ベンゼン | T177: 170 | U177: 281101 | V177: 建設用金属製品 | W177: 2811 | Y177: 6411 | Z177: 医療 | AA177: 5 | AB177: 344
C178: 2031 | D178: 022 | E178: 純トルエン | P178: 2031 | Q178: 022 | R178: 純トルエン | T178: 171 | U178: 281201 | V178: 建築用金属製品 | W178: 2812 | Y178: 6421 | Z178: 保健衛生 | AA178: 2 | AB178: 349
C179: 2031 | D179: 023 | E179: キシレン | P179: 2031 | Q179: 023 | R179: キシレン | T179: 172 | U179: 289101 | V179: ガス・石油機器・暖房・調理装置 | W179: 2891 | Y179: 6431 | Z179: 社会保険・社会福祉 | AA179: 5 | AB179: 351
C180: 2031 | D180: 029 | E180: その他の石油化学系芳香族製品 | P180: 2031 | Q180: 029 | R180: その他の石油化学系芳香族製品 | T180: 173 | U180: 289901 | V180: ボルト・ナット・リベット・スプリング | W180: 2899 | Y180: 6441 | Z180: 介護 | AA180: 2 | AB180: 356
A181: 2041 | B181: 01 | E181: 脂肪族中間物 | F181: 2041 | G181: 脂肪族中間物・環式中間物・合成染料・有機顔料 | H181: 204 | I181: 有機化学工業製品（石油化学系基礎製品・合成樹脂を除く。） | M181: 204101 | N181: 2041 | O181: 01 | R181: 脂肪族中間物 | T181: 174 | U181: 289902 | V181: 金属製容器・製缶板金製品 | W181: 2899 | Y181: 6599 | Z181: 他に分類されない会員制団体 | AA181: 2 | AB181: 358
C182: 2041 | D182: 011 | E182: 合成オクタノール・ブタノール | P182: 2041 | Q182: 011 | R182: 合成オクタノール・ブタノール | T182: 175 | U182: 289903 | V182: 配管工事附属品・粉末や金製品・道具類 | W182: 2899 | Y182: 6611 | Z182: 物品賃貸業（貸自動車業を除く。） | AA182: 1 | AB182: 360
C183: 2041 | D183: 012 | E183: 酢酸 | P183: 2041 | Q183: 012 | R183: 酢酸 | T183: 176 | U183: 289909 | V183: その他の金属製品 | W183: 2899 | Y183: 6612 | Z183: 貸自動車業 | AA183: 1 | AB183: 361
C184: 2041 | D184: 013 | E184: 二塩化エチレン | P184: 2041 | Q184: 013 | R184: 二塩化エチレン | T184: 177 | U184: 291101 | V184: ボイラ | W184: 2911 | Y184: 6621 | Z184: 広告 | AA184: 1 | AB184: 362
C185: 2041 | D185: 014 | E185: アクリロニトリル | P185: 2041 | Q185: 014 | R185: アクリロニトリル | T185: 178 | U185: 291102 | V185: タービン | W185: 2911 | Y185: 6631 | Z185: 自動車整備 | AA185: 1 | AB185: 363
C186: 2041 | D186: 015 | E186: エチレングリコール | P186: 2041 | Q186: 015 | R186: エチレングリコール | T186: 179 | U186: 291103 | V186: 原動機 | W186: 2911 | Y186: 6632 | Z186: 機械修理 | AA186: 1 | AB186: 364
C187: 2041 | D187: 016 | E187: 酢酸ビニルモノマー | P187: 2041 | Q187: 016 | R187: 酢酸ビニルモノマー | T187: 180 | U187: 291201 | V187: ポンプ・圧縮機 | W187: 2912 | Y187: 6699 | Z187: その他の対事業所サービス | AA187: 6 | AB187: 365
C188: 2041 | D188: 019 | E188: その他の脂肪族中間物 | P188: 2041 | Q188: 019 | R188: その他の脂肪族中間物 | T188: 181 | U188: 291301 | V188: 運搬機械 | W188: 2913 | Y188: 6711 | Z188: 宿泊業 | AA188: 1 | AB188: 371
A189: 2041 | B189: 02 | E189: 環式中間物・合成染料・有機顔料 | M189: 204102 | N189: 2041 | O189: 02 | R189: 環式中間物・合成染料・有機顔料 | T189: 182 | U189: 291401 | V189: 冷凍機・温湿調整装置 | W189: 2914 | Y189: 6721 | Z189: 飲食サービス | AA189: 2 | AB189: 372
C190: 2041 | D190: 021 | E190: 合成染料・有機顔料 | P190: 2041 | Q190: 021 | R190: 合成染料・有機顔料 | T190: 183 | U190: 291901 | V190: ベアリング | W190: 2919 | Y190: 6731 | Z190: 洗濯・理容・美容・浴場業 | AA190: 5 | AB190: 374
C191: 2041 | D191: 022 | E191: スチレンモノマー | P191: 2041 | Q191: 022 | R191: スチレンモノマー | T191: 184 | U191: 291909 | V191: その他のはん用機械 | W191: 2919 | Y191: 6741 | Z191: 娯楽サービス | AA191: 6 | AB191: 379
C192: 2041 | D192: 023 | E192: 合成石炭酸 | P192: 2041 | Q192: 023 | R192: 合成石炭酸 | T192: 185 | U192: 301101 | V192: 農業用機械 | W192: 3011 | Y192: 6799 | Z192: その他の対個人サービス | AA192: 5 | AB192: 385
C193: 2041 | D193: 024 | E193: テレフタル酸・ジメチルテレフタレート | P193: 2041 | Q193: 024 | R193: テレフタル酸・ジメチルテレフタレート | T193: 186 | U193: 301201 | V193: 建設・鉱山機械 | W193: 3012 | Y193: 6811 | Z193: 事務用品 | AA193: 1 | AB193: 390
C194: 2041 | D194: 025 | E194: カプロラクタム | P194: 2041 | Q194: 025 | R194: カプロラクタム | T194: 187 | U194: 301301 | V194: 繊維機械 | W194: 3013 | Y194: 6911 | Z194: 分類不明 | AA194: 1 | AB194: 391
C195: 2041 | D195: 029 | E195: その他の環式中間物 | P195: 2041 | Q195: 029 | R195: その他の環式中間物 | T195: 188 | U195: 301401 | V195: 生活関連産業用機械 | W195: 3014 | Y195: 7000 | Z195: 内生部門計 | AA195: 1 | AB195: 392
A196: 2042 | B196: 01 | C196: 2042 | D196: 011 | E196: 合成ゴム | F196: 2042 | G196: 合成ゴム | M196: 204201 | N196: 2042 | O196: 01 | P196: 2042 | Q196: 011 | R196: 合成ゴム | T196: 189 | U196: 301501 | V196: 化学機械 | W196: 3015
A197: 2049 | B197: 01 | C197: 2049 | D197: 011 | E197: メタン誘導品 | F197: 2049 | G197: その他の有機化学工業製品 | M197: 204901 | N197: 2049 | O197: 01 | P197: 2049 | Q197: 011 | R197: メタン誘導品 | T197: 190 | U197: 301502 | V197: 鋳造装置・プラスチック加工機械 | W197: 3015
A198: 2049 | B198: 02 | C198: 2049 | D198: 021 | E198: 可塑剤 | M198: 204902 | N198: 2049 | O198: 02 | P198: 2049 | Q198: 021 | R198: 可塑剤 | T198: 191 | U198: 301601 | V198: 金属工作機械 | W198: 3016
A199: 2049 | B199: 09 | C199: 2049 | D199: 099 | E199: その他の有機化学工業製品 | M199: 204909 | N199: 2049 | O199: 09 | P199: 2049 | Q199: 099 | R199: その他の有機化学工業製品 | T199: 192 | U199: 301602 | V199: 金属加工機械 | W199: 3016
A200: 2051 | B200: 01 | C200: 2051 | D200: 011 | E200: 熱硬化性樹脂 | F200: 2051 | G200: 合成樹脂 | H200: 205 | I200: 合成樹脂 | M200: 205101 | N200: 2051 | O200: 01 | P200: 2051 | Q200: 011 | R200: 熱硬化性樹脂 | T200: 193 | U200: 301603 | V200: 機械工具 | W200: 3016
A201: 2051 | B201: 02 | E201: 熱可塑性樹脂 | M201: 205102 | N201: 2051 | O201: 02 | R201: 熱可塑性樹脂 | T201: 194 | U201: 301701 | V201: 半導体製造装置 | W201: =LEFT(U201,4) -> 3017
C202: 2051 | D202: 021 | E202: ポリエチレン（低密度） | P202: 2051 | Q202: 021 | R202: ポリエチレン（低密度） | T202: 195 | U202: 301901 | V202: 金型 | W202: 3019
... 381 more rows

Sheet xlistSo (hidden)
B1: 39 | F1: 3301 | AH1: A0000日本平均 | AI1: 0.000453 | AK1: 原料炭 | AL1: 2.61 | AM1: t | AN1: =IFERROR(VLOOKUP(select!C7,AK$1:AM$27,3,FALSE),"") -> kL | AO1: 燃料用-廃材 | AP1: 燃料用:廃材 | AQ1: 1.365421288 | AR1: t | AS1: =IFERROR(VLOOKUP(select!C170,AP$1:AR$36,3,FALSE),"") ->  | AU1: 燃えがら | AV1: 購入
A2: =(ROW()+58)/60 -> 1 | B2: =INDIRECT("select!E"&TEXT($B$1+A2,"#")) -> 購入 | C2: =VLOOKUP(B2,$A$3302:$D$3311,4) -> 41 | D2: =VLOOKUP(B2,$A$3302:$D$3311,3) -> 23 | E2: 1 | F2: =IF(E2<=D$62,INDIRECT("E"&TEXT($F$1+C$62+E2-1,"#")),"") -> 農林漁業 | G2: =INDIRECT("select!G"&TEXT($B$1+A2,"#")) -> 分類不明 | H2: =VLOOKUP(G2,E$3302:G$3340,3,0) -> 107 | I2: =VLOOKUP(G2,E$3302:G$3340,2,0) -> 1 | J2: =IF(E2<=INDIRECT("I$"&TEXT(ROW()-E2+1,"#")),INDIRECT("H$"&TEXT($F$1+INDIRECT("H$"&TEXT(ROW()-E2+1,"#"))+E2-1,"#")),"") -> 分類不明 | K2: =INDIRECT("select!H"&TEXT($B$1+A2,"#")) -> 分類不明 | L2: =VLOOKUP(K2,H$3302:J$3408,3,0) -> 390 | M2: =VLOOKUP(K2,H$3302:J$3408,2,0) -> 1 | N2: =IF(E2<=INDIRECT("M$"&TEXT(ROW()-E2+1,"#")),INDIRECT("K$"&TEXT($F$1+INDIRECT("L$"&TEXT(ROW()-E2+1,"#"))+E2-1,"#")),"") -> 分類不明 | O2: =INDIRECT("select!I"&TEXT($B$1+A2,"#")) -> 分類不明 | Q2: =VLOOKUP(O2,K$3302:O$3691,5,0) -> 3247 | R2: =VLOOKUP(O2,K$3302:O$3691,4,0) -> 1 | S2: =IF(E2<=INDIRECT("R$"&TEXT(ROW()-E2+1,"#")),INDIRECT("P$"&TEXT($F$1+INDIRECT("Q$"&TEXT(ROW()-E2+1,"#"))+E2-1,"#")),"") -> 分類不明 | T2: =IFERROR(VLOOKUP(O2,K$3302:O$3691,2,0),"") -> 691100 | U2: =IFERROR(VLOOKUP(O2,K$3302:O$3691,3,0),0) -> 2.002555506 | W2: 1 | X2: =select!D40 -> 0 | Y2: =B2 -> 購入 | Z2: =T2 -> 691100 | AA2: =U2 -> 2.002555506 | AB2: =AA2*X2 -> 0 | AC2: 1購入 | AD2: =AE2+AF2 -> 0 | AE2: =SUMIF(Y:Y,"購入",AB:AB) -> 0 | AF2: =SUMIF(Y2:Y51,"役務",AB2:AB51) -> 0 | AH2: A9999再生可能エネルギー | AK2: 一般炭 | AL2: 2.33 | AM2: t | AN2: =IFERROR(VLOOKUP(select!C8,AK$1:AM$27,3,FALSE),"") -> kL | AO2: 燃料用-黒液 | AP2: 燃料用:黒液 | AQ2: 1.089295646 | AR2: t | AS2: =IFERROR(VLOOKUP(select!C171,AP$1:AR$36,3,FALSE),"") ->  | AU2: 汚泥 | AV2: 役務
A3: =A2 -> 1 | E3: 2 | F3: 鉱業 | W3: 2 | X3: =select!D41 -> 0 | Y3: =B62 -> 購入 | Z3: =T62 -> 481101 | AA3: =U62 -> 15.25895177 | AB3: 0 | AC3: 2資本 | AD3: =SUMIF(Y2:Y51,"設備",AB2:AB51) -> 0 | AH3: A0267北海道電力株式会社メニューA | AI3: 0 | AK3: 無煙炭 | AL3: 2.52 | AM3: t | AN3: =IFERROR(VLOOKUP(select!C9,AK$1:AM$27,3,FALSE),"") -> kNm3 | AO3: 燃料用-木材 | AP3: 燃料用:木材 | AQ3: 1.057281079 | AR3: t | AS3: =IFERROR(VLOOKUP(select!C172,AP$1:AR$36,3,FALSE),"") ->  | AU3: 廃油 | AV3: 設備
A4: 1 | E4: 3 | F4: 飲食料品 | W4: 3 | X4: =select!D42 -> 0 | Y4: =B122 -> 購入 | Z4: =T122 -> 263101 | AA4: =U122 -> 11.6785258 | AB4: 0 | AC4: 3エネルギー波及 | AD4: =AE4+AF4 -> 0 | AE4: =SUMIF(Z2:Z51,"21*101",AB2:AB51) -> 0 | AF4: =SUMIF(Z2:Z51,"46****",AB2:AB51) -> 0 | AH4: A0267北海道電力株式会社メニューB（残差） | AI4: 0.00055 | AK4: コークス | AL4: 3.17 | AM4: t | AN4: =IFERROR(VLOOKUP(select!C10,AK$1:AM$27,3,FALSE),"") -> kNm3 | AO4: 燃料用-バイオエタノール | AP4: 燃料用:バイオエタノール | AQ4: 1.874452905 | AR4: kL | AS4: =IFERROR(VLOOKUP(select!C173,AP$1:AR$36,3,FALSE),"") ->  | AU4: 廃酸 | AV4: 入荷輸送
A5: 1 | E5: 4 | F5: 繊維製品 | W5: 4 | X5: =select!D43 -> 0 | Y5: =B182 -> 購入 | Z5: =T182 -> 329902 | AA5: =U182 -> 2.29690961 | AB5: 0 | AC5: 4上流配送 | AD5: =SUMIF(Y2:Y51,"入荷輸送",AB2:AB51) -> 0 | AH5: A0267北海道電力株式会社(参考値)事業者全体 | AI5: 0.000601 | AK5: 石油コークス | AL5: 2.78 | AM5: t | AN5: =IFERROR(VLOOKUP(select!C11,AK$1:AM$27,3,FALSE),"") ->  | AO5: 燃料用-バイオジーゼル | AP5: 燃料用:バイオジーゼル | AQ5: 1.874452905 | AR5: kL | AS5: =IFERROR(VLOOKUP(select!C174,AP$1:AR$36,3,FALSE),"") ->  | AU5: 廃アルカリ | AV5: 出荷輸送
A6: 1 | E6: 5 | F6: パルプ・紙・木製品 | W6: 5 | X6: =select!D44 -> 0 | Y6: =B242 -> 役務 | Z6: =T242 -> 481102 | AA6: =U242 -> 9.075847715 | AB6: 0 | AC6: 5事業廃棄物 | AH6: A0268東北電力株式会社メニューA | AI6: 0 | AK6: コールタール | AL6: 2.86 | AM6: t | AN6: =IFERROR(VLOOKUP(select!C12,AK$1:AM$27,3,FALSE),"") ->  | AO6: 燃料用-バイオガス | AP6: 燃料用:バイオガス | AQ6: 1.693570601 | AR6: km3 | AS6: =IFERROR(VLOOKUP(select!C175,AP$1:AR$36,3,FALSE),"") ->  | AU6: 廃プラスチック類 | AV6: 出張費
A7: 1 | E7: 6 | F7: 印刷・製版 | W7: 6 | X7: =select!D45 -> 0 | Y7: =B302 -> 設備 | Z7: =T302 -> 411202 | AA7: =U302 -> 2.608749788 | AB7: 0 | AC7: 6出張 | AD7: =SUMIF(Y2:Y51,"出張費",AB2:AB51) -> 0 | AH7: A0268東北電力株式会社メニューB | AI7: 0 | AK7: 石油アスファルト | AL7: 3.12 | AM7: t | AN7: =IFERROR(VLOOKUP(select!C13,AK$1:AM$27,3,FALSE),"") ->  | AO7: 燃料用-廃タイヤ | AP7: 燃料用:廃タイヤ | AQ7: 0.907209071 | AR7: t | AS7: =IFERROR(VLOOKUP(select!C176,AP$1:AR$36,3,FALSE),"") ->  | AU7: 紙くず | AV7: 通勤費
A8: 1 | E8: 7 | F8: 化学製品 | W8: 7 | X8: =select!D46 -> 0 | Y8: =B362 -> 入荷輸送 | Z8: =T362 -> 574201 | AA8: =U362 -> 14.21035068 | AB8: 0 | AC8: 7通勤 | AD8: =SUMIF(Y2:Y51,"通勤費",AB2:AB51) -> 0 | AH8: A0268東北電力株式会社メニューC（残差） | AI8: 0.000457 | AK8: コンデンセート(NGL) | AL8: 2.38 | AM8: kL | AN8: =IFERROR(VLOOKUP(select!C14,AK$1:AM$27,3,FALSE),"") ->  | AO8: 燃料用-廃プラスチック | AP8: 燃料用:廃プラスチック | AQ8: -0.424932958 | AR8: t | AS8: =IFERROR(VLOOKUP(select!C177,AP$1:AR$36,3,FALSE),"") ->  | AU8: 木くず | AV8: リース(上流)
A9: 1 | E9: 8 | F9: 石油・石炭製品 | W9: 8 | X9: =select!D47 -> 0 | Y9: =B422 -> 出荷輸送 | Z9: =T422 -> 576101 | AA9: =U422 -> 1.672742657 | AB9: 0 | AC9: 8上流リース | AD9: =SUMIF(Y2:Y51,"リース(上流)",AB2:AB51) -> 0 | AH9: A0268東北電力株式会社(参考値)事業者全体 | AI9: 0.000521 | AK9: 原油 | AL9: 2.62 | AM9: kL | AO9: 燃料用-RDF | AP9: 燃料用:RDF | AQ9: 0.665655521 | AR9: t | AS9: =IFERROR(VLOOKUP(select!C178,AP$1:AR$36,3,FALSE),"") ->  | AU9: 繊維くず | AV9: リース(下流)
A10: 1 | E10: 9 | F10: プラスチック・ゴム製品 | W10: 9 | X10: =select!D48 -> 0 | Y10: =B482 -> 出張費 | Z10: =T482 -> 573101 | AA10: =U482 -> 7.908349451 | AB10: 0 | AC10: 9下流配送 | AD10: =SUMIF(Y2:Y51,"出荷輸送",AB2:AB51) -> 0 | AH10: A0269東京電力エナジーパートナー株式会社メニューA | AI10: 0 | AK10: ガソリン | AL10: 2.32 | AM10: kL | AO10: 燃料用-RPF | AP10: 燃料用:RPF | AQ10: 0.581378911 | AR10: t | AS10: =IFERROR(VLOOKUP(select!C179,AP$1:AR$36,3,FALSE),"") ->  | AU10: 動植物性残渣 | AV10: 投資
A11: 1 | E11: 10 | F11: 革製品 | W11: 10 | X11: =select!D49 -> 0 | Y11: =B542 -> 通勤費 | Z11: =T542 -> 572101 | AA11: =U542 -> 3.339872423 | AB11: 0 | AC11: 9販売後加工 | AH11: A0269東京電力エナジーパートナー株式会社メニューB | AI11: 0 | AK11: ナフサ | AL11: 2.24 | AM11: kL | AO11: 再生用-鋼板用鉄スクラップ | AP11: 再生用:鋼板用鉄スクラップ | AQ11: 12.89926621 | AR11: 百万円 | AS11: =IFERROR(VLOOKUP(select!C180,AP$1:AR$36,3,FALSE),"") ->  | AU11: 動物系固形不要物
A12: 1 | E12: 11 | F12: 窯業・土石製品 | W12: 11 | X12: =select!D50 -> 0 | Y12: =B602 -> 投資 | Z12: =T602 -> 011101 | AA12: =U602 -> 13.21150252 | AB12: 0 | AC12: 11使用 | AH12: A0269東京電力エナジーパートナー株式会社メニューC | AI12: 0 | AK12: ジェット燃料油 | AL12: 2.46 | AM12: kL | AO12: 再生用-棒鋼用鉄スクラップ | AP12: 再生用:棒鋼用鉄スクラップ | AQ12: 5.951378291 | AR12: 百万円 | AS12: =IFERROR(VLOOKUP(select!C181,AP$1:AR$36,3,FALSE),"") ->  | AU12: ゴムくず
A13: 1 | E13: 12 | F13: 鉄鋼 | W13: 12 | X13: =select!D51 -> 0 | Y13: =B662 -> 購入 | Z13: =T662 -> 291201 | AA13: =U662 -> 2.867610665 | AB13: 0 | AC13: 12使用後廃棄 | AH13: A0269東京電力エナジーパートナー株式会社メニューD | AI13: 0 | AK13: 灯油 | AL13: 2.49 | AM13: kL | AO13: 再生用-鋳物用鉄スクラップ | AP13: 再生用:鋳物用鉄スクラップ | AQ13: 2.855015589 | AR13: 百万円 | AS13: =IFERROR(VLOOKUP(select!C182,AP$1:AR$36,3,FALSE),"") ->  | AU13: 金属くず
A14: 1 | E14: 13 | F14: 非鉄金属 | W14: 13 | X14: =select!D52 -> 0 | Y14: =B722 -> リース(上流) | Z14: =T722 ->  | AA14: =U722 -> 0 | AB14: 0 | AC14: 13下流リース | AD14: =SUMIF(Y2:Y51,"リース(下流)",AB2:AB51) -> 0 | AH14: A0269東京電力エナジーパートナー株式会社メニューE | AI14: 0 | AK14: 軽油 | AL14: 2.58 | AM14: kL | AO14: 再生用-ステンレス | AP14: 再生用:ステンレス | AQ14: 11.84992652 | AR14: 百万円 | AS14: =IFERROR(VLOOKUP(select!C183,AP$1:AR$36,3,FALSE),"") ->  | AU14: ガラス陶磁器くず
A15: 1 | E15: 14 | F15: 金属製品 | W15: 14 | X15: =select!D53 -> 0 | Y15: =B782 -> リース(下流) | Z15: =T782 ->  | AA15: =U782 -> 0 | AB15: 0 | AC15: 14フランチャイズ | AD15: =select!C106 -> 0 | AH15: A0269東京電力エナジーパートナー株式会社メニューF | AI15: 0 | AK15: A重油 | AL15: 2.71 | AM15: kL | AO15: 再生用-展伸材用アルミスクラップ | AP15: 再生用:展伸材用アルミスクラップ | AQ15: 22.07215215 | AR15: 百万円 | AS15: =IFERROR(VLOOKUP(select!C184,AP$1:AR$36,3,FALSE),"") ->  | AU15: 鉱さい
A16: 1 | E16: 15 | F16: はん用機械 | W16: 15 | X16: =select!D54 -> 0 | Y16: =B842 -> フランチャイズ | Z16: =T842 ->  | AA16: =U842 -> 0 | AB16: 0 | AC16: 15投資 | AD16: =SUMIF(Y2:Y51,"投資",AB2:AB51) -> 0 | AH16: A0269東京電力エナジーパートナー株式会社メニューG（残差） | AI16: 0.000443 | AK16: B・C重油 | AL16: 3 | AM16: kL | AO16: 再生用-鋳物用アルミスクラップ | AP16: 再生用:鋳物用アルミスクラップ | AQ16: 26.17383589 | AR16: 百万円 | AS16: =IFERROR(VLOOKUP(select!C185,AP$1:AR$36,3,FALSE),"") ->  | AU16: がれき類
A17: 1 | E17: 16 | F17: 業務用機械 | W17: 16 | X17: =select!D55 -> 0 | Y17: =B902 -> 0 | Z17: =T902 ->  | AA17: =U902 -> 0 | AB17: 0 | AH17: A0269東京電力エナジーパートナー株式会社(参考値)事業者全体 | AI17: 0.000441 | AK17: 液化石油ガス(LPG) | AL17: 3 | AM17: t | AO17: 再生用-再溶解用銅 | AP17: 再生用:再溶解用銅 | AQ17: 5.984075512 | AR17: 百万円 | AS17: =IFERROR(VLOOKUP(select!C186,AP$1:AR$36,3,FALSE),"") ->  | AU17: 動物のふん尿
A18: 1 | E18: 17 | F18: 電子部品 | W18: 17 | X18: =select!D56 -> 0 | Y18: =B962 -> 0 | Z18: =T962 ->  | AA18: =U962 -> 0 | AB18: 0 | AH18: A0270中部電力ミライズ株式会社メニューA | AI18: 0 | AK18: 液化石油ガス(LPG)体積 | AL18: 6.6 | AM18: kNm3 | AO18: 再生用-製錬用銅 | AP18: 再生用:製錬用銅 | AQ18: 5.596193388 | AR18: 百万円 | AS18: =IFERROR(VLOOKUP(select!C187,AP$1:AR$36,3,FALSE),"") ->  | AU18: 動物の死体
A19: 1 | E19: 18 | F19: 電気機械 | W19: 18 | X19: =select!D57 -> 0 | Y19: =B1022 -> 0 | Z19: =T1022 ->  | AA19: =U1022 -> 0 | AB19: 0 | AC19: 産品 | AD19: =select!G93 -> サービス | AH19: A0270中部電力ミライズ株式会社メニューB（残差） | AI19: 0.000379 | AK19: プロパン | AL19: 6 | AM19: kNm3 | AO19: 再生用-銅含有金属 | AP19: 再生用:MIX銅 | AQ19: 5.596193388 | AR19: 百万円 | AS19: =IFERROR(VLOOKUP(select!C188,AP$1:AR$36,3,FALSE),"") ->  | AU19: ばいじん | AV19: フランチャイズなし
A20: 1 | E20: 19 | F20: 情報通信機器 | W20: 19 | X20: =select!D58 -> 0 | Y20: =B1082 -> 0 | Z20: =T1082 ->  | AA20: =U1082 -> 0 | AB20: 0 | AC20: 加工 | AD20: =IF(AD19="素材",1,0) -> 0 | AH20: A0270中部電力ミライズ株式会社(参考値)事業者全体 | AI20: 0.000424 | AK20: ブタン | AL20: 8.5 | AM20: kNm3 | AO20: 再生用-金 | AP20: 再生用:金 | AQ20: 1.903891554 | AR20: 百万円 | AS20: =IFERROR(VLOOKUP(select!C189,AP$1:AR$36,3,FALSE),"") ->  | AV20: 一括計上
A21: 1 | E21: 20 | F21: 輸送機械 | W21: 20 | X21: =select!D59 -> 0 | Y21: =B1142 -> 0 | Z21: =T1142 ->  | AA21: =U1142 -> 0 | AB21: 0 | AC21: 使用 | AD21: =IF((AD19="製品")*OR(AD19="サービス"),1,0) -> 0 | AH21: A0271北陸電力株式会社メニューA | AI21: 0 | AK21: 石油系炭化水素ガス | AL21: 2.34 | AM21: kNm3 | AO21: 再生用-金含有物 | AP21: 再生用:MIX金 | AQ21: 1.903891554 | AR21: 百万円 | AV21: 典型記載
A22: 1 | E22: 21 | F22: その他の製造工業製品 | W22: 21 | X22: =select!D60 -> 0 | Y22: =B1202 -> 0 | Z22: =T1202 ->  | AA22: =U1202 -> 0 | AB22: 0 | AH22: A0271北陸電力株式会社メニューB | AI22: 0 | AK22: 液化天然ガス(LNG) | AL22: 2.7 | AM22: kNm3 | AO22: 再生用-銀 | AP22: 再生用:銀 | AQ22: 2.344721983 | AR22: 百万円
A23: 1 | E23: 22 | F23: 事務用品 | W23: 22 | X23: =select!D61 -> 0 | Y23: =B1262 -> 0 | Z23: =T1262 ->  | AA23: =U1262 -> 0 | AB23: 0 | AH23: A0271北陸電力株式会社メニューC（残差） | AI23: 0.000466 | AK23: 天然ガス(LNG以外) | AL23: 2.22 | AM23: kNm3 | AO23: 再生用-白金 | AP23: 再生用:Pt | AQ23: 3203.707074 | AR23: 百万円
A24: 1 | E24: 23 | F24: 分類不明 | W24: 23 | X24: =select!D62 -> 0 | Y24: =B1322 -> 0 | Z24: =T1322 ->  | AA24: =U1322 -> 0 | AB24: 0 | AH24: A0271北陸電力株式会社(参考値)事業者全体 | AI24: 0.000497 | AK24: コークス炉ガス | AL24: 0.85 | AM24: kNm3 | AO24: 再生用-パラジウム | AP24: 再生用:Pd | AQ24: 458.906446 | AR24: 百万円
A25: 1 | E25: 24 | W25: 24 | X25: =select!D63 -> 0 | Y25: =B1382 -> 0 | Z25: =T1382 ->  | AA25: =U1382 -> 0 | AB25: 0 | AH25: A0272関西電力株式会社メニューA | AI25: 0 | AK25: 高炉がス | AL25: 0.33 | AM25: kNm3 | AO25: 再生用-レアアース | AP25: 再生用:Nd | AQ25: 1.307893581 | AR25: 百万円
A26: 1 | E26: 25 | W26: 25 | X26: =select!D64 -> 0 | Y26: =B1442 -> 0 | Z26: =T1442 ->  | AA26: =U1442 -> 0 | AB26: 0 | AH26: A0272関西電力株式会社メニューB | AI26: 0 | AK26: 転炉ガス | AL26: 1.18 | AM26: kNm3 | AO26: 再生用-コバルト | AP26: 再生用:Co | AQ26: 1.464000243 | AR26: 百万円 | AV26: 素材
A27: 1 | E27: 26 | W27: 26 | X27: =select!D65 -> 0 | Y27: =B1502 -> 0 | Z27: =T1502 ->  | AA27: =U1502 -> 0 | AB27: 0 | AH27: A0272関西電力株式会社メニューC | AI27: 0 | AK27: 都市ガス | AL27: 2.23 | AM27: kNm3 | AO27: 再生用-ニッケル | AP27: 再生用:Ni | AQ27: 3.17474423 | AR27: 百万円 | AV27: 部品
A28: 1 | E28: 27 | W28: 27 | X28: =select!D66 -> 0 | Y28: =B1562 -> 0 | Z28: =T1562 ->  | AA28: =U1562 -> 0 | AB28: 0 | AH28: A0272関西電力株式会社メニューD（残差） | AI28: 0.000351 | AO28: 再生用-リチュウム | AP28: 再生用:Li | AQ28: 3.68890894 | AR28: 百万円 | AV28: 製品
A29: 1 | E29: 28 | W29: 28 | X29: =select!D67 -> 0 | Y29: =B1622 -> 0 | Z29: =T1622 ->  | AA29: =U1622 -> 0 | AB29: 0 | AH29: A0272関西電力株式会社(参考値)事業者全体 | AI29: 0.000318 | AO29: 再生用-水平利用プラスチック | AP29: 再生用:水平プラスチック | AQ29: 3.697001565 | AR29: 百万円 | AV29: サービス
A30: 1 | E30: 29 | W30: 29 | X30: =select!D68 -> 0 | Y30: =B1682 -> 0 | Z30: =T1682 ->  | AA30: =U1682 -> 0 | AB30: 0 | AH30: A0273中国電力株式会社メニューA | AI30: 0 | AO30: 再生用-再生プラスチック | AP30: 再生用:再生プラスチック | AQ30: 0.760226349 | AR30: 百万円
A31: 1 | E31: 30 | W31: 30 | X31: =select!D69 -> 0 | Y31: =B1742 -> 0 | Z31: =T1742 ->  | AA31: =U1742 -> 0 | AB31: 0 | AH31: A0273中国電力株式会社メニューB | AI31: 0 | AO31: 再生用-MIXプラスチック | AP31: 再生用:MIXプラスチック | AQ31: 0.20519895 | AR31: 百万円
A32: 1 | E32: 31 | W32: 31 | X32: =select!D70 -> 0 | Y32: =B1802 -> 0 | Z32: =T1802 ->  | AA32: =U1802 -> 0 | AB32: 0 | AH32: A0273中国電力株式会社メニューC（残差） | AI32: 0.000521 | AO32: 再生用-ゴム原料 | AP32: 再生用:ゴム原料 | AQ32: 8.151941361 | AR32: 百万円
A33: 1 | E33: 32 | W33: 32 | X33: =select!D71 -> 0 | Y33: =B1862 -> 0 | Z33: =T1862 ->  | AA33: =U1862 -> 0 | AB33: 0 | AH33: A0273中国電力株式会社(参考値)事業者全体 | AI33: 0.000585 | AO33: 再生用-ガラス原料 | AP33: 再生用:ガラス原料 | AQ33: 5.861427155 | AR33: 百万円
A34: 1 | E34: 33 | S34: =IF(E34<=INDIRECT("R$"&TEXT(ROW()-E34+1,"#")),INDIRECT("P$"&TEXT($F$1+INDIRECT("Q$"&TEXT(ROW()-E34+1,"#"))+E34-1,"#")),"") ->  | W34: 33 | X34: =select!D72 -> 0 | Y34: =B1922 -> 0 | Z34: =T1922 ->  | AA34: =U1922 -> 0 | AB34: =AA34*X34 -> 0 | AH34: A0274四国電力株式会社メニューA | AI34: 0 | AO34: 再生用-ガラス繊維原料 | AP34: 再生用:ガラス繊維原料 | AQ34: 6.60483871 | AR34: 百万円
A35: =A34 -> 1 | E35: 34 | W35: 34 | X35: =select!D73 -> 0 | Y35: =B1982 -> 0 | Z35: =T1982 ->  | AA35: =U1982 -> 0 | AB35: 0 | AH35: A0274四国電力株式会社メニューB | AI35: 0 | AO35: 再生用-セメント原料 | AP35: 再生用:セメント原料 | AQ35: 52.07286501 | AR35: 百万円
A36: 1 | E36: 35 | W36: 35 | X36: =select!D74 -> 0 | Y36: =B2042 -> 0 | Z36: =T2042 ->  | AA36: =U2042 -> 0 | AB36: 0 | AH36: A0274四国電力株式会社メニューC（残差） | AI36: 0.000574 | AO36: 再生用-木材チップ | AP36: 再生用:木材チップ | AQ36: 2.014114223 | AR36: 百万円
A37: 1 | E37: 36 | W37: 36 | X37: =select!D75 -> 0 | Y37: =B2102 -> 0 | Z37: =T2102 ->  | AA37: =U2102 -> 0 | AB37: 0 | AH37: A0274四国電力株式会社(参考値)事業者全体 | AI37: 0.000408
A38: 1 | E38: 37 | W38: 37 | X38: =select!D76 -> 0 | Y38: =B2162 -> 0 | Z38: =T2162 ->  | AA38: =U2162 -> 0 | AB38: 0 | AH38: A0275九州電力株式会社メニューA | AI38: 0
A39: 1 | E39: 38 | W39: 38 | X39: =select!D77 -> 0 | Y39: =B2222 -> 0 | Z39: =T2222 ->  | AA39: =U2222 -> 0 | AB39: 0 | AH39: A0275九州電力株式会社メニューB（残差） | AI39: 0.00048
A40: 1 | E40: 39 | W40: 39 | X40: =select!D78 -> 0 | Y40: =B2282 -> 0 | Z40: =T2282 ->  | AA40: =U2282 -> 0 | AB40: 0 | AH40: A0275九州電力株式会社(参考値)事業者全体 | AI40: 0.00037
A41: 1 | E41: 40 | W41: 40 | X41: =select!D79 -> 0 | Y41: =B2342 -> 0 | Z41: =T2342 ->  | AA41: =U2342 -> 0 | AB41: 0 | AH41: A0276沖縄電力株式会社 | AI41: 0.000705
A42: 1 | E42: 41 | W42: 41 | X42: =select!D80 -> 0 | Y42: =B2402 -> 0 | Z42: =T2402 ->  | AA42: =U2402 -> 0 | AB42: 0 | AH42: A0720株式会社ａｆｔｅｒＦＩＴメニューA | AI42: 0
A43: 1 | E43: 42 | W43: 42 | X43: =select!D81 -> 0 | Y43: =B2462 -> 0 | Z43: =T2462 ->  | AA43: =U2462 -> 0 | AB43: 0 | AH43: A0398Ａｐａｍａｎ Ｅｎｅｒｇｙ株式会社 | AI43: 0.000536
A44: 1 | E44: 43 | W44: 43 | X44: =select!D82 -> 0 | Y44: =B2522 -> 0 | Z44: =T2522 ->  | AA44: =U2522 -> 0 | AB44: 0 | AH44: A0704Ｃａｓｔｌｅｔｏｎ Ｃｏｍｍｏｄｉｔｉｅｓ Ｊａｐａｎ合同会社 | AI44: 0.000408
A45: 1 | E45: 44 | W45: 44 | X45: =select!D83 -> 0 | Y45: =B2582 -> 0 | Z45: =T2582 ->  | AA45: =U2582 -> 0 | AB45: 0 | AH45: A0490株式会社ＣＤエナジーダイレクト(参考値)事業者全体 | AI45: 0.000432
A46: 1 | E46: 45 | W46: 45 | X46: =select!D84 -> 0 | Y46: =B2642 -> 0 | Z46: =T2642 ->  | AA46: =U2642 -> 0 | AB46: 0 | AH46: A0490株式会社ＣＤエナジーダイレクトメニューA | AI46: 0
A47: 1 | E47: 46 | W47: 46 | X47: =select!D85 -> 0 | Y47: =B2702 -> 0 | Z47: =T2702 ->  | AA47: =U2702 -> 0 | AB47: 0 | AH47: A0490株式会社ＣＤエナジーダイレクトメニューB（残差） | AI47: 0.000364
A48: 1 | E48: 47 | W48: 47 | X48: =select!D86 -> 0 | Y48: =B2762 -> 0 | Z48: =T2762 ->  | AA48: =U2762 -> 0 | AB48: 0 | AH48: A0351株式会社ＣＨＩＢＡむつざわエナジー | AI48: 0.000652
A49: 1 | E49: 48 | W49: 48 | X49: =select!D87 -> 0 | Y49: =B2822 -> 0 | Z49: =T2822 ->  | AA49: =U2822 -> 0 | AB49: 0 | AH49: A0451Ｃｏｃｏテラスたがわ株式会社 | AI49: 0.000455
A50: 1 | E50: 49 | W50: 49 | X50: =select!D88 -> 0 | Y50: =B2882 -> 0 | Z50: =T2882 ->  | AA50: =U2882 -> 0 | AB50: 0 | AH50: A0362株式会社ＣＷＳ | AI50: 0.000336
A51: 1 | E51: 50 | W51: 50 | X51: =select!D89 -> 0 | Y51: =B2942 -> 0 | Z51: =T2942 ->  | AA51: =U2942 -> 0 | AB51: 0 | AH51: A0050ENEOS株式会社(参考値)事業者全体 | AI51: 0.000472
A52: 1 | E52: 51 | AH52: A0050ENEOS株式会社メニューA | AI52: 0
A53: 1 | E53: 52 | AH53: A0050ENEOS株式会社メニューB | AI53: 0
AH54: A0050ENEOS株式会社メニューC（残差） | AI54: 0.00048
AH55: A0001株式会社Ｆ－Ｐｏｗｅｒ(参考値)事業者全体 | AI55: 0.000513
AH56: A0001株式会社Ｆ－ＰｏｗｅｒメニューA | AI56: 0
AH57: A0001株式会社Ｆ－ＰｏｗｅｒメニューB | AI57: 0
AH58: A0001株式会社Ｆ－ＰｏｗｅｒメニューC | AI58: 0
AH59: A0001株式会社Ｆ－ＰｏｗｅｒメニューD（残差） | AI59: 0.000482
AH60: A0321FTCエナジー合同会社 | AI60: 0.000577
AH61: A0347ＦＴエナジー株式会社 | AI61: 0.000482
A62: =(ROW()+58)/60 -> 2 | B62: =INDIRECT("select!E"&TEXT($B$1+A62,"#")) -> 購入 | C62: =VLOOKUP(B62,$A$3302:$D$3311,4) -> 41 | D62: =VLOOKUP(B62,$A$3302:$D$3311,3) -> 23 | E62: 1 | F62: =IF(E62<=D$62,INDIRECT("E"&TEXT($F$1+C$62+E62-1,"#")),"") -> 農林漁業 | G62: =INDIRECT("select!G"&TEXT($B$1+A62,"#")) -> 廃棄物処理 | H62: =VLOOKUP(G62,E$3302:G$3340,3,0) -> 69 | I62: =VLOOKUP(G62,E$3302:G$3340,2,0) -> 1 | J62: =IF(E62<=INDIRECT("I$"&TEXT(ROW()-E62+1,"#")),INDIRECT("H$"&TEXT($F$1+INDIRECT("H$"&TEXT(ROW()-E62+1,"#"))+E62-1,"#")),"") -> 廃棄物処理 | K62: =INDIRECT("select!H"&TEXT($B$1+A62,"#")) -> 廃棄物処理 | L62: =VLOOKUP(K62,H$3302:J$3408,3,0) -> 281 | M62: =VLOOKUP(K62,H$3302:J$3408,2,0) -> 2 | N62: =IF(E62<=INDIRECT("M$"&TEXT(ROW()-E62+1,"#")),INDIRECT("K$"&TEXT($F$1+INDIRECT("L$"&TEXT(ROW()-E62+1,"#"))+E62-1,"#")),"") -> 廃棄物処理（公営）★★ | O62: =INDIRECT("select!I"&TEXT($B$1+A62,"#")) -> 廃棄物処理（公営）★★ | Q62: =VLOOKUP(O62,K$3302:O$3691,5,0) -> 2930 | R62: =VLOOKUP(O62,K$3302:O$3691,4,0) -> 1 | S62: =IF(E62<=INDIRECT("R$"&TEXT(ROW()-E62+1,"#")),INDIRECT("P$"&TEXT($F$1+INDIRECT("Q$"&TEXT(ROW()-E62+1,"#"))+E62-1,"#")),"") -> 廃棄物処理（公営）★★ | T62: =IFERROR(VLOOKUP(O62,K$3302:O$3691,2,0),"") -> 481101 | U62: =IFERROR(VLOOKUP(O62,K$3302:O$3691,3,0),0) -> 15.25895177 | AH62: A0202株式会社Ｇ－Ｐｏｗｅｒ | AI62: 0
A63: =A62 -> 2 | E63: 2 | F63: 鉱業 | N63: 廃棄物処理（産業） | AH63: A0635GYRO HOLDINGS株式会社 | AI63: 0.000531
A64: 2 | E64: 3 | F64: 飲食料品 | AH64: A0172ＨＴＢエナジー株式会社 | AI64: 0.000538
A65: 2 | E65: 4 | F65: 繊維製品 | AH65: A0512ＩＳエナジー株式会社 | AI65: 0.000524
A66: 2 | E66: 5 | F66: パルプ・紙・木製品 | AH66: A0221ＪＡＧ国際エナジー株式会社(参考値)事業者全体 | AI66: 0.00053
A67: 2 | E67: 6 | F67: 印刷・製版 | AH67: A0221ＪＡＧ国際エナジー株式会社メニューA | AI67: 0
A68: 2 | E68: 7 | F68: 化学製品 | AH68: A0221ＪＡＧ国際エナジー株式会社メニューB（残差） | AI68: 0.000526
A69: 2 | E69: 8 | F69: 石油・石炭製品 | AH69: A0180株式会社Ｊ－ＰＯＷＥＲサプライアンドトレーディング | AI69: 0.000470※
A70: 2 | E70: 9 | F70: プラスチック・ゴム製品 | AH70: A0446ＪＰエネルギー株式会社 | AI70: 0.000516
A71: 2 | E71: 10 | F71: 革製品 | AH71: A0661JR西日本住宅サービス株式会社 | AI71: 0.000339
A72: 2 | E72: 11 | F72: 窯業・土石製品 | AH72: A0306株式会社ＪＴＢコミュニケーションデザイン | AI72: 0.000483
A73: 2 | E73: 12 | F73: 鉄鋼 | AH73: A0539株式会社ｋａｒｃｈ | AI73: 0.000401
A74: 2 | E74: 13 | F74: 非鉄金属 | AH74: A0077ＫＤＤＩ株式会社 | AI74: 0.000417
A75: 2 | E75: 14 | F75: 金属製品 | AH75: A0235株式会社Ｋｅｎｅｓエネルギーサービス | AI75: 0.000594
A76: 2 | E76: 15 | F76: はん用機械 | AH76: A0695ＫＭパワー株式会社 | AI76: 0.000468
A77: 2 | E77: 16 | F77: 業務用機械 | AH77: A0620株式会社LENETS | AI77: 0.000529
A78: 2 | E78: 17 | F78: 電子部品 | AH78: A0515株式会社Ｌｉｎｋ Ｌｉｆｅ | AI78: 0.000545
A79: 2 | E79: 18 | F79: 電気機械 | AH79: A0461株式会社ＬＩＸＩＬ ＴＥＰＣＯ スマートパートナーズ(参考値)事業者全体 | AI79: 0.000504
A80: 2 | E80: 19 | F80: 情報通信機器 | AH80: A0461株式会社ＬＩＸＩＬ ＴＥＰＣＯ スマートパートナーズメニューA | AI80: 0
A81: 2 | E81: 20 | F81: 輸送機械 | AH81: A0461株式会社ＬＩＸＩＬ ＴＥＰＣＯ スマートパートナーズメニューB（残差） | AI81: 0.000499
A82: 2 | E82: 21 | F82: その他の製造工業製品 | AH82: A0021株式会社Ｌｏｏｏｐ(参考値)事業者全体 | AI82: 0.000544
A83: 2 | E83: 22 | F83: 事務用品 | AH83: A0021株式会社ＬｏｏｏｐメニューA | AI83: 0
A84: 2 | E84: 23 | F84: 分類不明 | AH84: A0021株式会社ＬｏｏｏｐメニューB | AI84: 0.000349
A85: 2 | E85: 24 | AH85: A0021株式会社ＬｏｏｏｐメニューC | AI85: 0.000354
A86: 2 | E86: 25 | AH86: A0021株式会社ＬｏｏｏｐメニューD | AI86: 0.000382
A87: 2 | E87: 26 | AH87: A0021株式会社ＬｏｏｏｐメニューE（残差） | AI87: 0.000489
A88: 2 | E88: 27 | AH88: A0584MCPD合同会社 | AI88: 0.000431
A89: 2 | E89: 28 | AH89: A0140ＭＣリテールエナジー株式会社(参考値)事業者全体 | AI89: 0.000502
A90: 2 | E90: 29 | AH90: A0140ＭＣリテールエナジー株式会社メニューA | AI90: 0
A91: 2 | E91: 30 | AH91: A0140ＭＣリテールエナジー株式会社メニューB | AI91: 0
A92: 2 | E92: 31 | AH92: A0140ＭＣリテールエナジー株式会社メニューC | AI92: 0
A93: 2 | E93: 32 | AH93: A0140ＭＣリテールエナジー株式会社メニューD（残差） | AI93: 0.00048
A94: 2 | E94: 33 | S94: =IF(E94<=INDIRECT("R$"&TEXT(ROW()-E94+1,"#")),INDIRECT("P$"&TEXT($F$1+INDIRECT("Q$"&TEXT(ROW()-E94+1,"#"))+E94-1,"#")),"") ->  | AH94: A0562ＭＧＣエネルギー株式会社 | AI94: 0.000405
A95: =A94 -> 2 | E95: 34 | AH95: A0284株式会社Ｍｉｓｕｍｉ | AI95: 0.000253
A96: 2 | E96: 35 | AH96: A0413株式会社MKエネルギー | AI96: 0.000435
A97: 2 | E97: 36 | AH97: A0303ＭＫステーションズ株式会社 | AI97: 0.000423
A98: 2 | E98: 37 | AH98: A0532株式会社Mpower | AI98: 0.00053
A99: 2 | E99: 38 | AH99: A0427Ｍｙシティ電力株式会社 | AI99: 0.000552
A100: 2 | E100: 39 | AH100: A0741Nature株式会社 | AI100: 0.000799
A101: 2 | E101: 40 | AH101: A0463株式会社NEXT ONE | AI101: 0.00053
A102: 2 | E102: 41 | AH102: A0222Ｎｅｘｔ Ｐｏｗｅｒ株式会社 | AI102: 0.000542
A103: 2 | E103: 42 | AH103: A0187ＮＦパワーサービス株式会社(参考値)事業者全体 | AI103: 0.000467
A104: 2 | E104: 43 | AH104: A0187ＮＦパワーサービス株式会社メニューA | AI104: 0
A105: 2 | E105: 44 | AH105: A0187ＮＦパワーサービス株式会社メニューB（残差） | AI105: 0.00043
A106: 2 | E106: 45 | AH106: A0242株式会社ＮＴＴファシリティーズ(参考値)事業者全体 | AI106: 0.000427
A107: 2 | E107: 46 | AH107: A0242株式会社ＮＴＴファシリティーズメニューA | AI107: 0.000354
A108: 2 | E108: 47 | AH108: A0242株式会社ＮＴＴファシリティーズメニューB（残差） | AI108: 0.000359
A109: 2 | E109: 48 | AH109: A0579株式会社OKUTA | AI109: 0.00056
A110: 2 | E110: 49 | AH110: A0414株式会社Ｏｐｔｉｍｉｚｅｄ Ｅｎｅｒｇｙ | AI110: 0.000419
A111: 2 | E111: 50 | AH111: A0332株式会社ＰｉｎＴ | AI111: 0.000491
A112: 2 | E112: 51 | AH112: A0611RE100電力株式会社(参考値)事業者全体 | AI112: 0.000166
A113: 2 | E113: 52 | AH113: A0611RE100電力株式会社メニューA | AI113: 0
AH114: A0611RE100電力株式会社メニューB（残差） | AI114: 0
AH115: A0711株式会社RenoLabo | AI115: 0.000544
AH116: A0593株式会社Sanko IB | AI116: 0.000532
AH117: A0186ＳＢパワー株式会社(参考値)事業者全体 | AI117: 0.000524
AH118: A0186ＳＢパワー株式会社メニューA | AI118: 0
AH119: A0186ＳＢパワー株式会社メニューB | AI119: 0.000373
AH120: A0186ＳＢパワー株式会社メニューC | AI120: 0.00039
AH121: A0186ＳＢパワー株式会社メニューD(残差) | AI121: 0.000523
A122: =(ROW()+58)/60 -> 3 | B122: =INDIRECT("select!E"&TEXT($B$1+A122,"#")) -> 購入 | C122: =VLOOKUP(B122,$A$3302:$D$3311,4) -> 41 | D122: =VLOOKUP(B122,$A$3302:$D$3311,3) -> 23 | E122: 1 | F122: =IF(E122<=D$62,INDIRECT("E"&TEXT($F$1+C$62+E122-1,"#")),"") -> 農林漁業 | G122: =INDIRECT("select!G"&TEXT($B$1+A122,"#")) -> 鉄鋼 | H122: =VLOOKUP(G122,E$3302:G$3340,3,0) -> 36 | I122: =VLOOKUP(G122,E$3302:G$3340,2,0) -> 4 | J122: =IF(E122<=INDIRECT("I$"&TEXT(ROW()-E122+1,"#")),INDIRECT("H$"&TEXT($F$1+INDIRECT("H$"&TEXT(ROW()-E122+1,"#"))+E122-1,"#")),"") -> 銑鉄・粗鋼 | K122: =INDIRECT("select!H"&TEXT($B$1+A122,"#")) -> 鋳鍛造品（鉄） | L122: =VLOOKUP(K122,H$3302:J$3408,3,0) -> 154 | M122: =VLOOKUP(K122,H$3302:J$3408,2,0) -> 3 | N122: =IF(E122<=INDIRECT("M$"&TEXT(ROW()-E122+1,"#")),INDIRECT("K$"&TEXT($F$1+INDIRECT("L$"&TEXT(ROW()-E122+1,"#"))+E122-1,"#")),"") -> 鋳鍛鋼 | O122: =INDIRECT("select!I"&TEXT($B$1+A122,"#")) -> 鋳鍛鋼 | Q122: =VLOOKUP(O122,K$3302:O$3691,5,0) -> 1725 | R122: =VLOOKUP(O122,K$3302:O$3691,4,0) -> 6 | S122: =IF(E122<=INDIRECT("R$"&TEXT(ROW()-E122+1,"#")),INDIRECT("P$"&TEXT($F$1+INDIRECT("Q$"&TEXT(ROW()-E122+1,"#"))+E122-1,"#")),"") -> 普通鋼 | T122: =IFERROR(VLOOKUP(O122,K$3302:O$3691,2,0),"") -> 263101 | U122: =IFERROR(VLOOKUP(O122,K$3302:O$3691,3,0),0) -> 11.6785258 | AH122: A0007株式会社ＳＥウイングズ | AI122: 0.000521
A123: =A122 -> 3 | E123: 2 | F123: 鉱業 | J123: 鋼材 | N123: 鋳鉄管 | S123: 特殊鋼 | AH123: A0017株式会社Ｓｈａｒｅｄ Ｅｎｅｒｇｙ | AI123: 0.000533
A124: 3 | E124: 3 | F124: 飲食料品 | J124: 鋳鍛造品（鉄） | N124: 鋳鉄品・鍛工品（鉄） | S124: 半製品及び仕掛品 | AH124: A0743T＆Tエナジー株式会社 | AI124: 0.000499
A125: 3 | E125: 4 | F125: 繊維製品 | J125: その他の鉄鋼製品 | S125: 普通鋼 | AH125: A0679TEPCOライフサービス株式会社 | AI125: 0.000422
A126: 3 | E126: 5 | F126: パルプ・紙・木製品 | S126: 特殊鋼 | AH126: A0582TERA Energy株式会社 | AI126: 0.000453
A127: 3 | E127: 6 | F127: 印刷・製版 | S127: 半製品及び仕掛品 | AH127: A0402株式会社ＴＯＫＹＯ油電力 | AI127: 0.000526
A128: 3 | E128: 7 | F128: 化学製品 | AH128: A0455ＴＲＥＮＤＥ株式会社 | AI128: 0.000464
A129: 3 | E129: 8 | F129: 石油・石炭製品 | AH129: A0214株式会社ＴＴＳパワー | AI129: 0.000389
A130: 3 | E130: 9 | F130: プラスチック・ゴム製品 | AH130: A0660UNIVERGY株式会社 | AI130: 0.000473
A131: 3 | E131: 10 | F131: 革製品 | AH131: A0055株式会社UPDATER(旧：みんな電力株式会社)(参考値)事業者全体 | AI131: 0.000313
A132: 3 | E132: 11 | F132: 窯業・土石製品 | AH132: A0055株式会社UPDATER(旧：みんな電力株式会社)メニューA | AI132: 0
A133: 3 | E133: 12 | F133: 鉄鋼 | AH133: A0055株式会社UPDATER(旧：みんな電力株式会社)メニューB | AI133: 0.00024
A134: 3 | E134: 13 | F134: 非鉄金属 | AH134: A0055株式会社UPDATER(旧：みんな電力株式会社)メニューC（残差） | AI134: 0.000411
A135: 3 | E135: 14 | F135: 金属製品 | AH135: A0213株式会社ＵＳＥＮ ＮＥＴＷＯＲＫＳ | AI135: 0.000423
A136: 3 | E136: 15 | F136: はん用機械 | AH136: A0045株式会社Ｖ－Ｐｏｗｅｒ(参考値)事業者全体 | AI136: 0.000455
A137: 3 | E137: 16 | F137: 業務用機械 | AH137: A0045株式会社Ｖ－ＰｏｗｅｒメニューA | AI137: 0.000309
A138: 3 | E138: 17 | F138: 電子部品 | AH138: A0045株式会社Ｖ－ＰｏｗｅｒメニューB（残差） | AI138: 0.000458
A139: 3 | E139: 18 | F139: 電気機械 | AH139: A0581WSエナジー株式会社(参考値)事業者全体 | AI139: 0.000392
A140: 3 | E140: 19 | F140: 情報通信機器 | AH140: A0581WSエナジー株式会社メニューA | AI140: 8e-06
A141: 3 | E141: 20 | F141: 輸送機械 | AH141: A0581WSエナジー株式会社メニューB（残差） | AI141: 0.000392
A142: 3 | E142: 21 | F142: その他の製造工業製品 | AH142: A0712アークエルテクノロジーズ株式会社 | AI142: 0
A143: 3 | E143: 22 | F143: 事務用品 | AH143: A0281株式会社アースインフィニティ | AI143: 0.000466
A144: 3 | E144: 23 | F144: 分類不明 | AH144: A0122アーバンエナジー株式会社(参考値)事業者全体 | AI144: 0.00045
A145: 3 | E145: 24 | AH145: A0122アーバンエナジー株式会社メニューA | AI145: 0
A146: 3 | E146: 25 | AH146: A0122アーバンエナジー株式会社メニューB | AI146: 0.000292
A147: 3 | E147: 26 | AH147: A0122アーバンエナジー株式会社メニューC | AI147: 0.000367
A148: 3 | E148: 27 | AH148: A0122アーバンエナジー株式会社メニューD | AI148: 0.00039
A149: 3 | E149: 28 | AH149: A0122アーバンエナジー株式会社メニューE | AI149: 0
A150: 3 | E150: 29 | AH150: A0122アーバンエナジー株式会社メニューF | AI150: 0.000292
A151: 3 | E151: 30 | AH151: A0122アーバンエナジー株式会社メニューG | AI151: 0.000319
A152: 3 | E152: 31 | AH152: A0122アーバンエナジー株式会社メニューH（残差） | AI152: 0.000511
A153: 3 | E153: 32 | AH153: A0060株式会社アイ・グリッド・ソリューションズ(参考値)事業者全体 | AI153: 0.000365
A154: 3 | E154: 33 | S154: =IF(E154<=INDIRECT("R$"&TEXT(ROW()-E154+1,"#")),INDIRECT("P$"&TEXT($F$1+INDIRECT("Q$"&TEXT(ROW()-E154+1,"#"))+E154-1,"#")),"") ->  | AH154: A0060株式会社アイ・グリッド・ソリューションズメニューA | AI154: 0
A155: =A154 -> 3 | E155: 34 | AH155: A0060株式会社アイ・グリッド・ソリューションズメニューB（残差） | AI155: 0.000412
A156: 3 | E156: 35 | AH156: A0622アイエスジー株式会社（旧：アイ・エス・ガステム株式会社） | AI156: 0.000444
A157: 3 | E157: 36 | AH157: A0236愛知電力株式会社 | AI157: 0.000517
A158: 3 | E158: 37 | AH158: A0380青森県民エナジー株式会社 | AI158: 0.000549
A159: 3 | E159: 38 | AH159: A0526朝日ガスエナジー株式会社 | AI159: 0.000392
A160: 3 | E160: 39 | AH160: A0692旭化成株式会社(参考値)事業者全体 | AI160: 0.000382
A161: 3 | E161: 40 | AH161: A0692旭化成株式会社メニューA | AI161: 0.000318
A162: 3 | E162: 41 | AH162: A0692旭化成株式会社メニューB | AI162: 0.00039
A163: 3 | E163: 42 | AH163: A0702旭マルヰガス株式会社 | AI163: 0.000659
A164: 3 | E164: 43 | AH164: A0283足利ガス株式会社 | AI164: 0.000392
A165: 3 | E165: 44 | AH165: A0173株式会社アシストワンエナジー | AI165: 0.00051
A166: 3 | E166: 45 | AH166: A0678アスエネ株式会社(参考値)事業者全体 | AI166: 0.000202
A167: 3 | E167: 46 | AH167: A0678アスエネ株式会社メニューA | AI167: 0
A168: 3 | E168: 47 | AH168: A0678アスエネ株式会社メニューB | AI168: 0
A169: 3 | E169: 48 | AH169: A0678アスエネ株式会社メニューC | AI169: 0.000374
A170: 3 | E170: 49 | AH170: A0678アスエネ株式会社メニューD | AI170: 3.3e-05
A171: 3 | E171: 50 | AH171: A0405アストマックス・エネルギー合同会社 | AI171: 0.000479
A172: 3 | E172: 51 | AH172: A0230アストマックス株式会社(旧：アストマックス・トレーディング株式会社) | AI172: 0.000470※
A173: 3 | E173: 52 | AH173: A0137アストモスエネルギー株式会社 | AI173: 0.000541
AH174: A0499厚木瓦斯株式会社 | AI174: 0.000392
AH175: A0197株式会社アドバンテック | AI175: 0.000498
AH176: A0288株式会社アメニティ電力 | AI176: 0.000486
AH177: A0495有明エナジー株式会社 | AI177: 0.000427
AH178: A0467株式会社アルファライズ | AI178: 0.000504
AH179: A0566あんしん電力合同会社 | AI179: 0.000479
AH180: A0401アンビット・エナジー・ジャパン合同会社 | AI180: 0.000531
AH181: A0179アンフィニ株式会社(参考値)事業者全体 | AI181: 0.000503
A182: =(ROW()+58)/60 -> 4 | B182: =INDIRECT("select!E"&TEXT($B$1+A182,"#")) -> 購入 | C182: =VLOOKUP(B182,$A$3302:$D$3311,4) -> 41 | D182: =VLOOKUP(B182,$A$3302:$D$3311,3) -> 23 | E182: 1 | F182: =IF(E182<=D$62,INDIRECT("E"&TEXT($F$1+C$62+E182-1,"#")),"") -> 農林漁業 | G182: =INDIRECT("select!G"&TEXT($B$1+A182,"#")) -> 電子部品 | H182: =VLOOKUP(G182,E$3302:G$3340,3,0) -> 47 | I182: =VLOOKUP(G182,E$3302:G$3340,2,0) -> 2 | J182: =IF(E182<=INDIRECT("I$"&TEXT(ROW()-E182+1,"#")),INDIRECT("H$"&TEXT($F$1+INDIRECT("H$"&TEXT(ROW()-E182+1,"#"))+E182-1,"#")),"") -> 電子デバイス | K182: =INDIRECT("select!H"&TEXT($B$1+A182,"#")) -> その他の電子部品 | L182: =VLOOKUP(K182,H$3302:J$3408,3,0) -> 210 | M182: =VLOOKUP(K182,H$3302:J$3408,2,0) -> 3 | N182: =IF(E182<=INDIRECT("M$"&TEXT(ROW()-E182+1,"#")),INDIRECT("K$"&TEXT($F$1+INDIRECT("L$"&TEXT(ROW()-E182+1,"#"))+E182-1,"#")),"") -> 記録メディア | O182: =INDIRECT("select!I"&TEXT($B$1+A182,"#")) -> 電子回路 | Q182: =VLOOKUP(O182,K$3302:O$3691,5,0) -> 2385 | R182: =VLOOKUP(O182,K$3302:O$3691,4,0) -> 7 | S182: =IF(E182<=INDIRECT("R$"&TEXT(ROW()-E182+1,"#")),INDIRECT("P$"&TEXT($F$1+INDIRECT("Q$"&TEXT(ROW()-E182+1,"#"))+E182-1,"#")),"") -> リジッドプリント配線板 | T182: =IFERROR(VLOOKUP(O182,K$3302:O$3691,2,0),"") -> 329902 | U182: =IFERROR(VLOOKUP(O182,K$3302:O$3691,3,0),0) -> 2.29690961 | AH182: A0179アンフィニ株式会社メニューA | AI182: 0
A183: =A182 -> 4 | E183: 2 | F183: 鉱業 | J183: その他の電子部品 | N183: 電子回路 | S183: フレキシブルプリント配線板 | AH183: A0179アンフィニ株式会社メニューB | AI183: 0
A184: 4 | E184: 3 | F184: 飲食料品 | N184: その他の電子部品 | S184: モジュール基板 | AH184: A0179アンフィニ株式会社メニューC(残差) | AI184: 0.000477
A185: 4 | E185: 4 | F185: 繊維製品 | S185: その他の電子回路基板 | AH185: A0166株式会社イーエムアイ | AI185: 0.000521
A186: 4 | E186: 5 | F186: パルプ・紙・木製品 | S186: プリント配線実装基板 | AH186: A0008株式会社イーセル | AI186: 0.000496
A187: 4 | E187: 6 | F187: 印刷・製版 | S187: モジュール実装基板 | AH187: A0551飯田まちづくり電力株式会社 | AI187: 0.000456
A188: 4 | E188: 7 | F188: 化学製品 | S188: 半製品及び仕掛品 | AH188: A0615株式会社イーネットワーク | AI188: 0.000426
A189: 4 | E189: 8 | F189: 石油・石炭製品 | AH189: A0067株式会社イーネットワークシステムズ(参考値)事業者全体 | AI189: 0.000393
A190: 4 | E190: 9 | F190: プラスチック・ゴム製品 | AH190: A0067株式会社イーネットワークシステムズメニューA | AI190: 0
A191: 4 | E191: 10 | F191: 革製品 | AH191: A0067株式会社イーネットワークシステムズメニューB | AI191: 0
A192: 4 | E192: 11 | F192: 窯業・土石製品 | AH192: A0067株式会社イーネットワークシステムズメニューC（残差） | AI192: 0.000253
A193: 4 | E193: 12 | F193: 鉄鋼 | AH193: A0002イーレックス株式会社 | AI193: 0.000499
A194: 4 | E194: 13 | F194: 非鉄金属 | AH194: A0298イオンディライト株式会社 | AI194: 0.000436
A195: 4 | E195: 14 | F195: 金属製品 | AH195: A0248株式会社池見石油店 | AI195: 0.00054
A196: 4 | E196: 15 | F196: はん用機械 | AH196: A0435いこま市民パワー株式会社 | AI196: 0.000316
A197: 4 | E197: 16 | F197: 業務用機械 | AH197: A0572株式会社イシオ | AI197: 0.000585
A198: 4 | E198: 17 | F198: 電子部品 | AH198: A0410石川電力株式会社 | AI198: 0.000545
A199: 4 | E199: 18 | F199: 電気機械 | AH199: A0034一般財団法人泉佐野電力 | AI199: 0.000439
A200: 4 | E200: 19 | F200: 情報通信機器 | AH200: A0293出雲ガス株式会社 | AI200: 0.000418
... 4069 more rows

Sheet xoutput (hidden)
A1: =calc!H1 -> 1 | B1: calcu | D1: 1購入 | E1: 2資本 | F1: 3エネルギー波及 | G1: 4上流配送 | H1: 5事業廃棄物 | I1: 6出張 | J1: 7通勤 | K1: 8上流リース | L1: 9下流配送 | M1: 9販売後加工 | N1: 11使用 | O1: 12使用後廃棄 | P1: 13下流リース | Q1: 14フランチャイズ | R1: 15投資 | S1: scope1 | T1: scope2 | U1: scope123 | V1: 控除
A2: =calc!H1 | D2: =xlistSo!AD2 -> 0 | E2: =xlistSo!AD3 -> 0 | F2: =calc!L12+xlistSo!AD4 ->  | G2: =xlistSo!AD5 -> 0 | H2: =calc!U2 -> 0 | I2: =xlistSo!AD7 -> 0 | J2: =xlistSo!AD8 -> 0 | K2: =xlistSo!AD9 -> 0 | L2: =xlistSo!AD10 -> 0 | M2: =calc!S29*xlistSo!AD20 -> 0 | N2: =calc!Z1*xlistSo!AD21 -> 0 | O2: =calc!V2 -> 0 | P2: =xlistSo!AD14 -> 0 | Q2: =select!C106 -> 0 | R2: =xlistSo!AD16 -> 0 | S2: =calc!J12 -> 106.50662 | T2: =calc!J24 -> 0 | U2: =SUM(D2:T2) ->  | V2: =calc!AP3 -> 0
B3: output | D3: 1購入 | E3: 2資本 | F3: 3エネルギー波及 | G3: 4上流配送 | H3: 5事業廃棄物 | I3: 6出張 | J3: 7通勤 | K3: 8上流リース | L3: 9下流配送 | M3: 9販売後加工 | N3: 11使用 | O3: 12使用後廃棄 | P3: 13下流リース | Q3: 14フランチャイズ | R3: 15投資 | S3: scope1 | T3: scope2 | U3: scope123 | V3: 控除
D4: 72.81308977 | E4: 31.30499745 | F4: 8.576140433 | G4: 7.787723663 | H4: 20.35 | I4: 9.490019341 | J4: 5.009808635 | K4: 0 | L4: 16.72742657 | M4: 2.3135 | N4: 0 | O4: 9.5 | P4: 0 | Q4: 0 | R4: 5.146792518 | S4: 123.90662 | T4: 108.80793 | U4: 421.7340484 | V4: 381.3868573
B5: calc | E5: output
B6: =#REF! ->  | C6: =#REF! ->  | E6: 備品 | F6: 57.35221331 | J6: calc | L6: copy
B7: =#REF! ->  | C7: =#REF! ->  | E7: 工場設備 | F7: 31.30499745 | J7: =calc!J27 -> 0.5325331 | L7: 0.6195331
B8: =#REF! ->  | C8: =#REF! ->  | E8: 配送費 | F8: 16.72742657 | J8: =calc!J28 -> 0.5325331 | L8: 1.16357275
B9: =#REF! ->  | C9: =#REF! ->  | E9: ダスト処理 | F9: 15.42894112
B10: =#REF! ->  | C10: =#REF! ->  | E10: 出張旅費 | F10: 9.490019341
B12: calc | F12: copy
C13: =calc!AP1 -> 貢献 | D13: =calc!AQ1 -> 負荷 | G13: 貢献 | H13: 負荷
B14: =calc!AO2 -> 再生製品 | C14: =xlistSo!V3001 -> 95.59638068 | D14: 0 | F14: 製品代替 | G14: 126.2713485
B15: =calc!AO3 -> 再生素材 | C15: =calc!AP3 -> 0 | D15: =calc!AQ3 -> 0 | F15: 素材代替 | G15: 381.3868573 | H15: 0
B16: =calc!AO4 -> scope1 | C16: =calc!AP4 -> 0 | D16: =calc!AQ4 -> 106.50662 | F16: scope1 | G16: 0 | H16: 123.90662
B17: =calc!AO5 -> scope2 | C17: =calc!AP5 -> 0 | D17: =calc!AQ5 -> 0 | F17: scope2 | G17: 0 | H17: 108.80793
B18: =calc!AO6 -> scope3 | C18: =calc!AP6 -> 0 | D18: =calc!AQ6 ->  | F18: scope3 | G18: 0 | H18: 179.5194984
B21: サービス提供のため該当せず | F21: =select!G93 -> サービス
B22: 製品提供のため該当せず | F22: =select!G93 -> サービス | G22: =IF(F22="素材",B23,IF(F22="部品",B24,B26)) -> 代表製品年間エネルギー消費
B23: 素材提供のため該当せず | G23: =IF(F23="製品",B22,IF(F23="部品",B25,IF(F23="サービス",B21,B27))) -> 対象素材加工産業での排出
B24: 部品提供のため該当せず
B25: 該当入力無し
B26: 代表製品年間エネルギー消費
B27: 対象素材加工産業での排出

Sheet calc (hidden)
D1: =LEFT(xpwdLCA!A2,12) -> AdTeHDuGiN@M | H1: =IF(json!$E$1<>"",1,0) -> 1 | R1: 製造廃棄物処理 | S1: 使用後廃棄物処理 | U1: 製造廃棄物処理 | V1: 使用後廃棄物処理 | Y1: 使用時 | Z1: =Z9+Z14 -> 0 | AM1: =SUM(AM2:AM20) -> 0 | AP1: 貢献 | AQ1: 負荷
E2: IOpy | L2: 波及 | Q2: 計算 | R2: =SUM(R3:R26) -> 0 | S2: =SUM(S3:S26) -> 0 | U2: =SUM(U3:U26) -> 0 | V2: =SUM(V3:V26) -> 0 | W2: =select!J92 -> 0 | X2: 重量/百万円 | AI2: 1 | AJ2: =IFERROR(VLOOKUP(select!$C170,calc!$AE$3:$AG$19,1,0),"") ->  | AK2: =IFERROR(VLOOKUP(select!$C170,calc!$AE$3:$AG$19,2,0),"") ->  | AL2: =IFERROR(VLOOKUP(select!$C170,calc!$AE$3:$AG$19,3,0),"") ->  | AM2: =IFERROR(AK2*select!D170,0) -> 0 | AO2: 再生製品 | AP2: =xlistSo!V3001 -> 95.59638068
B3: 原料炭 | C3: 2.61 | D3: t | E3: 0.09174332848 | F3: 1 | G3: =IFERROR(VLOOKUP(select!C7,calc!B$3:D$29,2,FALSE),"") -> 3 | H3: =IFERROR(VLOOKUP(select!C7,calc!B$3:D$29,3,FALSE),"") -> kL | I3: =IFERROR(G3*select!D7,0) -> 60 | J3: =I3*$H$1 -> 60 | K3: =IFERROR(VLOOKUP(select!C7,calc!B$3:D$29,1,FALSE),"") -> B・C重油 | L3: =IFERROR(VLOOKUP(select!C7,calc!B$3:E$29,4,FALSE),"")*G3 -> 1.660184534 | N3: 燃えがら | Q3: 0.04526787582 | R3: =IFERROR(VLOOKUP(N3,select!$C$93:$D$103,2,0),0) -> 0 | U3: =R3*Q3 -> 0 | V3: =S3*Q3 -> 0 | Y3: 売上 | Z3: =select!D30 -> 200 | AA3: 百万 | AE3: プラスチック(水平利用用) /t | AF3: 1.155 | AG3: t | AI3: 2 | AJ3: =IFERROR(VLOOKUP(select!$C171,calc!$AE$3:$AG$19,1,0),"") ->  | AK3: =IFERROR(VLOOKUP(select!$C171,calc!$AE$3:$AG$19,2,0),"") ->  | AL3: =IFERROR(VLOOKUP(select!$C171,calc!$AE$3:$AG$19,3,0),"") ->  | AM3: =IFERROR(AK3*select!D171,0) -> 0 | AO3: 再生素材 | AP3: =AM1 -> 0
B4: 一般炭 | C4: 2.33 | D4: t | E4: =E3 -> 0.09174332848 | F4: 2 | G4: =IFERROR(VLOOKUP(select!C8,calc!B$3:D$29,2,FALSE),"") -> 2.32 | H4: =IFERROR(VLOOKUP(select!C8,calc!B$3:D$29,3,FALSE),"") -> kL | I4: =IFERROR(G4*select!D8,0) -> 46.4 | J4: 46.4 | K4: =IFERROR(VLOOKUP(select!C8,calc!B$3:D$29,1,FALSE),"") -> ガソリン | L4: =IFERROR(VLOOKUP(select!C8,calc!B$3:E$29,4,FALSE),"")*G4 -> 2.56397019 | N4: 汚泥 | Q4: 0.2161432019 | R4: =IFERROR(VLOOKUP(N4,select!$C$93:$D$103,2,0),0) -> 0 | U4: 0 | V4: 0 | Y4: 寿命 | Z4: =select!H96 -> 0 | AA4: 年 | AE4: プラスチック(MIXプラ用) /t | AF4: 0.084 | AG4: t | AI4: 3 | AJ4: =IFERROR(VLOOKUP(select!$C172,calc!$AE$3:$AG$19,1,0),"") ->  | AK4: =IFERROR(VLOOKUP(select!$C172,calc!$AE$3:$AG$19,2,0),"") ->  | AL4: =IFERROR(VLOOKUP(select!$C172,calc!$AE$3:$AG$19,3,0),"") ->  | AM4: =IFERROR(AK4*select!D172,0) -> 0 | AO4: scope1 | AQ4: =J12 -> 106.50662
B5: 無煙炭 | C5: 2.52 | D5: t | E5: =E3 -> 0.09174332848 | F5: 3 | G5: =IFERROR(VLOOKUP(select!C9,calc!B$3:D$29,2,FALSE),"") -> 2.22 | H5: =IFERROR(VLOOKUP(select!C9,calc!B$3:D$29,3,FALSE),"") -> kNm3 | I5: =IFERROR(G5*select!D9,0) -> 0.04662 | J5: 0.04662 | K5: =IFERROR(VLOOKUP(select!C9,calc!B$3:D$29,1,FALSE),"") -> 天然ガス(LNG以外) | L5: =IFERROR(VLOOKUP(select!C9,calc!B$3:E$29,4,FALSE),"")*G5 -> 0 | N5: 廃油 | Q5: 1.815325636 | R5: =IFERROR(VLOOKUP(N5,select!$C$93:$D$103,2,0),0) -> 0 | U5: 0 | V5: 0 | Y5: 稼働率 | Z5: =select!H97/100 -> 0 | AE5: ガラス /t | AF5: 1.75 | AG5: t | AI5: 4 | AJ5: =IFERROR(VLOOKUP(select!$C173,calc!$AE$3:$AG$19,1,0),"") ->  | AK5: =IFERROR(VLOOKUP(select!$C173,calc!$AE$3:$AG$19,2,0),"") ->  | AL5: =IFERROR(VLOOKUP(select!$C173,calc!$AE$3:$AG$19,3,0),"") ->  | AM5: =IFERROR(AK5*select!D173,0) -> 0 | AO5: scope2 | AQ5: =J24 -> 0 | AR5: ←使用削除
B6: コークス | C6: 3.17 | D6: t | E6: =E3 -> 0.09174332848 | F6: 4 | G6: =IFERROR(VLOOKUP(select!C10,calc!B$3:D$29,2,FALSE),"") -> 6 | H6: =IFERROR(VLOOKUP(select!C10,calc!B$3:D$29,3,FALSE),"") -> kNm3 | I6: =IFERROR(G6*select!D10,0) -> 0.06 | J6: 0.06 | K6: =IFERROR(VLOOKUP(select!C10,calc!B$3:D$29,1,FALSE),"") -> プロパン | L6: =IFERROR(VLOOKUP(select!C10,calc!B$3:E$29,4,FALSE),"")*G6 -> 0 | N6: 廃酸 | Q6: 0.06272793892 | R6: =IFERROR(VLOOKUP(N6,select!$C$93:$D$103,2,0),0) -> 0 | U6: 0 | V6: 0 | AE6: セメント /t | AF6: 0.5765 | AG6: t | AI6: 5 | AJ6: =IFERROR(VLOOKUP(select!$C174,calc!$AE$3:$AG$19,1,0),"") ->  | AK6: =IFERROR(VLOOKUP(select!$C174,calc!$AE$3:$AG$19,2,0),"") ->  | AL6: =IFERROR(VLOOKUP(select!$C174,calc!$AE$3:$AG$19,3,0),"") ->  | AM6: =IFERROR(AK6*select!D174,0) -> 0 | AO6: scope3 | AQ6: =#REF!-#REF!-#REF!-#REF! -> 
B7: 石油コークス | C7: 2.78 | D7: t | E7: 0.2638473797 | F7: 5 | G7: =IFERROR(VLOOKUP(select!C11,calc!B$3:D$29,2,FALSE),"") ->  | H7: =IFERROR(VLOOKUP(select!C11,calc!B$3:D$29,3,FALSE),"") ->  | I7: =IFERROR(G7*select!D11,0) -> 0 | J7: 0 | K7: =IFERROR(VLOOKUP(select!C11,calc!B$3:D$29,1,FALSE),"") ->  | L7: =IFERROR(VLOOKUP(select!C11,calc!B$3:E$29,4,FALSE),"")*G7 ->  | N7: 廃アルカリ | Q7: 0.06713341607 | R7: =IFERROR(VLOOKUP(N7,select!$C$93:$D$103,2,0),0) -> 0 | U7: 0 | V7: 0 | Y7: 電力 | Z7: =select!H98 -> 0 | AA7: kw/百万 | AE7: 鉄鋼(高炉級用scrap) /t | AF7: 1.19 | AG7: t | AI7: 6 | AJ7: =IFERROR(VLOOKUP(select!$C175,calc!$AE$3:$AG$19,1,0),"") ->  | AK7: =IFERROR(VLOOKUP(select!$C175,calc!$AE$3:$AG$19,2,0),"") ->  | AL7: =IFERROR(VLOOKUP(select!$C175,calc!$AE$3:$AG$19,3,0),"") ->  | AM7: =IFERROR(AK7*select!D175,0) -> 0
B8: コールタール | C8: 2.86 | D8: t | E8: 0.895208265 | F8: 6 | G8: =IFERROR(VLOOKUP(select!C12,calc!B$3:D$29,2,FALSE),"") ->  | H8: =IFERROR(VLOOKUP(select!C12,calc!B$3:D$29,3,FALSE),"") ->  | I8: =IFERROR(G8*select!D12,0) -> 0 | J8: 0 | K8: =IFERROR(VLOOKUP(select!C12,calc!B$3:D$29,1,FALSE),"") ->  | L8: =IFERROR(VLOOKUP(select!C12,calc!B$3:E$29,4,FALSE),"")*G8 ->  | N8: 廃プラスチック類 | Q8: 0.8214493427 | R8: =IFERROR(VLOOKUP(N8,select!$C$93:$D$103,2,0),0) -> 0 | S8: =T8/100*W$2*$Z$3/100 -> 0 | T8: =select!J98 -> 0 | U8: 0 | V8: 0 | Z8: =Z7*24*365*Z5 -> 0 | AA8: 年間 | AE8: 鉄鋼(電炉級用scrap) /t | AF8: 0.116 | AG8: t | AI8: 7 | AJ8: =IFERROR(VLOOKUP(select!$C176,calc!$AE$3:$AG$19,1,0),"") ->  | AK8: =IFERROR(VLOOKUP(select!$C176,calc!$AE$3:$AG$19,2,0),"") ->  | AL8: =IFERROR(VLOOKUP(select!$C176,calc!$AE$3:$AG$19,3,0),"") ->  | AM8: =IFERROR(AK8*select!D176,0) -> 0
B9: 石油アスファルト | C9: 3.12 | D9: t | F9: 7 | G9: =IFERROR(VLOOKUP(select!C13,calc!B$3:D$29,2,FALSE),"") ->  | H9: =IFERROR(VLOOKUP(select!C13,calc!B$3:D$29,3,FALSE),"") ->  | I9: =IFERROR(G9*select!D13,0) -> 0 | J9: 0 | K9: =IFERROR(VLOOKUP(select!C13,calc!B$3:D$29,1,FALSE),"") ->  | L9: =IFERROR(VLOOKUP(select!C13,calc!B$3:E$29,4,FALSE),"")*G9 ->  | N9: 紙くず | Q9: 0.1317200936 | R9: =IFERROR(VLOOKUP(N9,select!$C$93:$D$103,2,0),0) -> 0 | S9: =T9/100*W$2*$Z$3/100 -> 0 | T9: =select!J96 -> 0 | U9: 0 | V9: 0 | Z9: =Z8*AB9 -> 0 | AA9: CO2 | AB9: =C31 -> 0.000453 | AD9: IOpy | AE9: Ni系ステンレス /t | AF9: =3.525-0.627 -> 2.898 | AG9: t | AI9: 8 | AJ9: =IFERROR(VLOOKUP(select!$C177,calc!$AE$3:$AG$19,1,0),"") ->  | AK9: =IFERROR(VLOOKUP(select!$C177,calc!$AE$3:$AG$19,2,0),"") ->  | AL9: =IFERROR(VLOOKUP(select!$C177,calc!$AE$3:$AG$19,3,0),"") ->  | AM9: =IFERROR(AK9*select!D177,0) -> 0
B10: コンデンセート(NGL) | C10: 2.38 | D10: kL | F10: 8 | G10: =IFERROR(VLOOKUP(select!C14,calc!B$3:D$29,2,FALSE),"") ->  | H10: =IFERROR(VLOOKUP(select!C14,calc!B$3:D$29,3,FALSE),"") ->  | I10: =IFERROR(G10*select!D14,0) -> 0 | J10: 0 | K10: =IFERROR(VLOOKUP(select!C14,calc!B$3:D$29,1,FALSE),"") ->  | L10: =IFERROR(VLOOKUP(select!C14,calc!B$3:E$29,4,FALSE),"")*G10 ->  | N10: 木くず | Q10: 0.1126774819 | R10: =IFERROR(VLOOKUP(N10,select!$C$93:$D$103,2,0),0) -> 0 | S10: =T10/100*W$2*$Z$3/100 -> 0 | T10: =select!J95 -> 0 | U10: 0 | V10: 0 | AA10: 生涯CO2 | AE10: 銅(再溶解用スクラップ) /t | AF10: 4.25 | AG10: t | AI10: 9 | AJ10: =IFERROR(VLOOKUP(select!$C178,calc!$AE$3:$AG$19,1,0),"") ->  | AK10: =IFERROR(VLOOKUP(select!$C178,calc!$AE$3:$AG$19,2,0),"") ->  | AL10: =IFERROR(VLOOKUP(select!$C178,calc!$AE$3:$AG$19,3,0),"") ->  | AM10: =IFERROR(AK10*select!D178,0) -> 0
B11: 原油 | C11: 2.62 | D11: kL | N11: 繊維くず | Q11: 0.3132346298 | R11: =IFERROR(VLOOKUP(N11,select!$C$93:$D$103,2,0),0) -> 0 | S11: =T11/100*W$2*$Z$3/100 -> 0 | T11: =select!J94 -> 0 | U11: 0 | V11: 0 | AE11: 銅(製錬用スクラップ) /t | AF11: 3.39 | AG11: t | AI11: 11 | AJ11: =IFERROR(VLOOKUP(select!$C179,calc!$AE$3:$AG$19,1,0),"") ->  | AK11: =IFERROR(VLOOKUP(select!$C179,calc!$AE$3:$AG$19,2,0),"") ->  | AL11: =IFERROR(VLOOKUP(select!$C179,calc!$AE$3:$AG$19,3,0),"") ->  | AM11: =IFERROR(AK11*select!D179,0) -> 0
B12: ガソリン | C12: 2.32 | D12: kL | E12: 1.105159564 | I12: 燃料 | J12: =SUM(J3:J10) -> 106.50662 | L12: =SUM(L3:L10) ->  | N12: 動植物性残渣 | Q12: 0.1006184665 | R12: =IFERROR(VLOOKUP(N12,select!$C$93:$D$103,2,0),0) -> 0 | U12: 0 | V12: 0 | Y12: 燃料 | Z12: =select!H99 -> 0 | AA12: L/h/百万 | AE12: アルミニウム(展伸材用スクラップ) /t | AF12: 11.52 | AG12: t | AI12: 12 | AJ12: =IFERROR(VLOOKUP(select!$C180,calc!$AE$3:$AG$19,1,0),"") ->  | AK12: =IFERROR(VLOOKUP(select!$C180,calc!$AE$3:$AG$19,2,0),"") ->  | AL12: =IFERROR(VLOOKUP(select!$C180,calc!$AE$3:$AG$19,3,0),"") ->  | AM12: =IFERROR(AK12*select!D180,0) -> 0
B13: ナフサ | C13: 2.24 | D13: kL | E13: 0.4043827871 | N13: 動物系固形不要物 | Q13: 0.1583032414 | R13: =IFERROR(VLOOKUP(N13,select!$C$93:$D$103,2,0),0) -> 0 | S13: =T13/100*W$2*$Z$3/100 -> 0 | T13: =select!J100 -> 0 | U13: 0 | V13: 0 | Z13: =Z12*24*365*Z5 -> 0 | AA13: 年間 | AC13: CO2/g | AD13: \/g | AE13: アルミニウム(鋳物用スクラップ)) /t | AF13: 4.82 | AG13: t | AI13: 13 | AJ13: =IFERROR(VLOOKUP(select!$C181,calc!$AE$3:$AG$19,1,0),"") ->  | AK13: =IFERROR(VLOOKUP(select!$C181,calc!$AE$3:$AG$19,2,0),"") ->  | AL13: =IFERROR(VLOOKUP(select!$C181,calc!$AE$3:$AG$19,3,0),"") ->  | AM13: =IFERROR(AK13*select!D181,0) -> 0
B14: ジェット燃料油 | C14: 2.46 | D14: kL | E14: 0.6124892058 | N14: ゴムくず | Q14: 0.03857595231 | R14: =IFERROR(VLOOKUP(N14,select!$C$93:$D$103,2,0),0) -> 0 | S14: =T14/100*W$2*$Z$3/100 -> 0 | T14: =select!J99 -> 0 | U14: 0 | V14: 0 | Z14: =Z13*AB14/1000 -> 0 | AA14: CO2 | AB14: =C16 -> 2.58 | AD14: ↓ | AE14: 金(再溶解用) /t | AF14: 9807 | AG14: t | AI14: 14 | AJ14: =IFERROR(VLOOKUP(select!$C182,calc!$AE$3:$AG$19,1,0),"") ->  | AK14: =IFERROR(VLOOKUP(select!$C182,calc!$AE$3:$AG$19,2,0),"") ->  | AL14: =IFERROR(VLOOKUP(select!$C182,calc!$AE$3:$AG$19,3,0),"") ->  | AM14: =IFERROR(AK14*select!D182,0) -> 0
B15: 灯油 | C15: 2.49 | D15: kL | E15: 0.6703726168 | N15: 金属くず | Q15: 0.01215924294 | R15: =IFERROR(VLOOKUP(N15,select!$C$93:$D$103,2,0),0) -> 0 | S15: =T15/100*W$2*$Z$3/100 -> 0 | T15: =select!J104+select!J105+select!J106+select!J107 -> 0 | U15: 0 | V15: 0 | AA15: 生涯CO2 | AC15: 8920 | AD15: 7659 | AE15: 金再生用混合品 /百万円 | AF15: =AC15/AD15 -> 1.164642904 | AG15: 百万円 | AI15: 15 | AJ15: =IFERROR(VLOOKUP(select!$C183,calc!$AE$3:$AG$19,1,0),"") ->  | AK15: =IFERROR(VLOOKUP(select!$C183,calc!$AE$3:$AG$19,2,0),"") ->  | AL15: =IFERROR(VLOOKUP(select!$C183,calc!$AE$3:$AG$19,3,0),"") ->  | AM15: =IFERROR(AK15*select!D183,0) -> 0
B16: 軽油 | C16: 2.58 | D16: kL | E16: 0.9435163666 | N16: ガラス陶磁器くず | Q16: 0.03211246501 | R16: =IFERROR(VLOOKUP(N16,select!$C$93:$D$103,2,0),0) -> 0 | S16: =T16/100*W$2*$Z$3/100 -> 0 | T16: =select!J101 -> 0 | U16: 0 | V16: 0 | AC16: 3.39 | AD16: 1.284 | AE16: 銅再生用混合品 /百万円 | AF16: =AC16/AD16 -> 2.640186916 | AG16: 百万円 | AI16: 16 | AJ16: =IFERROR(VLOOKUP(select!$C184,calc!$AE$3:$AG$19,1,0),"") ->  | AK16: =IFERROR(VLOOKUP(select!$C184,calc!$AE$3:$AG$19,2,0),"") ->  | AL16: =IFERROR(VLOOKUP(select!$C184,calc!$AE$3:$AG$19,3,0),"") ->  | AM16: =IFERROR(AK16*select!D184,0) -> 0
B17: A重油 | C17: 2.71 | D17: kL | E17: 0.6364660162 | N17: 鉱さい | Q17: 0.02189019801 | R17: =IFERROR(VLOOKUP(N17,select!$C$93:$D$103,2,0),0) -> 0 | U17: 0 | V17: 0 | AE17: 再製油 /kL | AF17: =C16 -> 2.58 | AG17: kL | AI17: 17 | AJ17: =IFERROR(VLOOKUP(select!$C185,calc!$AE$3:$AG$19,1,0),"") ->  | AK17: =IFERROR(VLOOKUP(select!$C185,calc!$AE$3:$AG$19,2,0),"") ->  | AL17: =IFERROR(VLOOKUP(select!$C185,calc!$AE$3:$AG$19,3,0),"") ->  | AM17: =IFERROR(AK17*select!D185,0) -> 0
B18: B・C重油 | C18: 3 | D18: kL | E18: 0.5533948448 | F18: 1 | G18: =IFERROR(VLOOKUP(select!C19,calc!B$31:C$928,2,FALSE),"") ->  | I18: =IFERROR(G18*select!D19,0) -> 0 | J18: =I18*$H$1 -> 0 | N18: がれき類 | Q18: 0.01133600716 | R18: =IFERROR(VLOOKUP(N18,select!$C$93:$D$103,2,0),0) -> 0 | U18: 0 | V18: 0 | AE18: ざら紙 /百万円 | AF18: 1.83 | AG18: 百万円 | AI18: 18 | AJ18: =IFERROR(VLOOKUP(select!$C186,calc!$AE$3:$AG$19,1,0),"") ->  | AK18: =IFERROR(VLOOKUP(select!$C186,calc!$AE$3:$AG$19,2,0),"") ->  | AL18: =IFERROR(VLOOKUP(select!$C186,calc!$AE$3:$AG$19,3,0),"") ->  | AM18: =IFERROR(AK18*select!D186,0) -> 0
B19: 液化石油ガス(LPG) | C19: 3 | D19: t | F19: 2 | G19: =IFERROR(VLOOKUP(select!C20,calc!B$31:C$928,2,FALSE),"") ->  | I19: =IFERROR(G19*select!D20,0) -> 0 | J19: =I19*$H$1 -> 0 | N19: 動物のふん尿 | Q19: 0.07954799551 | R19: =IFERROR(VLOOKUP(N19,select!$C$93:$D$103,2,0),0) -> 0 | U19: 0 | V19: 0 | AE19: 段ボール /百万円 | AF19: 0.81 | AG19: 百万円 | AI19: 19 | AJ19: =IFERROR(VLOOKUP(select!$C187,calc!$AE$3:$AG$19,1,0),"") ->  | AK19: =IFERROR(VLOOKUP(select!$C187,calc!$AE$3:$AG$19,2,0),"") ->  | AL19: =IFERROR(VLOOKUP(select!$C187,calc!$AE$3:$AG$19,3,0),"") ->  | AM19: =IFERROR(AK19*select!D187,0) -> 0
B20: 液化石油ガス(LPG)体積 | C20: 6.6 | D20: kNm3 | E20: 0.5370656495 | F20: 3 | G20: =IFERROR(VLOOKUP(select!C21,calc!B$31:C$928,2,FALSE),"") ->  | I20: =IFERROR(G20*select!D21,0) -> 0 | J20: =I20*$H$1 -> 0 | N20: 動物の死体 | Q20: 0.1422357758 | R20: =IFERROR(VLOOKUP(N20,select!$C$93:$D$103,2,0),0) -> 0 | U20: 0 | V20: 0 | AI20: 20 | AJ20: =IFERROR(VLOOKUP(select!$C188,calc!$AE$3:$AG$19,1,0),"") ->  | AK20: =IFERROR(VLOOKUP(select!$C188,calc!$AE$3:$AG$19,2,0),"") ->  | AL20: =IFERROR(VLOOKUP(select!$C188,calc!$AE$3:$AG$19,3,0),"") ->  | AM20: =IFERROR(AK20*select!D188,0) -> 0
B21: プロパン | C21: 6 | D21: kNm3 | F21: 4 | G21: =IFERROR(VLOOKUP(select!C22,calc!B$31:C$928,2,FALSE),"") ->  | I21: =IFERROR(G21*select!D22,0) -> 0 | J21: =I21*$H$1 -> 0 | N21: ばいじん | Q21: 0.04888420571 | R21: =IFERROR(VLOOKUP(N21,select!$C$93:$D$103,2,0),0) -> 0 | U21: 0 | V21: 0
B22: ブタン | C22: 8.5 | D22: kNm3 | F22: 5 | G22: =IFERROR(VLOOKUP(select!C23,calc!B$31:C$928,2,FALSE),"") ->  | I22: =IFERROR(G22*select!D23,0) -> 0 | J22: =I22*$H$1 -> 0 | N22: 液晶・プラズマテレビ | Q22: 0.1660347567 | R22: =IFERROR(VLOOKUP(N22,select!$C$93:$D$103,2,0),0) -> 0 | U22: 0 | V22: 0
B23: 石油系炭化水素ガス | C23: 2.34 | D23: kNm3 | N23: 冷蔵庫・冷凍庫 | Q23: 0.1179262815 | R23: =IFERROR(VLOOKUP(N23,select!$C$93:$D$103,2,0),0) -> 0 | U23: 0 | V23: 0
B24: 液化天然ガス(LNG) | C24: 2.7 | D24: kNm3 | I24: 電力 | J24: =SUM(J18:J22) -> 0 | N24: 洗濯機・衣類乾燥機 | Q24: 0.06954796873 | R24: =IFERROR(VLOOKUP(N24,select!$C$93:$D$103,2,0),0) -> 0 | U24: 0 | V24: 0
B25: 天然ガス(LNG以外) | C25: 2.22 | D25: kNm3 | J25: =J24+J12 -> 106.50662 | N25: エアコン | Q25: 0.07362515822 | R25: =IFERROR(VLOOKUP(N25,select!$C$93:$D$103,2,0),0) -> 0 | U25: 0 | V25: 0
B26: コークス炉ガス | C26: 0.85 | D26: kNm3 | E26: 0.7226138327 | N26: パソコン・モニタ | Q26: 0.06437005096 | R26: =IFERROR(VLOOKUP(N26,select!$C$93:$D$103,2,0),0) -> 0 | U26: 0 | V26: 0
B27: 高炉がス | C27: 0.33 | D27: kNm3 | H27: scope1 | I27: 単位 | J27: =IFERROR(J12/select!D$30,0) -> 0.5325331
B28: 転炉ガス | C28: 1.18 | D28: kNm3 | H28: scope2 | I28: 単位 | J28: =IFERROR(J25/select!D$30,0) -> 0.5325331 | N28: 控除計算 | S28: CO2
B29: 都市ガス | C29: 2.23 | D29: kNm3 | P29: 直接CO2/M\ | R29: =select!J92 -> 0 | S29: =SUM(S30:S43) -> 0
N30: 繊維 | P30: 0.52 | Q30: 151909 | R30: =select!J94/100 -> 0 | S30: =R30*$R$29*P30 -> 0
B31: 日本平均 | C31: 0.000453 | N31: 木材 | P31: 0.104 | Q31: 161909 | R31: =select!J95/100 -> 0 | S31: 0
B32: A0267北海道電力株式会社メニューA | C32: 0 | N32: パルプ・紙 | P32: 0.319 | Q32: 182909 | R32: =select!J96/100 -> 0 | S32: 0
B33: A0267北海道電力株式会社メニューB（残差） | C33: 0.00055 | N33: 化学製品 | P33: 1.33 | Q33: 207909 | R33: =select!J97/100 -> 0 | S33: 0
B34: A0267北海道電力株式会社(参考値)事業者全体 | C34: 0.000601 | N34: プラスチック | P34: 0.093 | Q34: 221101 | R34: =select!J98/100 -> 0 | S34: 0
B35: A0268東北電力株式会社メニューA | C35: 0 | N35: ゴム | P35: 0.24 | Q35: 231909 | R35: =select!J99/100 -> 0 | S35: 0
B36: A0268東北電力株式会社メニューB | C36: 0 | N36: 革 | P36: 0.11 | Q36: 240212 | R36: =select!J100/100 -> 0 | S36: 0
B37: A0268東北電力株式会社メニューC（残差） | C37: 0.000457 | N37: ガラス | P37: 2.81 | Q37: 251909 | R37: =select!J101/100 -> 0 | S37: 0
B38: A0268東北電力株式会社(参考値)事業者全体 | C38: 0.000521 | N38: セメント | P38: 1.23 | Q38: 252301 | R38: =select!J102/100 -> 0 | S38: 0
B39: A0269東京電力エナジーパートナー株式会社メニューA | C39: 0 | N39: 窯業・土石 | P39: 3.12 | Q39: 259909 | R39: =select!J103/100 -> 0 | S39: 0
B40: A0269東京電力エナジーパートナー株式会社メニューB | C40: 0 | N40: 鋼 | P40: 0.531 | Q40: 264909 | R40: =select!J104/100 -> 0 | S40: 0
B41: A0269東京電力エナジーパートナー株式会社メニューC | C41: 0 | N41: 銅 | P41: 0.41 | Q41: 272201 | R41: =select!J105/100 -> 0 | S41: 0
B42: A0269東京電力エナジーパートナー株式会社メニューD | C42: 0 | N42: アルミ | P42: 0.288 | Q42: 272202 | R42: =select!J106/100 -> 0 | S42: 0
B43: A0269東京電力エナジーパートナー株式会社メニューE | C43: 0 | N43: 非鉄金属 | P43: 0.832 | Q43: 272203 | R43: =select!J107/100 -> 0 | S43: 0
B44: A0269東京電力エナジーパートナー株式会社メニューF | C44: 0 | N44: その他
B45: A0269東京電力エナジーパートナー株式会社メニューG（残差） | C45: 0.000443
B46: A0269東京電力エナジーパートナー株式会社(参考値)事業者全体 | C46: 0.000441 | N46: グローバルCO2 | P46: 直接排出
B47: A0270中部電力ミライズ株式会社メニューA | C47: 0
B48: A0270中部電力ミライズ株式会社メニューB（残差） | C48: 0.000379
B49: A0270中部電力ミライズ株式会社(参考値)事業者全体 | C49: 0.000424
B50: A0271北陸電力株式会社メニューA | C50: 0
B51: A0271北陸電力株式会社メニューB | C51: 0
B52: A0271北陸電力株式会社メニューC（残差） | C52: 0.000466
B53: A0271北陸電力株式会社(参考値)事業者全体 | C53: 0.000497
B54: A0272関西電力株式会社メニューA | C54: 0
B55: A0272関西電力株式会社メニューB | C55: 0
B56: A0272関西電力株式会社メニューC | C56: 0
B57: A0272関西電力株式会社メニューD（残差） | C57: 0.000351
B58: A0272関西電力株式会社(参考値)事業者全体 | C58: 0.000318
B59: A0273中国電力株式会社メニューA | C59: 0
B60: A0273中国電力株式会社メニューB | C60: 0
B61: A0273中国電力株式会社メニューC（残差） | C61: 0.000521
B62: A0273中国電力株式会社(参考値)事業者全体 | C62: 0.000585
B63: A0274四国電力株式会社メニューA | C63: 0
B64: A0274四国電力株式会社メニューB | C64: 0
B65: A0274四国電力株式会社メニューC（残差） | C65: 0.000574
B66: A0274四国電力株式会社(参考値)事業者全体 | C66: 0.000408
B67: A0275九州電力株式会社メニューA | C67: 0
B68: A0275九州電力株式会社メニューB（残差） | C68: 0.00048
B69: A0275九州電力株式会社(参考値)事業者全体 | C69: 0.00037
B70: A0276沖縄電力株式会社 | C70: 0.000705
B71: A0720株式会社ａｆｔｅｒＦＩＴメニューA | C71: 0
B72: A0398Ａｐａｍａｎ Ｅｎｅｒｇｙ株式会社 | C72: 0.000536
B73: A0704Ｃａｓｔｌｅｔｏｎ Ｃｏｍｍｏｄｉｔｉｅｓ Ｊａｐａｎ合同会社 | C73: 0.000408
B74: A0490株式会社ＣＤエナジーダイレクト(参考値)事業者全体 | C74: 0.000432
B75: A0490株式会社ＣＤエナジーダイレクトメニューA | C75: 0
B76: A0490株式会社ＣＤエナジーダイレクトメニューB（残差） | C76: 0.000364
B77: A0351株式会社ＣＨＩＢＡむつざわエナジー | C77: 0.000652
B78: A0451Ｃｏｃｏテラスたがわ株式会社 | C78: 0.000455
B79: A0362株式会社ＣＷＳ | C79: 0.000336
B80: A0050ENEOS株式会社(参考値)事業者全体 | C80: 0.000472
B81: A0050ENEOS株式会社メニューA | C81: 0
B82: A0050ENEOS株式会社メニューB | C82: 0
B83: A0050ENEOS株式会社メニューC（残差） | C83: 0.00048
B84: A0001株式会社Ｆ－Ｐｏｗｅｒ(参考値)事業者全体 | C84: 0.000513
B85: A0001株式会社Ｆ－ＰｏｗｅｒメニューA | C85: 0
B86: A0001株式会社Ｆ－ＰｏｗｅｒメニューB | C86: 0
B87: A0001株式会社Ｆ－ＰｏｗｅｒメニューC | C87: 0
B88: A0001株式会社Ｆ－ＰｏｗｅｒメニューD（残差） | C88: 0.000482
B89: A0321FTCエナジー合同会社 | C89: 0.000577
B90: A0347ＦＴエナジー株式会社 | C90: 0.000482
B91: A0202株式会社Ｇ－Ｐｏｗｅｒ | C91: 0
B92: A0635GYRO HOLDINGS株式会社 | C92: 0.000531
B93: A0172ＨＴＢエナジー株式会社 | C93: 0.000538
B94: A0512ＩＳエナジー株式会社 | C94: 0.000524
B95: A0221ＪＡＧ国際エナジー株式会社(参考値)事業者全体 | C95: 0.00053
B96: A0221ＪＡＧ国際エナジー株式会社メニューA | C96: 0
B97: A0221ＪＡＧ国際エナジー株式会社メニューB（残差） | C97: 0.000526
B98: A0180株式会社Ｊ－ＰＯＷＥＲサプライアンドトレーディング | C98: 0.000470※
B99: A0446ＪＰエネルギー株式会社 | C99: 0.000516
B100: A0661JR西日本住宅サービス株式会社 | C100: 0.000339
B101: A0306株式会社ＪＴＢコミュニケーションデザイン | C101: 0.000483
B102: A0539株式会社ｋａｒｃｈ | C102: 0.000401
B103: A0077ＫＤＤＩ株式会社 | C103: 0.000417
B104: A0235株式会社Ｋｅｎｅｓエネルギーサービス | C104: 0.000594
B105: A0695ＫＭパワー株式会社 | C105: 0.000468
B106: A0620株式会社LENETS | C106: 0.000529
B107: A0515株式会社Ｌｉｎｋ Ｌｉｆｅ | C107: 0.000545
B108: A0461株式会社ＬＩＸＩＬ ＴＥＰＣＯ スマートパートナーズ(参考値)事業者全体 | C108: 0.000504
B109: A0461株式会社ＬＩＸＩＬ ＴＥＰＣＯ スマートパートナーズメニューA | C109: 0
B110: A0461株式会社ＬＩＸＩＬ ＴＥＰＣＯ スマートパートナーズメニューB（残差） | C110: 0.000499
B111: A0021株式会社Ｌｏｏｏｐ(参考値)事業者全体 | C111: 0.000544
B112: A0021株式会社ＬｏｏｏｐメニューA | C112: 0
B113: A0021株式会社ＬｏｏｏｐメニューB | C113: 0.000349
B114: A0021株式会社ＬｏｏｏｐメニューC | C114: 0.000354
B115: A0021株式会社ＬｏｏｏｐメニューD | C115: 0.000382
B116: A0021株式会社ＬｏｏｏｐメニューE（残差） | C116: 0.000489
B117: A0584MCPD合同会社 | C117: 0.000431
B118: A0140ＭＣリテールエナジー株式会社(参考値)事業者全体 | C118: 0.000502
B119: A0140ＭＣリテールエナジー株式会社メニューA | C119: 0
B120: A0140ＭＣリテールエナジー株式会社メニューB | C120: 0
B121: A0140ＭＣリテールエナジー株式会社メニューC | C121: 0
B122: A0140ＭＣリテールエナジー株式会社メニューD（残差） | C122: 0.00048
B123: A0562ＭＧＣエネルギー株式会社 | C123: 0.000405
B124: A0284株式会社Ｍｉｓｕｍｉ | C124: 0.000253
B125: A0413株式会社MKエネルギー | C125: 0.000435
B126: A0303ＭＫステーションズ株式会社 | C126: 0.000423
B127: A0532株式会社Mpower | C127: 0.00053
B128: A0427Ｍｙシティ電力株式会社 | C128: 0.000552
B129: A0741Nature株式会社 | C129: 0.000799
B130: A0463株式会社NEXT ONE | C130: 0.00053
B131: A0222Ｎｅｘｔ Ｐｏｗｅｒ株式会社 | C131: 0.000542
B132: A0187ＮＦパワーサービス株式会社(参考値)事業者全体 | C132: 0.000467
B133: A0187ＮＦパワーサービス株式会社メニューA | C133: 0
B134: A0187ＮＦパワーサービス株式会社メニューB（残差） | C134: 0.00043
B135: A0242株式会社ＮＴＴファシリティーズ(参考値)事業者全体 | C135: 0.000427
B136: A0242株式会社ＮＴＴファシリティーズメニューA | C136: 0.000354
B137: A0242株式会社ＮＴＴファシリティーズメニューB（残差） | C137: 0.000359
B138: A0579株式会社OKUTA | C138: 0.00056
B139: A0414株式会社Ｏｐｔｉｍｉｚｅｄ Ｅｎｅｒｇｙ | C139: 0.000419
B140: A0332株式会社ＰｉｎＴ | C140: 0.000491
B141: A0611RE100電力株式会社(参考値)事業者全体 | C141: 0.000166
B142: A0611RE100電力株式会社メニューA | C142: 0
B143: A0611RE100電力株式会社メニューB（残差） | C143: 0
B144: A0711株式会社RenoLabo | C144: 0.000544
B145: A0593株式会社Sanko IB | C145: 0.000532
B146: A0186ＳＢパワー株式会社(参考値)事業者全体 | C146: 0.000524
B147: A0186ＳＢパワー株式会社メニューA | C147: 0
B148: A0186ＳＢパワー株式会社メニューB | C148: 0.000373
B149: A0186ＳＢパワー株式会社メニューC | C149: 0.00039
B150: A0186ＳＢパワー株式会社メニューD(残差) | C150: 0.000523
B151: A0007株式会社ＳＥウイングズ | C151: 0.000521
B152: A0017株式会社Ｓｈａｒｅｄ Ｅｎｅｒｇｙ | C152: 0.000533
B153: A0743T＆Tエナジー株式会社 | C153: 0.000499
B154: A0679TEPCOライフサービス株式会社 | C154: 0.000422
B155: A0582TERA Energy株式会社 | C155: 0.000453
B156: A0402株式会社ＴＯＫＹＯ油電力 | C156: 0.000526
B157: A0455ＴＲＥＮＤＥ株式会社 | C157: 0.000464
B158: A0214株式会社ＴＴＳパワー | C158: 0.000389
B159: A0660UNIVERGY株式会社 | C159: 0.000473
B160: A0055株式会社UPDATER(旧：みんな電力株式会社)(参考値)事業者全体 | C160: 0.000313
B161: A0055株式会社UPDATER(旧：みんな電力株式会社)メニューA | C161: 0
B162: A0055株式会社UPDATER(旧：みんな電力株式会社)メニューB | C162: 0.00024
B163: A0055株式会社UPDATER(旧：みんな電力株式会社)メニューC（残差） | C163: 0.000411
B164: A0213株式会社ＵＳＥＮ ＮＥＴＷＯＲＫＳ | C164: 0.000423
B165: A0045株式会社Ｖ－Ｐｏｗｅｒ(参考値)事業者全体 | C165: 0.000455
B166: A0045株式会社Ｖ－ＰｏｗｅｒメニューA | C166: 0.000309
B167: A0045株式会社Ｖ－ＰｏｗｅｒメニューB（残差） | C167: 0.000458
B168: A0581WSエナジー株式会社(参考値)事業者全体 | C168: 0.000392
B169: A0581WSエナジー株式会社メニューA | C169: 8e-06
B170: A0581WSエナジー株式会社メニューB（残差） | C170: 0.000392
B171: A0712アークエルテクノロジーズ株式会社 | C171: 0
B172: A0281株式会社アースインフィニティ | C172: 0.000466
B173: A0122アーバンエナジー株式会社(参考値)事業者全体 | C173: 0.00045
B174: A0122アーバンエナジー株式会社メニューA | C174: 0
B175: A0122アーバンエナジー株式会社メニューB | C175: 0.000292
B176: A0122アーバンエナジー株式会社メニューC | C176: 0.000367
B177: A0122アーバンエナジー株式会社メニューD | C177: 0.00039
B178: A0122アーバンエナジー株式会社メニューE | C178: 0
B179: A0122アーバンエナジー株式会社メニューF | C179: 0.000292
B180: A0122アーバンエナジー株式会社メニューG | C180: 0.000319
B181: A0122アーバンエナジー株式会社メニューH（残差） | C181: 0.000511
B182: A0060株式会社アイ・グリッド・ソリューションズ(参考値)事業者全体 | C182: 0.000365
B183: A0060株式会社アイ・グリッド・ソリューションズメニューA | C183: 0
B184: A0060株式会社アイ・グリッド・ソリューションズメニューB（残差） | C184: 0.000412
B185: A0622アイエスジー株式会社（旧：アイ・エス・ガステム株式会社） | C185: 0.000444
B186: A0236愛知電力株式会社 | C186: 0.000517
B187: A0380青森県民エナジー株式会社 | C187: 0.000549
B188: A0526朝日ガスエナジー株式会社 | C188: 0.000392
B189: A0692旭化成株式会社(参考値)事業者全体 | C189: 0.000382
B190: A0692旭化成株式会社メニューA | C190: 0.000318
B191: A0692旭化成株式会社メニューB | C191: 0.00039
B192: A0702旭マルヰガス株式会社 | C192: 0.000659
B193: A0283足利ガス株式会社 | C193: 0.000392
B194: A0173株式会社アシストワンエナジー | C194: 0.00051
B195: A0678アスエネ株式会社(参考値)事業者全体 | C195: 0.000202
B196: A0678アスエネ株式会社メニューA | C196: 0
B197: A0678アスエネ株式会社メニューB | C197: 0
B198: A0678アスエネ株式会社メニューC | C198: 0.000374
B199: A0678アスエネ株式会社メニューD | C199: 3.3e-05
B200: A0405アストマックス・エネルギー合同会社 | C200: 0.000479
... 728 more rows

Sheet xpwdLCA (hidden)
A1: Column1 | C1: =LEFT(A3,10) -> 2022/07/11 | E1: =TEXT(TODAY()-G1,"YYYY/MM/DD") -> 2024/05/06 | G1: =WEEKDAY(TODAY(),3) -> 3 | I1: =IF(C1=E1,1,0) -> 0
A2: AdTeHDuGiN@M
A3: 2022/07/11 00:00:02

Sheet jsonwk (hidden)
A1: 階層 | B1: キー名 | I1: 値 | M1: { | AI1: =M1&N1&O1&P1&Q1&R1&S1&T1&U1&V1&W1&X1&Y1&Z1&AA1&AB1&AC1 -> {
A2: 種類 | B2: パスワード | C2: 日付 | D2: 産出物 | E2: 売上 | G2: =select!H1 -> SCAT123P | H2: =select!D2 -> s4klArBUBW4r | I2: =TODAY() -> 2024-05-09 | J2: =select!G93 -> サービス | K2: =select!D30 -> 200 | M2: " | N2: =A2 -> 種類 | O2: ": " | P2: =G2 -> SCAT123P | Q2: "," | R2: =B2 -> パスワード | S2: ":" | T2: =H2 -> s4klArBUBW4r | U2: "," | V2: =C2 -> 日付 | W2: ":" | X2: =I2 -> 2024-05-09 | Y2: "," | Z2: =D2 -> 産出物 | AA2: ":" | AB2: =J2 -> サービス | AC2: "," | AD2: =E2 -> 売上 | AE2: ": | AF2: =K2 -> 200 | AG2: , | AI2: =M2&N2&O2&P2&Q2&R2&S2&T2&U2&V2&W2&X2&Y2&Z2&AA2&AB2&AC2&AD2&AE2&AF2&AG2 -> "種類": "SCAT123P","パスワード":"s4klArBUBW4r","日付":"45421","産出物":"サービス","売上":200,
A3: SC1 | B3: 燃料種 | C3: 燃料値 | G3: =A3 -> SC1 | I3: =select!C7 -> B・C重油 | J3: =select!D7 -> 20 | M3: " | N3: =A3 -> SC1 | O3: ":[ | Q3: {" | R3: 燃料種 | S3: ":" | T3: =I3 -> B・C重油 | U3: "," | V3: 燃料値 | W3: ": | X3: =J3 -> 20 | Y3: }, | AI3: =M3&N3&O3&P3&Q3&R3&S3&T3&U3&V3&W3&X3&Y3&Z3&AA3&AB3&AC3 -> "SC1":[{"燃料種":"B・C重油","燃料値":20},
B4: 燃料種 | C4: 燃料値 | I4: =select!C8 -> ガソリン | J4: =select!D8 -> 20 | Q4: {" | R4: 燃料種 | S4: ":" | T4: ガソリン | U4: "," | V4: 燃料値 | W4: ": | X4: 20 | Y4: }, | AI4: {"燃料種":"ガソリン","燃料値":20},
B5: 燃料種 | C5: 燃料値 | I5: =select!C9 -> 天然ガス(LNG以外) | J5: =select!D9 -> 0.021 | Q5: {" | R5: 燃料種 | S5: ":" | T5: 天然ガス(LNG以外) | U5: "," | V5: 燃料値 | W5: ": | X5: 0.021 | Y5: }, | AI5: {"燃料種":"天然ガス(LNG以外)","燃料値":0.021},
B6: 燃料種 | C6: 燃料値 | I6: =select!C10 -> プロパン | J6: =select!D10 -> 0.01 | Q6: {" | R6: 燃料種 | S6: ":" | T6: プロパン | U6: "," | V6: 燃料値 | W6: ": | X6: 0.01 | Y6: }, | AI6: {"燃料種":"プロパン","燃料値":0.01},
B7: 燃料種 | C7: 燃料値 | I7: =select!C11 -> SF6_NF3_HFC_PFC | J7: =select!D11 -> 0 | Q7: {" | R7: 燃料種 | S7: ":" | T7: SF6_NF3_HFC_PFC | U7: "," | V7: 燃料値 | W7: ": | X7: 0 | Y7: }, | AI7: {"燃料種":"SF6_NF3_HFC_PFC","燃料値":0},
B8: 燃料種 | C8: 燃料値 | I8: =select!C12 -> 触媒再生塔コークス | J8: =select!D12 -> 1 | Q8: {" | R8: 燃料種 | S8: ":" | T8: 触媒再生塔コークス | U8: "," | V8: 燃料値 | W8: ": | X8: 1 | Y8: }, | AI8: {"燃料種":"触媒再生塔コークス","燃料値":1},
B9: 燃料種 | C9: 燃料値 | I9: =select!C13 -> 0 | J9: =select!D13 -> 0 | Q9: {" | R9: 燃料種 | S9: ":" | T9: 0 | U9: "," | V9: 燃料値 | W9: ": | X9: 0 | Y9: }, | AI9: {"燃料種":"0","燃料値":0},
B10: 燃料種 | C10: 燃料値 | I10: =select!C14 -> 0 | J10: =select!D14 -> 0 | Q10: {" | R10: 燃料種 | S10: ":" | T10: 0 | U10: "," | V10: 燃料値 | W10: ": | X10: 0 | Y10: }], | AI10: {"燃料種":"0","燃料値":0}],
A11: SC2 | B11: 電力名 | C11: 電力値 | G11: =A11 -> SC2 | I11: =select!C19 -> A00003東京電力パワーグリッド(株)0.434 | J11: =select!D19 -> 200 | M11: " | N11: =A11 -> SC2 | O11: ":[ | Q11: {" | R11: 電力名 | S11: ":" | T11: A00003東京電力パワーグリッド(株)0.434 | U11: "," | V11: 電力値 | W11: ": | X11: 200 | Y11: }, | AI11: "SC2":[{"電力名":"A00003東京電力パワーグリッド(株)0.434","電力値":200},
B12: 電力名 | C12: 電力値 | I12: =select!C20 -> A0067C(株)イーネットワークシステムズメニューC0 | J12: =select!D20 -> 400 | Q12: {" | R12: 電力名 | S12: ":" | T12: A0067C(株)イーネットワークシステムズメニューC0 | U12: "," | V12: 電力値 | W12: ": | X12: 400 | Y12: }, | AI12: {"電力名":"A0067C(株)イーネットワークシステムズメニューC0","電力値":400},
B13: 電力名 | C13: 電力値 | I13: =select!C21 -> A00000日本平均0.434 | J13: =select!D21 -> 0 | Q13: {" | R13: 電力名 | S13: ":" | T13: A00000日本平均0.434 | U13: "," | V13: 電力値 | W13: ": | X13: 0 | Y13: }, | AI13: {"電力名":"A00000日本平均0.434","電力値":0},
B14: 電力名 | C14: 電力値 | I14: =select!C22 -> 0 | J14: =select!D22 -> 0 | Q14: {" | R14: 電力名 | S14: ":" | T14: 0 | U14: "," | V14: 電力値 | W14: ": | X14: 0 | Y14: }, | AI14: {"電力名":"0","電力値":0},
B15: 電力名 | C15: 電力値 | I15: =select!C23 -> 0 | J15: =select!D23 -> 0 | Q15: {" | R15: 電力名 | S15: ":" | T15: 0 | U15: "," | V15: 電力値 | W15: ": | X15: 0 | Y15: }], | AI15: {"電力名":"0","電力値":0}],
A16: SC3 | B16: カテゴリー | C16: 名称 | D16: コード | E16: 値 | G16: =A16 -> SC3 | H16: =select!E40 -> 購入 | I16: =select!C40 -> 嫌気性デラスシスな | J16: =select!F40 -> 691100 | K16: =select!D40 -> 0 | M16: " | N16: =A16 -> SC3 | O16: ":[ | Q16: {" | R16: カテゴリー | S16: ":" | T16: =H16 -> 購入 | U16: "," | V16: 名称 | W16: ":" | X16: =I16 -> 嫌気性デラスシスな | Y16: "," | Z16: =D16 -> コード | AA16: ":" | AB16: =J16 -> 691100 | AC16: "," | AD16: 値 | AE16: ": | AF16: =K16 -> 0 | AG16: }, | AI16: =M16&N16&O16&P16&Q16&R16&S16&T16&U16&V16&W16&X16&Y16&Z16&AA16&AB16&AC16&AD16&AE16&AF16&AG16 -> "SC3":[{"カテゴリー":"購入","名称":"嫌気性デラスシスな","コード":"691100","値":0},
B17: カテゴリー | C17: 名称 | D17: コード | E17: 値 | H17: =select!E41 -> 購入 | I17: =select!C41 -> 碍子 | J17: =select!F41 -> 481101 | K17: =select!D41 -> 0 | Q17: {" | R17: カテゴリー | S17: ":" | T17: 購入 | U17: "," | V17: 名称 | W17: ":" | X17: 碍子 | Y17: "," | Z17: コード | AA17: ":" | AB17: 481101 | AC17: "," | AD17: 値 | AE17: ": | AF17: 0 | AG17: }, | AI17: {"カテゴリー":"購入","名称":"碍子","コード":"481101","値":0},
B18: カテゴリー | C18: 名称 | D18: コード | E18: 値 | H18: =select!E42 -> 購入 | I18: =select!C42 -> 鉄板 | J18: =select!F42 -> 263101 | K18: =select!D42 -> 0 | Q18: {" | R18: カテゴリー | S18: ":" | T18: 購入 | U18: "," | V18: 名称 | W18: ":" | X18: 鉄板 | Y18: "," | Z18: コード | AA18: ":" | AB18: 263101 | AC18: "," | AD18: 値 | AE18: ": | AF18: 0 | AG18: }, | AI18: {"カテゴリー":"購入","名称":"鉄板","コード":"263101","値":0},
B19: カテゴリー | C19: 名称 | D19: コード | E19: 値 | H19: =select!E43 -> 購入 | I19: =select!C43 -> 電子部品 | J19: =select!F43 -> 329902 | K19: =select!D43 -> 0 | Q19: {" | R19: カテゴリー | S19: ":" | T19: 購入 | U19: "," | V19: 名称 | W19: ":" | X19: 電子部品 | Y19: "," | Z19: コード | AA19: ":" | AB19: 329902 | AC19: "," | AD19: 値 | AE19: ": | AF19: 0 | AG19: }, | AI19: {"カテゴリー":"購入","名称":"電子部品","コード":"329902","値":0},
B20: カテゴリー | C20: 名称 | D20: コード | E20: 値 | H20: =select!E44 -> 役務 | I20: =select!C44 -> ダスト処理 | J20: =select!F44 -> 481102 | K20: =select!D44 -> 0 | Q20: {" | R20: カテゴリー | S20: ":" | T20: 役務 | U20: "," | V20: 名称 | W20: ":" | X20: ダスト処理 | Y20: "," | Z20: コード | AA20: ":" | AB20: 481102 | AC20: "," | AD20: 値 | AE20: ": | AF20: 0 | AG20: }, | AI20: {"カテゴリー":"役務","名称":"ダスト処理","コード":"481102","値":0},
B21: カテゴリー | C21: 名称 | D21: コード | E21: 値 | H21: =select!E45 -> 設備 | I21: =select!C45 -> 工場設備 | J21: =select!F45 -> 411202 | K21: =select!D45 -> 0 | Q21: {" | R21: カテゴリー | S21: ":" | T21: 設備 | U21: "," | V21: 名称 | W21: ":" | X21: 工場設備 | Y21: "," | Z21: コード | AA21: ":" | AB21: 411202 | AC21: "," | AD21: 値 | AE21: ": | AF21: 0 | AG21: }, | AI21: {"カテゴリー":"設備","名称":"工場設備","コード":"411202","値":0},
B22: カテゴリー | C22: 名称 | D22: コード | E22: 値 | H22: =select!E46 -> 入荷輸送 | I22: =select!C46 -> 入荷輸送費 | J22: =select!F46 -> 574201 | K22: =select!D46 -> 0 | Q22: {" | R22: カテゴリー | S22: ":" | T22: 入荷輸送 | U22: "," | V22: 名称 | W22: ":" | X22: 入荷輸送費 | Y22: "," | Z22: コード | AA22: ":" | AB22: 574201 | AC22: "," | AD22: 値 | AE22: ": | AF22: 0 | AG22: }, | AI22: {"カテゴリー":"入荷輸送","名称":"入荷輸送費","コード":"574201","値":0},
B23: カテゴリー | C23: 名称 | D23: コード | E23: 値 | H23: =select!E47 -> 出荷輸送 | I23: =select!C47 -> 配送費 | J23: =select!F47 -> 576101 | K23: =select!D47 -> 0 | Q23: {" | R23: カテゴリー | S23: ":" | T23: 出荷輸送 | U23: "," | V23: 名称 | W23: ":" | X23: 配送費 | Y23: "," | Z23: コード | AA23: ":" | AB23: 576101 | AC23: "," | AD23: 値 | AE23: ": | AF23: 0 | AG23: }, | AI23: {"カテゴリー":"出荷輸送","名称":"配送費","コード":"576101","値":0},
B24: カテゴリー | C24: 名称 | D24: コード | E24: 値 | H24: =select!E48 -> 出張費 | I24: =select!C48 -> 出張旅費 | J24: =select!F48 -> 573101 | K24: =select!D48 -> 0 | Q24: {" | R24: カテゴリー | S24: ":" | T24: 出張費 | U24: "," | V24: 名称 | W24: ":" | X24: 出張旅費 | Y24: "," | Z24: コード | AA24: ":" | AB24: 573101 | AC24: "," | AD24: 値 | AE24: ": | AF24: 0 | AG24: }, | AI24: {"カテゴリー":"出張費","名称":"出張旅費","コード":"573101","値":0},
B25: カテゴリー | C25: 名称 | D25: コード | E25: 値 | H25: =select!E49 -> 通勤費 | I25: =select!C49 -> 通勤手当 | J25: =select!F49 -> 572101 | K25: =select!D49 -> 0 | Q25: {" | R25: カテゴリー | S25: ":" | T25: 通勤費 | U25: "," | V25: 名称 | W25: ":" | X25: 通勤手当 | Y25: "," | Z25: コード | AA25: ":" | AB25: 572101 | AC25: "," | AD25: 値 | AE25: ": | AF25: 0 | AG25: }, | AI25: {"カテゴリー":"通勤費","名称":"通勤手当","コード":"572101","値":0},
B26: カテゴリー | C26: 名称 | D26: コード | E26: 値 | H26: =select!E50 -> 投資 | I26: =select!C50 -> 投資 | J26: =select!F50 -> 011101 | K26: =select!D50 -> 0 | Q26: {" | R26: カテゴリー | S26: ":" | T26: 投資 | U26: "," | V26: 名称 | W26: ":" | X26: 投資 | Y26: "," | Z26: コード | AA26: ":" | AB26: 011101 | AC26: "," | AD26: 値 | AE26: ": | AF26: 0 | AG26: }, | AI26: {"カテゴリー":"投資","名称":"投資","コード":"011101","値":0},
B27: カテゴリー | C27: 名称 | D27: コード | E27: 値 | H27: =select!E51 -> 購入 | I27: =select!C51 -> 備品 | J27: =select!F51 -> 291201 | K27: =select!D51 -> 0 | Q27: {" | R27: カテゴリー | S27: ":" | T27: 購入 | U27: "," | V27: 名称 | W27: ":" | X27: 備品 | Y27: "," | Z27: コード | AA27: ":" | AB27: 291201 | AC27: "," | AD27: 値 | AE27: ": | AF27: 0 | AG27: }, | AI27: {"カテゴリー":"購入","名称":"備品","コード":"291201","値":0},
B28: カテゴリー | C28: 名称 | D28: コード | E28: 値 | H28: =select!E52 -> リース(上流) | I28: =select!C52 -> tCO2eq | J28: =select!F52 ->  | K28: =select!D52 -> 0 | Q28: {" | R28: カテゴリー | S28: ":" | T28: リース(上流) | U28: "," | V28: 名称 | W28: ":" | X28: tCO2eq | Y28: "," | Z28: コード | AA28: ":" | AC28: "," | AD28: 値 | AE28: ": | AF28: 0 | AG28: }, | AI28: {"カテゴリー":"リース(上流)","名称":"tCO2eq","コード":"","値":0},
B29: カテゴリー | C29: 名称 | D29: コード | E29: 値 | H29: =select!E53 -> リース(下流) | I29: =select!C53 -> tCO2eq | J29: =select!F53 ->  | K29: =select!D53 -> 0 | Q29: {" | R29: カテゴリー | S29: ":" | T29: リース(下流) | U29: "," | V29: 名称 | W29: ":" | X29: tCO2eq | Y29: "," | Z29: コード | AA29: ":" | AC29: "," | AD29: 値 | AE29: ": | AF29: 0 | AG29: }, | AI29: {"カテゴリー":"リース(下流)","名称":"tCO2eq","コード":"","値":0},
B30: カテゴリー | C30: 名称 | D30: コード | E30: 値 | H30: =select!E54 -> フランチャイズ | I30: =select!C54 -> tCO2eq | J30: =select!F54 ->  | K30: =select!D54 -> 0 | Q30: {" | R30: カテゴリー | S30: ":" | T30: フランチャイズ | U30: "," | V30: 名称 | W30: ":" | X30: tCO2eq | Y30: "," | Z30: コード | AA30: ":" | AC30: "," | AD30: 値 | AE30: ": | AF30: 0 | AG30: }, | AI30: {"カテゴリー":"フランチャイズ","名称":"tCO2eq","コード":"","値":0},
B31: カテゴリー | C31: 名称 | D31: コード | E31: 値 | H31: =select!E55 -> 0 | I31: =select!C55 -> 0 | J31: =select!F55 ->  | K31: =select!D55 -> 0 | Q31: {" | R31: カテゴリー | S31: ":" | T31: 0 | U31: "," | V31: 名称 | W31: ":" | X31: 0 | Y31: "," | Z31: コード | AA31: ":" | AC31: "," | AD31: 値 | AE31: ": | AF31: 0 | AG31: }, | AI31: {"カテゴリー":"0","名称":"0","コード":"","値":0},
B32: カテゴリー | C32: 名称 | D32: コード | E32: 値 | H32: =select!E56 -> 0 | I32: =select!C56 -> 0 | J32: =select!F56 ->  | K32: =select!D56 -> 0 | Q32: {" | R32: カテゴリー | S32: ":" | T32: 0 | U32: "," | V32: 名称 | W32: ":" | X32: 0 | Y32: "," | Z32: コード | AA32: ":" | AC32: "," | AD32: 値 | AE32: ": | AF32: 0 | AG32: }, | AI32: {"カテゴリー":"0","名称":"0","コード":"","値":0},
B33: カテゴリー | C33: 名称 | D33: コード | E33: 値 | H33: =select!E57 -> 0 | I33: =select!C57 -> 0 | J33: =select!F57 ->  | K33: =select!D57 -> 0 | Q33: {" | R33: カテゴリー | S33: ":" | T33: 0 | U33: "," | V33: 名称 | W33: ":" | X33: 0 | Y33: "," | Z33: コード | AA33: ":" | AC33: "," | AD33: 値 | AE33: ": | AF33: 0 | AG33: }, | AI33: {"カテゴリー":"0","名称":"0","コード":"","値":0},
B34: カテゴリー | C34: 名称 | D34: コード | E34: 値 | H34: =select!E58 -> 0 | I34: =select!C58 -> 0 | J34: =select!F58 ->  | K34: =select!D58 -> 0 | Q34: {" | R34: =B34 -> カテゴリー | S34: ":" | T34: 0 | U34: "," | V34: =C34 -> 名称 | W34: ":" | X34: 0 | Y34: "," | Z34: コード | AA34: ":" | AC34: "," | AD34: 値 | AE34: ": | AF34: 0 | AG34: }, | AI34: {"カテゴリー":"0","名称":"0","コード":"","値":0},
B35: カテゴリー | C35: 名称 | D35: コード | E35: 値 | H35: =select!E59 -> 0 | I35: =select!C59 -> 0 | J35: =select!F59 ->  | K35: =select!D59 -> 0 | Q35: {" | R35: カテゴリー | S35: ":" | T35: 0 | U35: "," | V35: 名称 | W35: ":" | X35: 0 | Y35: "," | Z35: コード | AA35: ":" | AC35: "," | AD35: 値 | AE35: ": | AF35: 0 | AG35: }, | AI35: {"カテゴリー":"0","名称":"0","コード":"","値":0},
B36: カテゴリー | C36: 名称 | D36: コード | E36: 値 | H36: =select!E60 -> 0 | I36: =select!C60 -> 0 | J36: =select!F60 ->  | K36: =select!D60 -> 0 | Q36: {" | R36: カテゴリー | S36: ":" | T36: 0 | U36: "," | V36: 名称 | W36: ":" | X36: 0 | Y36: "," | Z36: コード | AA36: ":" | AC36: "," | AD36: 値 | AE36: ": | AF36: 0 | AG36: }, | AI36: {"カテゴリー":"0","名称":"0","コード":"","値":0},
B37: カテゴリー | C37: 名称 | D37: コード | E37: 値 | H37: =select!E61 -> 0 | I37: =select!C61 -> 0 | J37: =select!F61 ->  | K37: =select!D61 -> 0 | Q37: {" | R37: カテゴリー | S37: ":" | T37: 0 | U37: "," | V37: 名称 | W37: ":" | X37: 0 | Y37: "," | Z37: コード | AA37: ":" | AC37: "," | AD37: 値 | AE37: ": | AF37: 0 | AG37: }, | AI37: {"カテゴリー":"0","名称":"0","コード":"","値":0},
B38: カテゴリー | C38: 名称 | D38: コード | E38: 値 | H38: =select!E62 -> 0 | I38: =select!C62 -> 0 | J38: =select!F62 ->  | K38: =select!D62 -> 0 | Q38: {" | R38: カテゴリー | S38: ":" | T38: 0 | U38: "," | V38: 名称 | W38: ":" | X38: 0 | Y38: "," | Z38: コード | AA38: ":" | AC38: "," | AD38: 値 | AE38: ": | AF38: 0 | AG38: }, | AI38: {"カテゴリー":"0","名称":"0","コード":"","値":0},
B39: カテゴリー | C39: 名称 | D39: コード | E39: 値 | H39: =select!E63 -> 0 | I39: =select!C63 -> 0 | J39: =select!F63 ->  | K39: =select!D63 -> 0 | Q39: {" | R39: カテゴリー | S39: ":" | T39: 0 | U39: "," | V39: 名称 | W39: ":" | X39: 0 | Y39: "," | Z39: コード | AA39: ":" | AC39: "," | AD39: 値 | AE39: ": | AF39: 0 | AG39: }, | AI39: {"カテゴリー":"0","名称":"0","コード":"","値":0},
B40: カテゴリー | C40: 名称 | D40: コード | E40: 値 | H40: =select!E64 -> 0 | I40: =select!C64 -> 0 | J40: =select!F64 ->  | K40: =select!D64 -> 0 | Q40: {" | R40: カテゴリー | S40: ":" | T40: 0 | U40: "," | V40: 名称 | W40: ":" | X40: 0 | Y40: "," | Z40: コード | AA40: ":" | AC40: "," | AD40: 値 | AE40: ": | AF40: 0 | AG40: }, | AI40: {"カテゴリー":"0","名称":"0","コード":"","値":0},
B41: カテゴリー | C41: 名称 | D41: コード | E41: 値 | H41: =select!E65 -> 0 | I41: =select!C65 -> 0 | J41: =select!F65 ->  | K41: =select!D65 -> 0 | Q41: {" | R41: カテゴリー | S41: ":" | T41: 0 | U41: "," | V41: 名称 | W41: ":" | X41: 0 | Y41: "," | Z41: コード | AA41: ":" | AC41: "," | AD41: 値 | AE41: ": | AF41: 0 | AG41: }, | AI41: {"カテゴリー":"0","名称":"0","コード":"","値":0},
B42: カテゴリー | C42: 名称 | D42: コード | E42: 値 | H42: =select!E66 -> 0 | I42: =select!C66 -> 0 | J42: =select!F66 ->  | K42: =select!D66 -> 0 | Q42: {" | R42: カテゴリー | S42: ":" | T42: 0 | U42: "," | V42: 名称 | W42: ":" | X42: 0 | Y42: "," | Z42: コード | AA42: ":" | AC42: "," | AD42: 値 | AE42: ": | AF42: 0 | AG42: }, | AI42: {"カテゴリー":"0","名称":"0","コード":"","値":0},
B43: カテゴリー | C43: 名称 | D43: コード | E43: 値 | H43: =select!E67 -> 0 | I43: =select!C67 -> 0 | J43: =select!F67 ->  | K43: =select!D67 -> 0 | Q43: {" | R43: カテゴリー | S43: ":" | T43: 0 | U43: "," | V43: 名称 | W43: ":" | X43: 0 | Y43: "," | Z43: コード | AA43: ":" | AC43: "," | AD43: 値 | AE43: ": | AF43: 0 | AG43: }, | AI43: {"カテゴリー":"0","名称":"0","コード":"","値":0},
B44: カテゴリー | C44: 名称 | D44: コード | E44: 値 | H44: =select!E68 -> 0 | I44: =select!C68 -> 0 | J44: =select!F68 ->  | K44: =select!D68 -> 0 | Q44: {" | R44: カテゴリー | S44: ":" | T44: 0 | U44: "," | V44: 名称 | W44: ":" | X44: 0 | Y44: "," | Z44: コード | AA44: ":" | AC44: "," | AD44: 値 | AE44: ": | AF44: 0 | AG44: }, | AI44: {"カテゴリー":"0","名称":"0","コード":"","値":0},
B45: カテゴリー | C45: 名称 | D45: コード | E45: 値 | H45: =select!E69 -> 0 | I45: =select!C69 -> 0 | J45: =select!F69 ->  | K45: =select!D69 -> 0 | Q45: {" | R45: カテゴリー | S45: ":" | T45: 0 | U45: "," | V45: 名称 | W45: ":" | X45: 0 | Y45: "," | Z45: コード | AA45: ":" | AC45: "," | AD45: 値 | AE45: ": | AF45: 0 | AG45: }, | AI45: {"カテゴリー":"0","名称":"0","コード":"","値":0},
B46: カテゴリー | C46: 名称 | D46: コード | E46: 値 | H46: =select!E70 -> 0 | I46: =select!C70 -> 0 | J46: =select!F70 ->  | K46: =select!D70 -> 0 | Q46: {" | R46: カテゴリー | S46: ":" | T46: 0 | U46: "," | V46: 名称 | W46: ":" | X46: 0 | Y46: "," | Z46: コード | AA46: ":" | AC46: "," | AD46: 値 | AE46: ": | AF46: 0 | AG46: }, | AI46: {"カテゴリー":"0","名称":"0","コード":"","値":0},
B47: カテゴリー | C47: 名称 | D47: コード | E47: 値 | H47: =select!E71 -> 0 | I47: =select!C71 -> 0 | J47: =select!F71 ->  | K47: =select!D71 -> 0 | Q47: {" | R47: カテゴリー | S47: ":" | T47: 0 | U47: "," | V47: 名称 | W47: ":" | X47: 0 | Y47: "," | Z47: コード | AA47: ":" | AC47: "," | AD47: 値 | AE47: ": | AF47: 0 | AG47: }, | AI47: {"カテゴリー":"0","名称":"0","コード":"","値":0},
B48: カテゴリー | C48: 名称 | D48: コード | E48: 値 | H48: =select!E72 -> 0 | I48: =select!C72 -> 0 | J48: =select!F72 ->  | K48: =select!D72 -> 0 | Q48: {" | R48: カテゴリー | S48: ":" | T48: =H48 -> 0 | U48: "," | V48: 名称 | W48: ":" | X48: =I48 -> 0 | Y48: "," | Z48: =D48 -> コード | AA48: ":" | AB48: =J48 ->  | AC48: "," | AD48: 値 | AE48: ": | AF48: =K48 -> 0 | AG48: }, | AI48: =M48&N48&O48&P48&Q48&R48&S48&T48&U48&V48&W48&X48&Y48&Z48&AA48&AB48&AC48&AD48&AE48&AF48&AG48 -> {"カテゴリー":"0","名称":"0","コード":"","値":0},
B49: カテゴリー | C49: 名称 | D49: コード | E49: 値 | H49: =select!E73 -> 0 | I49: =select!C73 -> 0 | J49: =select!F73 ->  | K49: =select!D73 -> 0 | Q49: {" | R49: カテゴリー | S49: ":" | T49: 0 | U49: "," | V49: 名称 | W49: ":" | X49: 0 | Y49: "," | Z49: コード | AA49: ":" | AC49: "," | AD49: 値 | AE49: ": | AF49: 0 | AG49: }, | AI49: {"カテゴリー":"0","名称":"0","コード":"","値":0},
B50: カテゴリー | C50: 名称 | D50: コード | E50: 値 | H50: =select!E74 -> 0 | I50: =select!C74 -> 0 | J50: =select!F74 ->  | K50: =select!D74 -> 0 | Q50: {" | R50: カテゴリー | S50: ":" | T50: 0 | U50: "," | V50: 名称 | W50: ":" | X50: 0 | Y50: "," | Z50: コード | AA50: ":" | AC50: "," | AD50: 値 | AE50: ": | AF50: 0 | AG50: }, | AI50: {"カテゴリー":"0","名称":"0","コード":"","値":0},
B51: カテゴリー | C51: 名称 | D51: コード | E51: 値 | H51: =select!E75 -> 0 | I51: =select!C75 -> 0 | J51: =select!F75 ->  | K51: =select!D75 -> 0 | Q51: {" | R51: カテゴリー | S51: ":" | T51: 0 | U51: "," | V51: 名称 | W51: ":" | X51: 0 | Y51: "," | Z51: コード | AA51: ":" | AC51: "," | AD51: 値 | AE51: ": | AF51: 0 | AG51: }, | AI51: {"カテゴリー":"0","名称":"0","コード":"","値":0},
B52: カテゴリー | C52: 名称 | D52: コード | E52: 値 | H52: =select!E76 -> 0 | I52: =select!C76 -> 0 | J52: =select!F76 ->  | K52: =select!D76 -> 0 | Q52: {" | R52: カテゴリー | S52: ":" | T52: 0 | U52: "," | V52: 名称 | W52: ":" | X52: 0 | Y52: "," | Z52: コード | AA52: ":" | AC52: "," | AD52: 値 | AE52: ": | AF52: 0 | AG52: }, | AI52: {"カテゴリー":"0","名称":"0","コード":"","値":0},
B53: カテゴリー | C53: 名称 | D53: コード | E53: 値 | H53: =select!E77 -> 0 | I53: =select!C77 -> 0 | J53: =select!F77 ->  | K53: =select!D77 -> 0 | Q53: {" | R53: カテゴリー | S53: ":" | T53: 0 | U53: "," | V53: 名称 | W53: ":" | X53: 0 | Y53: "," | Z53: コード | AA53: ":" | AC53: "," | AD53: 値 | AE53: ": | AF53: 0 | AG53: }, | AI53: {"カテゴリー":"0","名称":"0","コード":"","値":0},
B54: カテゴリー | C54: 名称 | D54: コード | E54: 値 | H54: =select!E78 -> 0 | I54: =select!C78 -> 0 | J54: =select!F78 ->  | K54: =select!D78 -> 0 | Q54: {" | R54: カテゴリー | S54: ":" | T54: 0 | U54: "," | V54: 名称 | W54: ":" | X54: 0 | Y54: "," | Z54: コード | AA54: ":" | AC54: "," | AD54: 値 | AE54: ": | AF54: 0 | AG54: }, | AI54: {"カテゴリー":"0","名称":"0","コード":"","値":0},
B55: カテゴリー | C55: 名称 | D55: コード | E55: 値 | H55: =select!E79 -> 0 | I55: =select!C79 -> 0 | J55: =select!F79 ->  | K55: =select!D79 -> 0 | Q55: {" | R55: カテゴリー | S55: ":" | T55: 0 | U55: "," | V55: 名称 | W55: ":" | X55: 0 | Y55: "," | Z55: コード | AA55: ":" | AC55: "," | AD55: 値 | AE55: ": | AF55: 0 | AG55: }, | AI55: {"カテゴリー":"0","名称":"0","コード":"","値":0},
B56: カテゴリー | C56: 名称 | D56: コード | E56: 値 | H56: =select!E80 -> 0 | I56: =select!C80 -> 0 | J56: =select!F80 ->  | K56: =select!D80 -> 0 | Q56: {" | R56: カテゴリー | S56: ":" | T56: 0 | U56: "," | V56: 名称 | W56: ":" | X56: 0 | Y56: "," | Z56: コード | AA56: ":" | AC56: "," | AD56: 値 | AE56: ": | AF56: 0 | AG56: }, | AI56: {"カテゴリー":"0","名称":"0","コード":"","値":0},
B57: カテゴリー | C57: 名称 | D57: コード | E57: 値 | H57: =select!E81 -> 0 | I57: =select!C81 -> 0 | J57: =select!F81 ->  | K57: =select!D81 -> 0 | Q57: {" | R57: カテゴリー | S57: ":" | T57: 0 | U57: "," | V57: 名称 | W57: ":" | X57: 0 | Y57: "," | Z57: コード | AA57: ":" | AC57: "," | AD57: 値 | AE57: ": | AF57: 0 | AG57: }, | AI57: {"カテゴリー":"0","名称":"0","コード":"","値":0},
B58: カテゴリー | C58: 名称 | D58: コード | E58: 値 | H58: =select!E82 -> 0 | I58: =select!C82 -> 0 | J58: =select!F82 ->  | K58: =select!D82 -> 0 | Q58: {" | R58: カテゴリー | S58: ":" | T58: 0 | U58: "," | V58: 名称 | W58: ":" | X58: 0 | Y58: "," | Z58: コード | AA58: ":" | AC58: "," | AD58: 値 | AE58: ": | AF58: 0 | AG58: }, | AI58: {"カテゴリー":"0","名称":"0","コード":"","値":0},
B59: カテゴリー | C59: 名称 | D59: コード | E59: 値 | H59: =select!E83 -> 0 | I59: =select!C83 -> 0 | J59: =select!F83 ->  | K59: =select!D83 -> 0 | Q59: {" | R59: カテゴリー | S59: ":" | T59: 0 | U59: "," | V59: 名称 | W59: ":" | X59: 0 | Y59: "," | Z59: コード | AA59: ":" | AC59: "," | AD59: 値 | AE59: ": | AF59: 0 | AG59: }, | AI59: {"カテゴリー":"0","名称":"0","コード":"","値":0},
B60: カテゴリー | C60: 名称 | D60: コード | E60: 値 | H60: =select!E84 -> 0 | I60: =select!C84 -> 0 | J60: =select!F84 ->  | K60: =select!D84 -> 0 | Q60: {" | R60: カテゴリー | S60: ":" | T60: 0 | U60: "," | V60: 名称 | W60: ":" | X60: 0 | Y60: "," | Z60: コード | AA60: ":" | AC60: "," | AD60: 値 | AE60: ": | AF60: 0 | AG60: }, | AI60: {"カテゴリー":"0","名称":"0","コード":"","値":0},
B61: カテゴリー | C61: 名称 | D61: コード | E61: 値 | H61: =select!E85 -> 0 | I61: =select!C85 -> 0 | J61: =select!F85 ->  | K61: =select!D85 -> 0 | Q61: {" | R61: カテゴリー | S61: ":" | T61: 0 | U61: "," | V61: 名称 | W61: ":" | X61: 0 | Y61: "," | Z61: コード | AA61: ":" | AC61: "," | AD61: 値 | AE61: ": | AF61: 0 | AG61: }, | AI61: {"カテゴリー":"0","名称":"0","コード":"","値":0},
B62: カテゴリー | C62: 名称 | D62: コード | E62: 値 | H62: =select!E86 -> 0 | I62: =select!C86 -> 0 | J62: =select!F86 ->  | K62: =select!D86 -> 0 | Q62: {" | R62: カテゴリー | S62: ":" | T62: 0 | U62: "," | V62: 名称 | W62: ":" | X62: 0 | Y62: "," | Z62: コード | AA62: ":" | AC62: "," | AD62: 値 | AE62: ": | AF62: 0 | AG62: }, | AI62: {"カテゴリー":"0","名称":"0","コード":"","値":0},
B63: カテゴリー | C63: 名称 | D63: コード | E63: 値 | H63: =select!E87 -> 0 | I63: =select!C87 -> 0 | J63: =select!F87 ->  | K63: =select!D87 -> 0 | Q63: {" | R63: カテゴリー | S63: ":" | T63: 0 | U63: "," | V63: 名称 | W63: ":" | X63: 0 | Y63: "," | Z63: コード | AA63: ":" | AC63: "," | AD63: 値 | AE63: ": | AF63: 0 | AG63: }, | AI63: {"カテゴリー":"0","名称":"0","コード":"","値":0},
B64: カテゴリー | C64: 名称 | D64: コード | E64: 値 | H64: =select!E88 -> 0 | I64: =select!C88 -> 0 | J64: =select!F88 ->  | K64: =select!D88 -> 0 | Q64: {" | R64: カテゴリー | S64: ":" | T64: 0 | U64: "," | V64: 名称 | W64: ":" | X64: 0 | Y64: "," | Z64: コード | AA64: ":" | AC64: "," | AD64: 値 | AE64: ": | AF64: 0 | AG64: }, | AI64: {"カテゴリー":"0","名称":"0","コード":"","値":0},
B65: カテゴリー | C65: 名称 | D65: コード | E65: 値 | H65: =select!E89 -> 0 | I65: =select!C89 -> 0 | J65: =select!F89 ->  | K65: =select!D89 -> 0 | Q65: {" | R65: カテゴリー | S65: ":" | T65: 0 | U65: "," | V65: 名称 | W65: ":" | X65: 0 | Y65: "," | Z65: コード | AA65: ":" | AC65: "," | AD65: 値 | AE65: ": | AF65: 0 | AG65: }, | AI65: {"カテゴリー":"0","名称":"0","コード":"","値":0},
B66: カテゴリー | C66: 名称 | D66: コード | E66: 値 | H66: =select!E90 -> 0 | I66: =select!C90 -> 0 | J66: =select!F90 -> 0 | K66: =select!D90 -> 0 | Q66: {" | R66: =B66 -> カテゴリー | S66: ":" | T66: 0 | U66: "," | V66: 名称 | W66: ":" | X66: 0 | Y66: "," | Z66: コード | AA66: ":" | AB66: 0 | AC66: "," | AD66: 値 | AE66: ": | AF66: 0 | AG66: }], | AI66: {"カテゴリー":"0","名称":"0","コード":"0","値":0}],
A67: SC3U | B67: 重量 | C67: 物販 | I67: =B67 -> 重量 | J67: =select!J92 -> 0 | K67: =select!D30*select!D27/100 -> 120 | M67: " | N67: =A67 -> SC3U | O67: ":{ | Q67: " | R67: 重量 | S67: ": | T67: =J67 -> 0 | U67: ," | V67: 物販 | W67: ": | X67: =K67 -> 120 | Y67: , | AI67: =M67&N67&O67&P67&Q67&R67&S67&T67&U67&V67&W67&X67&Y67&Z67&AA67&AB67&AC67 -> "SC3U":{"重量":0,"物販":120,
B68: 寿命(年) | I68: 寿命(年) | J68: =select!H96 -> 0 | Q68: " | R68: 寿命(年) | S68: ": | T68: =J68 -> 0 | U68: , | AI68: "寿命(年)":0,
B69: 稼働率(%) | I69: 稼働率(%) | J69: =select!H97 -> 0 | Q69: " | R69: 稼働率(%) | S69: ": | T69: =J69 -> 0 | U69: , | AI69: "稼働率(%)":0,
B70: 稼働電力kw | I70: 稼働電力kw | J70: =select!H98 -> 0 | Q70: " | R70: 稼働電力kw | S70: ": | T70: =J70 -> 0 | U70: , | AI70: "稼働電力kw":0,
B71: 燃料消費(L/h) | I71: 燃料消費(L/h) | J71: =select!H99 -> 0 | Q71: " | R71: 燃料消費(L/h) | S71: ": | T71: =J71 -> 0 | U71: , | AI71: "燃料消費(L/h)":0,
B72: フランチャイズ | C72: 排出 | D72: 理由 | I72: フランチャイズ | J72: =select!C106 -> 0 | K72: =select!C107 -> 一括計上 | Q72: " | R72: フランチャイズ | S72: ":{" | T72: =C72 -> 排出 | U72: ": | V72: =J72 -> 0 | W72: ," | X72: =D72 -> 理由 | Y72: ":" | Z72: =K72 -> 一括計上 | AA72: "}}, | AI72: "フランチャイズ":{"排出":0,"理由":"一括計上"}},
A73: 構成 | B73: 構成物 | C73: 重量% | G73: =A73 -> 構成 | I73: =select!I94 -> 繊維 | J73: =select!J94 -> 0 | M73: " | N73: =A73 -> 構成 | O73: ":[ | Q73: {" | R73: 構成物 | S73: ":" | T73: =I73 -> 繊維 | U73: "," | V73: =C73 -> 重量% | W73: ": | X73: =J73 -> 0 | Y73: }, | AI73: "構成":[{"構成物":"繊維","重量%":0},
B74: 構成物 | C74: 重量% | I74: =select!I95 -> 木材 | J74: =select!J95 -> 0 | Q74: {" | R74: 構成物 | S74: ":" | T74: 木材 | U74: "," | V74: 重量% | W74: ": | X74: 0 | Y74: }, | AI74: {"構成物":"木材","重量%":0},
B75: 構成物 | C75: 重量% | I75: =select!I96 -> パルプ・紙 | J75: =select!J96 -> 0 | Q75: {" | R75: 構成物 | S75: ":" | T75: パルプ・紙 | U75: "," | V75: 重量% | W75: ": | X75: 0 | Y75: }, | AI75: {"構成物":"パルプ・紙","重量%":0},
B76: 構成物 | C76: 重量% | I76: =select!I97 -> 化学製品 | J76: =select!J97 -> 0 | Q76: {" | R76: 構成物 | S76: ":" | T76: 化学製品 | U76: "," | V76: 重量% | W76: ": | X76: 0 | Y76: }, | AI76: {"構成物":"化学製品","重量%":0},
B77: 構成物 | C77: 重量% | I77: =select!I98 -> プラスチック | J77: =select!J98 -> 0 | Q77: {" | R77: 構成物 | S77: ":" | T77: プラスチック | U77: "," | V77: 重量% | W77: ": | X77: 0 | Y77: }, | AI77: {"構成物":"プラスチック","重量%":0},
B78: 構成物 | C78: 重量% | I78: =select!I99 -> ゴム | J78: =select!J99 -> 0 | Q78: {" | R78: 構成物 | S78: ":" | T78: ゴム | U78: "," | V78: 重量% | W78: ": | X78: 0 | Y78: }, | AI78: {"構成物":"ゴム","重量%":0},
B79: 構成物 | C79: 重量% | I79: =select!I100 -> 革 | J79: =select!J100 -> 0 | Q79: {" | R79: 構成物 | S79: ":" | T79: 革 | U79: "," | V79: 重量% | W79: ": | X79: 0 | Y79: }, | AI79: {"構成物":"革","重量%":0},
B80: 構成物 | C80: 重量% | I80: =select!I101 -> ガラス | J80: =select!J101 -> 0 | Q80: {" | R80: 構成物 | S80: ":" | T80: ガラス | U80: "," | V80: 重量% | W80: ": | X80: 0 | Y80: }, | AI80: {"構成物":"ガラス","重量%":0},
B81: 構成物 | C81: 重量% | I81: =select!I102 -> セメント | J81: =select!J102 -> 0 | Q81: {" | R81: 構成物 | S81: ":" | T81: セメント | U81: "," | V81: 重量% | W81: ": | X81: 0 | Y81: }, | AI81: {"構成物":"セメント","重量%":0},
B82: 構成物 | C82: 重量% | I82: =select!I103 -> 窯業・土石 | J82: =select!J103 -> 0 | Q82: {" | R82: 構成物 | S82: ":" | T82: 窯業・土石 | U82: "," | V82: 重量% | W82: ": | X82: 0 | Y82: }, | AI82: {"構成物":"窯業・土石","重量%":0},
B83: 構成物 | C83: 重量% | I83: =select!I104 -> 鋼 | J83: =select!J104 -> 0 | Q83: {" | R83: 構成物 | S83: ":" | T83: 鋼 | U83: "," | V83: 重量% | W83: ": | X83: 0 | Y83: }, | AI83: {"構成物":"鋼","重量%":0},
B84: 構成物 | C84: 重量% | I84: =select!I105 -> 銅 | J84: =select!J105 -> 0 | Q84: {" | R84: 構成物 | S84: ":" | T84: 銅 | U84: "," | V84: 重量% | W84: ": | X84: 0 | Y84: }, | AI84: {"構成物":"銅","重量%":0},
B85: 構成物 | C85: 重量% | I85: =select!I106 -> アルミ | J85: =select!J106 -> 0 | Q85: {" | R85: 構成物 | S85: ":" | T85: アルミ | U85: "," | V85: 重量% | W85: ": | X85: 0 | Y85: }, | AI85: {"構成物":"アルミ","重量%":0},
B86: 構成物 | C86: 重量% | I86: =select!I107 -> 非鉄金属 | J86: =select!J107 -> 0 | Q86: {" | R86: 構成物 | S86: ":" | T86: 非鉄金属 | U86: "," | V86: 重量% | W86: ": | X86: 0 | Y86: }, | AI86: {"構成物":"非鉄金属","重量%":0},
B87: 構成物 | C87: 重量% | I87: =select!I108 -> その他 | J87: =select!J108 -> 0 | Q87: {" | R87: 構成物 | S87: ":" | T87: その他 | U87: "," | V87: 重量% | W87: ": | X87: 0 | Y87: }, | AI87: {"構成物":"その他","重量%":0},
B88: 構成物 | C88: 重量% | J88: =select!J109 -> 0 | Q88: {" | R88: 構成物 | S88: ":" | T88: 0 | U88: "," | V88: 重量% | W88: ": | X88: 0 | Y88: }], | AI88: {"構成物":"0","重量%":0}],
A89: 発生廃棄物 | B89: 種類 | C89: 発生量 | G89: =A89 -> 発生廃棄物 | I89: =select!E93 -> 廃アルカリ | J89: =select!D93 -> 0 | M89: " | N89: =A89 -> 発生廃棄物 | O89: ":[ | Q89: {" | R89: 種類 | S89: ":" | T89: 廃アルカリ | U89: "," | V89: 発生量 | W89: ": | X89: 0 | Y89: }, | AI89: "発生廃棄物":[{"種類":"廃アルカリ","発生量":0},
B90: 種類 | C90: 発生量 | I90: =select!E94 -> 廃プラスチック類 | J90: =select!D94 -> 0 | Q90: {" | R90: 種類 | S90: ":" | T90: 廃プラスチック類 | U90: "," | V90: 発生量 | W90: ": | X90: 0 | Y90: }, | AI90: {"種類":"廃プラスチック類","発生量":0},
B91: 種類 | C91: 発生量 | I91: =select!E95 -> 木くず | J91: =select!D95 -> 0 | Q91: {" | R91: 種類 | S91: ":" | T91: 木くず | U91: "," | V91: 発生量 | W91: ": | X91: 0 | Y91: }, | AI91: {"種類":"木くず","発生量":0},
B92: 種類 | C92: 発生量 | I92: =select!E96 -> 0 | J92: =select!D96 -> 0 | Q92: {" | R92: 種類 | S92: ":" | T92: 0 | U92: "," | V92: 発生量 | W92: ": | X92: 0 | Y92: }, | AI92: {"種類":"0","発生量":0},
B93: 種類 | C93: 発生量 | I93: =select!E97 -> 0 | J93: =select!D97 -> 0 | Q93: {" | R93: 種類 | S93: ":" | T93: 0 | U93: "," | V93: 発生量 | W93: ": | X93: 0 | Y93: }, | AI93: {"種類":"0","発生量":0},
B94: 種類 | C94: 発生量 | I94: =select!E98 -> 0 | J94: =select!D98 -> 0 | Q94: {" | R94: 種類 | S94: ":" | T94: 0 | U94: "," | V94: 発生量 | W94: ": | X94: 0 | Y94: }, | AI94: {"種類":"0","発生量":0},
B95: 種類 | C95: 発生量 | I95: =select!E99 -> 0 | J95: =select!D99 -> 0 | Q95: {" | R95: 種類 | S95: ":" | T95: 0 | U95: "," | V95: 発生量 | W95: ": | X95: 0 | Y95: }, | AI95: {"種類":"0","発生量":0},
B96: 種類 | C96: 発生量 | I96: =select!E100 -> 0 | J96: =select!D100 -> 0 | Q96: {" | R96: 種類 | S96: ":" | T96: 0 | U96: "," | V96: 発生量 | W96: ": | X96: 0 | Y96: }, | AI96: {"種類":"0","発生量":0},
B97: 種類 | C97: 発生量 | I97: =select!E101 -> 0 | J97: =select!D101 -> 0 | Q97: {" | R97: 種類 | S97: ":" | T97: 0 | U97: "," | V97: 発生量 | W97: ": | X97: 0 | Y97: }, | AI97: {"種類":"0","発生量":0},
B98: 種類 | C98: 発生量 | I98: =select!E102 -> 0 | J98: =select!D102 -> 0 | Q98: {" | R98: =B98 -> 種類 | S98: ":" | T98: 0 | U98: "," | V98: 発生量 | W98: ": | X98: 0 | Y98: }, | AI98: {"種類":"0","発生量":0},
B99: 種類 | C99: 発生量 | I99: =select!E103 -> 0 | J99: =select!D103 -> 0 | Q99: {" | R99: 種類 | S99: ":" | T99: 0 | U99: "," | V99: 発生量 | W99: ": | X99: 0 | Y99: }], | AI99: =M99&N99&O99&P99&Q99&R99&S99&T99&U99&V99&W99&X99&Y99&Z99&AA99&AB99&AC99 -> {"種類":"0","発生量":0}],
A100: 再生品 | B100: 再生品名 | C100: 品コード | D100: 再生品量 | G100: =A100 -> 再生品 | I100: =select!C192 -> 瓶 | J100: =select!F192 -> 251109 | K100: =select!D192 -> 10 | M100: " | N100: =A100 -> 再生品 | O100: ":[ | Q100: {" | R100: 再生品名 | S100: ":" | T100: 瓶 | U100: "," | V100: 品コード | W100: ":" | X100: 251109 | Y100: "," | Z100: =D100 -> 再生品量 | AA100: ": | AB100: =K100 -> 10 | AC100: }, | AI100: "再生品":[{"再生品名":"瓶","品コード":"251109","再生品量":10},
B101: 再生品名 | C101: 品コード | D101: 再生品量 | I101: =select!C193 -> プラスチック果物トレイ | J101: =select!F193 -> 152909 | K101: =select!D193 -> 30 | Q101: {" | R101: 再生品名 | S101: ":" | T101: プラスチック果物トレイ | U101: "," | V101: 品コード | W101: ":" | X101: 152909 | Y101: "," | Z101: =D101 -> 再生品量 | AA101: ": | AB101: =K101 -> 30 | AC101: }, | AI101: {"再生品名":"プラスチック果物トレイ","品コード":"152909","再生品量":30},
B102: 再生品名 | C102: 品コード | D102: 再生品量 | I102: =select!C194 -> チェック | J102: =select!F194 -> 231201 | K102: =select!D194 -> 0 | Q102: {" | R102: =B102 -> 再生品名 | S102: ":" | T102: =I102 -> チェック | U102: "," | V102: =C102 -> 品コード | W102: ":" | X102: =J102 -> 231201 | Y102: "," | Z102: =D102 -> 再生品量 | AA102: ": | AB102: =K102 -> 0 | AC102: }, | AI102: {"再生品名":"チェック","品コード":"231201","再生品量":0},
B103: 再生品名 | C103: 品コード | D103: 再生品量 | I103: =select!C195 -> xnn | J103: =select!F195 -> 061101 | K103: =select!D195 -> 10 | Q103: {" | R103: =B103 -> 再生品名 | S103: ":" | T103: =I103 -> xnn | U103: "," | V103: =C103 -> 品コード | W103: ":" | X103: =J103 -> 061101 | Y103: "," | Z103: =D103 -> 再生品量 | AA103: ": | AB103: =K103 -> 10 | AC103: }, | AI103: =M103&N103&O103&P103&Q103&R103&S103&T103&U103&V103&W103&X103&Y103&Z103&AA103&AB103&AC103 -> {"再生品名":"xnn","品コード":"061101","再生品量":10},
B104: 再生品名 | C104: 品コード | D104: 再生品量 | I104: =select!C196 -> cvvsvs | J104: =select!F196 -> 164109 | K104: =select!D196 -> 5 | Q104: {" | R104: =B104 -> 再生品名 | S104: ":" | T104: =I104 -> cvvsvs | U104: "," | V104: =C104 -> 品コード | W104: ":" | X104: =J104 -> 164109 | Y104: "," | Z104: =D104 -> 再生品量 | AA104: ": | AB104: =K104 -> 5 | AC104: }, | AI104: =M104&N104&O104&P104&Q104&R104&S104&T104&U104&V104&W104&X104&Y104&Z104&AA104&AB104&AC104 -> {"再生品名":"cvvsvs","品コード":"164109","再生品量":5},
B105: 再生品名 | C105: 品コード | D105: 再生品量 | I105: =select!C197 -> dd | J105: =select!F197 -> 152102 | K105: =select!D197 -> 1 | Q105: {" | R105: 再生品名 | S105: ":" | T105: dd | U105: "," | V105: 品コード | W105: ":" | X105: 152102 | Y105: "," | Z105: 再生品量 | AA105: ": | AB105: 1 | AC105: }, | AI105: {"再生品名":"dd","品コード":"152102","再生品量":1},
B106: 再生品名 | C106: 品コード | D106: 再生品量 | I106: =select!C198 -> 0 | J106: =select!F198 ->  | K106: =select!D198 -> 0 | Q106: {" | R106: 再生品名 | S106: ":" | T106: 0 | U106: "," | V106: 品コード | W106: ":" | Y106: "," | Z106: 再生品量 | AA106: ": | AB106: 0 | AC106: }, | AI106: {"再生品名":"0","品コード":"","再生品量":0},
B107: 再生品名 | C107: 品コード | D107: 再生品量 | I107: =select!C199 -> 0 | J107: =select!F199 ->  | K107: =select!D199 -> 0 | Q107: {" | R107: 再生品名 | S107: ":" | T107: 0 | U107: "," | V107: 品コード | W107: ":" | Y107: "," | Z107: 再生品量 | AA107: ": | AB107: 0 | AC107: }, | AI107: {"再生品名":"0","品コード":"","再生品量":0},
B108: 再生品名 | C108: 品コード | D108: 再生品量 | I108: =select!C200 -> 0 | J108: =select!F200 ->  | K108: =select!D200 -> 0 | Q108: {" | R108: 再生品名 | S108: ":" | T108: 0 | U108: "," | V108: 品コード | W108: ":" | Y108: "," | Z108: 再生品量 | AA108: ": | AB108: 0 | AC108: }, | AI108: {"再生品名":"0","品コード":"","再生品量":0},
B109: 再生品名 | C109: 品コード | D109: 再生品量 | I109: =select!C201 -> 0 | J109: =select!F201 ->  | K109: =select!D201 -> 0 | Q109: {" | R109: 再生品名 | S109: ":" | T109: 0 | U109: "," | V109: 品コード | W109: ":" | Y109: "," | Z109: =D109 -> 再生品量 | AA109: ": | AB109: =K109 -> 0 | AC109: }], | AI109: {"再生品名":"0","品コード":"","再生品量":0}],
A110: 再生原材料 | B110: 拡張コード | C110: 再生材量 | G110: =A110 -> 再生原材料 | I110: =select!F170 -> 再生用:鋼板用鉄スクラップ | J110: =select!D170 -> 70 | M110: " | N110: =A110 -> 再生原材料 | O110: ":[ | Q110: {" | R110: 拡張コード | S110: ":" | T110: 再生用:鋼板用鉄スクラップ | U110: "," | V110: 再生材量 | W110: ": | X110: 70 | Y110: }, | AI110: "再生原材料":[{"拡張コード":"再生用:鋼板用鉄スクラップ","再生材量":70},
B111: 拡張コード | C111: 再生材量 | I111: =select!F171 -> 再生用:ステンレス | J111: =select!D171 -> 10 | Q111: {" | R111: 拡張コード | S111: ":" | T111: 再生用:ステンレス | U111: "," | V111: 再生材量 | W111: ": | X111: 10 | Y111: }, | AI111: {"拡張コード":"再生用:ステンレス","再生材量":10},
B112: 拡張コード | C112: 再生材量 | I112: =select!F172 -> 再生用:金 | J112: =select!D172 -> 12 | Q112: {" | R112: 拡張コード | S112: ":" | T112: =I112 -> 再生用:金 | U112: "," | V112: =C112 -> 再生材量 | W112: ": | X112: =J112 -> 12 | Y112: }, | AI112: {"拡張コード":"再生用:金","再生材量":12},
B113: 拡張コード | C113: 再生材量 | I113: =select!F173 -> 再生用:鋳物用アルミスクラップ | J113: =select!D173 -> 20 | Q113: {" | R113: 拡張コード | S113: ":" | T113: 再生用:鋳物用アルミスクラップ | U113: "," | V113: 再生材量 | W113: ": | X113: 20 | Y113: }, | AI113: {"拡張コード":"再生用:鋳物用アルミスクラップ","再生材量":20},
B114: 拡張コード | C114: 再生材量 | I114: =select!F174 -> 再生用:展伸材用アルミスクラップ | J114: =select!D174 -> 3.2 | Q114: {" | R114: 拡張コード | S114: ":" | T114: 再生用:展伸材用アルミスクラップ | U114: "," | V114: 再生材量 | W114: ": | X114: 3.2 | Y114: }, | AI114: {"拡張コード":"再生用:展伸材用アルミスクラップ","再生材量":3.2},
B115: 拡張コード | C115: 再生材量 | I115: =select!F175 -> 燃料用:廃プラスチック | J115: =select!D175 -> 8 | Q115: {" | R115: 拡張コード | S115: ":" | T115: 燃料用:廃プラスチック | U115: "," | V115: 再生材量 | W115: ": | X115: 8 | Y115: }, | AI115: {"拡張コード":"燃料用:廃プラスチック","再生材量":8},
B116: 拡張コード | C116: 再生材量 | I116: =select!F176 -> 0 | J116: =select!D176 -> 0 | Q116: {" | R116: 拡張コード | S116: ":" | T116: 0 | U116: "," | V116: 再生材量 | W116: ": | X116: 0 | Y116: }, | AI116: {"拡張コード":"0","再生材量":0},
B117: 拡張コード | C117: 再生材量 | I117: =select!F177 -> 0 | J117: =select!D177 -> 0 | Q117: {" | R117: 拡張コード | S117: ":" | T117: 0 | U117: "," | V117: 再生材量 | W117: ": | X117: 0 | Y117: }, | AI117: {"拡張コード":"0","再生材量":0},
B118: 拡張コード | C118: 再生材量 | I118: =select!F178 -> 0 | J118: =select!D178 -> 0 | Q118: {" | R118: 拡張コード | S118: ":" | T118: 0 | U118: "," | V118: 再生材量 | W118: ": | X118: 0 | Y118: }, | AI118: {"拡張コード":"0","再生材量":0},
B119: 拡張コード | C119: 再生材量 | I119: =select!F179 -> 0 | J119: =select!D179 -> 0 | Q119: {" | R119: 拡張コード | S119: ":" | T119: 0 | U119: "," | V119: 再生材量 | W119: ": | X119: 0 | Y119: }, | AI119: {"拡張コード":"0","再生材量":0},
B120: 拡張コード | C120: 再生材量 | I120: =select!F180 -> 0 | J120: =select!D180 -> 0 | Q120: {" | R120: 拡張コード | S120: ":" | T120: 0 | U120: "," | V120: 再生材量 | W120: ": | X120: 0 | Y120: }, | AI120: {"拡張コード":"0","再生材量":0},
B121: 拡張コード | C121: 再生材量 | I121: =select!F181 -> 0 | J121: =select!D181 -> 0 | Q121: {" | R121: 拡張コード | S121: ":" | T121: 0 | U121: "," | V121: 再生材量 | W121: ": | X121: 0 | Y121: }, | AI121: {"拡張コード":"0","再生材量":0},
B122: 拡張コード | C122: 再生材量 | I122: =select!F182 -> 0 | J122: =select!D182 -> 0 | Q122: {" | R122: 拡張コード | S122: ":" | T122: 0 | U122: "," | V122: 再生材量 | W122: ": | X122: 0 | Y122: }, | AI122: {"拡張コード":"0","再生材量":0},
B123: 拡張コード | C123: 再生材量 | I123: =select!F183 -> 0 | J123: =select!D183 -> 0 | Q123: {" | R123: 拡張コード | S123: ":" | T123: 0 | U123: "," | V123: 再生材量 | W123: ": | X123: 0 | Y123: }, | AI123: {"拡張コード":"0","再生材量":0},
B124: 拡張コード | C124: 再生材量 | I124: =select!F184 -> 0 | J124: =select!D184 -> 0 | Q124: {" | R124: 拡張コード | S124: ":" | T124: 0 | U124: "," | V124: 再生材量 | W124: ": | X124: 0 | Y124: }, | AI124: {"拡張コード":"0","再生材量":0},
B125: 拡張コード | C125: 再生材量 | I125: =select!F185 -> 0 | J125: =select!D185 -> 0 | Q125: {" | R125: 拡張コード | S125: ":" | T125: 0 | U125: "," | V125: 再生材量 | W125: ": | X125: 0 | Y125: }, | AI125: {"拡張コード":"0","再生材量":0},
B126: 拡張コード | C126: 再生材量 | I126: =select!F186 -> 0 | J126: =select!D186 -> 0 | Q126: {" | R126: 拡張コード | S126: ":" | T126: 0 | U126: "," | V126: 再生材量 | W126: ": | X126: 0 | Y126: }, | AI126: {"拡張コード":"0","再生材量":0},
B127: 拡張コード | C127: 再生材量 | I127: =select!F187 -> 0 | J127: =select!D187 -> 0 | Q127: {" | R127: 拡張コード | S127: ":" | T127: 0 | U127: "," | V127: 再生材量 | W127: ": | X127: 0 | Y127: }, | AI127: {"拡張コード":"0","再生材量":0},
B128: 拡張コード | C128: 再生材量 | I128: =select!F188 -> 0 | J128: =select!D188 -> 0 | Q128: {" | R128: 拡張コード | S128: ":" | T128: 0 | U128: "," | V128: 再生材量 | W128: ": | X128: 0 | Y128: }, | AI128: {"拡張コード":"0","再生材量":0},
B129: 拡張コード | C129: 再生材量 | I129: =select!F189 -> 0 | J129: =select!D189 -> 0 | Q129: {" | R129: 拡張コード | S129: ":" | T129: 0 | U129: "," | V129: 再生材量 | W129: ": | X129: 0 | Y129: }]} | AI129: {"拡張コード":"0","再生材量":0}]}
A132: =json!E1 -> earn | B132: =json!F1 -> 200
A133: =json!E2 -> scope1 | B133: =json!F2 -> 98.10662 | C133: M\あたり | D133: =B133/B132 -> 0.4905331 | E133: 和
A134: =json!E3 -> scope2 | B134: =json!F3 -> 0.3497 | C134: M\あたり | D134: =B134/B132 -> 0.0017485 | E134: =B133+B134 -> 98.45632
A135: =json!E4 -> scope3 | B135: =json!F4 -> 235.1262221 | E135: =E134+B135 -> 333.5825421 | G135: 当社構成出力 | H135: =B134 -> 0.3497
A136: =json!E5 -> renew | B136: =json!F5 -> 0.3171 | G136: 日本平均電力 | H136: =B136 -> 0.3171
A137: =json!E6 -> cat1 | B137: =json!F6 -> 73.83233556 | G137: 1購入 | H137: 73.83233556
A138: =json!E7 -> cat2 | B138: =json!F7 -> 31.30499746 | G138: 2資本 | H138: 31.30499746
A139: =json!E8 -> cat3 | B139: =json!F8 -> 40.99007732 | G139: 3エネルギー波及 | H139: 40.99007732
A140: =json!E9 -> cat4 | B140: =json!F9 -> 7.787723662 | G140: 4上流配送 | H140: 7.787723662
A141: =json!E10 -> cat5 | B141: =json!F10 -> 16.453765 | G141: 5事業廃棄物 | H141: 16.453765
A142: =json!E11 -> cat6 | B142: =json!F11 -> 9.490019341 | G142: 6出張 | H142: 9.490019341
A143: =json!E12 -> cat7 | B143: =json!F12 -> 5.009808635 | G143: 7通勤 | H143: 5.009808635
A144: =json!E13 -> cat8 | B144: =json!F13 -> 0 | G144: 8上流リース | H144: 0
A145: =json!E14 -> cat9 | B145: =json!F14 -> 16.72742657 | G145: 9下流配送 | H145: 16.72742657
A146: =json!E15 -> cat10 | B146: =json!F15 -> 7.99556851 | G146: 10販売後加工 | H146: 7.99556851
A147: =json!E16 -> cat11 | B147: =json!F16 -> 0 | G147: 11使用 | H147: 0
A148: =json!E17 -> cat12 | B148: =json!F17 -> 25.5345 | G148: 12使用後廃棄 | H148: 25.5345
A149: =json!E18 -> cat13 | B149: =json!F18 -> 0 | G149: 13下流リース | H149: 0
A150: =json!E19 -> cat14 | B150: =json!F19 -> 0 | G150: 14フランチャイズ | H150: 0
A151: =json!E20 -> cat15 | B151: =json!F20 -> 0 | G151: 15投資 | H151: 0
A152: =json!E21 -> con_p | B152: =json!F21 -> 126.2713485 | G152: scope1 | H152: =B133 -> 98.10662
A153: =json!E22 -> con_m | B153: =json!F22 -> 638.9739409 | G153: scope2 | H153: =B134 -> 0.3497
A154: =json!E23 -> msg10 | B154: =json!F23 -> 0 | C154: =IF(B154=0,"",B154) -> 
A155: =json!E24 -> msg11 | B155: =json!F24 -> 素材生産のため特定できず | C155: =IF(B155=0,"",B155) -> 素材生産のため特定できず | H155: 貢献 | I155: 排出
A156: =json!E25 -> msg12 | B156: =json!F25 -> 0 | C156: =IF(B156=0,"",B156) ->  | G156: 再生製品 | H156: =B152 -> 126.2713485
A157: =json!E26 -> msg14 | B157: =json!F26 -> フランチャイズなし | G157: 再生素材 | H157: =B153 -> 638.9739409
A158: =json!E27 -> g1_nm | B158: =json!F27 -> 備品 | C158: =B158 -> 備品 | D158: =B159 -> 57.3522133 | G158: scope1 | I158: =B133 -> 98.10662
A159: =json!E28 -> g1_v | B159: =json!F28 -> 57.3522133 | C159: =B160 -> 軽油 | D159: =B161 -> 51.6 | G159: scope2 | I159: =B134 -> 0.3497
A160: =json!E29 -> g2_nm | B160: =json!F29 -> 軽油 | C160: =B162 -> ガソリン | D160: =B163 -> 46.4 | G160: scope3 | I160: 0
A161: =json!E30 -> g2_v | B161: =json!F30 -> 51.6
A162: =json!E31 -> g3_nm | B162: =json!F31 -> ガソリン
A163: =json!E32 -> g3_v | B163: =json!F32 -> 46.4

Sheet json (hidden)
A1: =jsonwk!AI1 -> { | E1: earn | F1: 200
A2: =jsonwk!AI2 -> "種類": "SCAT123P","パスワード":"s4klArBUBW4r","日付":"45421","産出物":"サービス","売上":200, | E2: scope1 | F2: 98.10662
A3: =jsonwk!AI3 -> "SC1":[{"燃料種":"B・C重油","燃料値":20}, | E3: scope2 | F3: 0.3497
A4: =jsonwk!AI4 -> {"燃料種":"ガソリン","燃料値":20}, | E4: scope3 | F4: 235.1262221
A5: =jsonwk!AI5 -> {"燃料種":"天然ガス(LNG以外)","燃料値":0.021}, | E5: renew | F5: 0.3171
A6: =jsonwk!AI6 -> {"燃料種":"プロパン","燃料値":0.01}, | E6: cat1 | F6: 73.83233556
A7: =jsonwk!AI7 -> {"燃料種":"SF6_NF3_HFC_PFC","燃料値":0}, | E7: cat2 | F7: 31.30499746
A8: =jsonwk!AI8 -> {"燃料種":"触媒再生塔コークス","燃料値":1}, | E8: cat3 | F8: 40.99007732
A9: =jsonwk!AI9 -> {"燃料種":"0","燃料値":0}, | E9: cat4 | F9: 7.787723662
A10: =jsonwk!AI10 -> {"燃料種":"0","燃料値":0}], | E10: cat5 | F10: 16.453765
A11: =jsonwk!AI11 -> "SC2":[{"電力名":"A00003東京電力パワーグリッド(株)0.434","電力値":200}, | E11: cat6 | F11: 9.490019341
A12: =jsonwk!AI12 -> {"電力名":"A0067C(株)イーネットワークシステムズメニューC0","電力値":400}, | E12: cat7 | F12: 5.009808635
A13: =jsonwk!AI13 -> {"電力名":"A00000日本平均0.434","電力値":0}, | E13: cat8 | F13: 0
A14: =jsonwk!AI14 -> {"電力名":"0","電力値":0}, | E14: cat9 | F14: 16.72742657
A15: =jsonwk!AI15 -> {"電力名":"0","電力値":0}], | E15: cat10 | F15: 7.99556851
A16: =jsonwk!AI16 -> "SC3":[{"カテゴリー":"購入","名称":"嫌気性デラスシスな","コード":"691100","値":0}, | E16: cat11 | F16: 0
A17: =jsonwk!AI17 -> {"カテゴリー":"購入","名称":"碍子","コード":"481101","値":0}, | E17: cat12 | F17: 25.5345
A18: =jsonwk!AI18 -> {"カテゴリー":"購入","名称":"鉄板","コード":"263101","値":0}, | E18: cat13 | F18: 0
A19: =jsonwk!AI19 -> {"カテゴリー":"購入","名称":"電子部品","コード":"329902","値":0}, | E19: cat14 | F19: 0
A20: =jsonwk!AI20 -> {"カテゴリー":"役務","名称":"ダスト処理","コード":"481102","値":0}, | E20: cat15 | F20: 0
A21: =jsonwk!AI21 -> {"カテゴリー":"設備","名称":"工場設備","コード":"411202","値":0}, | E21: con_p | F21: 126.2713485
A22: =jsonwk!AI22 -> {"カテゴリー":"入荷輸送","名称":"入荷輸送費","コード":"574201","値":0}, | E22: con_m | F22: 638.9739409
A23: =jsonwk!AI23 -> {"カテゴリー":"出荷輸送","名称":"配送費","コード":"576101","値":0}, | E23: msg10
A24: =jsonwk!AI24 -> {"カテゴリー":"出張費","名称":"出張旅費","コード":"573101","値":0}, | E24: msg11 | F24: 素材生産のため特定できず
A25: =jsonwk!AI25 -> {"カテゴリー":"通勤費","名称":"通勤手当","コード":"572101","値":0}, | E25: msg12
A26: =jsonwk!AI26 -> {"カテゴリー":"投資","名称":"投資","コード":"011101","値":0}, | E26: msg14 | F26: フランチャイズなし
A27: =jsonwk!AI27 -> {"カテゴリー":"購入","名称":"備品","コード":"291201","値":0}, | E27: g1_nm | F27: 備品
A28: =jsonwk!AI28 -> {"カテゴリー":"リース(上流)","名称":"tCO2eq","コード":"","値":0}, | E28: g1_v | F28: 57.3522133
A29: =jsonwk!AI29 -> {"カテゴリー":"リース(下流)","名称":"tCO2eq","コード":"","値":0}, | E29: g2_nm | F29: 軽油
A30: =jsonwk!AI30 -> {"カテゴリー":"フランチャイズ","名称":"tCO2eq","コード":"","値":0}, | E30: g2_v | F30: 51.6
A31: =jsonwk!AI31 -> {"カテゴリー":"0","名称":"0","コード":"","値":0}, | E31: g3_nm | F31: ガソリン
A32: =jsonwk!AI32 -> {"カテゴリー":"0","名称":"0","コード":"","値":0}, | E32: g3_v | F32: 46.4
A33: =jsonwk!AI33 -> {"カテゴリー":"0","名称":"0","コード":"","値":0},
A34: =jsonwk!AI34 -> {"カテゴリー":"0","名称":"0","コード":"","値":0},
A35: =jsonwk!AI35 -> {"カテゴリー":"0","名称":"0","コード":"","値":0},
A36: =jsonwk!AI36 -> {"カテゴリー":"0","名称":"0","コード":"","値":0},
A37: =jsonwk!AI37 -> {"カテゴリー":"0","名称":"0","コード":"","値":0},
A38: =jsonwk!AI38 -> {"カテゴリー":"0","名称":"0","コード":"","値":0},
A39: =jsonwk!AI39 -> {"カテゴリー":"0","名称":"0","コード":"","値":0},
A40: =jsonwk!AI40 -> {"カテゴリー":"0","名称":"0","コード":"","値":0},
A41: =jsonwk!AI41 -> {"カテゴリー":"0","名称":"0","コード":"","値":0},
A42: =jsonwk!AI42 -> {"カテゴリー":"0","名称":"0","コード":"","値":0},
A43: =jsonwk!AI43 -> {"カテゴリー":"0","名称":"0","コード":"","値":0},
A44: =jsonwk!AI44 -> {"カテゴリー":"0","名称":"0","コード":"","値":0},
A45: =jsonwk!AI45 -> {"カテゴリー":"0","名称":"0","コード":"","値":0},
A46: =jsonwk!AI46 -> {"カテゴリー":"0","名称":"0","コード":"","値":0},
A47: =jsonwk!AI47 -> {"カテゴリー":"0","名称":"0","コード":"","値":0},
A48: =jsonwk!AI48 -> {"カテゴリー":"0","名称":"0","コード":"","値":0},
A49: =jsonwk!AI49 -> {"カテゴリー":"0","名称":"0","コード":"","値":0},
A50: =jsonwk!AI50 -> {"カテゴリー":"0","名称":"0","コード":"","値":0},
A51: =jsonwk!AI51 -> {"カテゴリー":"0","名称":"0","コード":"","値":0},
A52: =jsonwk!AI52 -> {"カテゴリー":"0","名称":"0","コード":"","値":0},
A53: =jsonwk!AI53 -> {"カテゴリー":"0","名称":"0","コード":"","値":0},
A54: =jsonwk!AI54 -> {"カテゴリー":"0","名称":"0","コード":"","値":0},
A55: =jsonwk!AI55 -> {"カテゴリー":"0","名称":"0","コード":"","値":0},
A56: =jsonwk!AI56 -> {"カテゴリー":"0","名称":"0","コード":"","値":0},
A57: =jsonwk!AI57 -> {"カテゴリー":"0","名称":"0","コード":"","値":0},
A58: =jsonwk!AI58 -> {"カテゴリー":"0","名称":"0","コード":"","値":0},
A59: =jsonwk!AI59 -> {"カテゴリー":"0","名称":"0","コード":"","値":0},
A60: =jsonwk!AI60 -> {"カテゴリー":"0","名称":"0","コード":"","値":0},
A61: =jsonwk!AI61 -> {"カテゴリー":"0","名称":"0","コード":"","値":0},
A62: =jsonwk!AI62 -> {"カテゴリー":"0","名称":"0","コード":"","値":0},
A63: =jsonwk!AI63 -> {"カテゴリー":"0","名称":"0","コード":"","値":0},
A64: =jsonwk!AI64 -> {"カテゴリー":"0","名称":"0","コード":"","値":0},
A65: =jsonwk!AI65 -> {"カテゴリー":"0","名称":"0","コード":"","値":0},
A66: =jsonwk!AI66 -> {"カテゴリー":"0","名称":"0","コード":"0","値":0}],
A67: =jsonwk!AI67 -> "SC3U":{"重量":0,"物販":120,
A68: =jsonwk!AI68 -> "寿命(年)":0,
A69: =jsonwk!AI69 -> "稼働率(%)":0,
A70: =jsonwk!AI70 -> "稼働電力kw":0,
A71: =jsonwk!AI71 -> "燃料消費(L/h)":0,
A72: =jsonwk!AI72 -> "フランチャイズ":{"排出":0,"理由":"一括計上"}},
A73: =jsonwk!AI73 -> "構成":[{"構成物":"繊維","重量%":0},
A74: =jsonwk!AI74 -> {"構成物":"木材","重量%":0},
A75: =jsonwk!AI75 -> {"構成物":"パルプ・紙","重量%":0},
A76: =jsonwk!AI76 -> {"構成物":"化学製品","重量%":0},
A77: =jsonwk!AI77 -> {"構成物":"プラスチック","重量%":0},
A78: =jsonwk!AI78 -> {"構成物":"ゴム","重量%":0},
A79: =jsonwk!AI79 -> {"構成物":"革","重量%":0},
A80: =jsonwk!AI80 -> {"構成物":"ガラス","重量%":0},
A81: =jsonwk!AI81 -> {"構成物":"セメント","重量%":0},
A82: =jsonwk!AI82 -> {"構成物":"窯業・土石","重量%":0},
A83: =jsonwk!AI83 -> {"構成物":"鋼","重量%":0},
A84: =jsonwk!AI84 -> {"構成物":"銅","重量%":0},
A85: =jsonwk!AI85 -> {"構成物":"アルミ","重量%":0},
A86: =jsonwk!AI86 -> {"構成物":"非鉄金属","重量%":0},
A87: =jsonwk!AI87 -> {"構成物":"その他","重量%":0},
A88: =jsonwk!AI88 -> {"構成物":"0","重量%":0}],
A89: =jsonwk!AI89 -> "発生廃棄物":[{"種類":"廃アルカリ","発生量":0},
A90: =jsonwk!AI90 -> {"種類":"廃プラスチック類","発生量":0},
A91: =jsonwk!AI91 -> {"種類":"木くず","発生量":0},
A92: =jsonwk!AI92 -> {"種類":"0","発生量":0},
A93: =jsonwk!AI93 -> {"種類":"0","発生量":0},
A94: =jsonwk!AI94 -> {"種類":"0","発生量":0},
A95: =jsonwk!AI95 -> {"種類":"0","発生量":0},
A96: =jsonwk!AI96 -> {"種類":"0","発生量":0},
A97: =jsonwk!AI97 -> {"種類":"0","発生量":0},
A98: =jsonwk!AI98 -> {"種類":"0","発生量":0},
A99: =jsonwk!AI99 -> {"種類":"0","発生量":0}],
A100: =jsonwk!AI100 -> "再生品":[{"再生品名":"瓶","品コード":"251109","再生品量":10},
A101: =jsonwk!AI101 -> {"再生品名":"プラスチック果物トレイ","品コード":"152909","再生品量":30},
A102: =jsonwk!AI102 -> {"再生品名":"チェック","品コード":"231201","再生品量":0},
A103: =jsonwk!AI103 -> {"再生品名":"xnn","品コード":"061101","再生品量":10},
A104: =jsonwk!AI104 -> {"再生品名":"cvvsvs","品コード":"164109","再生品量":5},
A105: =jsonwk!AI105 -> {"再生品名":"dd","品コード":"152102","再生品量":1},
A106: =jsonwk!AI106 -> {"再生品名":"0","品コード":"","再生品量":0},
A107: =jsonwk!AI107 -> {"再生品名":"0","品コード":"","再生品量":0},
A108: =jsonwk!AI108 -> {"再生品名":"0","品コード":"","再生品量":0},
A109: =jsonwk!AI109 -> {"再生品名":"0","品コード":"","再生品量":0}],
A110: =jsonwk!AI110 -> "再生原材料":[{"拡張コード":"再生用:鋼板用鉄スクラップ","再生材量":70},
A111: =jsonwk!AI111 -> {"拡張コード":"再生用:ステンレス","再生材量":10},
A112: =jsonwk!AI112 -> {"拡張コード":"再生用:金","再生材量":12},
A113: =jsonwk!AI113 -> {"拡張コード":"再生用:鋳物用アルミスクラップ","再生材量":20},
A114: =jsonwk!AI114 -> {"拡張コード":"再生用:展伸材用アルミスクラップ","再生材量":3.2},
A115: =jsonwk!AI115 -> {"拡張コード":"燃料用:廃プラスチック","再生材量":8},
A116: =jsonwk!AI116 -> {"拡張コード":"0","再生材量":0},
A117: =jsonwk!AI117 -> {"拡張コード":"0","再生材量":0},
A118: =jsonwk!AI118 -> {"拡張コード":"0","再生材量":0},
A119: =jsonwk!AI119 -> {"拡張コード":"0","再生材量":0},
A120: =jsonwk!AI120 -> {"拡張コード":"0","再生材量":0},
A121: =jsonwk!AI121 -> {"拡張コード":"0","再生材量":0},
A122: =jsonwk!AI122 -> {"拡張コード":"0","再生材量":0},
A123: =jsonwk!AI123 -> {"拡張コード":"0","再生材量":0},
A124: =jsonwk!AI124 -> {"拡張コード":"0","再生材量":0},
A125: =jsonwk!AI125 -> {"拡張コード":"0","再生材量":0},
A126: =jsonwk!AI126 -> {"拡張コード":"0","再生材量":0},
A127: =jsonwk!AI127 -> {"拡張コード":"0","再生材量":0},
A128: =jsonwk!AI128 -> {"拡張コード":"0","再生材量":0},
A129: =jsonwk!AI129 -> {"拡張コード":"0","再生材量":0}]}
